Workbook

Sheet 01.BALANCE ENERGIA Abr-19 Def
B1: Mes | C1: 2019-04-01
B3: Total | C3: =+SUM(C9:C437) -> 0.0001552402973 | D3: =+SUM(D9:D437) -> 0.0001552402973
B4: Positivo | C4: =+SUMIF(C$9:C$437,">0") -> 4.645441086e+10 | D4: =+SUMIF(D$9:D$437,">0") -> 4.645441086e+10
B5: Negativo | C5: =+SUMIF(C$9:C$437,"<0") -> -4.645441086e+10 | D5: =+SUMIF(D$9:D$437,"<0") -> -4.645441086e+10 | J5: CUADRO DE PAGOS 01.BALANCE ENERGIA Abr-19 Def (Valores en $)
F6: ="Balance Energía "& TEXT(C1,"mmm-yy") -> Balance Energía abr-yy
C7: Datos | K7: Reciben
B8: Empresa | C8: Energía SEN | D8: TOTAL | F8: Empresa | G8: Paga | H8: Recibe | J8: Pagan | K8: GASATACAMA | L8: AES_GENER | M8: GMETROPOLITANA | N8: IMELSA_ENERGIA | O8: COLBUN | P8: ARAUCO BIO | Q8: SGA | R8: NUEVA ENERGIA | S8: ELEKTRAGEN | T8: GESAN | U8: PUNTILLA | V8: EL MANZANO | W8: ESPINOS | X8: ENLASA | Y8: ORAFTI | Z8: GAS SUR | AA8: ALTO_MANGA_ENERGY | AB8: GENPAC | AC8: NORVIND | AD8: HIDROPALOMA | AE8: EMELDA | AF8: SWO | AG8: BARRICK | AH8: CARRAN | AI8: DONGO | AJ8: INACAL | AK8: HIDROLIRCAY | AL8: LOS MORROS | AM8: DIUTO | AN8: LICAN | AO8: ENERGIA PACIFICO | AP8: DONGUIL | AQ8: PEHUI | AR8: COMASA | AS8: ENERBOSCH | AT8: HIDROMUCHI | AU8: BE FORESTALES | AV8: EL CANELO | AW8: HIDRONALCAS | AX8: HIDROCALLAO | AY8: KALTEMP | AZ8: MAPOCHO TREBAL | BA8: UCUQUER | BB8: TAMM | BC8: ROBLERIA | BD8: GENERHOM | BE8: WENKE | BF8: HIDROBONITO | BG8: SOLAIREDIRECT | BH8: SANTAMARTA | BI8: RIO HUASCO | BJ8: SANTA IRENE | BK8: CONTRA | BL8: COLMITO | BM8: COMMONPLACE | BN8: AMANECER SOLAR | BO8: SAN_ANDRES_SPA | BP8: ENERGIA_LEON | BQ8: ENERGIAS_DEL_FUTURO | BR8: BIOCRUZ | BS8: HBS | BT8: ALBA | BU8: LOS_CURUROS | BV8: LOMAS_COLORADAS | BW8: PAMA | BX8: RIO_PUMA | BY8: GM_HOLDINGS | BZ8: PH_PUNTA_SIERRA | CA8: UCUQUER_DOS | CB8: EBCO_ATACAMA | CC8: ATRIA_ENERGIA | CD8: PV_SALVADOR | CE8: COLLIL | CF8: MARIA_ELENA | CG8: LAS_FLORES | CH8: CURILEUFU | CI8: BIOBIO_NEGRETE | CJ8: LUZ_DEL_NORTE | CK8: RAKI | CL8: TRAILELFU | CM8: GR_PAN_DE_AZUCAR | CN8: PUCLARO | CO8: HUAJACHE | CP8: EL_MIRADOR | CQ8: RIO_MULCHEN | CR8: EL_MORADO | CS8: CHUNGUNGO | CT8: SPVP4 | CU8: RENOVALIA_6 | CV8: RENOVALIA_7 | CW8: AGSA | CX8: TILTIL_SOLAR | CY8: BELLAVISTA | CZ8: MALLARAUCO | DA8: M_VILLARRICA | DB8: CHANLEUFU | DC8: RASO_POWER | DD8: LOS_LOROS | DE8: ALTOS_DEL_PAICO | DF8: EL_AGRIO | DG8: DIVISADERO | DH8: CUMPEO | DI8: TEATINOS | DJ8: GR_HUINGAN | DK8: GR_COIGUE | DL8: HORMIGA_SOLAR | DM8: RAGSA | DN8: BIO_ENERGIA_MOLINA | DO8: GESTEL | DP8: CUZCUZ | DQ8: GR_ARAUCARIA | DR8: MAINCO | DS8: EL_ARROYO | DT8: LOS_PINOS_BIO | DU8: EL_BOCO | DV8: SANTIAGO_SOLAR | DW8: GENERADORA_PIUTEL | DX8: HIDRORIÑINAHUE | DY8: GR_CANELO | DZ8: LA_LEONERA | EA8: CABO_LEONES | EB8: CHILE_GENERACION | EC8: LAS_TURCAS | ED8: GR_GUAYACAN | EE8: DOS_VALLES | EF8: SOCER | EG8: COYANCO | EH8: GR_ESPINO | EI8: HIDROMUNILQUE | EJ8: SAN_FRANCISCO | EK8: QUINTA_SOLAR | EL8: VALLE_DE_LA_LUNA_II | EM8: GR_LINGUE | EN8: QUELTEHUE | EO8: CHESTER_SOLAR_IV | EP8: CHESTER_SOLAR_V | EQ8: PV_CHANCON | ER8: PITIO | ES8: CH _SANTA_ELENA | ET8: AMPARO | EU8: PARRONAL | EV8: GR_TIACA | EW8: EMBALSE_ANCOA | EX8: GR_BOLDO | EY8: PV_PORTEZUELO | EZ8: PLANETA_INVESTMENT | FA8: SOLAR_E | FB8: GORRIONES | FC8: PV_EL_PICURIO | FD8: CHINCOL | FE8: VILLA_PRAT_ENERGY | FF8: PS_SANTALAURA | FG8: GR_ARRAYAN | FH8: PFV_OCOA | FI8: PV_LAS_PALOMAS | FJ8: PALACIOS | FK8: ENERGIA_SIETE | FL8: MINICENTRALES_ARAUCANIA | FM8: LA_ACACIA | FN8: GR_LITRE | FO8: GR_LAUREL | FP8: PATOS | FQ8: TACORA_ENERGY | FR8: CH_CONVENTO_VIEJO | FS8: MINICENTRAL_ARRAYAN | FT8: GR_TINEO | FU8: PV_RODEO | FV8: PV_LA_FRONTERA | FW8: EL_CERNICALO | FX8: FOTOVOLT_SOLAR_I | FY8: ABASTIBLE | FZ8: SINERGIA_SOLAR_SPA | GA8: VALLE_SOLAR_OESTE_2 | GB8: PILPEN | GC8: HIDROELECTRICA SAN ANDRES | GD8: LA_MANGA_ENERGY | GE8: NEOMAS | GF8: EL_QUEULE | GG8: LOA_SOLAR | GH8: PIQUERO | GI8: PARQUE_SOLAR | GJ8: DIEGO_DE_ALMAGRO_SOLAR | GK8: PFALICAHUE_SOLAR | GL8: LUNA_ENERGY | GM8: CALLE_LARGA_SPA | GN8: NUOVOSOL_SPA | GO8: APOLO_DEL_NORTE_SPA | GP8: SOLAR_UNO | GQ8: COCHRANE | GR8: GENERACION_SOLAR_SPA | GS8: NORACID | GT8: ANGAMOS | GU8: HELIO_ATACAMA_TRES | GV8: PLANTA_SOLAR_SPIII | GW8: CALAMA_SOLAR_1 | GX8: PUERTO_SECO | GY8: TECNET | GZ8: ENERNUEVAS | HA8: CAVANCHA | HB8: SPS_LA_HUAYCA | HC8: LOS_PUQUIOS | HD8: FV_NORTE_GRANDE_5 | HE8: POZO_ALMONTE_SOLAR_1 | HF8: POZO_ALMONTE_SOLAR_3 | HG8: SOLAR_TI_CUATRO | HH8: SOLAR_LOS_PERALES_I | HI8: VITUCO | HJ8: POBLACION_SOLAR | HK8: REDEN_CABILDO_SOLAR | HL8: REDEN_TALHUEN_SOLAR | HM8: SANTA_CLARA | HN8: LAUREL_SPA | HO8: RIGEL_SPA | HP8: CUMBRES | HQ8: SANTA_ADRIANA | HR8: GR_CHAQUIHUE | HS8: ISABEL_SOLAR_SPA | HT8: CRUCERO_SPA | HU8: FV_ARIZTIA | HV8: LA HIGUERA | HW8: ZALDIVAR_TRANSMISION | HX8: Total
A9: =+MATCH(B9,RUT[EMPRESA],0) -> 108 | B9: ENEL_GENERACION | C9: -7088352654 | D9: =+C9 -> -7088352654 | F9: =IFERROR(INDEX($B$9:$B$511,MATCH(0,INDEX(COUNTIF($F$8:F8,$B$9:$B$511),0,0),0)),"") -> ENEL_GENERACION | G9: =IF(SUMIF($B$9:$B$400,F9,$D$9:$D$400)<-0.00001,SUMIF($B$9:$B$400,F9,$D$9:$D$400),"") -> -7088352654 | H9: =IF(SUMIF($B$9:$B$400,F9,$D$9:$D$400)>0.00001,SUMIF($B$9:$B$400,F9,$D$9:$D$400),"") ->  | J9: ENEL_GENERACION | K9: =$HX9*K$75/$HX$75 -> 105544813 | L9: 81552983.84 | M9: 292831845.1 | N9: 5459655.907 | O9: 1143143812 | P9: 412454208.1 | Q9: 59345108.87 | R9: 692564.3942 | S9: 284803.8699 | T9: 1753321.297 | U9: =$HX9*U$75/$HX$75 -> 7350268.493 | V9: 4943798.378 | W9: 4902947.999 | X9: 77639485.39 | Y9: 21663337.45 | Z9: 4682081.39 | AA9: 2709695.176 | AB9: 13025560.85 | AC9: 11561824.48 | AD9: 5941536.641 | AE9: =$HX9*AE$75/$HX$75 -> 498349.3824 | AF9: 3513454.375 | AG9: 321929.8832 | AH9: 1582824.571 | AI9: 10611307.81 | AJ9: 4745728.527 | AK9: 43183774.55 | AL9: 3812759.323 | AM9: 18634737.64 | AN9: 29129513.69 | AO9: =$HX9*AO$75/$HX$75 -> 31521141.66 | AP9: 305249.1934 | AQ9: 1864160.271 | AR9: 153519077 | AS9: 6376969.365 | AT9: 8563.503839 | AU9: 179851050 | AV9: 3512834.781 | AW9: 10407800.39 | AX9: 2927685.809 | AY9: =$HX9*AY$75/$HX$75 -> 259961.3406 | AZ9: 7511890.858 | BA9: 8218828.466 | BB9: 122000.0989 | BC9: 7196680.004 | BD9: 6109851.762 | BE9: 43975.04637 | BF9: 11955932.97 | BG9: 1092840.998 | BH9: 40889995.82 | BI9: =$HX9*BI$75/$HX$75 -> 11929130.02 | BJ9: 819982.8377 | BK9: 1456.445674 | BL9: 224714056.5 | BM9: 2789864.537 | BN9: 68443737.44 | BO9: 31628852.67 | BP9: 11090418.07 | BQ9: 76020.97107 | BR9: 7003354.655 | BS9: =$HX9*BS$75/$HX$75 -> 2205622.561 | BT9: 62318454.84 | BU9: 20873361.48 | BV9: 2287798.544 | BW9: 2005159.633 | BX9: 630598.2526 | BY9: 1807559990 | BZ9: 79465473.63 | CA9: 6473417.39 | CB9: 1282861.005 | CC9: =$HX9*CC$75/$HX$75 -> 14529258.52 | CD9: 41928990.38 | CE9: 11635819.46 | CF9: 182952.6479 | CG9: 6210292.901 | CH9: 1049888.592 | CI9: 8142669.927 | CJ9: 28655672.28 | CK9: 596827.0464 | CL9: 1117442.342 | CM9: =$HX9*CM$75/$HX$75 -> 3285965.776 | CN9: 3080195.596 | CO9: 573481.9716 | CP9: 609388.6194 | CQ9: 215452.1841 | CR9: 31524319.64 | CS9: 19431756.58 | CT9: 390233.4234 | CU9: 2096321.387 | CV9: 2054743.334 | CW9: =$HX9*CW$75/$HX$75 -> 62278.89645 | CX9: 2539335.235 | CY9: 501587.9885 | CZ9: 14913623.98 | DA9: 826362.2514 | DB9: 8180710.09 | DC9: 1474811.538 | DD9: 25648390.56 | DE9: 200262.1195 | DF9: 412487.9844 | DG9: =$HX9*DG$75/$HX$75 -> 4193874.611 | DH9: 7199836.334 | DI9: 1104632.486 | DJ9: 6329916.207 | DK9: 2680992.966 | DL9: 2424011.654 | DM9: 54404279.11 | DN9: 7747.009255 | DO9: 1008387.153 | DP9: 2425281.787 | DQ9: =$HX9*DQ$75/$HX$75 -> 8938633.942 | DR9: 26502380.78 | DS9: 2512516.173 | DT9: 4157592.329 | DU9: 2787786.314 | DV9: 79541632.9 | DW9: 4008.925847 | DX9: 3355382.351 | DY9: 9606081.129 | DZ9: 3513705.407 | EA9: =$HX9*EA$75/$HX$75 -> 29770328.54 | EB9: 124005.401 | EC9: 2979398.908 | ED9: 2579391.781 | EE9: 4810304.066 | EF9: 17218121.08 | EG9: 18005277.38 | EH9: 3010713.96 | EI9: 3373184.176 | EJ9: 3251334.619 | EK9: =$HX9*EK$75/$HX$75 -> 3482074.695 | EL9: 2828568.756 | EM9: 6394199.446 | EN9: 2954854.359 | EO9: 7829682.822 | EP9: 2761001.255 | EQ9: 2303096.72 | ER9: 2464060.868 | ES9: 1692406.658 | ET9: 2941590.359 | EU9: =$HX9*EU$75/$HX$75 -> 2608444.262 | EV9: 2023480.965 | EW9: 18381803.1 | EX9: 3212847.635 | EY9: 2431531.175 | EZ9: 3072436.341 | FA9: 20402653.03 | FB9: 2438056.177 | FC9: 2597616.799 | FD9: 2574044.073 | FE9: =$HX9*FE$75/$HX$75 -> 2397712.416 | FF9: 2322668.152 | FG9: 7187652.018 | FH9: 3280995.584 | FI9: 2672688.708 | FJ9: 2507395.664 | FK9: 23898.67898 | FL9: 517181.6465 | FM9: 6125134.423 | FN9: 9095091.157 | FO9: =$HX9*FO$75/$HX$75 -> 3226413.034 | FP9: 2784337.706 | FQ9: 5876175.376 | FR9: 0.5677613645 | FS9: 1638806.021 | FT9: 2022420.363 | FU9: 2536715.586 | FV9: 4674620.975 | FW9: 2695315.099 | FX9: 890358.0762 | FY9: =$HX9*FY$75/$HX$75 -> 725326.8831 | FZ9: 10206391.04 | GA9: 9951687.217 | GB9: 2921687.041 | GC9: 57187267.54 | GD9: 2816341.437 | GE9: 7200479.187 | GF9: 4195194.456 | GG9: 3280989.143 | GH9: 2992830.627 | GI9: =$HX9*GI$75/$HX$75 -> 2588953.487 | GJ9: 12136302.28 | GK9: 2591767.862 | GL9: 3013856.527 | GM9: 3024847.493 | GN9: 7508807.43 | GO9: 9596640.987 | GP9: 7667045.213 | GQ9: 419235813.4 | GR9: 60249196.17 | GS9: =$HX9*GS$75/$HX$75 -> 47693462.63 | GT9: 15779748.55 | GU9: 103397647.3 | GV9: 25066433.34 | GW9: 15669288.42 | GX9: 16768917.17 | GY9: 155105.2633 | GZ9: 8900477.303 | HA9: 7113292.423 | HB9: 20062487.74 | HC9: =$HX9*HC$75/$HX$75 -> 1138126.617 | HD9: 44838814.78 | HE9: 16397274.31 | HF9: 2151284.495 | HG9: 2612764.356 | HH9: 997898.7456 | HI9: 3381141.151 | HJ9: 2941474.915 | HK9: 4604113.472 | HL9: 4195872.833 | HM9: =$HX9*HM$75/$HX$75 -> 2492302.492 | HN9: 3347624.895 | HO9: 10914389.96 | HP9: 30991100.21 | HQ9: 3071729.224 | HR9: 8121269.63 | HS9: 3291102.138 | HT9: 3228031.25 | HU9: 70022.91732 | HV9: 142996941.1 | HW9: 18294661.85 | HX9: 7088352654
A10: =+MATCH(B10,RUT[EMPRESA],0) -> 330 | B10: GASATACAMA | C10: 691701210.1 | D10: =+C10 -> 691701210.1 | F10: =IFERROR(INDEX($B$9:$B$511,MATCH(0,INDEX(COUNTIF($F$8:F9,$B$9:$B$511),0,0),0)),"") -> GASATACAMA | G10: =IF(SUMIF($B$9:$B$400,F10,$D$9:$D$400)<-0.00001,SUMIF($B$9:$B$400,F10,$D$9:$D$400),"") ->  | H10: =IF(SUMIF($B$9:$B$400,F10,$D$9:$D$400)>0.00001,SUMIF($B$9:$B$400,F10,$D$9:$D$400),"") -> 691701210.1 | J10: PEHUENCHE | K10: 50510866.59 | L10: 39029032.02 | M10: 140141328 | N10: 2612842.292 | O10: 547077425.3 | P10: 197389325.8 | Q10: 28400949.24 | R10: 331442.415 | S10: 136299.3582 | T10: 839091.7147 | U10: 3517637.87 | V10: 2365966.959 | W10: 2346417.083 | X10: 37156138.48 | Y10: 10367481.99 | Z10: 2240716.352 | AA10: 1296786.148 | AB10: 6233677.88 | AC10: 5533173.608 | AD10: 2843457.258 | AE10: 238496.4116 | AF10: 1681443.361 | AG10: 154066.8548 | AH10: 757496.6352 | AI10: 5078282.274 | AJ10: 2271176.135 | AK10: 20666575.76 | AL10: 1824682.54 | AM10: 8918076.783 | AN10: 13940590.14 | AO10: 15085158.01 | AP10: 146083.932 | AQ10: 892136.222 | AR10: 73470039.83 | AS10: 3051843.474 | AT10: 4098.25919 | AU10: 86071803.37 | AV10: 1681146.841 | AW10: 4980889.179 | AX10: 1401110.515 | AY10: 124410.4018 | AZ10: 3594985.922 | BA10: 3933306.965 | BB10: 58385.91725 | BC10: 3444134.611 | BD10: 2924008.28 | BE10: 21045.25686 | BF10: 5721783.173 | BG10: 523003.8719 | BH10: 19568835.88 | BI10: 5708956.015 | BJ10: 392421.4041 | BK10: 697.0151451 | BL10: 107542013.7 | BM10: 1335153.016 | BN10: 32755304.52 | BO10: 15136705.56 | BP10: 5307571.367 | BQ10: 36381.5617 | BR10: 3351614.376 | BS10: 1055550.754 | BT10: 29823911.46 | BU10: 9989421.05 | BV10: 1094877.936 | BW10: 959614.6682 | BX10: 301787.1111 | BY10: 865048872.7 | BZ10: 38030006.61 | CA10: 3098000.866 | CB10: 613942.2602 | CC10: 6953306.539 | CD10: 20066070.31 | CE10: 5568585.587 | CF10: 87556.14345 | CG10: 2972076.668 | CH10: 502448.0226 | CI10: 3896859.567 | CJ10: 13713822.58 | CK10: 285625.1336 | CL10: 534777.4033 | CM10: 1572573.527 | CN10: 1474097.536 | CO10: 274452.818 | CP10: 291636.7595 | CQ10: 103109.5344 | CR10: 15086678.9 | CS10: 9299508.294 | CT10: 186755.0647 | CU10: 1003242.195 | CV10: 983344.074 | CW10: 29804.97989 | CX10: 1215256.53 | CY10: 240046.3201 | CZ10: 7137253.357 | DA10: 395474.4174 | DB10: 3915064.551 | DC10: 705804.5462 | DD10: 12274619.63 | DE10: 95839.98408 | DF10: 197405.4902 | DG10: 2007073.914 | DH10: 3445645.145 | DI10: 528646.9561 | DJ10: 3029325.117 | DK10: 1283050.054 | DL10: 1160065.812 | DM10: 26036402.98 | DN10: 3707.507169 | DO10: 482586.5666 | DP10: 1160673.664 | DQ10: 4277786.218 | DR10: 12683316.04 | DS10: 1202421.659 | DT10: 1989710.204 | DU10: 1334158.435 | DV10: 38066454.36 | DW10: 1918.562484 | DX10: 1605794.405 | DY10: 4597208.223 | DZ10: 1681563.499 | EA10: 14247266.64 | EB10: 59345.60012 | EC10: 1425858.992 | ED10: 1234426.5 | EE10: 2302080.225 | EF10: 8240122.768 | EG10: 8616834.285 | EH10: 1440845.521 | EI10: 1614313.873 | EJ10: 1556000.001 | EK10: 1666425.903 | EL10: 1353675.799 | EM10: 3060089.32 | EN10: 1414112.641 | EO10: 3747072.482 | EP10: 1321339.837 | EQ10: 1102199.226 | ER10: 1179232.273 | ES10: 809939.6312 | ET10: 1407764.853 | EU10: 1248330.225 | EV10: 968382.7572 | EW10: 8797029.218 | EX10: 1537581.181 | EY10: 1163664.45 | EZ10: 1470384.168 | FA10: 9764152.833 | FB10: 1166787.138 | FC10: 1243148.496 | FD10: 1231867.233 | FE10: 1147479.715 | FF10: 1111565.579 | FG10: 3439814.064 | FH10: 1570194.929 | FI10: 1279075.863 | FJ10: 1199971.123 | FK10: 11437.25543 | FL10: 247509.0192 | FM10: 2931322.145 | FN10: 4352662.37 | FO10: 1544073.211 | FP10: 1332508.025 | FQ10: 2812177.14 | FR10: 0.2717150916 | FS10: 784287.8291 | FT10: 967875.1822 | FU10: 1214002.838 | FV10: 2237146.001 | FW10: 1289904.236 | FX10: 426101.0723 | FY10: 347121.6479 | FZ10: 4884500.159 | GA10: 4762605.863 | GB10: 1398239.668 | GC10: 27368265.28 | GD10: 1347824.137 | GE10: 3445952.797 | GF10: 2007705.556 | GG10: 1570191.847 | GH10: 1432287.046 | GI10: 1239002.471 | GJ10: 5808103.004 | GK10: 1240349.355 | GL10: 1442349.468 | GM10: 1447609.445 | GN10: 3593510.278 | GO10: 4592690.429 | GP10: 3669238.561 | GQ10: 200634816.9 | GR10: 28833620.74 | GS10: 22824789.38 | GT10: 7551756.937 | GU10: 49483291.7 | GV10: 11996110.79 | GW10: 7498893.733 | GX10: 8025146.036 | GY10: 74229.14529 | GZ10: 4259525.492 | HA10: 3404227.591 | HB10: 9601359.014 | HC10: 544676.3328 | HD10: 21458632.85 | HE10: 7847287.909 | HF10: 1029546.038 | HG10: 1250397.703 | HH10: 477567.1013 | HI10: 1618121.864 | HJ10: 1407709.605 | HK10: 2203403.035 | HL10: 2008030.209 | HM10: 1192747.943 | HN10: 1602081.899 | HO10: 5223329.117 | HP10: 14831494.64 | HQ10: 1470045.761 | HR10: 3886617.969 | HS10: 1575031.65 | HT10: 1544847.645 | HU10: 33511.0569 | HV10: 68434432.81 | HW10: 8755325.798 | HX10: 3392292098
A11: =+MATCH(B11,RUT[EMPRESA],0) -> 4 | B11: AES_GENER | C11: 534467739.3 | D11: 534467739.3 | F11: =IFERROR(INDEX($B$9:$B$511,MATCH(0,INDEX(COUNTIF($F$8:F10,$B$9:$B$511),0,0),0)),"") -> AES_GENER | H11: 534467739.3 | J11: GUACOLDA | K11: 67552908.17 | L11: 52197176.45 | M11: 187424110.9 | N11: 3494398.48 | O11: 731657830.7 | P11: 263987215 | Q11: 37983246.88 | R11: 443268.9545 | S11: 182285.8852 | T11: 1122195.864 | U11: 4704466.267 | V11: 3164228.997 | W11: 3138083.118 | X11: 49692380.68 | Y11: 13865403.74 | Z11: 2996719.641 | AA11: 1734313.456 | AB11: 8336880.712 | AC11: 7400030.803 | AD11: 3802821.452 | AE11: 318963.5673 | AF11: 2248751.539 | AG11: 206048.0209 | AH11: 1013071.129 | AI11: 6791662.058 | AJ11: 3037456.358 | AK11: 27639345.53 | AL11: 2440318.695 | AM11: 11926978.54 | AN11: 18644055.61 | AO11: 20174793.32 | AP11: 195371.7112 | AQ11: 1193137.247 | AR11: 98258358.83 | AS11: 4081515.837 | AT11: 5480.985488 | AU11: 115111876.4 | AV11: 2248354.974 | AW11: 6661409.16 | AX11: 1873836.193 | AY11: 166385.6713 | AZ11: 4807911.055 | BA11: 5260379.442 | BB11: 78084.95028 | BC11: 4606163.482 | BD11: 3910549.872 | BE11: 28145.7912 | BF11: 7652276.022 | BG11: 699462.0151 | BH11: 26171235.27 | BI11: 7635121.064 | BJ11: 524821.8624 | BK11: 932.1835729 | BL11: 143825997.6 | BM11: 1785625.058 | BN11: 43806733.63 | BO11: 20243732.67 | BP11: 7098311.816 | BQ11: 48656.46667 | BR11: 4482427.514 | BS11: 1411686.79 | BT11: 39886307.41 | BU11: 13359787.48 | BV11: 1464282.711 | BW11: 1283382.487 | BX11: 403608.1417 | BY11: 1156910800 | BZ11: 50861086.29 | CA11: 4143246.437 | CB11: 821082.4308 | CC11: 9299307.453 | CD11: 26836233.4 | CE11: 7447390.556 | CF11: 117097.0232 | CG11: 3974836.224 | CH11: 671970.7545 | CI11: 5211634.926 | CJ11: 18340778.13 | CK11: 381993.217 | CL11: 715207.8604 | CM11: 2103149.723 | CN11: 1971448.565 | CO11: 367051.4339 | CP11: 390033.1269 | CQ11: 137898.0283 | CR11: 20176827.35 | CS11: 12437102.59 | CT11: 249765.0227 | CU11: 1341729.661 | CV11: 1315118.041 | CW11: 39860.98845 | CX11: 1625276.269 | CY11: 321036.4049 | CZ11: 9545316.744 | DA11: 528904.9427 | DB11: 5235982.155 | DC11: 943938.4615 | DD11: 16415997.36 | DE11: 128175.7784 | DF11: 264008.8332 | DG11: 2684247.746 | DH11: 4608183.66 | DI11: 707009.0397 | DJ11: 4051399.932 | DK11: 1715942.891 | DL11: 1551464.558 | DM11: 34820917.92 | DN11: 4958.396247 | DO11: 645408.171 | DP11: 1552277.494 | DQ11: 5721083.78 | DR11: 16962585.31 | DS11: 1608110.995 | DT11: 2661025.632 | DU11: 1784294.912 | DV11: 50909831.27 | DW11: 2565.873128 | DX11: 2147579.112 | DY11: 6148276.716 | DZ11: 2248912.21 | EA11: 19054202.79 | EB11: 79368.42399 | EC11: 1906934.648 | ED11: 1650914.063 | EE11: 3078787.29 | EF11: 11020287.2 | EG11: 11524098.76 | EH11: 1926977.535 | EI11: 2158972.993 | EJ11: 2080984.396 | EK11: 2228667.287 | EL11: 1810397.308 | EM11: 4092543.78 | EN11: 1891225.153 | EO11: 5011310.642 | EP11: 1767151.402 | EQ11: 1474074.157 | ER11: 1577097.659 | ES11: 1083208.055 | ET11: 1882735.662 | EU11: 1669508.815 | EV11: 1295108.872 | EW11: 11765090.31 | EX11: 2056351.185 | EY11: 1556277.353 | EZ11: 1966482.331 | FA11: 13058515.21 | FB11: 1560453.615 | FC11: 1662578.805 | FD11: 1647491.316 | FE11: 1534631.992 | FF11: 1486600.657 | FG11: 4600385.209 | FH11: 2099968.602 | FI11: 1710627.834 | FJ11: 1604833.664 | FK11: 15296.11186 | FL11: 331016.9706 | FM11: 3920331.387 | FN11: 5821222.665 | FO11: 2065033.583 | FP11: 1782087.665 | FQ11: 3760987.624 | FR11: 0.3633900163 | FS11: 1048901.499 | FT11: 1294430.045 | FU11: 1623599.589 | FV11: 2991944.676 | FW11: 1725109.63 | FX11: 569864.8341 | FY11: 464238.2598 | FZ11: 6532499.104 | GA11: 6369478.456 | GB11: 1869996.741 | GC11: 36602141.99 | GD11: 1802571.334 | GE11: 4608595.111 | GF11: 2685092.5 | GG11: 2099964.479 | GH11: 1915531.486 | GI11: 1657033.938 | GJ11: 7767719.609 | GK11: 1658835.251 | GL11: 1928988.904 | GM11: 1936023.563 | GN11: 4805937.538 | GO11: 6142234.647 | GP11: 4907216.057 | GQ11: 268327714 | GR11: 38561898.97 | GS11: 30525726.55 | GT11: 10099671.17 | GU11: 66178636.12 | GV11: 16043521.43 | GW11: 10028972.26 | GX11: 10732778.7 | GY11: 99273.58158 | GZ11: 5696662.003 | HA11: 4552792.09 | HB11: 12840795.8 | HC11: 728446.625 | HD11: 28698637.58 | HE11: 10494912.39 | HF11: 1376908.251 | HG11: 1672273.848 | HH11: 638695.1703 | HI11: 2164065.776 | HJ11: 1882661.773 | HK11: 2946817.05 | HL11: 2685526.689 | HM11: 1595173.43 | HN11: 2142614.03 | HO11: 6985646.773 | HP11: 19835545.55 | HQ11: 1966029.748 | HR11: 5197937.879 | HS11: 2106437.201 | HT11: 2066069.306 | HU11: 44817.47201 | HV11: 91523770.38 | HW11: 11709316.42 | HX11: 4536829638
A12: =+MATCH(B12,RUT[EMPRESA],0) -> 337 | B12: GMETROPOLITANA | C12: 1919110336 | D12: 1919110336 | F12: =IFERROR(INDEX($B$9:$B$511,MATCH(0,INDEX(COUNTIF($F$8:F11,$B$9:$B$511),0,0),0)),"") -> GMETROPOLITANA | H12: 1919110336 | J12: TECNORED | K12: 4493137.895 | L12: 3471784.085 | M12: 12466115.79 | N12: 232422.4767 | O12: 48664663.21 | P12: 17558547.69 | Q12: 2526374.815 | R12: 29483.09097 | S12: 12124.35764 | T12: 74640.46918 | U12: 312907.5599 | V12: 210461.9564 | W12: 208722.9189 | X12: 3305182.926 | Y12: 922227.8163 | Z12: 199320.4281 | AA12: 115354.1679 | AB12: 554509.8748 | AC12: 492197.2973 | AD12: 252936.5743 | AE12: 21215.18274 | AF12: 149570.922 | AG12: 13704.84552 | AH12: 67382.26973 | AI12: 451732.9451 | AJ12: 202029.9442 | AK12: 1838372.235 | AL12: 162312.6036 | AM12: 793297.5902 | AN12: 1240069.674 | AO12: 1341883.434 | AP12: 12994.73351 | AQ12: 79358.98426 | AR12: 6535445.586 | AS12: 271473.3381 | AT12: 364.556083 | AU12: 7656421.43 | AV12: 149544.5453 | AW12: 443069.4509 | AX12: 124634.2257 | AY12: 11066.78876 | AZ12: 319787.9698 | BA12: 349882.9414 | BB12: 5193.654258 | BC12: 306369.1594 | BD12: 260101.9008 | BE12: 1872.057391 | BF12: 508974.8511 | BG12: 46523.22707 | BH12: 1740724.006 | BI12: 507833.8256 | BJ12: 34907.40905 | BK12: 62.00220612 | BL12: 9566280.084 | BM12: 118767.0499 | BN12: 2913711.641 | BO12: 1346468.788 | BP12: 472129.1011 | BQ12: 3236.281311 | BR12: 298139.1249 | BS12: 93895.34197 | BT12: 2652952.836 | BU12: 888597.8266 | BV12: 97393.64768 | BW12: 85361.45431 | BX12: 26845.13643 | BY12: 76949459.26 | BZ12: 3382916.893 | CA12: 275579.2175 | CB12: 54612.55014 | CC12: 618523.6408 | CD12: 1784954.942 | CE12: 495347.3304 | CF12: 7788.459249 | CG12: 264377.7707 | CH12: 44694.70439 | CI12: 346640.8037 | CJ12: 1219897.817 | CK12: 25407.46572 | CL12: 47570.52845 | CM12: 139886.5271 | CN12: 131126.7049 | CO12: 24413.64483 | CP12: 25942.22322 | CQ12: 9171.993821 | CR12: 1342018.723 | CS12: 827227.4055 | CT12: 16612.58884 | CU12: 89242.29238 | CV12: 87472.27718 | CW12: 2651.268799 | CX12: 108101.7915 | CY12: 21353.05312 | CZ12: 634886.4252 | DA12: 35178.98644 | DB12: 348260.2078 | DC12: 62784.05751 | DD12: 1091875.122 | DE12: 8525.339068 | DF12: 17559.98557 | DG12: 178537.0252 | DH12: 306503.5272 | DI12: 47025.20135 | DJ12: 269470.2427 | DK12: 114132.2889 | DL12: 103192.3626 | DM12: 2316039.236 | DN12: 329.797172 | DO12: 42927.95069 | DP12: 103246.4334 | DQ12: 380525.7098 | DR12: 1128230.256 | DS12: 106960.0798 | DT12: 176992.4557 | DU12: 118678.5781 | DV12: 3386159.061 | DW12: 170.6635895 | DX12: 142841.6533 | DY12: 408939.5386 | DZ12: 149581.6086 | EA12: 1267349.74 | EB12: 5279.021779 | EC12: 126835.699 | ED12: 109807.0348 | EE12: 204778.9831 | EF12: 732990.9457 | EG12: 766500.8992 | EH12: 128168.809 | EI12: 143599.4931 | EJ12: 138412.2476 | EK12: 148235.0607 | EL12: 120414.7234 | EM12: 272206.8382 | EN12: 125790.8154 | EO12: 333316.6603 | EP12: 117538.3139 | EQ12: 98044.90484 | ER12: 104897.2938 | ES12: 72047.27805 | ET12: 125226.155 | EU12: 111043.8251 | EV12: 86141.4099 | EW12: 782529.9389 | EX12: 136773.8219 | EY12: 103512.4754 | EZ12: 130796.3865 | FA12: 868559.3431 | FB12: 103790.2507 | FC12: 110582.8903 | FD12: 109579.3781 | FE12: 102072.7803 | FF12: 98878.07836 | FG12: 305984.8299 | FH12: 139674.9416 | FI12: 113778.7691 | FJ12: 106742.0951 | FK12: 1017.388322 | FL12: 22016.8892 | FM12: 260752.4974 | FN12: 387186.2346 | FO12: 137351.3132 | FP12: 118531.7677 | FQ12: 250154.0862 | FR12: 0.02417011343 | FS12: 69765.45056 | FT12: 86096.25913 | FU12: 107990.2707 | FV12: 199002.8315 | FW12: 114741.995 | FX12: 37903.34643 | FY12: 30877.81968 | FZ12: 434495.2729 | GA12: 423652.3015 | GB12: 124378.8528 | GC12: 2434513.564 | GD12: 119894.1954 | GE12: 306530.894 | GF12: 178593.2122 | GG12: 139674.6674 | GH12: 127407.4994 | GI12: 110214.0852 | GJ12: 516653.3355 | GK12: 110333.8957 | GL12: 128302.5909 | GM12: 128770.4863 | GN12: 319656.7055 | GO12: 408537.6633 | GP12: 326393.0306 | GQ12: 17847246.74 | GR12: 2564862.628 | GS12: 2030353.725 | GT12: 671758.1296 | GU12: 4401731.115 | GV12: 1067100.678 | GW12: 667055.7422 | GX12: 713867.9298 | GY12: 6602.970967 | GZ12: 378901.3473 | HA12: 302819.2749 | HB12: 854078.2002 | HC12: 48451.0767 | HD12: 1908828.791 | HE12: 698046.7582 | HF12: 91582.12147 | HG12: 111227.7354 | HH12: 42481.44973 | HI12: 143938.2287 | HJ12: 125221.2405 | HK12: 196001.2636 | HL12: 178622.0913 | HM12: 106099.5652 | HN12: 142511.4114 | HO12: 464635.4256 | HP12: 1319319.091 | HQ12: 130766.2838 | HR12: 345729.7738 | HS12: 140105.1867 | HT12: 137420.2021 | HU12: 2980.938753 | HV12: 6087508.771 | HW12: 778820.2575 | HX12: 301757566.4
A13: =+MATCH(B13,RUT[EMPRESA],0) -> 177 | B13: IMELSA_ENERGIA | C13: 35780541.83 | D13: 35780541.83 | F13: =IFERROR(INDEX($B$9:$B$511,MATCH(0,INDEX(COUNTIF($F$8:F12,$B$9:$B$511),0,0),0)),"") -> IMELSA_ENERGIA | H13: 35780541.83 | J13: PACIFIC HYDRO | K13: 333060.2197 | L13: 257350.9198 | M13: 924068.5151 | N13: 17228.64576 | O13: 3607337.188 | P13: 1301552.253 | Q13: 187271.1167 | R13: 2185.475938 | S13: 898.735208 | T13: 5532.83065 | U13: 23194.71672 | V13: 15600.79104 | W13: 15471.88242 | X13: 245001.3726 | Y13: 68361.445 | Z13: 14774.90946 | AA13: 8550.791317 | AB13: 41103.831 | AC13: 36484.82281 | AD13: 18749.28234 | AE13: 1572.605513 | AF13: 11087.15675 | AG13: 1015.891114 | AH13: 4994.806321 | AI13: 33485.34531 | AJ13: 14975.75618 | AK13: 136271.9496 | AL13: 12031.65197 | AM13: 58804.30911 | AN13: 91921.92351 | AO13: 99469.01289 | AP13: 963.2530533 | AQ13: 5882.597273 | AR13: 484449.1742 | AS13: 20123.34625 | AT13: 27.02323675 | AU13: 567543.0986 | AV13: 11085.20154 | AW13: 32843.15151 | AX13: 9238.688768 | AY13: 820.3414144 | AZ13: 23704.73686 | BA13: 25935.56932 | BB13: 384.9869887 | BC13: 22710.0485 | BD13: 19280.42233 | BE13: 138.7689095 | BF13: 37728.48278 | BG13: 3448.600197 | BH13: 129033.636 | BI13: 37643.90265 | BJ13: 2587.561209 | BK13: 4.596001475 | BL13: 709114.0803 | BM13: 8803.776037 | BN13: 215983.0083 | BO13: 99808.90881 | BP13: 34997.2393 | BQ13: 239.8939427 | BR13: 22099.98552 | BS13: 6960.125408 | BT13: 196653.892 | BU13: 65868.57431 | BV13: 7219.44228 | BW13: 6327.53888 | BX13: 1989.933816 | BY13: 5703987.815 | BZ13: 250763.5131 | CA13: 20427.70039 | CB13: 4048.232744 | CC13: 45848.94221 | CD13: 132312.3169 | CE13: 36718.32349 | CF13: 577.3305892 | CG13: 19597.37725 | CH13: 3313.058359 | CI13: 25695.24126 | CJ13: 90426.65605 | CK13: 1883.364435 | CL13: 3526.232897 | CM13: 10369.28724 | CN13: 9719.952998 | CO13: 1809.696052 | CP13: 1923.004093 | CQ13: 679.8870519 | CR13: 99479.0414 | CS13: 61319.4048 | CT13: 1231.431711 | CU13: 6615.211507 | CV13: 6484.006619 | CW13: 196.5290604 | CX13: 8013.198631 | CY13: 1582.82535 | CZ13: 47061.85681 | DA13: 2607.692269 | DB13: 25815.28189 | DC13: 4653.957318 | DD13: 80936.79215 | DE13: 631.9528511 | DF13: 1301.658838 | DG13: 13234.31023 | DH13: 22720.00871 | DI13: 3485.809752 | DJ13: 19974.86397 | DK13: 8460.217803 | DL13: 7649.280253 | DM13: 171679.6935 | DN13: 24.44668317 | DO13: 3182.095235 | DP13: 7653.288321 | DQ13: 28207.00799 | DR13: 83631.66803 | DS13: 7928.567634 | DT13: 13119.81683 | DU13: 8797.217937 | DV13: 251003.8435 | DW13: 12.65068064 | DX13: 10588.34016 | DY13: 30313.22335 | DZ13: 11087.94891 | EA13: 93944.09712 | EB13: 391.3149773 | EC13: 9401.876098 | ED13: 8139.602208 | EE13: 15179.53259 | EF13: 54333.99355 | EG13: 56817.96638 | EH13: 9500.694767 | EI13: 10644.51611 | EJ13: 10260.00418 | EK13: 10988.13414 | EL13: 8925.912171 | EM13: 20177.71799 | EN13: 9324.422621 | EO13: 24707.57024 | EP13: 8712.694241 | EQ13: 7267.717642 | ER13: 7775.660692 | ES13: 5340.606679 | ET13: 9282.566365 | EU13: 8231.281047 | EV13: 6385.354195 | EW13: 58006.14168 | EX13: 10138.55355 | EY13: 7673.009067 | EZ13: 9695.467672 | FA13: 64383.1933 | FB13: 7693.59955 | FC13: 8197.113594 | FD13: 8122.726829 | FE13: 7566.289626 | FF13: 7329.477811 | FG13: 22681.55953 | FH13: 10353.60316 | FI13: 8434.012651 | FJ13: 7912.409209 | FK13: 75.41535243 | FL13: 1632.033142 | FM13: 19328.64873 | FN13: 28700.72884 | FO13: 10181.36091 | FP13: 8786.335409 | FQ13: 18543.02647 | FR13: 0.001791643941 | FS13: 5171.46298 | FT13: 6382.007329 | FU13: 8004.931992 | FV13: 14751.36716 | FW13: 8505.413134 | FX13: 2809.639318 | FY13: 2288.862182 | FZ13: 32207.57841 | GA13: 31403.82777 | GB13: 9219.758887 | GC13: 180461.7711 | GD13: 8887.327294 | GE13: 22722.03731 | GF13: 13238.47518 | GG13: 10353.58284 | GH13: 9444.261612 | GI13: 8169.7754 | GJ13: 38297.66133 | GK13: 8178.656523 | GL13: 9510.611543 | GM13: 9545.294948 | GN13: 23695.0067 | GO13: 30283.43377 | GP13: 24194.34636 | GQ13: 1322952.48 | GR13: 190124.0804 | GS13: 150502.8498 | GT13: 49795.0242 | GU13: 326284.5624 | GV13: 79100.35136 | GW13: 49446.45306 | GX13: 52916.47287 | GY13: 489.4545888 | GZ13: 28086.59981 | HA13: 22446.90828 | HB13: 63309.75804 | HC13: 3591.504785 | HD13: 141494.6417 | HE13: 51743.70608 | HF13: 6788.654657 | HG13: 8244.913657 | HH13: 3148.997719 | HI13: 10669.62537 | HJ13: 9282.202066 | HK13: 14528.87168 | HL13: 13240.61588 | HM13: 7864.780766 | HN13: 10563.86052 | HO13: 34441.75998 | HP13: 97796.39897 | HQ13: 9693.236273 | HR13: 25627.70988 | HS13: 10385.49569 | HT13: 10186.4674 | HU13: 220.9663133 | HV13: 451245.2224 | HW13: 57731.15629 | HX13: 22368207.63
A14: =+MATCH(B14,RUT[EMPRESA],0) -> 56 | B14: COLBUN | C14: 7491736781 | D14: 7491736781 | F14: =IFERROR(INDEX($B$9:$B$511,MATCH(0,INDEX(COUNTIF($F$8:F13,$B$9:$B$511),0,0),0)),"") -> COLBUN | H14: 7491736781 | J14: ELECTRICA CENIZAS | K14: 4811690.128 | L14: 3717924.889 | M14: 13349932.2 | N14: 248900.6487 | O14: 52114866.06 | P14: 18803404.78 | Q14: 2705488.468 | R14: 31573.36835 | S14: 12983.94426 | T14: 79932.29166 | U14: 335091.9229 | V14: 225383.1825 | W14: 223520.8516 | X14: 3539512.125 | Y14: 987611.4607 | Z14: 213451.7477 | AA14: 123532.4897 | AB14: 593823.2373 | AC14: 527092.854 | AD14: 270869.1444 | AE14: 22719.2861 | AF14: 160175.1261 | AG14: 14676.48477 | AH14: 72159.50404 | AI14: 483759.6805 | AJ14: 216353.3617 | AK14: 1968708.227 | AL14: 173820.161 | AM14: 849540.4042 | AN14: 1327987.51 | AO14: 1437019.611 | AP14: 13916.02759 | AQ14: 84985.33765 | AR14: 6998792.324 | AS14: 290720.1184 | AT14: 390.402197 | AU14: 8199242.55 | AV14: 160146.8793 | AW14: 474481.9662 | AX14: 133470.4805 | AY14: 11851.39639 | AZ14: 342460.1366 | BA14: 374688.7664 | BB14: 5561.871348 | BC14: 328089.9661 | BD14: 278542.4747 | BE14: 2004.781575 | BF14: 545059.8943 | BG14: 49821.60745 | BH14: 1864136.982 | BI14: 543837.973 | BJ14: 37382.257 | BK14: 66.39800738 | BL14: 10244505.4 | BM14: 127187.3365 | BN14: 3120286.505 | BO14: 1441930.056 | BP14: 505601.8729 | BQ14: 3465.725558 | BR14: 319276.4428 | BS14: 100552.2868 | BT14: 2841040.553 | BU14: 951597.1889 | BV14: 104298.6136 | BW14: 91413.36781 | BX14: 28748.38943 | BY14: 82404983.36 | BZ14: 3622757.235 | CA14: 295117.0944 | CB14: 58484.44329 | CC14: 662375.4192 | CD14: 1911503.78 | CE14: 530466.2166 | CF14: 8340.64152 | CG14: 283121.493 | CH14: 47863.44709 | CI14: 371216.7693 | CJ14: 1306385.52 | CK14: 27208.79146 | CL14: 50943.15988 | CM14: 149804.1318 | CN14: 140423.2602 | CO14: 26144.51115 | CP14: 27781.46192 | CQ14: 9822.265232 | CR14: 1437164.492 | CS14: 885875.7585 | CT14: 17790.37981 | CU14: 95569.34759 | CV14: 93673.84274 | CW14: 2839.237123 | CX14: 115765.938 | CY14: 22866.93115 | CZ14: 679898.284 | DA14: 37673.08855 | DB14: 372950.985 | DC14: 67235.29008 | DD14: 1169286.336 | DE14: 9129.764275 | DF14: 18804.94461 | DG14: 191194.8535 | DH14: 328233.8603 | DI14: 50359.17045 | DJ14: 288575.0086 | DK14: 122223.9826 | DL14: 110508.4429 | DM14: 2480240.622 | DN14: 353.1789662 | DO14: 45971.43497 | DP14: 110566.3471 | DQ14: 407504.0305 | DR14: 1208218.958 | DS14: 114543.2818 | DT14: 189540.7779 | DU14: 127092.5923 | DV14: 3626229.265 | DW14: 182.7632109 | DX14: 152968.7691 | DY14: 437932.3286 | DZ14: 160186.5704 | EA14: 1357201.665 | EB14: 5653.291213 | EC14: 135828.0327 | ED14: 117592.0788 | EE14: 219297.3006 | EF14: 784958.1695 | EG14: 820843.8949 | EH14: 137255.6568 | EI14: 153780.3378 | EJ14: 148225.3295 | EK14: 158744.5556 | EL14: 128951.826 | EM14: 291505.6218 | EN14: 134709.0695 | EO14: 356947.9775 | EP14: 125871.4863 | EQ14: 104996.0433 | ER14: 112334.2494 | ES14: 77155.24977 | ET14: 134104.376 | EU14: 118916.5545 | EV14: 92248.6203 | EW14: 838009.3533 | EX14: 146470.7436 | EY14: 110851.2509 | EZ14: 140069.5229 | FA14: 930138.0271 | FB14: 111148.7197 | FC14: 118422.9404 | FD14: 117348.2818 | FE14: 109309.485 | FF14: 105888.2867 | FG14: 327678.3886 | FH14: 149577.5454 | FI14: 121845.3992 | FJ14: 114309.8426 | FK14: 1089.518608 | FL14: 23577.83155 | FM14: 279239.197 | FN14: 414636.7697 | FO14: 147089.1776 | FP14: 126935.3734 | FQ14: 267889.385 | FR14: 0.02588371398 | FS14: 74711.64642 | FT14: 92200.26845 | FU14: 115646.5106 | FV14: 213111.6343 | FW14: 122876.9153 | FX14: 40590.59884 | FY14: 33066.97983 | FZ14: 465299.9005 | GA14: 453688.1896 | GB14: 133197.0022 | GC14: 2607114.483 | GD14: 128394.3938 | GE14: 328263.1674 | GF14: 191255.024 | GG14: 149577.2518 | GH14: 136440.3723 | GI14: 118027.9881 | GJ14: 553282.7641 | GK14: 118156.2929 | GL14: 137398.9236 | GM14: 137899.9915 | GN14: 342319.566 | GO14: 437501.9613 | GP14: 349533.4797 | GQ14: 19112571.87 | GR14: 2746704.97 | GS14: 2174300.723 | GT14: 719384.1 | GU14: 4713802.836 | GV14: 1142755.446 | GW14: 714348.325 | GX14: 764479.3797 | GY14: 7071.105085 | GZ14: 405764.5047 | HA14: 324288.4037 | HB14: 914630.2074 | HC14: 51886.1368 | HD14: 2044159.976 | HE14: 747536.5266 | HF14: 98075.06471 | HG14: 119113.5035 | HH14: 45493.27821 | HI14: 154143.0889 | HJ14: 134099.113 | HK14: 209897.2627 | HL14: 191285.9506 | HM14: 113621.7589 | HN14: 152615.1139 | HO14: 497576.9146 | HP14: 1412855.513 | HQ14: 140037.2861 | HR14: 370241.1496 | HS14: 150038.2938 | HT14: 147162.9506 | HU14: 3192.279851 | HV14: 6519097.91 | HW14: 834036.6648 | HX14: 323151422.7
A15: =+MATCH(B15,RUT[EMPRESA],0) -> 244 | B15: PEHUENCHE | C15: -3392292098 | D15: -3392292098 | F15: =IFERROR(INDEX($B$9:$B$511,MATCH(0,INDEX(COUNTIF($F$8:F14,$B$9:$B$511),0,0),0)),"") -> PEHUENCHE | G15: -3392292098 | J15: PARQUE_EOLICO_LEBU | K15: 225781.9889 | L15: 174458.5486 | M15: 626427.3391 | N15: 11679.32307 | O15: 2445418.926 | P15: 882324.093 | Q15: 126951.352 | R15: 1481.537196 | S15: 609.2538548 | T15: 3750.713638 | U15: 15723.73091 | V15: 10575.79807 | W15: 10488.41074 | X15: 166086.7732 | Y15: 46342.3192 | Z15: 10015.93179 | AA15: 5796.593396 | AB15: 27864.34454 | AC15: 24733.11242 | AD15: 12710.16473 | AE15: 1066.071477 | AF15: 7515.99907 | AG15: 688.6740071 | AH15: 3385.986193 | AI15: 22699.76243 | AJ15: 10152.08606 | AK15: 92378.94524 | AL15: 8156.273702 | AM15: 39863.52341 | AN15: 62314.00054 | AO15: 67430.18299 | AP15: 652.9905924 | AQ15: 3987.820921 | AR15: 328408.7729 | AS15: 13641.64458 | AT15: 18.31909 | AU15: 384738.2605 | AV15: 7514.673631 | AW15: 22264.41835 | AX15: 6262.920041 | AY15: 556.1105925 | AZ15: 16069.47428 | BA15: 17581.75872 | BB15: 260.9832182 | BC15: 15395.17365 | BD15: 13070.22527 | BE15: 94.07163787 | BF15: 25576.19126 | BG15: 2337.810898 | BH15: 87472.08239 | BI15: 25518.85427 | BJ15: 1754.111364 | BK15: 3.115635829 | BL15: 480709.4271 | BM15: 5968.092091 | BN15: 146415.1835 | BO15: 67660.59891 | BP15: 23724.67748 | BQ15: 162.6244393 | BR15: 14981.6111 | BS15: 4718.278751 | BT15: 133311.9485 | BU15: 44652.39867 | BV15: 4894.070022 | BW15: 4289.447459 | BX15: 1348.978918 | BY15: 3866741.32 | BZ15: 169992.9363 | CA15: 13847.96667 | CB15: 2744.30264 | CC15: 31081.06207 | CD15: 89694.70471 | CE15: 24891.40286 | CF15: 391.3732141 | CG15: 13285.08946 | CH15: 2245.926896 | CI15: 17418.84 | CJ15: 61300.35664 | CK15: 1276.735386 | CL15: 2390.438214 | CM15: 7029.354328 | CN15: 6589.169735 | CO15: 1226.795485 | CP15: 1303.607165 | CQ15: 460.8963836 | CR15: 67436.98133 | CS15: 41568.5103 | CT15: 834.7892799 | CU15: 4484.461135 | CV15: 4395.517158 | CW15: 133.227325 | CX15: 5432.158562 | CY15: 1072.999519 | CZ15: 31903.29857 | DA15: 1767.758237 | DB15: 17500.21571 | DC15: 3154.924177 | DD15: 54867.16462 | DE15: 428.4017218 | DF15: 882.3963474 | DG15: 8971.557422 | DH15: 15401.92569 | DI15: 2363.035307 | DJ15: 13540.98823 | DK15: 5735.193484 | DL15: 5185.457784 | DM15: 116381.9044 | DN15: 16.57244072 | DO15: 2157.146811 | DP15: 5188.17486 | DQ15: 19121.57018 | DR15: 56694.02475 | DS15: 5374.787091 | DT15: 8893.942184 | DU15: 5963.646346 | DV15: 170155.8566 | DW15: 8.575914106 | DX15: 7177.85061 | DY15: 20549.37652 | DZ15: 7516.536079 | EA15: 63684.83486 | EB15: 265.2729705 | EC15: 6373.544959 | ED15: 5517.847724 | EE15: 10290.22638 | EF15: 36833.09024 | EG15: 38516.9789 | EH15: 6440.534274 | EI15: 7215.932363 | EJ15: 6955.271186 | EK15: 7448.871502 | EL15: 6050.888348 | EM15: 13678.50325 | EN15: 6321.039139 | EO15: 16749.29643 | EP15: 5906.347615 | EQ15: 4926.795956 | ER15: 5271.131261 | ES15: 3620.404739 | ET15: 6292.664724 | EU15: 5579.996937 | EV15: 4328.640541 | EW15: 39322.4446 | EX15: 6872.939638 | EY15: 5201.543581 | EZ15: 6572.571098 | FA15: 43645.45681 | FB15: 5215.501898 | FC15: 5556.834773 | FD15: 5506.407881 | FE15: 5129.198322 | FF15: 4968.663261 | FG15: 15375.86094 | FH15: 7018.722069 | FI15: 5717.428975 | FJ15: 5363.833272 | FK15: 51.12417292 | FL15: 1106.35755 | FM15: 13102.91802 | FN15: 19456.26423 | FO15: 6901.958806 | FP15: 5956.269065 | FQ15: 12570.34358 | FR15: 0.001214557934 | FS15: 3505.741989 | FT15: 4326.371697 | FU15: 5426.554596 | FV15: 9999.972434 | FW15: 5765.831462 | FX15: 1904.658424 | FY15: 1551.622875 | FZ15: 21833.56246 | GA15: 21288.69878 | GB15: 6250.087447 | GC15: 122335.2871 | GD15: 6024.731606 | GE15: 15403.30088 | GF15: 8974.380841 | GG15: 7018.708289 | GH15: 6402.278159 | GI15: 5538.302173 | GJ15: 25962.03819 | GK15: 5544.322699 | GL15: 6447.25687 | GM15: 6470.768799 | GN15: 16062.87819 | GO15: 20529.18212 | GP15: 16401.38125 | GQ15: 896831.3367 | GR15: 128885.38 | GS15: 102026.0924 | GT15: 33756.11657 | GU15: 221188.7613 | GV15: 53622.23885 | GW15: 33519.8197 | GX15: 35872.15099 | GY15: 331.8019505 | GZ15: 19039.94531 | HA15: 15216.79052 | HB15: 42917.77355 | HC15: 2434.686118 | HD15: 95919.41556 | HE15: 35077.13074 | HF15: 4602.038489 | HG15: 5589.238502 | HH15: 2134.709959 | HI15: 7232.953963 | HJ15: 6292.417766 | HK15: 9849.142434 | HL15: 8975.83203 | HM15: 5331.545884 | HN15: 7161.255822 | HO15: 23348.11727 | HP15: 66296.31568 | HQ15: 6571.05843 | HR15: 17373.06038 | HS15: 7040.34206 | HT15: 6905.420503 | HU15: 149.7933729 | HV15: 305899.7675 | HW15: 39136.03161 | HX15: 15163439.24
A16: =+MATCH(B16,RUT[EMPRESA],0) -> 156 | B16: GUACOLDA | C16: -4536829638 | D16: -4536829638 | F16: =IFERROR(INDEX($B$9:$B$511,MATCH(0,INDEX(COUNTIF($F$8:F15,$B$9:$B$511),0,0),0)),"") -> GUACOLDA | G16: -4536829638 | J16: MONTE REDONDO | K16: 8334941.865 | L16: 6440291.662 | M16: 23125119.42 | N16: 431152.5435 | O16: 90274803.1 | P16: 32571774.48 | Q16: 4686521.471 | R16: 54692.25628 | S16: 22491.14505 | T16: 138460.9122 | U16: 580455.4371 | V16: 390414.9422 | W16: 387188.9614 | X16: 6131240.168 | Y16: 1710767.712 | Z16: 369746.983 | AA16: 213986.3734 | AB16: 1028636.93 | AC16: 913044.7262 | AD16: 469206.9755 | AE16: 39354.97171 | AF16: 277459.755 | AG16: 25423.01023 | AH16: 124996.6758 | AI16: 837981.8123 | AJ16: 374773.2384 | AK16: 3410250.49 | AL16: 301096.0595 | AM16: 1471597.234 | AN16: 2300376.458 | AO16: 2489244.86 | AP16: 24105.72541 | AQ16: 147213.9373 | AR16: 12123500.39 | AS16: 503593.3781 | AT16: 676.2654139 | AU16: 14202953.26 | AV16: 277410.8252 | AW16: 821910.7006 | AX16: 231201.234 | AY16: 20529.3145 | AZ16: 593218.8594 | BA16: 649046.1777 | BB16: 9634.426389 | BC16: 568326.4552 | BD16: 482498.9289 | BE16: 3472.737736 | BF16: 944167.7272 | BG16: 86302.35752 | BH16: 3229109.307 | BI16: 942051.0815 | BJ16: 64754.57284 | BK16: 115.016453 | BL16: 17745813.78 | BM16: 220317.3994 | BN16: 5405046.029 | BO16: 2497750.867 | BP16: 875817.4582 | BQ16: 6003.42505 | BR16: 553059.4279 | BS16: 174179.4343 | BT16: 4921328.518 | BU16: 1648382.8 | BV16: 180668.9246 | BW16: 158348.7478 | BX16: 49798.75017 | BY16: 142744176.7 | BZ16: 6275439.636 | CA16: 511209.9408 | CB16: 101308.3598 | CC16: 1147384.903 | CD16: 3311159.376 | CE16: 918888.1576 | CF16: 14447.88844 | CG16: 490430.8304 | CH16: 82910.37833 | CI16: 643031.8888 | CJ16: 2262956.897 | CK16: 47131.81627 | CL16: 88245.14146 | CM16: 259494.8338 | CN16: 243245.0301 | CO16: 45288.24067 | CP16: 48123.81178 | CQ16: 17014.39775 | CR16: 2489495.827 | CS16: 1534538.333 | CT16: 30816.98479 | CU16: 165547.8501 | CV16: 162264.4045 | CW16: 4918.204566 | CX16: 200532.9391 | CY16: 39610.72652 | CZ16: 1177738.491 | DA16: 65258.35925 | DB16: 646035.945 | DC16: 116466.8171 | DD16: 2025469.922 | DE16: 15814.82856 | DF16: 32574.44181 | DG16: 331192.9793 | DH16: 568575.7127 | DI16: 87233.53892 | DJ16: 499877.5599 | DK16: 211719.7413 | DL16: 191425.7616 | DM16: 4296340.963 | DN16: 611.7863107 | DO16: 79632.98294 | DP16: 191526.0649 | DQ16: 705889.6797 | DR16: 2092910.08 | DS16: 198415.0205 | DT16: 328327.7441 | DU16: 220153.2808 | DV16: 6281453.982 | DW16: 316.5874562 | DX16: 264976.7054 | DY16: 758598.414 | DZ16: 277479.5791 | EA16: 2350982.02 | EB16: 9792.786392 | EC16: 235285.0508 | ED16: 203696.2303 | EE16: 379872.8103 | EF16: 1359726.112 | EG16: 1421888.352 | EH16: 237758.0206 | EI16: 266382.527 | EJ16: 256759.9891 | EK16: 274981.6814 | EL16: 223373.8965 | EM16: 504954.0487 | EN16: 233346.752 | EO16: 618315.0955 | EP16: 218038.0475 | EQ16: 181877.0314 | ER16: 194588.4738 | ES16: 133650.4439 | ET16: 232299.2853 | EU16: 205990.5235 | EV16: 159795.5951 | EW16: 1451622.83 | EX16: 253720.6471 | EY16: 192019.583 | EZ16: 242632.2768 | FA16: 1611210.651 | FB16: 192534.8666 | FC16: 205135.4717 | FD16: 203273.9184 | FE16: 189348.8938 | FF16: 183422.6 | FG16: 567613.5094 | FH16: 259102.3346 | FI16: 211063.9487 | FJ16: 198010.6505 | FK16: 1887.294072 | FL16: 40842.16774 | FM16: 483705.8105 | FN16: 718245.2067 | FO16: 254791.9154 | FP16: 219880.942 | FQ16: 464045.3542 | FR16: 0.04483648065 | FS16: 129417.567 | FT16: 159711.8387 | FU16: 200326.0637 | FV16: 369157.8293 | FW16: 212850.7694 | FX16: 70312.15075 | FY16: 57279.53114 | FZ16: 806005.274 | GA16: 785891.1493 | GB16: 230727.5075 | GC16: 4516115.352 | GD16: 222408.2972 | GE16: 568626.4792 | GF16: 331297.2083 | GG16: 259101.8259 | GH16: 236345.7622 | GI16: 204451.3244 | GJ16: 958411.6082 | GK16: 204673.5774 | GL16: 238006.1912 | GM16: 238874.1548 | GN16: 592975.3591 | GO16: 757852.9199 | GP16: 605471.4988 | GQ16: 33107322.21 | GR16: 4757917.828 | GS16: 3766383.463 | GT16: 1246136.907 | GU16: 8165378.808 | GV16: 1979512.386 | GW16: 1237413.799 | GX16: 1324252.189 | GY16: 12248.76254 | GZ16: 702876.4254 | HA16: 561741.2843 | HB16: 1584347.579 | HC16: 89878.59199 | HD16: 3540950.084 | HE16: 1294903.314 | HF16: 169888.3222 | HG16: 206331.684 | HH16: 78804.70668 | HI16: 267010.8945 | HJ16: 232290.1687 | HK16: 363589.8064 | HL16: 331350.7802 | HM16: 196818.7331 | HN16: 264364.0942 | HO16: 861916.4048 | HP16: 2447387.145 | HQ16: 242576.4353 | HR16: 641341.8935 | HS16: 259900.4556 | HT16: 254919.707 | HU16: 5529.754882 | HV16: 11292560.54 | HW16: 1444741.23 | HX16: 559771774.6
A17: =+MATCH(B17,RUT[EMPRESA],0) -> 19 | B17: ARAUCO BIO | C17: 2703070541 | D17: 2703070541 | F17: =IFERROR(INDEX($B$9:$B$511,MATCH(0,INDEX(COUNTIF($F$8:F16,$B$9:$B$511),0,0),0)),"") -> ARAUCO BIO | H17: 2703070541 | J17: PANGUIPULLI | K17: 854049.4791 | L17: 659911.95 | M17: 2369542.165 | N17: 44178.54511 | O17: 9250112.336 | P17: 3337504.625 | Q17: 480209.8546 | R17: 5604.105433 | S17: 2304.581247 | T17: 14187.55785 | U17: 59477.03916 | V17: 40004.31957 | W17: 39673.76572 | X17: 628244.6305 | Y17: 175295.7965 | Z17: 37886.55319 | AA17: 21926.36178 | AB17: 105400.4753 | AC17: 93556.18617 | AD17: 48077.83659 | AE17: 4032.552792 | AF17: 28430.23539 | AG17: 2604.998211 | AH17: 12807.92927 | AI17: 85864.77769 | AJ17: 38401.57427 | AK17: 349435.2693 | AL17: 30852.15673 | AM17: 150788.9162 | AN17: 235710.7402 | AO17: 255063.3598 | AP17: 2470.021095 | AQ17: 15084.44672 | AR17: 1242248.52 | AS17: 51601.27919 | AT17: 69.29431948 | AU17: 1455322.068 | AV17: 28425.22175 | AW17: 84218.0326 | AX17: 23690.30243 | AY17: 2103.560006 | AZ17: 60784.85802 | BA17: 66505.26889 | BB17: 987.2026671 | BC17: 58234.22897 | BD17: 49439.81201 | BE17: 355.8380973 | BF17: 96745.24054 | BG17: 8843.071095 | BH17: 330874.4279 | BI17: 96528.35598 | BJ17: 6635.152362 | BK17: 11.78529417 | BL17: 1818345.378 | BM17: 22575.0777 | BN17: 553834.3063 | BO17: 255934.9377 | BP17: 89741.651 | BQ17: 615.1479062 | BR17: 56669.87532 | BS17: 17847.49762 | BT17: 504269.6308 | BU17: 168903.4543 | BV17: 18512.45077 | BW17: 16225.38798 | BX17: 5102.686657 | BY17: 14626447.52 | BZ17: 643020.1961 | CA17: 52381.71912 | CB17: 10380.67851 | CC17: 117568.124 | CD17: 339281.7834 | CE17: 94154.94014 | CF17: 1480.419635 | CG17: 50252.56349 | CH17: 8495.508016 | CI17: 65889.00781 | CJ17: 231876.5014 | CK17: 4829.416184 | CL17: 9042.140703 | CM17: 26589.43892 | CN17: 24924.38395 | CO17: 4640.512073 | CP17: 4931.062154 | CQ17: 1743.399987 | CR17: 255089.0754 | CS17: 157238.2489 | CT17: 3157.698066 | CU17: 16963.05235 | CV17: 16626.61029 | CW17: 503.9495315 | CX17: 20547.84004 | CY17: 4058.759005 | CZ17: 120678.3396 | DA17: 6686.77342 | DB17: 66196.82191 | DC17: 11933.90741 | DD17: 207542.1233 | DE17: 1620.484739 | DF17: 3337.777936 | DG17: 33936.0725 | DH17: 58259.76943 | DI17: 8938.485677 | DJ17: 51220.53358 | DK17: 21694.1087 | DL17: 19614.66254 | DM17: 440229.5566 | DN17: 62.68739343 | DO17: 8159.685899 | DP17: 19624.94023 | DQ17: 72329.80422 | DR17: 214452.4572 | DS17: 20330.82505 | DT17: 33642.48286 | DU17: 22558.2611 | DV17: 643636.463 | DW17: 32.43950065 | DX17: 27151.14525 | DY17: 77730.66577 | DZ17: 28432.2667 | EA17: 240896.0977 | EB17: 1003.429208 | EC17: 24108.75544 | ED17: 20871.97034 | EE17: 38924.10782 | EF17: 139325.9121 | EG17: 145695.438 | EH17: 24362.15116 | EI17: 27295.19439 | EJ17: 26309.20989 | EK17: 28176.31672 | EL17: 22888.26521 | EM17: 51740.70189 | EN17: 23910.14541 | EO17: 63356.37294 | EP17: 22341.52126 | EQ17: 18636.24083 | ER17: 19938.73351 | ES17: 13694.64764 | ET17: 23802.81553 | EU17: 21107.05775 | EV17: 16373.64087 | EW17: 148742.2159 | EX17: 25997.78019 | EY17: 19675.50914 | EZ17: 24861.59747 | FA17: 165094.5668 | FB17: 19728.30828 | FC17: 21019.44388 | FD17: 20828.69766 | FE17: 19401.85388 | FF17: 18794.60931 | FG17: 58161.17615 | FH17: 26549.22103 | FI17: 21626.91215 | FJ17: 20289.39082 | FK17: 193.3837746 | FL17: 4184.940057 | FM17: 49563.47653 | FN17: 73595.82762 | FO17: 26107.54894 | FP17: 22530.35558 | FQ17: 47548.94509 | FR17: 0.004594221959 | FS17: 13260.92101 | FT17: 16365.05867 | FU17: 20526.64231 | FV17: 37826.18486 | FW17: 21810.0008 | FX17: 7204.616024 | FY17: 5869.21355 | FZ17: 82588.26463 | GA17: 80527.24753 | GB17: 23641.76149 | GC17: 462748.9941 | GD17: 22789.32397 | GE17: 58264.97128 | GF17: 33946.75245 | GG17: 26549.16891 | GH17: 24217.44247 | GI17: 20949.34193 | GJ17: 98204.75632 | GK17: 20972.11534 | GL17: 24387.58025 | GM17: 24476.51715 | GN17: 60759.90748 | GO17: 77654.27785 | GP17: 62040.33891 | GQ17: 3392380.145 | GR17: 487525.565 | GS17: 385926.8471 | GT17: 127686.8625 | GU17: 836675.0039 | GV17: 202833.0311 | GW17: 126793.0392 | GX17: 135691.0355 | GY17: 1255.083651 | GZ17: 72021.04762 | HA17: 57559.4718 | HB17: 162342.0111 | HC17: 9209.514105 | HD17: 362827.5546 | HE17: 132683.7689 | HF17: 17407.80385 | HG17: 21142.01516 | HH17: 8074.815611 | HI17: 27359.58079 | HJ17: 23801.88138 | HK17: 37255.65094 | HL17: 33952.24176 | HM17: 20167.25961 | HN17: 27088.37333 | HO17: 88317.26345 | HP17: 250774.3605 | HQ17: 24855.87561 | HR17: 65715.84049 | HS17: 26631.00143 | HT17: 26120.64325 | HU17: 566.6127434 | HV17: 1157105.305 | HW17: 148037.0847 | HX17: 57357663.71
A18: =+MATCH(B18,RUT[EMPRESA],0) -> 288 | B18: SGA | C18: 388925636.8 | D18: 388925636.8 | F18: =IFERROR(INDEX($B$9:$B$511,MATCH(0,INDEX(COUNTIF($F$8:F17,$B$9:$B$511),0,0),0)),"") -> SGA | H18: 388925636.8 | J18: NUEVA DEGAN | K18: 120696.6846 | L18: 93260.62066 | M18: 334870.3914 | N18: 6243.436776 | O18: 1307252.002 | P18: 471665.5802 | Q18: 67864.61298 | R18: 791.9880083 | S18: 325.6899309 | T18: 2005.025748 | U18: 8405.463165 | V18: 5653.523432 | W18: 5606.808628 | X18: 88785.30562 | Y18: 24773.29708 | Z18: 5354.234705 | AA18: 3098.695376 | AB18: 14895.49287 | AC18: 13221.62447 | AD18: 6794.49566 | AE18: 569.8917504 | AF18: 4017.841165 | AG18: 368.1457049 | AH18: 1810.05274 | AI18: 12134.6529 | AJ18: 5427.018939 | AK18: 49383.17921 | AL18: 4360.113929 | AM18: 21309.91554 | AN18: 33311.30755 | AO18: 36046.27442 | AP18: 349.0703576 | AQ18: 2131.776615 | AR18: 175558.0695 | AS18: 7292.438521 | AT18: 9.792868947 | AU18: 205670.2252 | AV18: 4017.132623 | AW18: 11901.93024 | AX18: 3347.980451 | AY18: 297.2810414 | AZ18: 8590.28782 | BA18: 9398.712441 | BB18: 139.5142692 | BC18: 8229.825718 | BD18: 6986.973874 | BE18: 50.28804496 | BF18: 13672.31065 | BG18: 1249.727784 | BH18: 46760.10869 | BI18: 13641.65991 | BJ18: 937.6984724 | BK18: 1.665531059 | BL18: 256973.7046 | BM18: 3190.373743 | BN18: 78269.42845 | BO18: 36169.44827 | BP18: 12682.54359 | BQ18: 86.93443956 | BR18: 8008.746842 | BS18: 2522.258773 | BT18: 71264.80851 | BU18: 23869.91322 | BV18: 2616.23183 | BW18: 2293.017657 | BX18: 721.1260907 | BY18: 2067050.875 | BZ18: 90873.43028 | CA18: 7402.732496 | CB18: 1467.026807 | CC18: 16615.05935 | CD18: 47948.25991 | CE18: 13306.24208 | CF18: 209.2170843 | CG18: 7101.834208 | CH18: 1200.609188 | CI18: 9311.620684 | CJ18: 32769.4421 | CK18: 682.5067355 | CL18: 1277.860863 | CM18: 3757.694609 | CN18: 3522.384338 | CO18: 655.8102731 | CP18: 696.8716311 | CQ18: 246.3822102 | CR18: 36049.90862 | CS18: 22221.35345 | CT18: 446.2548095 | CU18: 2397.266469 | CV18: 2349.719527 | CW18: 71.21957117 | CX18: 2903.87879 | CY18: 573.5952864 | CZ18: 17054.6038 | DA18: 944.9937062 | DB18: 9355.121842 | DC18: 1686.533502 | DD18: 29330.43906 | DE18: 229.0114803 | DF18: 471.7042054 | DG18: 4795.941617 | DH18: 8233.435167 | DI18: 1263.212042 | DJ18: 7238.630475 | DK18: 3065.872715 | DL18: 2771.999511 | DM18: 62214.48434 | DN18: 8.859159498 | DO18: 1153.149858 | DP18: 2773.451983 | DQ18: 10221.85222 | DR18: 30307.02697 | DS18: 2873.20962 | DT18: 4754.450699 | DU18: 3187.997173 | DV18: 90960.52287 | DW18: 4.584441856 | DX18: 3837.076534 | DY18: 10985.11723 | DZ18: 4018.128235 | EA18: 34044.11692 | EB18: 141.8074498 | EC18: 3407.117413 | ED18: 2949.6858 | EE18: 5500.864856 | EF18: 19689.93142 | EG18: 20590.09081 | EH18: 3442.928012 | EI18: 3857.433965 | EJ18: 3718.09185 | EK18: 3981.956661 | EL18: 3234.634287 | EM18: 7312.14213 | EN18: 3379.049282 | EO18: 8953.701571 | EP18: 3157.366887 | EQ18: 2633.726192 | ER18: 2817.798136 | ES18: 1935.366285 | ET18: 3363.88112 | EU18: 2982.909017 | EV18: 2313.969174 | EW18: 21020.67006 | EX18: 3674.079726 | EY18: 2780.598524 | EZ18: 3513.511175 | FA18: 23331.63049 | FB18: 2788.060247 | FC18: 2970.527177 | FD18: 2943.570383 | FE18: 2741.924789 | FF18: 2656.107272 | FG18: 8219.501687 | FH18: 3752.010903 | FI18: 3056.376309 | FJ18: 2867.354017 | FK18: 27.32954123 | FL18: 591.427549 | FM18: 7004.450493 | FN18: 10400.77023 | FO18: 3689.592555 | FP18: 3184.053487 | FQ18: 6719.751219 | FR18: 0.0006492684234 | FS18: 1874.070812 | FT18: 2312.756313 | FU18: 2900.883068 | FV18: 5345.703283 | FW18: 3082.250914 | FX18: 1018.176686 | FY18: 829.4538361 | FZ18: 11671.60682 | GA18: 11380.33807 | GB18: 3341.120508 | GC18: 65396.99485 | GD18: 3220.65163 | GE18: 8234.170307 | GF18: 4797.450937 | GG18: 3752.003537 | GH18: 3422.477371 | GI18: 2960.620172 | GJ18: 13878.57354 | GK18: 2963.838575 | GL18: 3446.521722 | GM18: 3459.090536 | GN18: 8586.761739 | GO18: 10974.32188 | GP18: 8767.715925 | GQ18: 479420.7436 | GR18: 68898.48984 | GS18: 54540.27206 | GT18: 18045.06806 | GU18: 118241.2747 | GV18: 28664.93684 | GW18: 17918.75042 | GX18: 19176.24039 | GY18: 177.3719665 | GZ18: 10178.21787 | HA18: 8134.467129 | HB18: 22942.63154 | HC18: 1301.514545 | HD18: 51275.81481 | HE18: 18751.24498 | HF18: 2460.120007 | HG18: 2987.849297 | HH18: 1141.155749 | HI18: 3866.533233 | HJ18: 3363.749103 | HK18: 5265.073818 | HL18: 4798.226701 | HM18: 2850.09409 | HN18: 3828.205429 | HO18: 12481.24512 | HP18: 35440.14093 | HQ18: 3512.702545 | HR18: 9287.148189 | HS18: 3763.568341 | HT18: 3691.443081 | HU18: 80.07531327 | HV18: 163525.3899 | HW18: 20921.01894 | HX18: 8105947.039
A19: =+MATCH(B19,RUT[EMPRESA],0) -> 305 | B19: TECNORED | C19: -301757566.4 | D19: -301757566.4 | F19: =IFERROR(INDEX($B$9:$B$511,MATCH(0,INDEX(COUNTIF($F$8:F18,$B$9:$B$511),0,0),0)),"") -> TECNORED | G19: -301757566.4 | J19: CHACAYES | K19: =$HX19*K$75/$HX$75 -> 21702875.28 | L19: 16769504.69 | M19: 60214167.12 | N19: 1122653.286 | O19: 235061362.6 | P19: 84811768.38 | Q19: 12202963.45 | R19: 142410.0175 | S19: 58563.39776 | T19: 360530.3979 | U19: =$HX19*U$75/$HX$75 -> 1511414.496 | V19: 1016578.991 | W19: 1008179.046 | X19: 15964783.29 | Y19: 4454569.555 | Z19: 962762.8826 | AA19: 557186.7983 | AB19: 2678408.482 | AC19: 2377424.598 | AD19: 1221741.031 | AE19: =$HX19*AE$75/$HX$75 -> 102474.1452 | AF19: 722461.4824 | AG19: 66197.51273 | AH19: 325471.6481 | AI19: 2181972.598 | AJ19: 975850.4597 | AK19: 8879754.921 | AL19: 784006.695 | AM19: 3831807.316 | AN19: 5989817.826 | AO19: =$HX19*AO$75/$HX$75 -> 6481601.383 | AP19: 62767.51062 | AQ19: 383321.8961 | AR19: 31567684.71 | AS19: 1311277.805 | AT19: 1760.888578 | AU19: 36982252.32 | AV19: 722334.0771 | AW19: 2140125.955 | AX19: 602011.5829 | AY19: =$HX19*AY$75/$HX$75 -> 53455.10015 | AZ19: 1544648.436 | BA19: 1690013.976 | BB19: 25086.52821 | BC19: 1479832.538 | BD19: 1256351.183 | BE19: 9042.461863 | BF19: 2458463.989 | BG19: 224717.7403 | BH19: 8408091.822 | BI19: =$HX19*BI$75/$HX$75 -> 2452952.577 | BJ19: 168610.7042 | BK19: 299.4847204 | BL19: 46207302.86 | BM19: 573671.7926 | BN19: 14073888.18 | BO19: 6503749.686 | BP19: 2280490.658 | BQ19: 15631.97287 | BR19: 1440079.604 | BS19: =$HX19*BS$75/$HX$75 -> 453535.8013 | BT19: 12814364 | BU19: 4292129.076 | BV19: 470433.4115 | BW19: 412315.188 | BX19: 129668.0986 | BY19: 371683343.8 | BZ19: 16340255.99 | CA19: 1331110.134 | CB19: 263791.0057 | CC19: =$HX19*CC$75/$HX$75 -> 2987609.494 | CD19: 8621737.274 | CE19: 2392639.973 | CF19: 37620.02494 | CG19: 1277004.605 | CH19: 215885.5609 | CI19: 1674353.715 | CJ19: 5892383.185 | CK19: 122723.823 | CL19: 229776.4435 | CM19: =$HX19*CM$75/$HX$75 -> 675683.6584 | CN19: 633371.7302 | CO19: 117923.4426 | CP19: 125306.823 | CQ19: 44302.81077 | CR19: 6482254.861 | CS19: 3995696.02 | CT19: 80242.57255 | CU19: 431060.5163 | CV19: 422510.9413 | CW19: =$HX19*CW$75/$HX$75 -> 12806.22973 | CX19: 522156.1752 | CY19: 103140.0904 | CZ19: 3066645.454 | DA19: 169922.4847 | DB19: 1682175.804 | DC19: 303261.24 | DD19: 5274004.523 | DE19: 41179.32162 | DF19: 84818.71369 | DG19: =$HX19*DG$75/$HX$75 -> 862374.3317 | DH19: 1480481.565 | DI19: 227142.3899 | DJ19: 1301602.4 | DK19: 551284.8456 | DL19: 498442.5202 | DM19: 11186994.89 | DN19: 1592.995153 | DO19: 207351.7398 | DP19: 498703.694 | DQ19: =$HX19*DQ$75/$HX$75 -> 1838025.499 | DR19: 5449608.068 | DS19: 516641.4489 | DT19: 854913.7108 | DU19: 573244.4536 | DV19: 16355916.4 | DW19: 824.3438511 | DX19: 689957.5883 | DY19: 1975270.737 | DZ19: 722513.1014 | EA19: =$HX19*EA$75/$HX$75 -> 6121586.734 | EB19: 25498.87271 | EC19: 612645.1982 | ED19: 530392.8871 | EE19: 989128.9413 | EF19: 3540512.542 | EG19: 3702373.219 | EH19: 619084.4219 | EI19: 693618.1263 | EJ19: 668562.5537 | EK19: =$HX19*EK$75/$HX$75 -> 716008.9694 | EL19: 581630.4293 | EM19: 1314820.777 | EN19: 607598.1735 | EO19: 1609995.08 | EP19: 567736.7192 | EQ19: 473579.1313 | ER19: 506677.7244 | ES19: 348004.6965 | ET19: 604870.7355 | EU19: =$HX19*EU$75/$HX$75 -> 536366.8651 | EV19: 416082.5505 | EW19: 3779797.117 | EX19: 660648.5862 | EY19: 499988.7376 | EZ19: 631776.217 | FA19: 4195338.655 | FB19: 501330.4549 | FC19: 534140.445 | FD19: 529293.2534 | FE19: =$HX19*FE$75/$HX$75 -> 493034.6837 | FF19: 477603.5484 | FG19: 1477976.139 | FH19: 674661.6523 | FI19: 549577.265 | FJ19: 515588.5334 | FK19: 4914.216382 | FL19: 106346.5693 | FM19: 1259493.713 | FN19: 1870197.344 | FO19: =$HX19*FO$75/$HX$75 -> 663438 | FP19: 572535.3261 | FQ19: 1208300.982 | FR19: 0.1167471307 | FS19: 336982.9521 | FT19: 415864.462 | FU19: 521617.5044 | FV19: 961228.819 | FW19: 554229.8644 | FX19: 183081.7614 | FY19: =$HX19*FY$75/$HX$75 -> 149146.8735 | FZ19: 2098710.731 | GA19: 2046336.719 | GB19: 600778.0736 | GC19: 11759252.77 | GD19: 579116.161 | GE19: 1480613.753 | GF19: 862645.7277 | GG19: 674660.3277 | GH19: 615407.1237 | GI19: =$HX19*GI$75/$HX$75 -> 532359.0332 | GJ19: 2495552.81 | GK19: 532937.7451 | GL19: 619730.619 | GM19: 621990.6596 | GN19: 1544014.4 | GO19: 1973329.588 | GP19: 1576552.378 | GQ19: 86206250.29 | GR19: 12388868.32 | GS19: =$HX19*GS$75/$HX$75 -> 9807069.065 | GT19: 3244744.15 | GU19: 21261359.79 | GV19: 5154338.34 | GW19: 3222030.552 | GX19: 3448144.038 | GY19: 31893.84761 | GZ19: 1830179.459 | HA19: 1462685.79 | HB19: 4125391.45 | HC19: =$HX19*HC$75/$HX$75 -> 234029.6913 | HD19: 9220076.069 | HE19: 3371724.19 | HF19: 442362.4216 | HG19: 537255.1934 | HH19: 205195.0389 | HI19: 695254.2961 | HJ19: 604846.9971 | HK19: 946730.5647 | HL19: 862785.2204 | HM19: =$HX19*HM$75/$HX$75 -> 512484.968 | HN19: 688362.4452 | HO19: 2244294.505 | HP19: 6372610.489 | HQ19: 631630.8145 | HR19: 1669953.234 | HS19: 676739.8338 | HT19: 663770.7492 | HU19: 14398.61039 | HV19: 29404048.28 | HW19: 3761878.515 | HX19: 1457557497
A20: =+MATCH(B20,RUT[EMPRESA],0) -> 231 | B20: NUEVA ENERGIA | C20: 4538807.884 | D20: 4538807.884 | F20: =IFERROR(INDEX($B$9:$B$511,MATCH(0,INDEX(COUNTIF($F$8:F19,$B$9:$B$511),0,0),0)),"") -> NUEVA ENERGIA | H20: 4538807.884 | J20: LA ARENA SPA | K20: 2310655.997 | L20: 1785411.199 | M20: 6410866.053 | N20: 119526.3538 | O20: 25026451.12 | P20: 9029716.971 | Q20: 1299221.892 | R20: 15162.07215 | S20: 6235.112376 | T20: 38384.85525 | U20: 160916.8796 | V20: 108232.8638 | W20: 107338.5406 | X20: 1699734.334 | Y20: 474267.9356 | Z20: 102503.1845 | AA20: 59322.41698 | AB20: 285164.0874 | AC20: 253119.0146 | AD20: 130076.0016 | AE20: 10910.19024 | AF20: 76918.83843 | AG20: 7047.899313 | AH20: 34652.22953 | AI20: 232309.6827 | AJ20: 103896.5892 | AK20: 945407.4033 | AL20: 83471.41788 | AM20: 407963.85 | AN20: 637722.3434 | AO20: 690081.4253 | AP20: 6682.714754 | AQ20: 40811.41446 | AR20: 3360939.924 | AS20: 139608.7793 | AT20: 187.4778204 | AU20: 3937416.679 | AV20: 76905.27387 | AW20: 227854.3654 | AX20: 64094.81032 | AY20: 5691.243495 | AZ20: 164455.222 | BA20: 179931.962 | BB20: 2670.905865 | BC20: 157554.4201 | BD20: 133760.8662 | BE20: 962.730443 | BF20: 261747.0951 | BG20: 23925.18906 | BH20: 895190.501 | BI20: 261160.3075 | BJ20: 17951.59996 | BK20: 31.88546017 | BL20: 4919586.925 | BM20: 61077.53701 | BN20: 1498415.013 | BO20: 692439.5051 | BP20: 242798.6775 | BQ20: 1664.300761 | BR20: 153322.0152 | BS20: 48286.92999 | BT20: 1364316.325 | BU20: 456973.2656 | BV20: 50085.98029 | BW20: 43898.26462 | BX20: 13805.4689 | BY20: 39572284.15 | BZ20: 1739710.062 | CA20: 141720.2824 | CB20: 28085.23118 | CC20: 318084.0191 | CD20: 917936.8486 | CE20: 254738.9611 | CF20: 4005.318886 | CG20: 135959.7892 | CH20: 22984.84692 | CI20: 178264.6495 | CJ20: 627348.6977 | CK20: 13066.12759 | CL20: 24463.77774 | CM20: 71938.50941 | CN20: 67433.6542 | CO20: 12555.04196 | CP20: 13341.13376 | CQ20: 4716.819964 | CR20: 690150.9997 | CS20: 425412.7093 | CT20: 8543.245036 | CU20: 45894.03728 | CV20: 44983.78339 | CW20: 1363.450287 | CX20: 55592.78585 | CY20: 10981.09192 | CZ20: 326498.7988 | DA20: 18091.26225 | DB20: 179097.4496 | DC20: 32287.53766 | DD20: 561511.3216 | DE20: 4384.269146 | DF20: 9030.456423 | DG20: 91815.04274 | DH20: 157623.5205 | DI20: 24183.33602 | DJ20: 138578.6608 | DK20: 58694.04944 | DL20: 53068.04668 | DM20: 1191054.019 | DN20: 169.6025876 | DO20: 22076.2703 | DP20: 53095.85327 | DQ20: 195690.4137 | DR20: 580207.4335 | DS20: 55005.64543 | DT20: 91020.72732 | DU20: 61032.03919 | DV20: 1741377.39 | DW20: 87.76602357 | DX20: 73458.22242 | DY20: 210302.6035 | DZ20: 76924.33419 | EA20: 651751.4808 | EB20: 2714.80725 | EC20: 65226.94727 | ED20: 56469.72992 | EE20: 105310.3191 | EF20: 376950.3549 | EG20: 394183.2948 | EH20: 65912.51684 | EI20: 73847.95161 | EJ20: 71180.34151 | EK20: 76231.85398 | EL20: 61924.87504 | EM20: 139985.9915 | EN20: 64689.60197 | EO20: 171412.5313 | EP20: 60445.64318 | EQ20: 50420.89796 | ER20: 53944.83023 | ES20: 37051.27218 | ET20: 64399.21782 | EU20: 57105.76583 | EV20: 44299.36717 | EW20: 402426.4419 | EX20: 70337.75931 | EY20: 53232.66895 | EZ20: 67263.78352 | FA20: 446668.2086 | FB20: 53375.51856 | FC20: 56868.72392 | FD20: 56352.65441 | FE20: 52492.28657 | FF20: 50849.36854 | FG20: 157356.7735 | FH20: 71829.69873 | FI20: 58512.2472 | FJ20: 54893.54389 | FK20: 523.2054927 | FL20: 11322.47847 | FM20: 134095.4442 | FN20: 199115.6772 | FO20: 70634.74188 | FP20: 60956.54 | FQ20: 128645.0701 | FR20: 0.0124298027 | FS20: 35877.812 | FT20: 44276.14778 | FU20: 55535.43479 | FV20: 102339.8562 | FW20: 59007.59893 | FX20: 19492.30065 | FY20: 15879.32996 | FZ20: 223444.9802 | GA20: 217868.8378 | GB20: 63963.48138 | GC20: 1251981.02 | GD20: 61657.18658 | GE20: 157637.5943 | GF20: 91843.93765 | GG20: 71829.55771 | GH20: 65521.00323 | GI20: 56679.06104 | GJ20: 265695.858 | GK20: 56740.67518 | GL20: 65981.31598 | GM20: 66221.93738 | GN20: 164387.7176 | GO20: 210095.9337 | GP20: 167851.9625 | GQ20: 9178184.304 | GR20: 1319014.762 | GS20: 1044136.441 | GT20: 345460.5638 | GU20: 2263648.843 | GV20: 548770.734 | GW20: 343042.2985 | GX20: 367116.0894 | GY20: 3395.66575 | GZ20: 194855.0636 | HA20: 155728.8447 | HB20: 439221.0881 | HC20: 24916.61141 | HD20: 981640.6255 | HE20: 358979.8412 | HF20: 47097.32555 | HG20: 57200.34413 | HH20: 21846.65124 | HI20: 74022.1509 | HJ20: 64396.69045 | HK20: 100796.2599 | HL20: 91858.78914 | HM20: 54563.11432 | HN20: 73288.39113 | HO20: 238944.9551 | HP20: 678477.4116 | HQ20: 67248.30286 | HR20: 177796.1402 | HS20: 72050.95801 | HT20: 70670.16893 | HU20: 1532.98745 | HV20: 3130582.452 | HW20: 400518.6888 | HX20: 155182847
A21: =+MATCH(B21,RUT[EMPRESA],0) -> 102 | B21: ELEKTRAGEN | C21: 1866497.991 | D21: 1866497.991 | F21: =IFERROR(INDEX($B$9:$B$511,MATCH(0,INDEX(COUNTIF($F$8:F20,$B$9:$B$511),0,0),0)),"") -> ELEKTRAGEN | H21: 1866497.991 | J21: CARDONES SA | K21: 32521.53675 | L21: 25128.93135 | M21: 90230.31391 | N21: 1682.284474 | O21: 352237.049 | P21: 127089.568 | Q21: 18286.01599 | R21: 213.3999554 | S21: 87.7566529 | T21: 540.2511158 | U21: 2264.839172 | V21: 1523.333227 | W21: 1510.745995 | X21: 23923.06457 | Y21: 6675.126942 | Z21: 1442.690338 | AA21: 834.9387216 | AB21: 4013.567732 | AC21: 3562.546458 | AD21: 1830.766446 | AE21: 153.556459 | AF21: 1082.601146 | AG21: 99.19629614 | AH21: 487.7159376 | AI21: 3269.663633 | AJ21: 1462.301938 | AK21: 13306.22198 | AL21: 1174.826018 | AM21: 5741.924093 | AN21: 8975.680783 | AO21: 9712.613416 | AP21: 94.05647304 | AQ21: 574.4039429 | AR21: 47303.85284 | AS21: 1964.936387 | AT21: 2.638673534 | AU21: 55417.52706 | AV21: 1082.410231 | AW21: 3206.956867 | AX21: 902.1082031 | AY21: 80.10192115 | AZ21: 2314.639892 | BA21: 2532.468667 | BB21: 37.59190609 | BC21: 2217.513931 | BD21: 1882.629406 | BE21: 13.55003667 | BF21: 3683.983156 | BG21: 336.7372367 | BH21: 12599.43965 | BI21: 3675.724362 | BJ21: 252.6614167 | BK21: 0.4487747921 | BL21: 69241.171 | BM21: 859.641317 | BN21: 21089.57758 | BO21: 9745.802422 | BP21: 3417.291939 | BQ21: 23.42435155 | BR21: 2157.944566 | BS21: 679.6187621 | BT21: 19202.19347 | BU21: 6431.711545 | BV21: 704.9396582 | BW21: 617.8500945 | BX21: 194.3063203 | BY21: 556963.6912 | BZ21: 24485.70656 | CA21: 1994.654929 | CB21: 395.2881256 | CC21: 4476.902287 | CD21: 12919.58517 | CE21: 3585.346541 | CF21: 56.37322281 | CG21: 1913.578347 | CH21: 323.5023062 | CI21: 2509.001927 | CJ21: 8829.675969 | CK21: 183.9003942 | CL21: 344.3176518 | CM21: 1012.505055 | CN21: 949.1010632 | CO21: 176.7070733 | CP21: 187.7709933 | CQ21: 66.38730907 | CR21: 9713.592646 | CS21: 5987.509642 | CT21: 120.2426747 | CU21: 645.9397773 | CV21: 633.1283266 | CW21: 19.19000434 | CX21: 782.445691 | CY21: 154.5543711 | CZ21: 4595.336865 | DA21: 254.6271063 | DB21: 2520.723247 | DC21: 454.4338681 | DD21: 7903.041866 | DE21: 61.70679251 | DF21: 127.0999754 | DG21: 1292.259121 | DH21: 2218.486491 | DI21: 340.3705494 | DJ21: 1950.437891 | DK21: 826.0947058 | DL21: 746.9110213 | DM21: 16763.59749 | DN21: 2.387086953 | DO21: 310.7144625 | DP21: 747.3023876 | DQ21: 2754.262421 | DR21: 8166.181983 | DS21: 774.18193 | DT21: 1281.079456 | DU21: 859.0009539 | DV21: 24509.17353 | DW21: 1.235270834 | DX21: 1033.894393 | DY21: 2959.923008 | DZ21: 1082.678497 | EA21: 9173.135145 | EB21: 38.2098001 | EC21: 918.0425669 | ED21: 794.7883196 | EE21: 1482.199608 | EF21: 5305.421853 | EG21: 5547.968423 | EH21: 927.6916778 | EI21: 1039.379672 | EJ21: 1001.834153 | EK21: 1072.932121 | EL21: 871.5672528 | EM21: 1970.245494 | EN21: 910.479652 | EO21: 2412.56117 | EP21: 850.7476702 | EQ21: 709.6534872 | ER21: 759.2513906 | ES21: 521.4814803 | ET21: 906.392614 | EU21: 803.7402645 | EV21: 623.4954486 | EW21: 5663.987342 | EX21: 989.9751532 | EY21: 749.2280123 | EZ21: 946.710203 | FA21: 6286.672089 | FB21: 751.238562 | FC21: 800.4039967 | FD21: 793.1405298 | FE21: 738.8074336 | FF21: 715.6840351 | FG21: 2214.732137 | FH21: 1010.973589 | FI21: 823.5359138 | FJ21: 772.6041468 | FK21: 7.363903014 | FL21: 159.3592469 | FM21: 1887.338454 | FN21: 2802.471602 | FO21: 994.1550612 | FP21: 857.9383337 | FQ21: 1810.626671 | FR21: 0.0001749443819 | FS21: 504.965509 | FT21: 623.1686453 | FU21: 781.6384982 | FV21: 1440.391559 | FW21: 830.5077864 | FX21: 274.346148 | FY21: 223.4950653 | FZ21: 3144.896577 | GA21: 3066.414656 | GB21: 900.259802 | GC21: 17621.12007 | GD21: 867.7996474 | GE21: 2218.684574 | GF21: 1292.665805 | GG21: 1010.971605 | GH21: 922.1812841 | GI21: 797.7345693 | GJ21: 3739.560376 | GK21: 798.6017632 | GL21: 928.6599975 | GM21: 932.0466453 | GN21: 2313.689795 | GO21: 2957.014216 | GP21: 2362.447623 | GQ21: 129179.1849 | GR21: 18564.59253 | GS21: 14695.79274 | GT21: 4862.215941 | GU21: 31859.93031 | GV21: 7723.723314 | GW21: 4828.179846 | GX21: 5167.008593 | GY21: 47.79260463 | GZ21: 2742.505211 | HA21: 2191.819705 | HB21: 6181.856917 | HC21: 350.6911001 | HD21: 13816.18974 | HE21: 5052.494232 | HF21: 662.8755668 | HG21: 805.0714154 | HH21: 307.4826682 | HI21: 1041.831456 | HJ21: 906.3570423 | HK21: 1418.666074 | HL21: 1292.874833 | HM21: 767.9534859 | HN21: 1031.504088 | HO21: 3363.052375 | HP21: 9549.291675 | HQ21: 946.492319 | HR21: 2502.407851 | HS21: 1014.087723 | HT21: 994.6536824 | HU21: 21.57617048 | HV21: 44061.66577 | HW21: 5637.136499 | HX21: 2184135.011
A22: =+MATCH(B22,RUT[EMPRESA],0) -> 138 | B22: GESAN | C22: 11490611.7 | D22: 11490611.7 | F22: =IFERROR(INDEX($B$9:$B$511,MATCH(0,INDEX(COUNTIF($F$8:F21,$B$9:$B$511),0,0),0)),"") -> GESAN | H22: 11490611.7 | J22: CAPULLO | K22: 238585.5125 | L22: 184351.6502 | M22: 661950.444 | N22: 12341.62784 | O22: 2584092.428 | P22: 932358.4534 | Q22: 134150.441 | R22: 1565.551411 | S22: 643.8030949 | T22: 3963.407091 | U22: 16615.38379 | V22: 11175.52475 | W22: 11083.1819 | X22: 175505.1327 | Y22: 48970.27453 | Z22: 10583.90987 | AA22: 6125.303498 | AB22: 29444.46081 | AC22: 26135.66447 | AD22: 13430.92592 | AE22: 1126.525685 | AF22: 7942.212305 | AG22: 727.7269625 | AH22: 3577.996878 | AI22: 23987.00836 | AJ22: 10727.7851 | AK22: 97617.52082 | AL22: 8618.795287 | AM22: 42124.08267 | AN22: 65847.66939 | AO22: 71253.97756 | AP22: 690.0200319 | AQ22: 4213.960126 | AR22: 347032.0011 | AS22: 14415.22762 | AT22: 19.3579191 | AU22: 406555.791 | AV22: 7940.811704 | AW22: 23526.97702 | AX22: 6618.074344 | AY22: 587.646213 | AZ22: 16980.73339 | BA22: 18578.77565 | BB22: 275.7829143 | BC22: 16268.19488 | BD22: 13811.40458 | BE22: 99.40620174 | BF22: 27026.55216 | BG22: 2470.382222 | BH22: 92432.40222 | BI22: 26965.96374 | BJ22: 1853.582568 | BK22: 3.292315631 | BL22: 507969.2389 | BM22: 6306.52745 | BN22: 154718.017 | BO22: 71497.45979 | BP22: 25070.04374 | BQ22: 171.8464586 | BR22: 15831.18025 | BS22: 4985.840366 | BT22: 140871.7308 | BU22: 47184.5229 | BV22: 5171.600314 | BW22: 4532.69114 | BX22: 1425.476089 | BY22: 4086014.408 | BZ22: 179632.8044 | CA22: 14633.24972 | CB22: 2899.925079 | CC22: 32843.59023 | CD22: 94781.06381 | CE22: 26302.93115 | CF22: 413.566996 | CG22: 14038.45317 | CH22: 2373.287712 | CI22: 18406.61821 | CJ22: 64776.54432 | CK22: 1349.13581 | CL22: 2525.993899 | CM22: 7427.971175 | CN22: 6962.824831 | CO22: 1296.363944 | CP22: 1377.531419 | CQ22: 487.032648 | CR22: 71261.16142 | CS22: 43925.75503 | CT22: 882.1280616 | CU22: 4738.763547 | CV22: 4644.775782 | CW22: 140.7823085 | CX22: 5740.20249 | CY22: 1133.846599 | CZ22: 33712.45368 | DA22: 1868.003321 | DB22: 18492.60853 | DC22: 3333.831921 | DD22: 57978.5423 | DE22: 452.6952964 | DF22: 932.4348052 | DG22: 9480.311678 | DH22: 16275.32981 | DI22: 2497.037043 | DJ22: 14308.86331 | DK22: 6060.421754 | DL22: 5479.511937 | DM22: 122981.6269 | DN22: 17.51222178 | DO22: 2279.473133 | DP22: 5482.383091 | DQ22: 20205.9059 | DR22: 59908.99904 | DS22: 5679.577628 | DT22: 9398.295077 | DU22: 6301.829598 | DV22: 179804.9635 | DW22: 9.062232434 | DX22: 7584.888304 | DY22: 21714.67952 | DZ22: 7942.779766 | EA22: 67296.24024 | EB22: 280.3159276 | EC22: 6734.972521 | ED22: 5830.750867 | EE22: 10873.759 | EF22: 38921.80132 | EG22: 40701.17903 | EH22: 6805.76063 | EI22: 7625.129577 | EJ22: 7349.686966 | EK22: 7871.278104 | EL22: 6394.018872 | EM22: 14454.17646 | EN22: 6679.489229 | EO22: 17699.10653 | EP22: 6241.281601 | EQ22: 5206.182053 | ER22: 5570.043739 | ES22: 3825.708705 | ET22: 6649.505773 | EU22: 5896.424404 | EV22: 4574.106763 | EW22: 41552.32065 | EX22: 7262.686605 | EY22: 5496.509918 | EZ22: 6945.284927 | FA22: 46120.47991 | FB22: 5511.259776 | FC22: 5871.948772 | FD22: 5818.662299 | FE22: 5420.062144 | FF22: 5250.423547 | FG22: 16247.787 | FH22: 7416.735988 | FI22: 6041.649864 | FJ22: 5668.002646 | FK22: 54.02329503 | FL22: 1169.096279 | FM22: 13845.95125 | FN22: 20559.5796 | FO22: 7293.351376 | FP22: 6294.03397 | FQ22: 13283.17587 | FR22: 0.001283432433 | FS22: 3704.543721 | FT22: 4571.709257 | FU22: 5734.280737 | FV22: 10567.0455 | FW22: 6092.797133 | FX22: 2012.66677 | FY22: 1639.611471 | FZ22: 23071.68838 | GA22: 22495.92687 | GB22: 6604.514047 | GC22: 129272.6108 | GD22: 6366.378847 | GE22: 16276.78299 | GF22: 9483.295206 | GG22: 7416.721427 | GH22: 6765.335107 | GI22: 5852.365236 | GJ22: 27434.2795 | GK22: 5858.72717 | GL22: 6812.864447 | GM22: 6837.709678 | GN22: 16973.76326 | GO22: 21693.33994 | GP22: 17331.46196 | GQ22: 947688.3661 | GR22: 136194.1429 | GS22: 107811.7332 | GT22: 35670.34028 | GU22: 233731.8147 | GV22: 56663.01995 | GW22: 35420.64362 | GX22: 37906.36965 | GY22: 350.6175971 | GZ22: 20119.65229 | HA22: 16079.6961 | HB22: 45351.53158 | HC22: 2572.75099 | HD22: 101358.7622 | HE22: 37066.26582 | HF22: 4863.008414 | HG22: 5906.190035 | HH22: 2255.763944 | HI22: 7643.116429 | HJ22: 6649.244811 | HK22: 10407.66231 | HL22: 9484.828688 | HM22: 5633.884322 | HN22: 7567.352468 | HO22: 24672.12975 | HP22: 70055.81151 | HQ22: 6943.68648 | HR22: 18358.24255 | HS22: 7439.581993 | HT22: 7297.009377 | HU22: 158.287775 | HV22: 323246.5671 | HW22: 41355.33666 | HX22: 16023319.41
A23: =+MATCH(B23,RUT[EMPRESA],0) -> 237 | B23: PACIFIC HYDRO | C23: -22368207.63 | D23: -22368207.63 | F23: =IFERROR(INDEX($B$9:$B$511,MATCH(0,INDEX(COUNTIF($F$8:F22,$B$9:$B$511),0,0),0)),"") -> PACIFIC HYDRO | G23: -22368207.63 | J23: ALLIPEN | K23: 771862.9862 | L23: 596407.6096 | M23: 2141517.483 | N23: 39927.17587 | O23: 8359959.82 | P23: 3016331.43 | Q23: 433998.5228 | R23: 5064.813761 | S23: 2082.807854 | T23: 12822.26737 | U23: 53753.47235 | V23: 36154.64247 | W23: 35855.89832 | X23: 567787.6849 | Y23: 158426.8128 | Z23: 34240.67199 | AA23: 19816.35431 | AB23: 95257.6257 | AC23: 84553.1307 | AD23: 43451.23254 | AE23: 3644.494044 | AF23: 25694.35018 | AG23: 2354.315233 | AH23: 11575.40257 | AI23: 77601.87827 | AJ23: 34706.13181 | AK23: 315808.5767 | AL23: 27883.20631 | AM23: 136278.2673 | AN23: 213027.9336 | AO23: 230518.221 | AP23: 2232.327172 | AQ23: 13632.84724 | AR23: 1122705.037 | AS23: 46635.60885 | AT23: 62.6260207 | AU23: 1315274.191 | AV23: 25689.81901 | AW23: 76113.60199 | AX23: 21410.54824 | AY23: 1901.131196 | AZ23: 54935.43779 | BA23: 60105.36473 | BB23: 892.2026383 | BC23: 52630.25969 | BD23: 44682.14298 | BE23: 321.5952507 | BF23: 87435.29747 | BG23: 7992.088784 | BH23: 299033.8736 | BI23: 87239.28405 | BJ23: 5996.64146 | BK23: 10.65117721 | BL23: 1643363.21 | BM23: 20402.64331 | BN23: 500537.9805 | BO23: 231305.9256 | BP23: 81105.6741 | BQ23: 555.9512785 | BR23: 51216.44619 | BS23: 16130.00552 | BT23: 455742.9898 | BU23: 152649.6155 | BV23: 16730.9692 | BW23: 14663.99398 | BX23: 4611.647284 | BY23: 13218922.01 | BZ23: 581141.3751 | CA23: 47340.94585 | CB23: 9381.729878 | CC23: 106254.3629 | CD23: 306632.1763 | CE23: 85094.26566 | CF23: 1337.95658 | CG23: 45416.68213 | CH23: 7677.972233 | CI23: 59548.4074 | CJ23: 209562.6696 | CK23: 4364.674048 | CL23: 8172.001617 | CM23: 24030.69638 | CN23: 22525.87221 | CO23: 4193.94847 | CP23: 4456.53847 | CQ23: 1575.629929 | CR23: 230541.4619 | CS23: 142106.9708 | CT23: 2853.827932 | CU23: 15330.67177 | CV23: 15026.60605 | CW23: 455.4536942 | CX23: 18570.48983 | CY23: 3668.178393 | CZ23: 109065.2777 | DA23: 6043.294945 | DB23: 59826.60008 | DC23: 10785.48917 | DD23: 187570.026 | DE23: 1464.543004 | DF23: 3016.57844 | DG23: 30670.35213 | DH23: 52653.34234 | DI23: 8078.321473 | DJ23: 46291.50297 | DK23: 19606.4513 | DL23: 17727.11344 | DM23: 397865.5903 | DN23: 56.6548893 | DO23: 7374.466794 | DP23: 17736.40209 | DQ23: 65369.39608 | DR23: 193815.3679 | DS23: 18374.35854 | DT23: 30405.01507 | DU23: 20387.44499 | DV23: 581698.3377 | DW23: 29.31779769 | DX23: 24538.34885 | DY23: 70250.52443 | DZ23: 25696.18601 | EA23: 217714.2962 | EB23: 906.8676746 | EC23: 21788.73288 | ED23: 18863.42858 | EE23: 35178.38115 | EF23: 125918.3656 | EG23: 131674.9423 | EH23: 22017.74394 | EI23: 24668.53592 | EJ23: 23777.43422 | EK23: 25464.86649 | EL23: 20685.6923 | EM23: 46761.61468 | EN23: 21609.2354 | EO23: 57259.49188 | EP23: 20191.56236 | EQ23: 16842.84676 | ER23: 18019.99857 | ES23: 12376.79067 | ET23: 21512.23404 | EU23: 19075.89317 | EV23: 14797.98026 | EW23: 134428.524 | EX23: 23495.97388 | EY23: 17782.10468 | EZ23: 22469.12776 | FA23: 149207.2631 | FB23: 17829.82287 | FC23: 18996.71051 | FD23: 18824.3201 | FE23: 17534.78368 | FF23: 16985.9752 | FG23: 52564.23685 | FH23: 23994.34872 | FI23: 19545.72118 | FJ23: 18336.91158 | FK23: 174.774157 | FL23: 3782.216848 | FM23: 44793.90707 | FN23: 66513.5881 | FO23: 23595.17941 | FP23: 20362.22486 | FQ23: 42973.23708 | FR23: 0.004152112924 | FS23: 11984.80222 | FT23: 14790.22394 | FU23: 18551.332 | FV23: 34186.113 | FW23: 19711.19093 | FX23: 6511.30476 | FY23: 5304.410116 | FZ23: 74640.66909 | GA23: 72777.98683 | GB23: 21366.67847 | GC23: 418217.9477 | GD23: 20596.27232 | GE23: 52658.04361 | GF23: 30680.00433 | GG23: 23994.30161 | GH23: 21886.96079 | GI23: 18933.35458 | GJ23: 88754.3618 | GK23: 18953.93648 | GL23: 22040.72595 | GM23: 22121.10431 | GN23: 54912.88828 | GO23: 70181.48744 | GP23: 56070.10182 | GQ23: 3065926.194 | GR23: 440610.2312 | GS23: 348788.5139 | GT23: 115399.3597 | GU23: 756160.4834 | GV23: 183314.097 | GW23: 114591.5503 | GX23: 122633.2788 | GY23: 1134.305024 | GZ23: 65090.3516 | HA23: 52020.43544 | HB23: 146719.5901 | HC23: 8323.26842 | HD23: 327912.1018 | HE23: 119915.4061 | HF23: 15732.62415 | HG23: 19107.48657 | HH23: 7297.763704 | HI23: 24726.72631 | HJ23: 21511.38978 | HK23: 33670.48244 | HL23: 30684.96539 | HM23: 18226.53325 | HN23: 24481.61756 | HO23: 79818.35756 | HP23: 226641.9587 | HQ23: 22463.95653 | HR23: 59391.90424 | HS23: 24068.25927 | HT23: 23607.01364 | HU23: 512.086729 | HV23: 1045755.285 | HW23: 133791.2487 | HX23: 51838047.65
A24: =+MATCH(B24,RUT[EMPRESA],0) -> 100 | B24: ELECTRICA CENIZAS | C24: -323151422.7 | D24: -323151422.7 | F24: =IFERROR(INDEX($B$9:$B$511,MATCH(0,INDEX(COUNTIF($F$8:F23,$B$9:$B$511),0,0),0)),"") -> ELECTRICA CENIZAS | G24: -323151422.7 | J24: CARBOMET | K24: 38786.94627 | L24: 29970.12465 | M24: 107613.5597 | N24: 2006.383585 | O24: 420096.9837 | P24: 151573.9026 | Q24: 21808.89314 | R24: 254.5123457 | S24: 104.6633376 | T24: 644.3327436 | U24: 2701.169872 | V24: 1816.809719 | W24: 1801.797503 | X24: 28531.94261 | Y24: 7961.117952 | Z24: 1720.630641 | AA24: 995.7931441 | AB24: 4786.798273 | AC24: 4248.885872 | AD24: 2183.471227 | AE24: 183.1397505 | AF24: 1291.168767 | AG24: 118.3068758 | AH24: 581.6764445 | AI24: 3899.577952 | AJ24: 1744.020498 | AK24: 15869.72107 | AL24: 1401.161144 | AM24: 6848.129687 | AN24: 10704.88307 | AO24: 11583.78885 | AP24: 112.1768443 | AQ24: 685.0652551 | AR24: 56417.13714 | AS24: 2343.489566 | AT24: 3.147024982 | AU24: 66093.94449 | AV24: 1290.94107 | AW24: 3824.790466 | AX24: 1075.903106 | AY24: 95.53388992 | AZ24: 2760.564908 | BA24: 3020.359305 | BB24: 44.83414338 | BC24: 2644.727226 | BD24: 2245.325802 | BE24: 16.16050767 | BF24: 4393.717856 | BG24: 401.611068 | BH24: 15026.77418 | BI24: 4383.867971 | BJ24: 301.3376911 | BK24: 0.5352331252 | BL24: 82580.771 | BM24: 1025.254798 | BN24: 25152.57254 | BO24: 11623.37185 | BP24: 4075.647466 | BQ24: 27.93715044 | BR24: 2573.681576 | BS24: 810.5501475 | BT24: 22901.57603 | BU24: 7670.807565 | BV24: 840.7492197 | BW24: 736.8814888 | BX24: 231.7402423 | BY24: 664265.0663 | BZ24: 29202.97992 | CA24: 2378.93351 | CB24: 471.4420295 | CC24: 5339.39616 | CD24: 15408.59707 | CE24: 4276.078487 | CF24: 67.233759 | CG24: 2282.237186 | CH24: 385.826373 | CI24: 2992.371599 | CJ24: 10530.74982 | CK24: 219.3295712 | CL24: 410.6518816 | CM24: 1207.568372 | CN24: 1131.949336 | CO24: 210.750427 | CP24: 223.9458573 | CQ24: 79.17710069 | CR24: 11584.95673 | CS24: 7141.028314 | CT24: 143.4079269 | CU24: 770.382766 | CV24: 755.103136 | CW24: 22.88703861 | CX24: 933.1871126 | CY24: 184.3299145 | CZ24: 5480.647654 | DA24: 303.682079 | DB24: 3006.351081 | DC24: 541.9824457 | DD24: 9425.595801 | DE24: 73.59486312 | DF24: 151.5863151 | DG24: 1541.218223 | DH24: 2645.887155 | DI24: 405.9443535 | DJ24: 2326.197875 | DK24: 985.2452919 | DL24: 890.8065407 | DM24: 19993.17437 | DN24: 2.846969198 | DO24: 370.5748979 | DP24: 891.2733054 | DQ24: 3284.882549 | DR24: 9739.430957 | DS24: 923.3313036 | DT24: 1527.88475 | DU24: 1024.491066 | DV24: 29230.9679 | DW24: 1.473250906 | DX24: 1233.078455 | DY24: 3530.164505 | DZ24: 1291.261019 | EA24: 10940.37784 | EB24: 45.57107725 | EC24: 1094.907291 | ED24: 947.9076 | EE24: 1767.751536 | EF24: 6327.533472 | EG24: 6616.807649 | EH24: 1106.415344 | EI24: 1239.620495 | EJ24: 1194.841675 | EK24: 1279.636964 | EL24: 1039.478314 | EM24: 2349.821495 | EN24: 1085.88735 | EO24: 2877.351129 | EP24: 1014.647753 | EQ24: 846.3711876 | ER24: 905.5243336 | ES24: 621.9470596 | ET24: 1081.012927 | EU24: 958.5841743 | EV24: 743.6144439 | EW24: 6755.178096 | EX24: 1180.69799 | EY24: 893.5699097 | EZ24: 1129.097867 | FA24: 7497.825653 | FB24: 895.9678002 | FC24: 954.6051607 | FD24: 945.9423566 | FE24: 881.1417631 | FF24: 853.5635456 | FG24: 2641.409508 | FH24: 1205.741862 | FI24: 982.1935379 | FJ24: 921.4495539 | FK24: 8.782589603 | FL24: 190.0604697 | FM24: 2250.942069 | FN24: 3342.37943 | FO24: 1185.683175 | FP24: 1023.223727 | FQ24: 2159.451441 | FR24: 0.0002086481458 | FS24: 602.2492177 | FT24: 743.2246805 | FU24: 932.2244108 | FV24: 1717.888993 | FW24: 990.5085708 | FX24: 327.2000762 | FY24: 266.5523206 | FZ24: 3750.774002 | GA24: 3657.172212 | GB24: 1073.698603 | GC24: 21015.90225 | GD24: 1034.984864 | GE24: 2646.123398 | GF24: 1541.703257 | GG24: 1205.739495 | GH24: 1099.84335 | GI24: 951.421457 | GJ24: 4460.00226 | GK24: 952.4557193 | GL24: 1107.570214 | GM24: 1111.609314 | GN24: 2759.431771 | GO24: 3526.695322 | GP24: 2817.582998 | GQ24: 154066.0929 | GR24: 22141.13861 | GS24: 17526.99843 | GT24: 5798.942095 | GU24: 37997.87859 | GV24: 9211.730783 | GW24: 5758.348805 | GX24: 6162.454321 | GY24: 57.00004898 | GZ24: 3270.860263 | HA24: 2614.082901 | HB24: 7372.817402 | HC24: 418.2532014 | HD24: 16477.93624 | HE24: 6025.878292 | HF24: 790.5813059 | HG24: 960.171777 | HH24: 366.720485 | HI24: 1242.544625 | HJ24: 1080.970502 | HK24: 1691.978002 | HL24: 1541.952555 | HM24: 915.9029238 | HN24: 1230.227647 | HO24: 4010.958423 | HP24: 11389.00249 | HQ24: 1128.838007 | HR24: 2984.507147 | HS24: 1209.455947 | HT24: 1186.277857 | HU24: 25.73290959 | HV24: 52550.32922 | HW24: 6723.154327 | HX24: 2604917.718
A25: =+MATCH(B25,RUT[EMPRESA],0) -> 261 | B25: PUNTILLA | C25: 48170909.26 | D25: 48170909.26 | F25: =IFERROR(INDEX($B$9:$B$511,MATCH(0,INDEX(COUNTIF($F$8:F24,$B$9:$B$511),0,0),0)),"") -> PUNTILLA | H25: 48170909.26 | J25: ORAZUL_CHILE | K25: 139300.1915 | L25: 107635.2873 | M25: 386485.4268 | N25: 7205.764943 | O25: 1508744.46 | P25: 544365.4553 | Q25: 78324.88206 | R25: 914.0605777 | S25: 375.8899419 | T25: 2314.06912 | U25: 9701.033899 | V25: 6524.925681 | W25: 6471.01052 | X25: 102470.1724 | Y25: 28591.71351 | Z25: 6179.506275 | AA25: 3576.310823 | AB25: 17191.40021 | AC25: 15259.53118 | AD25: 7841.76094 | AE25: 657.7316539 | AF25: 4637.128565 | AG25: 424.8896096 | AH25: 2089.044071 | AI25: 14005.01993 | AJ25: 6263.509062 | AK25: 56994.82422 | AL25: 5032.157325 | AM25: 24594.50586 | AN25: 38445.72481 | AO25: 41602.24407 | AP25: 402.8740958 | AQ25: 2460.356652 | AR25: 202617.6012 | AS25: 8416.453908 | AT25: 11.30228659 | AU25: 237371.0749 | AV25: 4636.310812 | AW25: 13736.42671 | AX25: 3864.019294 | AY25: 343.1022662 | AZ25: 9914.346385 | BA25: 10847.37702 | BB25: 161.0182126 | BC25: 9498.324686 | BD25: 8063.906661 | BE25: 58.03916087 | BF25: 15779.68358 | BG25: 1442.353783 | BH25: 53967.44839 | BI25: 15744.30851 | BJ25: 1082.230032 | BK25: 1.922246633 | BL25: 296582.1836 | BM25: 3682.119976 | BN25: 90333.43716 | BO25: 41744.40325 | BP25: 14637.3594 | BQ25: 100.3340243 | BR25: 9243.169957 | BS25: 2911.02553 | BT25: 82249.16458 | BU25: 27549.08715 | BV25: 3019.483064 | BW25: 2646.450479 | BX25: 832.2764034 | BY25: 2385654.45 | BZ25: 104880.1488 | CA25: 8543.747974 | CB25: 1693.146054 | CC25: 19176.01099 | CD25: 55338.73455 | CE25: 15357.19126 | CF25: 241.4646269 | CG25: 8196.470919 | CH25: 1385.664324 | CI25: 10746.86143 | CJ25: 37820.33928 | CK25: 787.7044784 | CL25: 1474.823137 | CM25: 4336.884484 | CN25: 4065.304814 | CO25: 756.8931736 | CP25: 804.283498 | CQ25: 284.358176 | CR25: 41606.43842 | CS25: 25646.42767 | CT25: 515.0380116 | CU25: 2766.767616 | CV25: 2711.892056 | CW25: 82.19695461 | CX25: 3351.466306 | CY25: 662.006032 | CZ25: 19683.30434 | DA25: 1090.649712 | DB25: 10797.06761 | DC25: 1946.486273 | DD25: 33851.26768 | DE25: 264.3100196 | DF25: 544.4100339 | DG25: 5535.161036 | DH25: 9502.490475 | DI25: 1457.916429 | DJ25: 8354.352193 | DK25: 3538.429061 | DL25: 3199.259898 | DM25: 71803.87443 | DN25: 10.22466043 | DO25: 1330.88988 | DP25: 3200.936246 | DQ25: 11797.39093 | DR25: 34978.38135 | DS25: 3316.069962 | DT25: 5487.274942 | DU25: 3679.377095 | DV25: 104980.6654 | DW25: 5.291061894 | DX25: 4428.501892 | DY25: 12678.30131 | DZ25: 4637.459883 | EA25: 39291.48529 | EB25: 163.6648512 | EC25: 3932.271295 | ED25: 3404.33375 | EE25: 6348.737172 | EF25: 22724.82651 | EG25: 23763.7314 | EH25: 3973.601537 | EI25: 4451.997103 | EJ25: 4291.177579 | EK25: 4595.713025 | EL25: 3733.202591 | EM25: 8439.194519 | EN25: 3899.8769 | EO25: 10333.77468 | EP25: 3644.025629 | EQ25: 3039.673908 | ER25: 3252.117665 | ES25: 2233.67274 | ET25: 3882.370803 | EU25: 3442.677806 | EV25: 2670.631345 | EW25: 24260.67771 | EX25: 4240.381675 | EY25: 3209.184315 | EZ25: 4055.063991 | FA25: 26927.83656 | FB25: 3217.796145 | FC25: 3428.3875 | FD25: 3397.275737 | FE25: 3164.549628 | FF25: 3065.504682 | FG25: 9486.409367 | FH25: 4330.324724 | FI25: 3527.468933 | FJ25: 3309.31181 | FK25: 31.54196274 | FL25: 682.5868591 | FM25: 8084.077028 | FN25: 12003.88635 | FO25: 4258.285564 | FP25: 3674.825551 | FQ25: 7755.495812 | FR25: 0.000749343 | FS25: 2162.929528 | FT25: 2669.231541 | FU25: 3348.00884 | FV25: 6169.659868 | FW25: 3557.331704 | FX25: 1175.112703 | FY25: 957.3011771 | FZ25: 13470.60254 | GA25: 13134.43926 | GB25: 3856.101999 | GC25: 75476.91918 | GD25: 3717.064727 | GE25: 9503.338925 | GF25: 5536.902995 | GG25: 4330.316223 | GH25: 3949.99875 | GI25: 3416.953484 | GJ25: 16017.73867 | GK25: 3420.667954 | GL25: 3977.749162 | GM25: 3992.255262 | GN25: 9910.276814 | GO25: 12665.84202 | GP25: 10119.12226 | GQ25: 553315.9559 | GR25: 79518.11488 | GS25: 62946.8023 | GT25: 20826.43318 | GU25: 136466.3186 | GV25: 33083.1887 | GW25: 20680.64565 | GX25: 22131.95804 | GY25: 204.7110821 | GZ25: 11747.03103 | HA25: 9388.268061 | HB25: 26478.8795 | HC25: 1502.122664 | HD25: 59179.18 | HE25: 21641.45624 | HF25: 2839.309044 | HG25: 3448.379554 | HH25: 1317.047067 | HI25: 4462.498881 | HJ25: 3882.218438 | HK25: 6076.602632 | HL25: 5537.798331 | HM25: 3289.391535 | HN25: 4418.263444 | HO25: 14405.03392 | HP25: 40902.68457 | HQ25: 4054.130724 | HR25: 10718.61689 | HS25: 4343.66356 | HT25: 4260.421319 | HU25: 92.4176709 | HV25: 188730.2722 | HW25: 24145.66692 | HX25: 9355352.045
A26: =+MATCH(B26,RUT[EMPRESA],0) -> 91 | B26: EL MANZANO | C26: 32399804.62 | D26: 32399804.62 | F26: =IFERROR(INDEX($B$9:$B$511,MATCH(0,INDEX(COUNTIF($F$8:F25,$B$9:$B$511),0,0),0)),"") -> EL MANZANO | H26: 32399804.62 | J26: RUCATAYO | K26: 9454629.34 | L26: 7305458.332 | M26: 26231668.56 | N26: 489072.096 | O26: 102402010.2 | P26: 36947354.83 | Q26: 5316092.675 | R26: 62039.42622 | S26: 25512.52826 | T26: 157061.2757 | U26: 658431.8277 | V26: 442861.9451 | W26: 439202.5972 | X26: 6954889.922 | Y26: 1940586.373 | Z26: 419417.5233 | AA26: 242732.5681 | AB26: 1166820.483 | AC26: 1035700.02 | AD26: 532238.6296 | AE26: 44641.7835 | AF26: 314732.7459 | AG26: 28838.25014 | AH26: 141788.3001 | AI26: 950553.412 | AJ26: 425118.9886 | AK26: 3868371.833 | AL26: 341544.2704 | AM26: 1669286.554 | AN26: 2609401.134 | AO26: 2823641.468 | AP26: 27344.0058 | AQ26: 166990.1522 | AR26: 13752129.81 | AS26: 571244.3835 | AT26: 767.1125878 | AU26: 16110929.24 | AV26: 314677.2431 | AW26: 932323.3623 | AX26: 262260.014 | AY26: 23287.15213 | AZ26: 672909.8443 | BA26: 736236.8128 | BB26: 10928.68215 | BC26: 644673.48 | BD26: 547316.1785 | BE26: 3939.253401 | BF26: 1071003.978 | BG26: 97895.91993 | BH26: 3662896.765 | BI26: 1068602.989 | BJ26: 73453.47983 | BK26: 130.4673684 | BL26: 20129725.48 | BM26: 249914.0825 | BN26: 6131141.356 | BO26: 2833290.143 | BP26: 993471.7686 | BQ26: 6809.90456 | BR26: 627355.5327 | BS26: 197578.1015 | BT26: 5582442.895 | BU26: 1869820.887 | BV26: 204939.3676 | BW26: 179620.7749 | BX26: 56488.5433 | BY26: 161919939.3 | BZ26: 7118460.651 | CA26: 579884.1291 | CB26: 114917.7771 | CC26: 1301520.652 | CD26: 3755969.159 | CE26: 1042328.438 | CF26: 16388.76817 | CG26: 556313.6244 | CH26: 94048.2739 | CI26: 729414.585 | CJ26: 2566954.757 | CK26: 53463.34265 | CL26: 100099.6908 | CM26: 294354.4788 | CN26: 275921.7323 | CO26: 51372.10744 | CP26: 54588.59943 | CQ26: 19300.05353 | CR26: 2823926.149 | CS26: 1740682.944 | CT26: 34956.83273 | CU26: 187786.98 | CV26: 184062.4476 | CW26: 5578.899282 | CX26: 227471.8456 | CY26: 44931.89553 | CZ26: 1335951.837 | DA26: 74024.94318 | DB26: 732822.1958 | DC26: 132112.5694 | DD26: 2297564.598 | DE26: 17939.33833 | DF26: 36950.38048 | DG26: 375684.307 | DH26: 644956.2218 | DI26: 98952.19304 | DJ26: 567029.3951 | DK26: 240161.4445 | DL26: 217141.2412 | DM26: 4873496.657 | DN26: 693.9715832 | DO26: 90330.60447 | DP26: 217255.0189 | DQ26: 800716.4758 | DR26: 2374064.435 | DS26: 225069.4131 | DT26: 372434.166 | DU26: 249727.9167 | DV26: 7125282.944 | DW26: 359.1167282 | DX26: 300572.7663 | DY26: 860505.9204 | DZ26: 314755.2331 | EA26: 2666804.873 | EB26: 11108.31569 | EC26: 266892.4367 | ED26: 231060.0825 | EE26: 430903.6195 | EF26: 1542387.049 | EG26: 1612899.951 | EH26: 269697.6168 | EI26: 302167.4411 | EJ26: 291252.2445 | EK26: 311921.7764 | EL26: 253381.1789 | EM26: 572787.842 | EN26: 264693.7535 | EO26: 701377.4226 | EP26: 247328.5302 | EQ26: 206309.7674 | ER26: 220728.8213 | ES26: 151604.5857 | ET26: 263505.5738 | EU26: 233662.5832 | EV26: 181261.9867 | EW26: 1646628.858 | EX26: 287804.6078 | EY26: 217814.8346 | EZ26: 275226.6638 | FA26: 1827655.158 | FB26: 218399.3396 | FC26: 232692.6667 | FD26: 230581.0387 | FE26: 214785.3741 | FF26: 208062.9624 | FG26: 643864.7595 | FH26: 293909.2526 | FI26: 239417.555 | FJ26: 224610.7215 | FK26: 2140.826678 | FL26: 46328.76433 | FM26: 548685.1884 | FN26: 814731.8019 | FO26: 289019.7866 | FP26: 249418.9928 | FQ26: 526383.6139 | FR26: 0.05085965952 | FS26: 146803.0786 | FT26: 181166.9787 | FU26: 227237.1793 | FV26: 418749.2246 | FW26: 241444.411 | FX26: 79757.64368 | FY26: 64974.26669 | FZ26: 914281.2553 | GA26: 891465.0681 | GB26: 261722.6487 | GC26: 5122794.783 | GD26: 252285.8643 | GE26: 645013.8081 | GF26: 375802.5378 | GG26: 293908.6756 | GH26: 268095.6405 | GI26: 231916.6134 | GJ26: 1087161.333 | GK26: 232168.7231 | GL26: 269979.1257 | GM26: 270963.6887 | GN26: 672633.633 | GO26: 859660.2792 | GP26: 686808.4612 | GQ26: 37554846.21 | GR26: 5397080.174 | GS26: 4272346.486 | GT26: 1413538.66 | GU26: 9262287.763 | GV26: 2245433.284 | GW26: 1403643.72 | GX26: 1502147.682 | GY26: 13894.21925 | GZ26: 797298.4312 | HA26: 637203.6798 | HB26: 1797183.394 | HC26: 101952.5735 | HD26: 4016629.161 | HE26: 1468856.179 | HF26: 192710.5361 | HG26: 234049.5741 | HH26: 89391.06042 | HI26: 302880.2213 | HJ26: 263495.2324 | HK26: 412433.2127 | HL26: 375863.3064 | HM26: 223258.6859 | HN26: 299877.8589 | HO26: 977703.2954 | HP26: 2776160.731 | HQ26: 275163.3208 | HR26: 727497.5616 | HS26: 294814.5905 | HT26: 289164.7452 | HU26: 6272.603168 | HV26: 12809564.36 | HW26: 1638822.807 | HX26: 634969593
A27: =+MATCH(B27,RUT[EMPRESA],0) -> 125 | B27: ESPINOS | C27: 32132086.52 | D27: 32132086.52 | F27: =IFERROR(INDEX($B$9:$B$511,MATCH(0,INDEX(COUNTIF($F$8:F26,$B$9:$B$511),0,0),0)),"") -> ESPINOS | H27: 32132086.52 | J27: ESTANCILLA SPA | K27: 7552.534434 | L27: 5835.736508 | M27: 20954.34659 | N27: 390.6799212 | O27: 81800.6376 | P27: 29514.23684 | Q27: 4246.59408 | R27: 49.55825194 | S27: 20.37988389 | T27: 125.4634794 | U27: 525.9676369 | V27: 353.76639 | W27: 350.8432345 | X27: 5555.695917 | Y27: 1550.176625 | Z27: 335.0385481 | AA27: 193.8993072 | AB27: 932.0779867 | AC27: 827.3365124 | AD27: 425.1621542 | AE27: 35.66069012 | AF27: 251.4143934 | AG27: 23.03653262 | AH27: 113.2631413 | AI27: 759.3198123 | AJ27: 339.592985 | AK27: 3090.127642 | AL27: 272.8319398 | AM27: 1333.457264 | AN27: 2084.438343 | AO27: 2255.577522 | AP27: 21.84290235 | AQ27: 133.3948513 | AR27: 10985.45804 | AS27: 456.3206787 | AT27: 0.6127838571 | AU27: 12869.71107 | AV27: 251.3700568 | AW27: 744.7573082 | AX27: 209.4981956 | AY27: 18.60221189 | AZ27: 537.5329468 | BA27: 588.1197116 | BB27: 8.730035341 | BC27: 514.9772118 | BD27: 437.2063818 | BE27: 3.146749162 | BF27: 855.5379733 | BG27: 78.20108856 | BH27: 2925.990322 | BI27: 853.6200188 | BJ27: 58.67601106 | BK27: 0.1042197697 | BL27: 16080.00053 | BM27: 199.636035 | BN27: 4897.670183 | BO27: 2263.285064 | BP27: 793.6037968 | BQ27: 5.439878903 | BR27: 501.1433122 | BS27: 157.8290762 | BT27: 4459.359608 | BU27: 1493.647834 | BV27: 163.7093931 | BW27: 143.4844285 | BX27: 45.12410303 | BY27: 129344.6705 | BZ27: 5686.35927 | CA27: 463.2222688 | CB27: 91.79846582 | CC27: 1039.678996 | CD27: 3000.338288 | CE27: 832.6314165 | CF27: 13.09165399 | CG27: 444.3937095 | CH27: 75.12751707 | CI27: 582.6699886 | CJ27: 2050.531385 | CK27: 42.70751627 | CL27: 79.96150186 | CM27: 235.1358533 | CN27: 220.4114312 | CO27: 41.03699853 | CP27: 43.60639239 | CQ27: 15.41724309 | CR27: 2255.80493 | CS27: 1390.490034 | CT27: 27.92417063 | CU27: 150.0077456 | CV27: 147.0325195 | CW27: 4.456528904 | CX27: 181.7087572 | CY27: 35.89243702 | CZ27: 1067.183269 | DA27: 59.13250665 | DB27: 585.3920518 | DC27: 105.533987 | DD27: 1835.337496 | DE27: 14.33027839 | DF27: 29.51665379 | DG27: 300.1036385 | DH27: 515.2030713 | DI27: 79.04485924 | DJ27: 452.9536672 | DK27: 191.8454457 | DL27: 173.4564775 | DM27: 3893.040118 | DN27: 0.5543574571 | DO27: 72.15777332 | DP27: 173.5473652 | DQ27: 639.6272702 | DR27: 1896.446994 | DS27: 179.7896492 | DT27: 297.5073651 | DU27: 199.4873223 | DV27: 5691.809044 | DW27: 0.2868691472 | DX27: 240.1031374 | DY27: 687.3881948 | DZ27: 251.4323567 | EA27: 2130.293522 | EB27: 8.873529968 | EC27: 213.1986613 | ED27: 184.5751078 | EE27: 344.2138562 | EF27: 1232.087571 | EG27: 1288.414594 | EH27: 215.4394915 | EI27: 241.3769934 | EJ27: 232.6577305 | EK27: 249.1689386 | EL27: 202.4056163 | EM27: 457.5536221 | EN27: 211.4423121 | EO27: 560.2733799 | EP27: 197.5706475 | EQ27: 164.804094 | ER27: 176.3223035 | ES27: 121.1045735 | ET27: 210.493172 | EU27: 186.6540339 | EV27: 144.7954591 | EW27: 1315.357874 | EX27: 229.903694 | EY27: 173.9945564 | EZ27: 219.8561975 | FA27: 1459.965062 | FB27: 174.46147 | FC27: 185.8792465 | FD27: 184.1924386 | FE27: 171.5745669 | FF27: 166.2045789 | FG27: 514.3311908 | FH27: 234.7801983 | FI27: 191.2512128 | FJ27: 179.4232378 | FK27: 1.71013232 | FL27: 37.0082819 | FM27: 438.2999725 | FN27: 650.8229744 | FO27: 230.8744015 | FP27: 199.2405481 | FQ27: 420.4850584 | FR27: 4.062764557e-05 | FS27: 117.26904 | FT27: 144.719565 | FU27: 181.5213014 | FV27: 334.5046987 | FW27: 192.8703032 | FX27: 63.71189484 | FY27: 51.9026573 | FZ27: 730.3449363 | GA27: 712.11894 | GB27: 209.0689381 | GC27: 4092.184115 | GD27: 201.5306586 | GE27: 515.2490723 | GF27: 300.1980834 | GG27: 234.7797373 | GH27: 214.159803 | GI27: 185.2593206 | GJ27: 868.4447702 | GK27: 185.4607106 | GL27: 215.6643661 | GM27: 216.4508534 | GN27: 537.3123041 | GO27: 686.7126808 | GP27: 548.6354215 | GQ27: 29999.5123 | GR27: 4311.288406 | GS27: 3412.830138 | GT27: 1129.161073 | GU27: 7398.888391 | GV27: 1793.694029 | GW27: 1121.25681 | GX27: 1199.943613 | GY27: 11.09896174 | GZ27: 636.8968724 | HA27: 509.010196 | HB27: 1435.623648 | HC27: 81.44161913 | HD27: 3208.558364 | HE27: 1173.349739 | HF27: 153.9407741 | HG27: 186.9631695 | HH27: 71.40724799 | HI27: 241.9463755 | HJ27: 210.4849111 | HK27: 329.4593504 | HL27: 300.2466265 | HM27: 178.3432065 | HN27: 239.5480324 | HO27: 781.0076461 | HP27: 2217.649023 | HQ27: 219.8055979 | HR27: 581.1386346 | HS27: 235.5033991 | HT27: 230.9901972 | HU27: 5.01067252 | HV27: 10232.51916 | HW27: 1309.122255 | HX27: 507225.5657
A28: =+MATCH(B28,RUT[EMPRESA],0) -> 119 | B28: ENLASA | C28: 508820134.8 | D28: 508820134.8 | F28: =IFERROR(INDEX($B$9:$B$511,MATCH(0,INDEX(COUNTIF($F$8:F27,$B$9:$B$511),0,0),0)),"") -> ENLASA | H28: 508820134.8 | J28: TALINAY | K28: 2414138.951 | L28: 1865371.013 | M28: 6697977.313 | N28: 124879.3532 | O28: 26147263.17 | P28: 9434113.726 | Q28: 1357407.671 | R28: 15841.10703 | S28: 6514.352492 | T28: 40103.92473 | U28: 168123.5577 | V28: 113080.0831 | W28: 112145.7076 | X28: 1775857.102 | Y28: 495508.0714 | Z28: 107093.7996 | AA28: 61979.17721 | AB28: 297935.1888 | AC28: 264454.9744 | AD28: 135901.468 | AE28: 11398.80417 | AF28: 80363.65611 | AG28: 7363.540171 | AH28: 36204.133 | AI28: 242713.6944 | AJ28: 108549.6081 | AK28: 987747.566 | AL28: 87209.69346 | AM28: 426234.5507 | AN28: 666282.8007 | AO28: 720986.7892 | AP28: 6982.000785 | AQ28: 42639.15764 | AR28: 3511459.946 | AS28: 145861.172 | AT28: 195.8740328 | AU28: 4113754.269 | AV28: 80349.48406 | AW28: 238058.8453 | AX28: 66965.30264 | AY28: 5946.126389 | AZ28: 171820.3652 | BA28: 187990.2324 | BB28: 2790.522644 | BC28: 164610.5101 | BD28: 139751.3596 | BE28: 1005.84642 | BF28: 273469.4642 | BG28: 24996.68098 | BH28: 935281.6948 | BI28: 272856.3973 | BJ28: 18755.56411 | BK28: 33.31345361 | BL28: 5139911.105 | BM28: 63812.90045 | BN28: 1565521.675 | BO28: 723450.4758 | BP28: 253672.4399 | BQ28: 1738.836633 | BR28: 160188.5566 | BS28: 50449.46486 | BT28: 1425417.364 | BU28: 477438.8578 | BV28: 52329.0858 | BW28: 45864.25268 | BX28: 14423.74817 | BY28: 41344532.75 | BZ28: 1817623.146 | CA28: 148067.2391 | CB28: 29343.03099 | CC28: 332329.4428 | CD28: 959046.7398 | CE28: 266147.4703 | CF28: 4184.697483 | CG28: 142048.7616 | CH28: 24014.22553 | CI28: 186248.2491 | CJ28: 655444.5703 | CK28: 13651.29539 | CL28: 25559.39041 | CM28: 75160.28256 | CN28: 70453.67698 | CO28: 13117.32074 | CP28: 13938.61773 | CQ28: 4928.063206 | CR28: 721059.4794 | CS28: 444464.8589 | CT28: 8925.855097 | CU28: 47949.40621 | CV28: 46998.38651 | CW28: 1424.51254 | CX28: 58082.51418 | CY28: 11472.88119 | CZ28: 341121.0793 | DA28: 18901.48119 | DB28: 187118.3463 | DC28: 33733.53818 | DD28: 586658.6609 | DE28: 4580.619067 | DF28: 9434.886294 | DG28: 95926.98838 | DH28: 164682.7052 | DI28: 25266.38908 | DJ28: 144784.9196 | DK28: 61322.66816 | DL28: 55444.70432 | DM28: 1244395.49 | DN28: 177.198256 | DO28: 23064.95822 | DP28: 55473.75623 | DQ28: 204454.4279 | DR28: 606192.0799 | DS28: 57469.07862 | DT28: 95097.09946 | DU28: 63765.36501 | DV28: 1819365.146 | DW28: 91.69663349 | DX28: 76748.05606 | DY28: 219721.0261 | DZ28: 80369.39799 | EA28: 680940.2343 | EB28: 2836.390157 | EC28: 68148.14245 | ED28: 58998.73228 | EE28: 110026.652 | EF28: 393832.1133 | EG28: 411836.832 | EH28: 68864.41532 | EI28: 77155.23931 | EJ28: 74368.16004 | EK28: 79645.90499 | EL28: 64698.1866 | EM28: 146255.2777 | EN28: 67586.7321 | EO28: 179089.2582 | EP28: 63152.7072 | EQ28: 52679.00279 | ER28: 56360.75471 | ES28: 38710.61701 | ET28: 67283.34307 | EU28: 59663.25311 | EV28: 46283.31864 | EW28: 420449.1493 | EX28: 73487.84272 | EY28: 55616.69921 | EZ28: 70276.19862 | FA28: 466672.2879 | FB28: 55765.94636 | FC28: 59415.59526 | FD28: 58876.41353 | FE28: 54843.15874 | FF28: 53126.66246 | FG28: 164404.0119 | FH28: 75046.59879 | FI28: 61132.7239 | FJ28: 57351.9566 | FK28: 546.6373017 | FL28: 11829.55677 | FM28: 140100.9217 | FN28: 208033.0922 | FO28: 73798.12568 | FP28: 63686.48458 | FQ28: 134406.4521 | FR28: 0.01298647262 | FS28: 37484.60331 | FT28: 46259.05937 | FU28: 58022.59464 | FV28: 106923.1566 | FW28: 61650.26 | FX28: 20365.26524 | FY28: 16590.4873 | FZ28: 233451.9854 | GA28: 227626.1149 | GB28: 66828.09212 | GC28: 1308051.112 | GD28: 64418.50969 | GE28: 164697.4093 | GF28: 95957.17735 | GG28: 75046.45145 | GH28: 68455.36774 | GI28: 59217.43831 | GJ28: 277595.0728 | GK28: 59281.81185 | GL28: 68936.29564 | GM28: 69187.6933 | GN28: 171749.8375 | GO28: 219505.1006 | GP28: 175369.229 | GQ28: 9589230.182 | GR28: 1378086.967 | GS28: 1090898.193 | GT28: 360932.0488 | GU28: 2365026.577 | GV28: 573347.4848 | GW28: 358405.4812 | GX28: 383557.4192 | GY28: 3547.740972 | GZ28: 203581.6666 | HA28: 162703.1762 | HB28: 458891.6473 | HC28: 26032.50428 | HD28: 1025603.496 | HE28: 375056.7883 | HF28: 49206.58386 | HG28: 59762.06712 | HH28: 22825.05565 | HI28: 77337.24014 | HJ28: 67280.7025 | HK28: 105310.4302 | HL28: 95972.69396 | HM28: 57006.72871 | HN28: 76570.61887 | HO28: 249646.1282 | HP28: 708863.0886 | HQ28: 70260.02465 | HR28: 185758.7576 | HS28: 75277.76719 | HT28: 73835.13933 | HU28: 1601.642443 | HV28: 3270785.892 | HW28: 418455.9573 | HX28: 162132725.9
A29: =+MATCH(B29,RUT[EMPRESA],0) -> 241 | B29: PARQUE_EOLICO_LEBU | C29: -15163439.24 | D29: -15163439.24 | F29: =IFERROR(INDEX($B$9:$B$511,MATCH(0,INDEX(COUNTIF($F$8:F28,$B$9:$B$511),0,0),0)),"") -> PARQUE_EOLICO_LEBU | G29: -15163439.24 | J29: ARRAYAN | K29: =$HX29*K$75/$HX$75 -> 808.0298309 | L29: 624.3532188 | M29: 2241.861627 | N29: 41.798026 | O29: 8751.678784 | P29: 3157.666346 | Q29: 454.3342009 | R29: 5.302133514 | S29: 2.180401066 | T29: 13.42307472 | U29: =$HX29*U$75/$HX$75 -> 56.27217518 | V29: 37.84872466 | W29: 37.53598239 | X29: 594.3922629 | Y29: 165.8501484 | Z29: 35.84507211 | AA29: 20.74488052 | AB29: 99.7210704 | AC29: 88.51499958 | AD29: 45.48720785 | AE29: =$HX29*AE$75/$HX$75 -> 3.8152625 | AF29: 26.89829905 | AG29: 2.464630347 | AH29: 12.11778612 | AI29: 81.23803538 | AJ29: 36.33234177 | AK29: 330.6062803 | AL29: 29.18971745 | AM29: 142.6637981 | AN29: 223.0096899 | AO29: =$HX29*AO$75/$HX$75 -> 241.319512 | AP29: 2.336926345 | AQ29: 14.27163558 | AR29: 1175.311133 | AS29: 48.82079308 | AT29: 0.06556046063 | AU29: 1376.903415 | AV29: 26.89355557 | AW29: 79.68002359 | AX29: 22.41377289 | AY29: =$HX29*AY$75/$HX$75 -> 1.990211665 | AZ29: 57.50952345 | BA29: 62.9216954 | BB29: 0.9340081853 | BC29: 55.09633264 | BD29: 46.77579451 | BE29: 0.3366640981 | BF29: 91.53221478 | BG29: 8.366570575 | BH29: 313.0455724 | BI29: =$HX29*BI$75/$HX$75 -> 91.32701684 | BJ29: 6.277623454 | BK29: 0.01115025474 | BL29: 1720.365557 | BM29: 21.358641 | BN29: 523.9914687 | BO29: 242.1441257 | BP29: 84.90600703 | BQ29: 0.5820012432 | BR29: 53.6162727 | BS29: =$HX29*BS$75/$HX$75 -> 16.8858021 | BT29: 477.0975388 | BU29: 159.8022514 | BV29: 17.51492487 | BW29: 15.3510983 | BX29: 4.827733214 | BY29: 13838.31523 | BZ29: 608.3716611 | CA29: 49.55917974 | CB29: 9.821325472 | CC29: =$HX29*CC$75/$HX$75 -> 111.2330769 | CD29: 320.9999055 | CE29: 89.08149027 | CF29: 1.400648624 | CG29: 47.54475164 | CH29: 8.037735603 | CI29: 62.33864096 | CJ29: 219.3820555 | CK29: 4.569187661 | CL29: 8.554913506 | CM29: =$HX29*CM$75/$HX$75 -> 25.15669216 | CN29: 23.5813571 | CO29: 4.39046247 | CP29: 4.665356534 | CQ29: 1.649458528 | CR29: 241.3438419 | CS29: 148.7656146 | CT29: 2.987548493 | CU29: 16.04901432 | CV29: 15.73070112 | CW29: =$HX29*CW$75/$HX$75 -> 0.4767946877 | CX29: 19.44063912 | CY29: 3.840056616 | CZ29: 114.1757014 | DA29: 6.32646296 | DB29: 62.62986879 | DC29: 11.2908601 | DD29: 196.3589123 | DE29: 1.533166452 | DF29: 3.15792493 | DG29: =$HX29*DG$75/$HX$75 -> 32.10745934 | DH29: 55.12049687 | DI29: 8.456843832 | DJ29: 48.46056358 | DK29: 20.52514217 | DL29: 18.55774501 | DM29: 416.5082034 | DN29: 0.05930954254 | DO29: 7.720008944 | DP29: 18.56746889 | DQ29: =$HX29*DQ$75/$HX$75 -> 68.43238115 | DR29: 202.8968895 | DS29: 19.23531778 | DT29: 31.82968949 | DU29: 21.34273054 | DV29: 608.9547211 | DW29: 0.03069152885 | DX29: 25.68813147 | DY29: 73.54222238 | DZ29: 26.90022091 | EA29: =$HX29*EA$75/$HX$75 -> 227.9156393 | EB29: 0.9493603747 | EC29: 22.80967796 | ED29: 19.74730396 | EE29: 36.82671909 | EF29: 131.8184671 | EG29: 137.8447772 | EH29: 23.04941969 | EI29: 25.82441866 | EJ29: 24.891563 | EK29: =$HX29*EK$75/$HX$75 -> 26.65806255 | EL29: 21.6549527 | EM29: 48.95270311 | EN29: 22.62176984 | EO29: 59.94247472 | EP29: 21.13766952 | EQ29: 17.63204463 | ER29: 18.86435372 | ES29: 12.95672451 | ET29: 22.52022333 | EU29: =$HX29*EU$75/$HX$75 -> 19.96972391 | EV29: 15.49136272 | EW29: 140.7273823 | EX29: 24.5969144 | EY29: 18.61531295 | EZ29: 23.52195381 | FA29: 156.1986023 | FB29: 18.66526705 | FC29: 19.88683103 | FD29: 19.70636299 | FE29: =$HX29*FE$75/$HX$75 -> 18.35640333 | FF29: 17.78187957 | FG29: 55.0272162 | FH29: 25.11864137 | FI29: 20.46156645 | FJ29: 19.19611619 | FK29: 0.1829634729 | FL29: 3.959438521 | FM29: 46.89279549 | FN29: 69.63018607 | FO29: =$HX29*FO$75/$HX$75 -> 24.70076836 | FP29: 21.31632869 | FQ29: 44.98681516 | FR29: 4.346666655e-06 | FS29: 12.54636883 | FT29: 15.48324296 | FU29: 19.42058361 | FV29: 35.78795667 | FW29: 20.63478954 | FX29: 6.816402106 | FY29: =$HX29*FY$75/$HX$75 -> 5.55295653 | FZ29: 78.13807412 | GA29: 76.18811298 | GB29: 22.36784754 | GC29: 437.8142023 | GD29: 21.5613428 | GE29: 55.12541842 | GF29: 32.11756381 | GG29: 25.11859206 | GH29: 22.9125085 | GI29: =$HX29*GI$75/$HX$75 -> 19.82050646 | GJ29: 92.91308593 | GK29: 19.84205275 | GL29: 23.07347856 | GM29: 23.15762318 | GN29: 57.48591735 | GO29: 73.46995055 | GP29: 58.69735394 | GQ29: 3209.58495 | GR29: 461.2557112 | GS29: =$HX29*GS$75/$HX$75 -> 365.131544 | GT29: 120.8065767 | GU29: 791.5915628 | GV29: 191.9035651 | GW29: 119.9609162 | GX29: 128.3794524 | GY29: 1.187454656 | GZ29: 68.1402616 | HA29: 54.45793412 | HB29: 153.5943654 | HC29: =$HX29*HC$75/$HX$75 -> 8.71326815 | HD29: 343.2769351 | HE29: 125.5342296 | HF29: 16.46980081 | HG29: 20.00279767 | HH29: 7.639711811 | HI29: 25.88533566 | HJ29: 22.51933952 | HK29: 35.24816544 | HL29: 32.12275733 | HM29: =$HX29*HM$75/$HX$75 -> 19.08056591 | HN29: 25.62874196 | HO29: 83.55837126 | HP29: 237.2616213 | HQ29: 23.51654027 | HR29: 62.1748046 | HS29: 25.19601512 | HT29: 24.7131571 | HU29: 0.5360813518 | HV29: 1094.75578 | HW29: 140.0602465 | HX29: 54267.00026
A30: =+MATCH(B30,RUT[EMPRESA],0) -> 234 | B30: ORAFTI | C30: 141973407.3 | D30: 141973407.3 | F30: =IFERROR(INDEX($B$9:$B$511,MATCH(0,INDEX(COUNTIF($F$8:F29,$B$9:$B$511),0,0),0)),"") -> ORAFTI | H30: 141973407.3 | J30: AELA_GENERACION | K30: 15474566.95 | L30: 11956978.96 | M30: 42933857.79 | N30: 800473.3578 | O30: 167603266.8 | P30: 60472419.98 | Q30: 8700947.344 | R30: 101541.078 | S30: 41756.82753 | T30: 257065.099 | U30: 1077667.568 | V30: 724840.3481 | W30: 718851.0256 | X30: 11383197.15 | Y30: 3176193.659 | Z30: 686468.4287 | AA30: 397284.89 | AB30: 1909756.697 | AC30: 1695149.406 | AD30: 871124.823 | AE30: 73066.03389 | AF30: 515128.9145 | AG30: 47200.09814 | AH30: 232067.537 | AI30: 1555788.375 | AJ30: 695800.1225 | AK30: 6331435.827 | AL30: 559011.8332 | AM30: 2732152.22 | AN30: 4270855.166 | AO30: 4621506.289 | AP30: 44754.44075 | AQ30: 273315.875 | AR30: 22508365.57 | AS30: 934966.2629 | AT30: 1255.547381 | AU30: 26369056.29 | AV30: 515038.072 | AW30: 1525950.915 | AX30: 429245.8224 | AY30: 38114.51321 | AZ30: 1101364.006 | BA30: 1205012.428 | BB30: 17887.1765 | BC30: 1055149.025 | BD30: 895802.5265 | BE30: 6447.449002 | BF30: 1752932.048 | BG30: 160228.0653 | BH30: 5995130.977 | BI30: 1749002.305 | BJ30: 120222.6709 | BK30: 213.5383583 | BL30: 32946694.52 | BM30: 409039.0076 | BN30: 10034952.62 | BO30: 4637298.455 | BP30: 1626033.644 | BQ30: 11145.89692 | BR30: 1026804.42 | BS30: 323379.7382 | BT30: 9136887.682 | BU30: 3060370.477 | BV30: 335428.0588 | BW30: 293988.6491 | BX30: 92455.84507 | BY30: 265017363.6 | BZ30: 11650916.39 | CA30: 949107.0945 | CB30: 188088.0542 | CC30: 2130222.957 | CD30: 6147464.289 | CE30: 1705998.26 | CF30: 26823.80041 | CG30: 910528.8128 | CH30: 153930.5518 | CI30: 1193846.361 | CJ30: 4201382.395 | CK30: 87504.44314 | CL30: 163835.0179 | CM30: 481775.4274 | CN30: 451606.2098 | CO30: 84081.67973 | CP30: 89346.17176 | CQ30: 31588.75508 | CR30: 4621972.231 | CS30: 2849008.014 | CT30: 57214.49558 | CU30: 307354.4282 | CV30: 301258.4171 | CW30: 9131.087785 | CX30: 372307.3829 | CY30: 73540.86562 | CZ30: 2186577.115 | DA30: 121157.9956 | DB30: 1199423.661 | DC30: 216231.0894 | DD30: 3760466.532 | DE30: 29361.64732 | DF30: 60477.37212 | DG30: 614889.4636 | DH30: 1055611.794 | DI30: 161956.8871 | DJ30: 928067.5133 | DK30: 393076.6844 | DL30: 355399.0913 | DM30: 7976542.244 | DN30: 1135.836144 | DO30: 147845.7734 | DP30: 355585.3133 | DQ30: 1310547.487 | DR30: 3885675.232 | DS30: 368375.2771 | DT30: 609569.8975 | DU30: 408734.3067 | DV30: 11662082.57 | DW30: 587.7730004 | DX30: 491953.0137 | DY30: 1408405.978 | DZ30: 515165.7198 | EA30: 4364808.929 | EB30: 18181.18604 | EC30: 436827.7944 | ED30: 378180.3167 | EE30: 705267.935 | EF30: 2524453.451 | EG30: 2639863.223 | EH30: 441419.0846 | EI30: 494563.0475 | EJ30: 476697.943 | EK30: 510528.1488 | EL30: 414713.6685 | EM30: 937492.4699 | EN30: 433229.1689 | EO30: 1147957.418 | EP30: 404807.1863 | EQ30: 337671.0174 | ER30: 361270.9501 | ES30: 248134.0333 | ET30: 431284.4532 | EU30: 382439.8777 | EV30: 296674.8509 | EW30: 2695067.949 | EX30: 471055.1322 | EY30: 356501.574 | EZ30: 450468.5783 | FA30: 2991357.048 | FB30: 357458.2442 | FC30: 380852.3974 | FD30: 377396.2567 | FE30: 351543.2 | FF30: 340540.5041 | FG30: 1053825.377 | FH30: 481046.7174 | FI30: 391859.1466 | FJ30: 367624.5281 | FK30: 3503.930676 | FL30: 75827.14666 | FM30: 898043.2104 | FN30: 1333486.63 | FO30: 473044.0378 | FP30: 408228.6852 | FQ30: 861541.8104 | FR30: 0.08324294674 | FS30: 240275.3178 | FT30: 296519.3496 | FU30: 371923.3002 | FV30: 685374.6119 | FW30: 395176.5394 | FX30: 130540.8126 | FY30: 106344.5857 | FZ30: 1496421.065 | GA30: 1459077.388 | GB30: 428366.3066 | GC30: 8384573.103 | GD30: 412920.9468 | GE30: 1055706.046 | GF30: 615082.9741 | GG30: 481045.773 | GH30: 438797.1004 | GI30: 379582.2166 | GJ30: 1779377.09 | GK30: 379994.8493 | GL30: 441879.8355 | GM30: 443491.2879 | GN30: 1100911.925 | GO30: 1407021.901 | GP30: 1124112.129 | GQ30: 61466712.37 | GR30: 8833501.083 | GS30: 6992628.624 | GT30: 2313564.907 | GU30: 15159757.93 | GV30: 3675142.244 | GW30: 2297369.675 | GX30: 2458592.933 | GY30: 22740.92599 | GZ30: 1304953.11 | HA30: 1042923.065 | HB30: 2941483.347 | HC30: 166867.6653 | HD30: 6574091.343 | HE30: 2404104.114 | HF30: 315412.9038 | HG30: 383073.2729 | HH30: 146308.0042 | HI30: 495729.668 | HJ30: 431267.5272 | HK30: 675037.0781 | HL30: 615182.4351 | HM30: 365411.6264 | HN30: 490815.6459 | HO30: 1600225.092 | HP30: 4543793.688 | HQ30: 450364.9036 | HR30: 1190708.733 | HS30: 482528.5008 | HT30: 473281.2943 | HU30: 10266.48578 | HV30: 20965651.24 | HW30: 2682291.642 | HX30: 1039266493
A31: =+MATCH(B31,RUT[EMPRESA],0) -> 130 | B31: GAS SUR | C31: 30684609.41 | D31: 30684609.41 | F31: =IFERROR(INDEX($B$9:$B$511,MATCH(0,INDEX(COUNTIF($F$8:F30,$B$9:$B$511),0,0),0)),"") -> GAS SUR | H31: 30684609.41 | J31: AGUAS DEL MELADO | K31: 2494025.522 | L31: 1927098.237 | M31: 6919620.91 | N31: 129011.7513 | O31: 27012505.49 | P31: 9746299.152 | Q31: 1402325.817 | R31: 16365.30707 | S31: 6729.919737 | T31: 41431.00867 | U31: 173686.9552 | V31: 116822.0301 | W31: 115856.7351 | X31: 1834622.209 | Y31: 511904.9903 | Z31: 110637.6538 | AA31: 64030.13784 | AB31: 307794.1991 | AC31: 273206.0867 | AD31: 140398.6003 | AE31: 11776.00341 | AF31: 83022.9798 | AG31: 7607.207991 | AH31: 37402.16845 | AI31: 250745.3634 | AJ31: 112141.6366 | AK31: 1020433.243 | AL31: 90095.56023 | AM31: 440339.131 | AN31: 688330.8474 | AO31: 744845.0524 | AP31: 7213.043038 | AQ31: 44050.13528 | AR31: 3627658.102 | AS31: 150687.8822 | AT31: 202.3557247 | AU31: 4249883.021 | AV31: 83008.33879 | AW31: 245936.4801 | AX31: 69181.25977 | AY31: 6142.890394 | AZ31: 177506.0941 | BA31: 194211.0405 | BB31: 2882.864175 | BC31: 170057.6569 | BD31: 144375.8892 | BE31: 1039.131008 | BF31: 282518.8761 | BG31: 25823.84925 | BH31: 966231.2172 | BI31: 281885.5222 | BJ31: 19376.20681 | BK31: 34.41583323 | BL31: 5309996.54 | BM31: 65924.54105 | BN31: 1617326.547 | BO31: 747390.2651 | BP31: 262066.746 | BQ31: 1796.376691 | BR31: 165489.376 | BS31: 52118.89435 | BT31: 1472586.027 | BU31: 493237.8462 | BV31: 54060.71406 | BW31: 47381.95234 | BX31: 14901.04621 | BY31: 42712669.8 | BZ31: 1877770.339 | CA31: 152966.9505 | CB31: 30314.02486 | CC31: 343326.5976 | CD31: 990782.6742 | CE31: 274954.5892 | CF31: 4323.173825 | CG31: 146749.3148 | CH31: 24808.88324 | CI31: 192411.413 | CJ31: 677133.9677 | CK31: 14103.0321 | CL31: 26405.17937 | CM31: 77647.42078 | CN31: 72785.06833 | CO31: 13551.38763 | CP31: 14399.86226 | CQ31: 5091.138356 | CR31: 744920.148 | CS31: 459172.7006 | CT31: 9221.221674 | CU31: 49536.10595 | CV31: 48553.61594 | CW31: 1471.651261 | CX31: 60004.52985 | CY31: 11852.53172 | CZ31: 352409.1592 | DA31: 19526.95245 | DB31: 193310.3027 | DC31: 34849.81887 | DD31: 606071.8553 | DE31: 4732.1969 | DF31: 9747.097285 | DG31: 99101.32023 | DH31: 170132.241 | DI31: 26102.48229 | DJ31: 149576.0153 | DK31: 63351.90417 | DL31: 57279.4319 | DM31: 1285573.935 | DN31: 183.0619454 | DO31: 23828.20361 | DP31: 57309.44517 | DQ31: 211220.0547 | DR31: 626251.6571 | DS31: 59370.79501 | DT31: 98243.96936 | DU31: 65875.43261 | DV31: 1879569.984 | DW31: 94.73097815 | DX31: 79287.73549 | DY31: 226991.8418 | DZ31: 83028.9117 | EA31: 703473.312 | EB31: 2930.249495 | EC31: 70403.24108 | ED31: 60951.06664 | EE31: 113667.5575 | EF31: 406864.4605 | EG31: 425464.9756 | EH31: 71143.21622 | EI31: 79708.3929 | EJ31: 76829.08604 | EK31: 82281.4775 | EL31: 66839.12231 | EM31: 151095.0292 | EN31: 69823.25303 | EO31: 185015.523 | EP31: 65242.50125 | EQ31: 54422.21019 | ER31: 58225.79542 | ES31: 39991.59483 | ET31: 69509.82451 | EU31: 61637.57721 | EV31: 47814.88568 | EW31: 434362.2841 | EX31: 75919.63802 | EY31: 57457.1183 | EZ31: 72601.71701 | FA31: 482114.9983 | FB31: 57611.30419 | FC31: 61381.72409 | FD31: 60824.70022 | FE31: 56657.9805 | FF31: 54884.68343 | FG31: 169844.3255 | FH31: 77529.97508 | FI31: 63155.67443 | FJ31: 59249.7973 | FK31: 564.7261443 | FL31: 12221.0101 | FM31: 144737.0187 | FN31: 214917.141 | FO31: 76240.1886 | FP31: 65793.94193 | FQ31: 138854.1126 | FR31: 0.0134162096 | FS31: 38725.01096 | FT31: 47789.82364 | FU31: 59942.62751 | FV31: 110461.3641 | FW31: 63690.33639 | FX31: 21039.17475 | FY31: 17139.48517 | FZ31: 241177.1739 | GA31: 235158.5188 | GB31: 69039.5088 | GC31: 1351335.993 | GD31: 66550.19057 | GE31: 170147.4317 | GF31: 99132.50819 | GG31: 77529.82287 | GH31: 70720.63279 | GI31: 61177.0099 | GJ31: 286781.0058 | GK31: 61243.51363 | GL31: 71217.47514 | GM31: 71477.19183 | GN31: 177433.2327 | GO31: 226768.7711 | GP31: 181172.3939 | GQ31: 9906548.586 | GR31: 1423689.413 | GS31: 1126997.24 | GT31: 372875.696 | GU31: 2443287.964 | GV31: 592320.1974 | GW31: 370265.5214 | GX31: 396249.7653 | GY31: 3665.139708 | GZ31: 210318.4128 | HA31: 168087.2071 | HB31: 474076.8876 | HC31: 26893.9491 | HD31: 1059541.869 | HE31: 387467.839 | HF31: 50834.88502 | HG31: 61739.66109 | HH31: 23580.36239 | HI31: 79896.41633 | HJ31: 69507.09656 | HK31: 108795.2707 | HL31: 99148.53826 | HM31: 58893.14543 | HN31: 79104.4267 | HO31: 257907.1991 | HP31: 732320.1648 | HQ31: 72585.00783 | HR31: 191905.7237 | HS31: 77768.79311 | HT31: 76278.42708 | HU31: 1654.642591 | HV31: 3379019.873 | HW31: 432303.1352 | HX31: 167497880
A32: =+MATCH(B32,RUT[EMPRESA],0) -> 246 | B32: PETROPOWER | C32: 0 | D32: 0 | F32: =IFERROR(INDEX($B$9:$B$511,MATCH(0,INDEX(COUNTIF($F$8:F31,$B$9:$B$511),0,0),0)),"") -> PETROPOWER | J32: ENORCHILE | K32: 8630919.568 | L32: 6668989.445 | M32: 23946303.27 | N32: 446462.9729 | O32: 93480503.78 | P32: 33728413.49 | Q32: 4852942.051 | R32: 56634.40401 | S32: 23289.81618 | T32: 143377.7242 | U32: 601067.6825 | V32: 404278.7602 | W32: 400938.2234 | X32: 6348963.388 | Y32: 1771517.877 | Z32: 382876.8722 | AA32: 221585.13 | AB32: 1065164.311 | AC32: 945467.3735 | AD32: 485868.7356 | AE32: 40752.48525 | AF32: 287312.4812 | AG32: 26325.79327 | AH32: 129435.3665 | AI32: 867738.9402 | AJ32: 388081.6123 | AK32: 3531350.088 | AL32: 311788.122 | AM32: 1523854.343 | AN32: 2382063.908 | AO32: 2577639.114 | AP32: 24961.73105 | AQ32: 152441.5734 | AR32: 12554011.59 | AS32: 521476.2156 | AT32: 700.2799165 | AU32: 14707306.8 | AV32: 287261.814 | AW32: 851097.1358 | AX32: 239411.2985 | AY32: 21258.32011 | AZ32: 614284.3399 | BA32: 672094.1124 | BB32: 9976.549397 | BC32: 588507.9947 | BD32: 499632.6926 | BE32: 3596.056285 | BF32: 977695.5669 | BG32: 89366.99479 | BH32: 3343776.496 | BI32: 975503.7581 | BJ32: 67054.03815 | BK32: 119.1007413 | BL32: 18375975.96 | BM32: 228140.9738 | BN32: 5596981.754 | BO32: 2586447.174 | BP32: 906918.1476 | BQ32: 6216.609494 | BR32: 572698.8281 | BS32: 180364.6278 | BT32: 5096087.206 | BU32: 1706917.648 | BV32: 187084.563 | BW32: 163971.7862 | BX32: 51567.12719 | BY32: 147813089.5 | BZ32: 6498283.446 | CA32: 529363.246 | CB32: 104905.8673 | CC32: 1188129.08 | CD32: 3428740.202 | CE32: 951518.3079 | CF32: 14960.93975 | CG32: 507846.2596 | CH32: 85854.56482 | CI32: 665866.2533 | CJ32: 2343315.56 | CK32: 48805.48921 | CL32: 91378.7679 | CM32: 268709.6173 | CN32: 251882.7754 | CO32: 46896.44738 | CP32: 49832.71095 | CQ32: 17618.58701 | CR32: 2577898.993 | CS32: 1589030.51 | CT32: 31911.31041 | CU32: 171426.5321 | CV32: 168026.4898 | CW32: 5092.852322 | CX32: 207653.958 | CY32: 41017.32203 | CZ32: 1219560.538 | DA32: 67575.71425 | DB32: 668976.985 | DC32: 120602.6085 | DD32: 2097395.311 | DE32: 16376.42056 | DF32: 33731.17554 | DG32: 342953.7976 | DH32: 588766.1034 | DI32: 90331.24288 | DJ32: 517628.447 | DK32: 219238.0088 | DL32: 198223.3804 | DM32: 4448906.049 | DN32: 633.51113 | DO32: 82460.78759 | DP32: 198327.2454 | DQ32: 730956.154 | DR32: 2167230.301 | DS32: 205460.8311 | DT32: 339986.8166 | DU32: 227971.0273 | DV32: 6504511.365 | DW32: 327.8296256 | DX32: 274386.1527 | DY32: 785536.6001 | DZ32: 287333.0094 | EA32: 2434466.496 | EB32: 10140.53284 | EC32: 243640.1335 | ED32: 210929.5792 | EE32: 393362.2723 | EF32: 1408010.625 | EG32: 1472380.275 | EH32: 246200.9196 | EI32: 275841.8957 | EJ32: 265877.6569 | EK32: 284746.4102 | EL32: 231306.0085 | EM32: 522885.2043 | EN32: 241633.0048 | EO32: 640271.7551 | EP32: 225780.681 | EQ32: 188335.5703 | ER32: 201498.402 | ES32: 138396.4339 | ET32: 240548.3421 | EU32: 213305.3438 | EV32: 165470.0118 | EW32: 1503170.639 | EX32: 262730.3865 | EY32: 198838.2887 | EZ32: 251248.2629 | FA32: 1668425.498 | FB32: 199371.8702 | FC32: 212419.9287 | FD32: 210492.2707 | FE32: 196072.762 | FF32: 189936.0227 | FG32: 587769.7318 | FH32: 268303.1802 | FI32: 218558.9287 | FJ32: 205042.1018 | FK32: 1954.312771 | FL32: 42292.49231 | FM32: 500882.4312 | FN32: 743750.4315 | FO32: 263839.6961 | FP32: 227689.0176 | FQ32: 480523.8228 | FR32: 0.04642864514 | FS32: 134013.2456 | FT32: 165383.2811 | FU32: 207439.7364 | FV32: 382266.7973 | FW32: 220409.2002 | FX32: 72808.96826 | FY32: 59313.5542 | FZ32: 834626.9001 | GA32: 813798.5133 | GB32: 238920.7497 | GC32: 4676484.73 | GD32: 230306.1204 | GE32: 588818.6727 | GF32: 343061.7278 | GG32: 268302.6535 | GH32: 244738.5113 | GI32: 211711.487 | GJ32: 992445.2548 | GK32: 211941.6323 | GL32: 246457.9028 | GM32: 247356.6883 | GN32: 614032.1928 | GO32: 784764.6332 | GP32: 626972.0762 | GQ32: 34282978.78 | GR32: 4926873.726 | GS32: 3900129.509 | GT32: 1290387.814 | GU32: 8455335.246 | GV32: 2049805.801 | GW32: 1281354.944 | GX32: 1371277.007 | GY32: 12683.72186 | GZ32: 727835.8975 | HA32: 581688.9813 | HB32: 1640608.506 | HC32: 93070.22303 | HD32: 3666690.885 | HE32: 1340885.939 | HF32: 175921.1363 | HG32: 213658.6191 | HH32: 81603.09884 | HI32: 276492.5768 | HJ32: 240538.9017 | HK32: 376501.0513 | HL32: 343117.2021 | HM32: 203807.8588 | HN32: 273751.7874 | HO32: 892523.4614 | HP32: 2534295.012 | HQ32: 251190.4385 | HR32: 664116.2455 | HS32: 269129.6429 | HT32: 263972.0256 | HU32: 5726.119076 | HV32: 11693564.67 | HW32: 1496044.67 | HX32: 579649533.4
A33: =+MATCH(B33,RUT[EMPRESA],0) -> 335 | B33: ALTO_MANGA_ENERGY | C33: 17758328.23 | D33: 17758328.23 | F33: =IFERROR(INDEX($B$9:$B$511,MATCH(0,INDEX(COUNTIF($F$8:F32,$B$9:$B$511),0,0),0)),"") -> ALTO_MANGA_ENERGY | H33: 17758328.23 | J33: ARRAYAN_EOLICO | K33: 8716853.151 | L33: 6735389.109 | M33: 24184724.18 | N33: 450908.1729 | O33: 94411240.6 | P33: 34064229.79 | Q33: 4901260.274 | R33: 57198.28335 | S33: 23521.70078 | T33: 144805.2617 | U33: 607052.2012 | V33: 408303.9539 | W33: 404930.1571 | X33: 6412176.719 | Y33: 1789155.96 | Z33: 386688.9783 | AA33: 223791.3381 | AB33: 1075769.598 | AC33: 954880.901 | AD33: 490706.2783 | AE33: 41158.23658 | AF33: 290173.1024 | AG33: 26587.90552 | AH33: 130724.0873 | AI33: 876378.5662 | AJ33: 391945.5393 | AK33: 3566509.906 | AL33: 314892.4344 | AM33: 1539026.569 | AN33: 2405780.881 | AO33: 2603303.328 | AP33: 25210.26204 | AQ33: 153959.3549 | AR33: 12679005.36 | AS33: 526668.2834 | AT33: 707.2522399 | AU33: 14853739.82 | AV33: 290121.9307 | AW33: 859571.0679 | AX33: 241794.9924 | AY33: 21469.97816 | AZ33: 620400.45 | BA33: 678785.8044 | BB33: 10075.88072 | BC33: 594367.4631 | BD33: 504607.2759 | BE33: 3631.860349 | BF33: 987429.9738 | BG33: 90256.77554 | BH33: 3377068.741 | BI33: 985216.3423 | BJ33: 67721.66038 | BK33: 120.2865655 | BL33: 18558936.01 | BM33: 230412.455 | BN33: 5652707.994 | BO33: 2612199.085 | BP33: 915947.8606 | BQ33: 6278.505046 | BR33: 578400.8929 | BS33: 182160.4248 | BT33: 5146826.3 | BU33: 1723912.541 | BV33: 188947.2668 | BW33: 165604.3681 | BX33: 52080.55429 | BY33: 149284787.6 | BZ33: 6562983.479 | CA33: 534633.8409 | CB33: 105950.3605 | CC33: 1199958.664 | CD33: 3462878.387 | CE33: 960992.0815 | CF33: 15109.89806 | CG33: 512902.6211 | CH33: 86709.37413 | CI33: 672495.9377 | CJ33: 2366646.736 | CK33: 49291.42012 | CL33: 92288.57883 | CM33: 271385.0194 | CN33: 254390.6414 | CO33: 47363.37095 | CP33: 50328.86937 | CQ33: 17794.00613 | CR33: 2603565.794 | CS33: 1604851.661 | CT33: 32229.03475 | CU33: 173133.337 | CV33: 169699.4423 | CW33: 5143.559207 | CX33: 209721.4606 | CY33: 41425.7102 | CZ33: 1231703.069 | DA33: 68248.53054 | DB33: 675637.6413 | DC33: 121803.386 | DD33: 2118277.987 | DE33: 16539.47207 | DF33: 34067.01934 | DG33: 346368.4104 | DH33: 594628.1417 | DI33: 91230.62415 | DJ33: 522782.2046 | DK33: 221420.8478 | DL33: 200196.9876 | DM33: 4493201.496 | DN33: 639.8186713 | DO33: 83281.80682 | DP33: 200301.8868 | DQ33: 738233.9048 | DR33: 2188808.287 | DS33: 207506.4979 | DT33: 343371.8887 | DU33: 230240.8164 | DV33: 6569273.406 | DW33: 331.0936549 | DX33: 277118.0731 | DY33: 793357.78 | DZ33: 290193.8349 | EA33: 2458705.215 | EB33: 10241.49686 | EC33: 246065.9318 | ED33: 213029.6954 | EE33: 397278.7762 | EF33: 1422029.456 | EG33: 1487040.001 | EH33: 248652.2143 | EI33: 278588.3102 | EJ33: 268524.8627 | EK33: 287581.4823 | EL33: 233609.0023 | EM33: 528091.3007 | EN33: 244038.8191 | EO33: 646646.6084 | EP33: 228028.662 | EQ33: 190210.7297 | ER33: 203504.6169 | ES33: 139774.3754 | ET33: 242943.357 | EU33: 215429.1143 | EV33: 167117.5107 | EW33: 1518136.928 | EX33: 265346.2565 | EY33: 200818.0182 | EZ33: 253749.8114 | FA33: 1685037.144 | FB33: 201356.9124 | FC33: 214534.8836 | FD33: 212588.0329 | FE33: 198024.9567 | FF33: 191827.1171 | FG33: 593621.8498 | FH33: 270974.5356 | FI33: 220735.0065 | FJ33: 207083.5995 | FK33: 1973.770849 | FL33: 42713.57668 | FM33: 505869.4574 | FN33: 751155.5683 | FO33: 266466.6109 | FP33: 229955.9988 | FQ33: 485308.1489 | FR33: 0.04689091105 | FS33: 135347.5459 | FT33: 167029.9165 | FU33: 209505.1061 | FV33: 386072.8292 | FW33: 222603.7001 | FX33: 73533.88934 | FY33: 59904.10845 | FZ33: 842936.8466 | GA33: 821901.0824 | GB33: 241299.5595 | GC33: 4723046.059 | GD33: 232599.1588 | GE33: 594681.2344 | GF33: 346477.4153 | GG33: 270974.0036 | GH33: 247175.2456 | GI33: 213819.3883 | GJ33: 1002326.517 | GK33: 214051.8251 | GL33: 248911.7562 | GM33: 249819.4904 | GN33: 620145.7924 | GO33: 792578.127 | GP33: 633214.5115 | GQ33: 34624316.59 | GR33: 4975928.048 | GS33: 3938961.073 | GT33: 1303235.535 | GU33: 8539520.628 | GV33: 2070214.653 | GW33: 1294112.73 | GX33: 1384930.1 | GY33: 12810.00709 | GZ33: 735082.5815 | HA33: 587480.5563 | HB33: 1656943.193 | HC33: 93996.8749 | HD33: 3703198.222 | HE33: 1354236.444 | HF33: 177672.6917 | HG33: 215785.907 | HH33: 82415.57851 | HI33: 279245.4698 | HJ33: 242933.8226 | HK33: 380249.6767 | HL33: 346533.4419 | HM33: 205837.0677 | HN33: 276477.3917 | HO33: 901409.8539 | HP33: 2559527.671 | HQ33: 253691.4112 | HR33: 670728.5061 | HS33: 271809.227 | HT33: 266600.2579 | HU33: 5783.13107 | HV33: 11809991.42 | HW33: 1510940.01 | HX33: 585420802.7
A34: =+MATCH(B34,RUT[EMPRESA],0) -> 136 | B34: GENPAC | C34: 85364651.68 | D34: 85364651.68 | F34: =IFERROR(INDEX($B$9:$B$511,MATCH(0,INDEX(COUNTIF($F$8:F33,$B$9:$B$511),0,0),0)),"") -> GENPAC | H34: 85364651.68 | J34: LOS_PADRES | K34: 624.8543655 | L34: 482.8161282 | M34: 1733.645184 | N34: 32.32266684 | O34: 6767.726245 | P34: 2441.842523 | Q34: 351.3393912 | R34: 4.100171981 | S34: 1.68611736 | T34: 10.38014503 | U34: 43.51561412 | V34: 29.26864817 | W34: 29.02680268 | X34: 459.6471394 | Y34: 128.2529249 | Z34: 27.71921151 | AA34: 16.04214183 | AB34: 77.11490813 | AC34: 68.44918565 | AD34: 35.17553352 | AE34: 2.950365615 | AF34: 20.80061768 | AG34: 1.905913585 | AH34: 9.37075745 | AI34: 62.82186512 | AJ34: 28.09602009 | AK34: 255.6598403 | AL34: 22.57258542 | AM34: 110.3227798 | AN34: 172.4547448 | AO34: 186.6138412 | AP34: 1.807159306 | AQ34: 11.03634229 | AR34: 908.8752227 | AS34: 37.75341518 | AT34: 0.05069830155 | AU34: 1064.767756 | AV34: 20.79694952 | AW34: 61.61704516 | AX34: 17.33270642 | AY34: 1.539042743 | AZ34: 44.47246304 | BA34: 48.6577284 | BB34: 0.7222741905 | BC34: 42.60632795 | BD34: 36.17200539 | BE34: 0.2603443875 | BF34: 70.78241644 | BG34: 6.469919734 | BH34: 242.0800384 | BI34: 70.62373564 | BJ34: 4.854524264 | BK34: 0.008622559572 | BL34: 1330.369112 | BM34: 16.51676653 | BN34: 405.2057785 | BO34: 187.25152 | BP34: 65.65832983 | BQ34: 0.4500650888 | BR34: 41.46178864 | BS34: 13.0578931 | BT34: 368.9424184 | BU34: 123.5760495 | BV34: 13.54439756 | BW34: 11.87109735 | BX34: 3.733315354 | BY34: 10701.25304 | BZ34: 470.4574927 | CA34: 38.32441406 | CB34: 7.594890512 | CC34: 86.01721251 | CD34: 248.2311724 | CE34: 68.88725633 | CF34: 1.08313007 | CG34: 36.7666446 | CH34: 6.215629657 | CI34: 48.20684887 | CJ34: 169.6494731 | CK34: 3.533380511 | CL34: 6.615566463 | CM34: 19.45382252 | CN34: 18.23560637 | CO34: 3.395171238 | CP34: 3.607748484 | CQ34: 1.275536276 | CR34: 186.6326557 | CS34: 115.0413514 | CT34: 2.310289357 | CU34: 12.41080004 | CV34: 12.16464652 | CW34: 0.3687082218 | CX34: 15.03356405 | CY34: 2.969539055 | CZ34: 88.29276191 | DA34: 4.892292151 | DB34: 48.43205712 | DC34: 8.731290545 | DD34: 151.845537 | DE34: 1.18560691 | DF34: 2.442042488 | DG34: 24.8288929 | DH34: 42.6250143 | DI34: 6.53972859 | DJ34: 37.47484753 | DK34: 15.87221684 | DL34: 14.35081669 | DM34: 322.088318 | DN34: 0.04586442871 | DO34: 5.969929705 | DP34: 14.35833623 | DQ34: 52.9191751 | DR34: 156.9013943 | DS34: 14.87478782 | DT34: 24.6140918 | DU34: 16.50446288 | DV34: 470.9083766 | DW34: 0.02373394527 | DX34: 19.86478776 | DY34: 56.87064629 | DZ34: 20.80210386 | EA34: 176.2485452 | EB34: 0.7341461316 | EC34: 17.63886221 | ED34: 15.27070984 | EE34: 28.47832507 | EF34: 101.9360196 | EG34: 106.5962016 | EH34: 17.82425595 | EI34: 19.97017947 | EJ34: 19.24879653 | EK34: 20.61484133 | EL34: 16.74590617 | EM34: 37.85542201 | EN34: 17.49355173 | EO34: 46.353879 | EP34: 16.34588795 | EQ34: 13.63496697 | ER34: 14.58791906 | ES34: 10.01951359 | ET34: 17.41502519 | EU34: 15.44270853 | EV34: 11.97956468 | EW34: 108.8253376 | EX34: 19.02094298 | EY34: 14.39533432 | EZ34: 18.18966944 | FA34: 120.7893258 | FB34: 14.43396413 | FC34: 15.37860696 | FD34: 15.23904994 | FE34: 14.19511795 | FF34: 13.75083524 | FG34: 42.55287979 | FH34: 19.42439761 | FI34: 15.82305335 | FJ34: 14.84447299 | FK34: 0.1414867625 | FL34: 3.061857805 | FM34: 36.26248296 | FN34: 53.8454449 | FO34: 19.10125388 | FP34: 16.48404617 | FQ34: 34.78857682 | FR34: 3.361303668e-06 | FS34: 9.702183054 | FT34: 11.97328563 | FU34: 15.01805501 | FV34: 27.6750438 | FW34: 15.95700781 | FX34: 5.271165061 | FY34: 4.29413494 | FZ34: 60.4246463 | GA34: 58.91672952 | GB34: 17.29719207 | GC34: 338.5643761 | GD34: 16.67351707 | GE34: 42.62882017 | GF34: 24.83670675 | GG34: 19.42435948 | GH34: 17.71838169 | GI34: 15.32731777 | GJ34: 71.85025247 | GK34: 15.34397965 | GL34: 17.84286081 | GM34: 17.90793036 | GN34: 44.4542083 | GO34: 56.81475805 | GP34: 45.39101956 | GQ34: 2481.991494 | GR34: 356.691837 | GS34: 282.358436 | GT34: 93.42045797 | GU34: 612.1425532 | GV34: 148.4001899 | GW34: 92.76650356 | GX34: 99.27660864 | GY34: 0.9182658824 | GZ34: 52.69327728 | HA34: 42.11265051 | HB34: 118.7754537 | HC34: 6.73802307 | HD34: 265.4581344 | HE34: 97.07638056 | HF34: 12.73619678 | HG34: 15.46828467 | HH34: 5.907835446 | HI34: 20.01728695 | HJ34: 17.41434173 | HK34: 27.25761996 | HL34: 24.84072293 | HM34: 14.75511726 | HN34: 19.81886149 | HO34: 64.61619493 | HP34: 183.4758498 | HQ34: 18.18548312 | HR34: 48.08015322 | HS34: 19.4842312 | HT34: 19.11083417 | HU34: 0.4145549584 | HV34: 846.5812801 | HW34: 108.3094375 | HX34: 41965.0002
A35: =+MATCH(B35,RUT[EMPRESA],0) -> 229 | B35: NORVIND | C35: 75771871.26 | D35: 75771871.26 | F35: =IFERROR(INDEX($B$9:$B$511,MATCH(0,INDEX(COUNTIF($F$8:F34,$B$9:$B$511),0,0),0)),"") -> NORVIND | H35: 75771871.26 | J35: ALMEYDA | K35: 2519331.194 | L35: 1946651.572 | M35: 6989830.962 | N35: 130320.7713 | O35: 27286588.34 | P35: 9845190.143 | Q35: 1416554.539 | R35: 16531.35794 | S35: 6798.204983 | T35: 41851.38911 | U35: 175449.2729 | V35: 118007.3669 | W35: 117032.2774 | X35: 1853237.235 | Y35: 517099.0431 | Z35: 111760.2406 | AA35: 64679.82073 | AB35: 310917.2382 | AC35: 275978.1769 | AD35: 141823.1571 | AE35: 11895.48883 | AF35: 83865.37389 | AG35: 7684.394657 | AH35: 37781.67019 | AI35: 253289.5555 | AJ35: 113279.4836 | AK35: 1030787.086 | AL35: 91009.71637 | AM35: 444807.0396 | AN35: 695315.0081 | AO35: 752402.6354 | AP35: 7286.230303 | AQ35: 44497.09073 | AR35: 3664466.197 | AS35: 152216.8393 | AT35: 204.4089305 | AU35: 4293004.532 | AV35: 83850.58432 | AW35: 248431.8788 | AX35: 69883.2086 | AY35: 6205.219336 | AZ35: 179307.1628 | BA35: 196181.6061 | BB35: 2912.115205 | BC35: 171783.1498 | BD35: 145840.8016 | BE35: 1049.674569 | BF35: 285385.4587 | BG35: 26085.87138 | BH35: 976035.0987 | BI35: 284745.6785 | BJ35: 19572.80782 | BK35: 34.76503407 | BL35: 5363874.511 | BM35: 66593.44553 | BN35: 1633736.778 | BO35: 754973.6732 | BP35: 264725.8108 | BQ35: 1814.603658 | BR35: 167168.5168 | BS35: 52647.7196 | BT35: 1487527.646 | BU35: 498242.4924 | BV35: 54609.24202 | BW35: 47862.71413 | BX35: 15052.23993 | BY35: 43146054.63 | BZ35: 1896823.168 | CA35: 154519.0322 | CB35: 30621.60664 | CC35: 346810.1668 | CD35: 1000835.668 | CE35: 277744.4207 | CF35: 4367.038982 | CG35: 148238.3092 | CH35: 25060.607 | CI35: 194363.7187 | CJ35: 684004.5191 | CK35: 14246.12875 | CL35: 26673.09997 | CM35: 78435.27167 | CN35: 73523.58327 | CO35: 13688.88701 | CP35: 14545.97071 | CQ35: 5142.795678 | CR35: 752478.493 | CS35: 463831.7043 | CT35: 9314.784957 | CU35: 50038.7249 | CV35: 49046.26604 | CW35: 1486.583396 | CX35: 60613.36684 | CY35: 11972.79364 | CZ35: 355984.8848 | DA35: 19725.08301 | DB35: 195271.729 | DC35: 35203.42315 | DD35: 612221.3737 | DE35: 4780.212217 | DF35: 9845.996374 | DG35: 100106.8535 | DH35: 171858.4907 | DI35: 26367.33157 | DJ35: 151093.6909 | DK35: 63994.70535 | DL35: 57860.61864 | DM35: 1298618.033 | DN35: 184.9193866 | DO35: 24069.97688 | DP35: 57890.93644 | DQ35: 213363.2026 | DR35: 632605.9302 | DS35: 59973.2018 | DT35: 99240.80347 | DU35: 66543.83881 | DV35: 1898641.073 | DW35: 95.69216764 | DX35: 80092.22986 | DY35: 229295.0184 | DZ35: 83871.36597 | EA35: 710611.116 | EB35: 2959.981321 | EC35: 71117.58877 | ED35: 61569.50768 | EE35: 114820.8874 | EF35: 410992.7177 | EG35: 429781.9633 | EH35: 71865.07208 | EI35: 80517.15547 | EJ35: 77608.63367 | EK35: 83116.34791 | EL35: 67517.30661 | EM35: 152628.1175 | EN35: 70531.71586 | EO35: 186892.7862 | EP35: 65904.48541 | EQ35: 54974.40608 | ER35: 58816.58445 | ES35: 40397.37023 | ET35: 70215.10713 | EU35: 62262.98394 | EV35: 48300.04023 | EW35: 438769.5485 | EX35: 76689.95793 | EY35: 58040.10793 | EZ35: 73338.37158 | FA35: 487006.7864 | FB35: 58195.85828 | FC35: 62004.5348 | FD35: 61441.85908 | FE35: 57232.86167 | FF35: 55441.57181 | FG35: 171567.6538 | FH35: 78316.6343 | FI35: 63796.48456 | FJ35: 59850.97638 | FK35: 570.4561478 | FL35: 12345.01079 | FM35: 146205.5953 | FN35: 217097.8015 | FO35: 77013.76098 | FP35: 66461.52128 | FQ35: 140262.9983 | FR35: 0.0135523374 | FS35: 39117.93494 | FT35: 48274.7239 | FU35: 60550.8364 | FV35: 111582.1622 | FW35: 64336.57147 | FX35: 21252.6491 | FY35: 17313.39125 | FZ35: 243624.2823 | GA35: 237544.5588 | GB35: 69740.01936 | GC35: 1365047.347 | GD35: 67225.44322 | GE35: 171873.8355 | GF35: 100138.3579 | GG35: 78316.48054 | GH35: 71438.2009 | GI35: 61797.74347 | GJ35: 289690.8342 | GK35: 61864.92199 | GL35: 71940.08447 | GM35: 72202.43638 | GN35: 179233.562 | GO35: 229069.6843 | GP35: 183010.6627 | GQ35: 10007065.55 | GR35: 1438134.902 | GS35: 1138432.337 | GT35: 376659.0856 | GU35: 2468078.827 | GV35: 598330.1844 | GW35: 374022.4268 | GX35: 400270.3203 | GY35: 3702.32811 | GZ35: 212452.4121 | HA35: 169792.7068 | HB35: 478887.1169 | HC35: 27166.82902 | HD35: 1070292.529 | HE35: 391399.288 | HF35: 51350.68205 | HG35: 62366.10361 | HH35: 23819.62094 | HI35: 80707.08669 | HJ35: 70212.35151 | HK35: 109899.1638 | HL35: 100154.5506 | HM35: 59490.70573 | HN35: 79907.06112 | HO35: 260524.0589 | HP35: 739750.6639 | HQ35: 73321.49285 | HR35: 193852.8984 | HS35: 78557.87549 | HT35: 77052.38744 | HU35: 1671.43145 | HV35: 3413305.156 | HW35: 436689.5064 | HX35: 169197400.1
A36: =+MATCH(B36,RUT[EMPRESA],0) -> 226 | B36: MONTE REDONDO | C36: -559771774.6 | D36: -559771774.6 | F36: =IFERROR(INDEX($B$9:$B$511,MATCH(0,INDEX(COUNTIF($F$8:F35,$B$9:$B$511),0,0),0)),"") -> MONTE REDONDO | G36: -559771774.6 | J36: PUNTA_PALMERAS | K36: 51122.16992 | L36: 39501.37745 | M36: 141837.3761 | N36: 2644.463987 | O36: 553698.3819 | P36: 199778.2128 | Q36: 28744.66923 | R36: 335.4536678 | S36: 137.9489092 | T36: 849.2467486 | U36: 3560.209773 | V36: 2394.600867 | W36: 2374.81439 | X36: 37605.81739 | Y36: 10492.95353 | Z36: 2267.834425 | AA36: 1312.480389 | AB36: 6309.12042 | AC36: 5600.138357 | AD36: 2877.86995 | AE36: 241.3827935 | AF36: 1701.792882 | AG36: 155.9314354 | AH36: 766.6641718 | AI36: 5139.74174 | AJ36: 2298.662845 | AK36: 20916.69119 | AL36: 1846.7656 | AM36: 9026.007025 | AN36: 14109.30491 | AO36: 15267.72481 | AP36: 147.8518999 | AQ36: 902.9332224 | AR36: 74359.20454 | AS36: 3088.778142 | AT36: 4.147858013 | AU36: 87113.47982 | AV36: 1701.492773 | AW36: 5041.169954 | AX36: 1418.067332 | AY36: 125.9160677 | AZ36: 3638.493924 | BA36: 3980.909467 | BB36: 59.09252769 | BC36: 3485.816948 | BD36: 2959.395834 | BE36: 21.29995524 | BF36: 5791.030552 | BG36: 529.3334804 | BH36: 19805.666 | BI36: 5778.048155 | BJ36: 397.1706497 | BK36: 0.7054507097 | BL36: 108843.5315 | BM36: 1351.311588 | BN36: 33151.72271 | BO36: 15319.89621 | BP36: 5371.805784 | BQ36: 36.82186636 | BR36: 3392.176995 | BS36: 1068.325464 | BT36: 30184.85273 | BU36: 10110.31714 | BV36: 1108.1286 | BW36: 971.2283206 | BX36: 305.4394631 | BY36: 875518.0508 | BZ36: 38490.26143 | CA36: 3135.49415 | CB36: 621.3724425 | CC36: 7037.458322 | CD36: 20308.91817 | CE36: 5635.978906 | CF36: 88.61578399 | CG36: 3008.045965 | CH36: 508.5288557 | CI36: 3944.020968 | CJ36: 13879.79291 | CK36: 289.0818867 | CL36: 541.2494999 | CM36: 1591.605461 | CN36: 1491.937672 | CO36: 277.7743591 | CP36: 295.1662679 | CQ36: 104.3574085 | CR36: 15269.26411 | CS36: 9412.054777 | CT36: 189.0152515 | CU36: 1015.383846 | CV36: 995.2449094 | CW36: 30.16569205 | CX36: 1229.964066 | CY36: 242.9514596 | CZ36: 7223.63134 | DA36: 400.2606118 | DB36: 3962.446276 | DC36: 714.3464838 | DD36: 12423.17214 | DE36: 96.99987908 | DF36: 199.7945728 | DG36: 2031.36435 | DH36: 3487.345763 | DI36: 535.0448596 | DJ36: 3065.987259 | DK36: 1298.578055 | DL36: 1174.105407 | DM36: 26351.50626 | DN36: 3.752376949 | DO36: 488.4270282 | DP36: 1174.720615 | DQ36: 4329.557751 | DR36: 12836.81476 | DS36: 1216.973862 | DT36: 2013.790497 | DU36: 1350.304971 | DV36: 38527.15028 | DW36: 1.941781718 | DX36: 1625.228391 | DY36: 4652.845533 | DZ36: 1701.914473 | EA36: 14419.69293 | EB36: 60.06382504 | EC36: 1443.115326 | ED36: 1249.366038 | EE36: 2329.940949 | EF36: 8339.848131 | EG36: 8721.118766 | EH36: 1458.283228 | EI36: 1633.850965 | EJ36: 1574.831355 | EK36: 1686.593677 | EL36: 1370.058541 | EM36: 3097.123783 | EN36: 1431.226816 | EO36: 3792.421098 | EP36: 1337.331237 | EQ36: 1115.538495 | ER36: 1193.503828 | ES36: 819.7418546 | ET36: 1424.802204 | EU36: 1263.438032 | EV36: 980.1025246 | EW36: 8903.494493 | EX36: 1556.189623 | EY36: 1177.747597 | EZ36: 1488.179364 | FA36: 9882.322636 | FB36: 1180.908077 | FC36: 1258.193592 | FD36: 1246.775798 | FE36: 1161.366987 | FF36: 1125.018204 | FG36: 3481.444112 | FH36: 1589.198076 | FI36: 1294.555766 | FJ36: 1214.493669 | FK36: 11.57567381 | FL36: 250.5044754 | FM36: 2966.798214 | FN36: 4405.340085 | FO36: 1562.760221 | FP36: 1348.634587 | FQ36: 2846.211267 | FR36: 0.0002750034997 | FS36: 793.7796038 | FT36: 979.5888067 | FU36: 1228.695201 | FV36: 2264.220865 | FW36: 1305.515189 | FX36: 431.2579231 | FY36: 351.3226572 | FZ36: 4943.614394 | GA36: 4820.244883 | GB36: 1415.161741 | GC36: 27699.48731 | GD36: 1364.136061 | GE36: 3487.657138 | GF36: 2032.003636 | GG36: 1589.194956 | GH36: 1449.621175 | GI36: 1253.99739 | GJ36: 5878.395061 | GK36: 1255.360574 | GL36: 1459.805376 | GM36: 1465.129011 | GN36: 3637.000421 | GO36: 4648.273062 | GP36: 3713.645199 | GQ36: 203062.9822 | GR36: 29182.57711 | GS36: 23101.0244 | GT36: 7643.151413 | GU36: 50082.1589 | GV36: 12141.29267 | GW36: 7589.648436 | GX36: 8122.269662 | GY36: 75.12749701 | GZ36: 4311.076026 | HA36: 3445.426957 | HB36: 9717.558619 | HC36: 551.2682304 | HD36: 21718.33407 | HE36: 7942.259023 | HF36: 1042.006029 | HG36: 1265.530532 | HH36: 483.3468152 | HI36: 1637.705042 | HJ36: 1424.746287 | HK36: 2230.069527 | HL36: 2032.332218 | HM36: 1207.183071 | HN36: 1621.470955 | HO36: 5286.544 | HP36: 15010.9915 | HQ36: 1487.836861 | HR36: 3933.655422 | HS36: 1594.093333 | HT36: 1563.544028 | HU36: 33.91662153 | HV36: 69262.65453 | HW36: 8861.28636 | HX36: 3433347.016
A37: =+MATCH(B37,RUT[EMPRESA],0) -> 240 | B37: PANGUIPULLI | C37: -57357663.71 | D37: -57357663.71 | F37: =IFERROR(INDEX($B$9:$B$511,MATCH(0,INDEX(COUNTIF($F$8:F36,$B$9:$B$511),0,0),0)),"") -> PANGUIPULLI | G37: -57357663.71 | J37: EOLICA_TALTAL | K37: 2954561.76 | L37: 2282948.073 | M37: 8197368.936 | N37: 152834.5174 | O37: 32000520.87 | P37: 11546009.66 | Q37: 1661273.39 | R37: 19387.25568 | S37: 7972.638343 | T37: 49081.48406 | U37: 205759.2561 | V37: 138393.8937 | W37: 137250.3513 | X37: 2173395.812 | Y37: 606431.2077 | Z37: 131067.5365 | AA37: 75853.67315 | AB37: 364630.1783 | AC37: 323655.1708 | AD37: 166324.014 | AE37: 13950.51056 | AF37: 98353.65324 | AG37: 9011.922948 | AH37: 44308.6952 | AI37: 297046.9451 | AJ37: 132849.2384 | AK37: 1208862.144 | AL37: 106732.2266 | AM37: 521650.2986 | AN37: 815435.1198 | AO37: 882384.9996 | AP37: 8544.973157 | AQ37: 52184.24755 | AR37: 4297526.153 | AS37: 178513.2712 | AT37: 239.7218797 | AU37: 5034648.503 | AV37: 98336.30868 | AW37: 291350.0736 | AX37: 81955.97954 | AY37: 7277.210637 | AZ37: 210283.6211 | BA37: 230073.2324 | BB37: 3415.201719 | BC37: 201459.7869 | BD37: 171035.7322 | BE37: 1231.012559 | BF37: 334687.6208 | BG37: 30592.37239 | BH37: 1144651.4 | BI37: 333937.3143 | BJ37: 22954.13547 | BK37: 40.7709159 | BL37: 6290518.115 | BM37: 78097.88887 | BN37: 1915975.248 | BO37: 885400.2005 | BP37: 310458.8865 | BQ37: 2128.088038 | BR37: 196047.9465 | BS37: 61742.94965 | BT37: 1744507.554 | BU37: 584317.0675 | BV37: 64043.3376 | BW37: 56131.30391 | BX37: 17652.61058 | BY37: 50599811.34 | BZ37: 2224511.493 | CA37: 181213.1826 | CB37: 35911.6849 | CC37: 406723.8397 | CD37: 1173736.426 | CE37: 325726.5445 | CF37: 5121.472878 | CG37: 173847.4246 | CH37: 29389.98703 | CI37: 227941.2934 | CJ37: 802170.6715 | CK37: 16707.23855 | CL37: 31281.04847 | CM37: 91985.46616 | CN37: 86225.25219 | CO37: 16053.72974 | CP37: 17058.88011 | CQ37: 6031.246501 | CR37: 882473.962 | CS37: 543961.5957 | CT37: 10923.97359 | CU37: 58683.23444 | CV37: 57519.32197 | CW37: 1743.400179 | CX37: 71084.71337 | CY37: 14041.17026 | CZ37: 417483.5489 | DA37: 23132.71717 | DB37: 229006.1682 | DC37: 41285.0395 | DD37: 717986.529 | DE37: 5606.024429 | DF37: 11546.95518 | DG37: 117400.9522 | DH37: 201548.1434 | DI37: 30922.45662 | DJ37: 177196.0917 | DK37: 75050.19971 | DL37: 67856.41032 | DM37: 1522962.598 | DN37: 216.8653925 | DO37: 28228.21923 | DP37: 67891.96571 | DQ37: 250223.0595 | DR37: 741892.6479 | DS37: 70333.95572 | DT37: 116385.2866 | DU37: 78039.71227 | DV37: 2226643.453 | DW37: 112.2236012 | DX37: 93928.67446 | DY37: 268907.1983 | DZ37: 98360.68049 | EA37: 833373.728 | EB37: 3471.337013 | EC37: 83403.60677 | ED37: 72206.03364 | EE37: 134656.9295 | EF37: 481994.3365 | EG37: 504029.5444 | EH37: 84280.2226 | EI37: 94427.00869 | EJ37: 91016.02117 | EK37: 97475.22824 | EL37: 79181.35285 | EM37: 178995.6003 | EN37: 82716.52057 | EO37: 219179.7095 | EP37: 77289.90648 | EQ37: 64471.58609 | ER37: 68977.52534 | ES37: 47376.27414 | ET37: 82345.21566 | EU37: 73019.31237 | EV37: 56644.18088 | EW37: 514569.7923 | EX37: 89938.63831 | EY37: 68066.90753 | EZ37: 86008.044 | FA37: 571140.3214 | FB37: 68249.56475 | FC37: 72716.21448 | FD37: 72056.33294 | FE37: 67120.20432 | FF37: 65019.45769 | FG37: 201207.0626 | FH37: 91846.33343 | FI37: 74817.73502 | FJ37: 70190.61508 | FK37: 669.0060934 | FL37: 14477.6903 | FM37: 171463.5464 | FN37: 254602.8343 | FO37: 90318.38041 | FP37: 77943.17387 | FQ37: 164494.3277 | FR37: 0.0158935903 | FS37: 45875.80822 | FT37: 56614.491 | FU37: 71011.3804 | FV37: 130858.6938 | FW37: 75451.12539 | FX37: 24924.18006 | FY37: 20304.39025 | FZ37: 285711.9341 | GA37: 278581.8995 | GB37: 81788.05343 | GC37: 1600868.001 | GD37: 78839.0682 | GE37: 201566.1391 | GF37: 117437.8992 | GG37: 91846.15311 | GH37: 83779.6067 | GI37: 72473.69863 | GJ37: 339736.7773 | GK37: 72552.48266 | GL37: 84368.19385 | GM37: 84675.86874 | GN37: 210197.3054 | GO37: 268642.9363 | GP37: 214626.9243 | GQ37: 11735850.08 | GR37: 1686581.898 | GS37: 1335103.799 | GT37: 441729.35 | GU37: 2894455.219 | GV37: 701695.548 | GW37: 438637.1916 | GX37: 469419.5764 | GY37: 4341.928954 | GZ37: 249154.9242 | HA37: 199125.4822 | HB37: 561617.9271 | HC37: 31860.07236 | HD37: 1255192.403 | HE37: 459016.0166 | HF37: 60221.84058 | HG37: 73140.24662 | HH37: 27934.6127 | HI37: 94649.75174 | HJ37: 82341.98398 | HK37: 128884.9467 | HL37: 117456.8893 | HM37: 69768.10538 | HN37: 93711.51665 | HO37: 305531.2552 | HP37: 867547.3191 | HQ37: 85988.24937 | HR37: 227342.2256 | HS37: 92129.25058 | HT37: 90363.67984 | HU37: 1960.181916 | HV37: 4002975.437 | HW37: 512130.4097 | HX37: 198427332.4
A38: =+MATCH(B38,RUT[EMPRESA],0) -> 171 | B38: HIDROPALOMA | C38: 38938607.84 | D38: 38938607.84 | F38: =IFERROR(INDEX($B$9:$B$511,MATCH(0,INDEX(COUNTIF($F$8:F37,$B$9:$B$511),0,0),0)),"") -> HIDROPALOMA | H38: 38938607.84 | J38: ACCIONA_ENERGIA | K38: 31410798.2 | L38: 24270679.39 | M38: 87148593.37 | N38: 1624827.834 | O38: 340206766.7 | P38: 122748958.7 | Q38: 17661476.54 | R38: 206111.5066 | S38: 84759.41763 | T38: 521799.4128 | U38: 2187485.995 | V38: 1471305.399 | W38: 1459148.07 | X38: 23105997.71 | Y38: 6447145.071 | Z38: 1393416.782 | AA38: 806422.2764 | AB38: 3876488.589 | AC38: 3440871.467 | AD38: 1768238.562 | AE38: 148311.9012 | AF38: 1045626.054 | AG38: 95808.352 | AH38: 471058.5178 | AI38: 3157991.745 | AJ38: 1412358.569 | AK38: 12851762.1 | AL38: 1134701.083 | AM38: 5545814.774 | AN38: 8669125.94 | AO38: 9380889.421 | AP38: 90844.0741 | AQ38: 554785.7863 | AR38: 45688239.99 | AS38: 1897826.071 | AT38: 2548.552442 | AU38: 53524800.29 | AV38: 1045441.659 | AW38: 3097426.662 | AX38: 871297.6555 | AY38: 77366.12511 | AZ38: 2235585.825 | BA38: 2445974.89 | BB38: 36307.99446 | BC38: 2141777.098 | BD38: 1818330.198 | BE38: 13087.24956 | BF38: 3558160.624 | BG38: 325236.334 | BH38: 12169119.17 | BI38: 3550183.9 | BJ38: 244032.0344 | BK38: 433.4473658 | BL38: 66876312.34 | BM38: 830281.1809 | BN38: 20369285.46 | BO38: 9412944.892 | BP38: 3300577.963 | BQ38: 22624.3177 | BR38: 2084242.262 | BS38: 656407.1052 | BT38: 18546362.95 | BU38: 6212043.268 | BV38: 680863.1929 | BW38: 596748.0808 | BX38: 187669.9943 | BY38: 537941187.9 | BZ38: 23649423.26 | CA38: 1926529.609 | CB38: 381787.4795 | CC38: 4323998.444 | CD38: 12478330.46 | CE38: 3462892.838 | CF38: 54447.85526 | CG38: 1848222.111 | CH38: 312453.4286 | CI38: 2423309.631 | CJ38: 8528107.764 | CK38: 177619.4716 | CL38: 332557.8481 | CM38: 977924.0204 | CN38: 916685.5245 | CO38: 170671.8309 | CP38: 181357.8745 | CQ38: 64119.92104 | CR38: 9381835.206 | CS38: 5783012.609 | CT38: 116135.9139 | CU38: 623878.3903 | CV38: 611504.5011 | CW38: 18534.59012 | CX38: 755722.0895 | CY38: 149275.7307 | CZ38: 4438388.015 | DA38: 245930.5879 | DB38: 2434630.622 | DC38: 438913.162 | DD38: 7633121.865 | DE38: 59599.26255 | DF38: 122759.0108 | DG38: 1248123.383 | DH38: 2142716.442 | DI38: 328745.5548 | DJ38: 1883822.757 | DK38: 797880.3185 | DL38: 721401.0687 | DM38: 16191054.62 | DN38: 2305.558534 | DO38: 300102.34 | DP38: 721779.0683 | DQ38: 2660193.513 | DR38: 7887274.711 | DS38: 747740.5684 | DT38: 1237325.548 | DU38: 829662.6887 | DV38: 23672088.74 | DW38: 1193.081471 | DX38: 998582.8284 | DY38: 2858829.981 | DZ38: 1045700.763 | EA38: 8859836.457 | EB38: 36904.78496 | EC38: 886687.7981 | ED38: 767643.1687 | EE38: 1431576.654 | EF38: 5124220.805 | EG38: 5358483.454 | EH38: 896007.3539 | EI38: 1003880.763 | EJ38: 967617.5711 | EK38: 1036287.264 | EL38: 841799.799 | EM38: 1902953.852 | EN38: 879383.1866 | EO38: 2330162.706 | EP38: 821691.2872 | EQ38: 685416.0261 | ER38: 733319.9658 | ES38: 503670.8342 | ET38: 875435.737 | EU38: 776289.3694 | EV38: 602200.6238 | EW38: 5470539.87 | EX38: 956163.6033 | EY38: 723638.9253 | EZ38: 914376.3215 | FA38: 6071957.481 | FB38: 725580.8068 | FC38: 773067.0484 | FD38: 766051.6574 | FE38: 713574.2504 | FF38: 691240.6071 | FG38: 2139090.313 | FH38: 976444.8602 | FI38: 795408.9193 | FJ38: 746216.6728 | FK38: 7112.396728 | FL38: 153916.5011 | FM38: 1822878.414 | FN38: 2706756.161 | FO38: 960200.751 | FP38: 828636.3611 | FQ38: 1748786.64 | FR38: 0.1689693424 | FS38: 487718.9484 | FT38: 601884.9821 | FU38: 754942.4655 | FV38: 1391196.516 | FW38: 802142.6751 | FX38: 264976.1467 | FY38: 215861.8288 | FZ38: 3037485.974 | GA38: 2961684.52 | GB38: 869512.3847 | GC38: 17019289.43 | GD38: 838160.8722 | GE38: 2142907.759 | GF38: 1248516.177 | GG38: 976442.9432 | GH38: 890685.1618 | GI38: 770488.7924 | GJ38: 3611839.663 | GK38: 771326.3682 | GL38: 896942.6017 | GM38: 900213.5821 | GN38: 2234668.177 | GO38: 2856020.536 | GP38: 2281760.734 | GQ38: 124767207 | GR38: 17930538.59 | GS38: 14193873.55 | GT38: 4696152.12 | GU38: 30771788.23 | GV38: 7459927.748 | GW38: 4663278.492 | GX38: 4990534.903 | GY38: 46160.29898 | GZ38: 2648837.858 | HA38: 2116960.431 | HB38: 5970722.16 | HC38: 338713.6181 | HD38: 13344312.45 | HE38: 4879931.658 | HF38: 640235.7559 | HG38: 777575.0563 | HH38: 296980.9243 | HI38: 1006248.809 | HJ38: 875401.3801 | HK38: 1370213.041 | HL38: 1248718.067 | HM38: 741724.8502 | HN38: 996274.161 | HO38: 3248190.893 | HP38: 9223145.76 | HQ38: 914165.8791 | HR38: 2416940.768 | HS38: 979452.6341 | HT38: 960682.3424 | HU38: 20839.25929 | HV38: 42556786.38 | HW38: 5444606.09 | HX38: 2109538199
A39: =+MATCH(B39,RUT[EMPRESA],0) -> 106 | B39: EMELDA | C39: 3265995.372 | D39: 3265995.372 | F39: =IFERROR(INDEX($B$9:$B$511,MATCH(0,INDEX(COUNTIF($F$8:F38,$B$9:$B$511),0,0),0)),"") -> EMELDA | H39: 3265995.372 | J39: BESALCO | K39: =$HX39*K$75/$HX$75 -> 1964176.593 | L39: 1517691.465 | M39: 5449566.296 | N39: 101603.5562 | O39: 21273772.28 | P39: 7675724.444 | Q39: 1104405.516 | R39: 12888.54216 | S39: 5300.16662 | T39: 32629.10373 | U39: =$HX39*U$75/$HX$75 -> 136787.6347 | V39: 92003.50804 | W39: 91243.28728 | X39: 1444861.718 | Y39: 403152.1695 | Z39: 87132.98558 | AA39: 50427.10946 | AB39: 242404.1599 | AC39: 215164.1977 | AD39: 110571.3001 | AE39: =$HX39*AE$75/$HX$75 -> 9274.223564 | AF39: 65384.97388 | AG39: 5991.077374 | AH39: 29456.17964 | AI39: 197475.1939 | AJ39: 88317.45134 | AK39: 803644.98 | AL39: 70955.00386 | AM39: 346790.2821 | AN39: 542096.8337 | AO39: =$HX39*AO$75/$HX$75 -> 586604.7498 | AP39: 5680.651692 | AQ39: 34691.80403 | AR39: 2856972.019 | AS39: 118674.652 | AT39: 159.3658022 | AU39: 3347006.949 | AV39: 65373.44331 | AW39: 193687.9448 | AX39: 54483.88957 | AY39: =$HX39*AY$75/$HX$75 -> 4837.850062 | AZ39: 139795.4079 | BA39: 152951.4339 | BB39: 2270.407533 | BC39: 133929.3709 | BD39: 113703.6248 | BE39: 818.3704559 | BF39: 222498.5104 | BG39: 20337.64282 | BH39: 760958.0269 | BI39: =$HX39*BI$75/$HX$75 -> 221999.7108 | BJ39: 15259.78445 | BK39: 27.1042832 | BL39: 4181902.239 | BM39: 51919.05187 | BN39: 1273729.927 | BO39: 588609.239 | BP39: 206391.3797 | BQ39: 1414.741356 | BR39: 130331.6088 | BS39: =$HX39*BS$75/$HX$75 -> 41046.37721 | BT39: 1159739.136 | BU39: 388450.8093 | BV39: 42575.66261 | BW39: 37315.78563 | BX39: 11735.35953 | BY39: 33638479.44 | BZ39: 1478843.145 | CA39: 120469.5385 | CB39: 23873.89285 | CC39: =$HX39*CC$75/$HX$75 -> 270387.7971 | CD39: 780293.5938 | CE39: 216541.2357 | CF39: 3404.727322 | CG39: 115572.8226 | CH39: 19538.30357 | CI39: 151534.1324 | CJ39: 533278.7007 | CK39: 11106.88134 | CL39: 20795.47093 | CM39: =$HX39*CM$75/$HX$75 -> 61151.43774 | CN39: 57322.07881 | CO39: 10672.43224 | CP39: 11340.65074 | CQ39: 4009.53988 | CR39: 586663.8916 | CS39: 361622.7111 | CT39: 7262.198246 | CU39: 39012.29517 | CV39: 38238.53249 | CW39: =$HX39*CW$75/$HX$75 -> 1159.002959 | CX39: 47256.73093 | CY39: 9334.493643 | CZ39: 277540.7932 | DA39: 15378.50459 | DB39: 152242.0554 | DC39: 27446.06977 | DD39: 477313.5405 | DE39: 3726.854558 | DF39: 7676.353016 | DG39: =$HX39*DG$75/$HX$75 -> 78047.51468 | DH39: 133988.1098 | DI39: 20557.08103 | DJ39: 117798.9983 | DK39: 49892.96469 | DL39: 45110.57261 | DM39: 1012457.254 | DN39: 144.1709337 | DO39: 18765.96666 | DP39: 45134.20964 | DQ39: =$HX39*DQ$75/$HX$75 -> 166346.9294 | DR39: 493206.1983 | DS39: 46757.63133 | DT39: 77372.30567 | DU39: 51880.37638 | DV39: 1480260.46 | DW39: 74.60563987 | DX39: 62443.27205 | DY39: 178768.0433 | DZ39: 65389.64556 | EA39: =$HX39*EA$75/$HX$75 -> 554022.323 | EB39: 2307.725971 | EC39: 55446.26428 | ED39: 48002.17855 | EE39: 89519.19455 | EF39: 320427.2141 | EG39: 335076.1005 | EH39: 56029.03372 | EI39: 62774.56193 | EJ39: 60506.95598 | EK39: =$HX39*EK$75/$HX$75 -> 64801.00172 | EL39: 52639.33283 | EM39: 118995.3018 | EN39: 54989.49311 | EO39: 145709.4791 | EP39: 51381.90957 | EQ39: 42860.35987 | ER39: 45855.88378 | ES39: 31495.48944 | ET39: 54742.65162 | EU39: =$HX39*EU$75/$HX$75 -> 48542.84182 | EV39: 37656.74345 | EW39: 342083.2 | EX39: 59790.71772 | EY39: 45250.51002 | EZ39: 57177.67999 | FA39: 379690.9801 | FB39: 45371.93954 | FC39: 48341.344 | FD39: 47902.65834 | FE39: =$HX39*FE$75/$HX$75 -> 44621.14687 | FF39: 43224.58193 | FG39: 133761.3611 | FH39: 61058.94305 | FI39: 49738.42342 | FJ39: 46662.33925 | FK39: 444.7516132 | FL39: 9624.68979 | FM39: 113988.0333 | FN39: 169258.5798 | FO39: =$HX39*FO$75/$HX$75 -> 60043.16819 | FP39: 51816.19818 | FQ39: 109354.9346 | FR39: 0.01056597241 | FS39: 30497.98786 | FT39: 37637.00578 | FU39: 47207.97957 | FV39: 86994.14813 | FW39: 50159.4979 | FX39: 16569.45938 | FY39: =$HX39*FY$75/$HX$75 -> 13498.24823 | FZ39: 189939.7403 | GA39: 185199.732 | GB39: 54372.2532 | GC39: 1064248.342 | GD39: 52411.78386 | GE39: 134000.0733 | GF39: 78072.07685 | GG39: 61058.82318 | GH39: 55696.22699 | GI39: =$HX39*GI$75/$HX$75 -> 48180.12078 | GJ39: 225855.1622 | GK39: 48232.49597 | GL39: 56087.51653 | GM39: 56292.05712 | GN39: 139738.0257 | GO39: 178592.3633 | GP39: 142682.8123 | GQ39: 7801929.323 | GR39: 1121230.475 | GS39: =$HX39*GS$75/$HX$75 -> 887569.7463 | GT39: 293659.27 | GU39: 1924218.091 | GV39: 466483.3849 | GW39: 291603.6199 | GX39: 312067.5819 | GY39: 2886.49076 | GZ39: 165636.8388 | HA39: 132377.5378 | HB39: 373360.5441 | HC39: =$HX39*HC$75/$HX$75 -> 21180.40287 | HD39: 834445.0848 | HE39: 305151.352 | HF39: 40035.15216 | HG39: 48623.23825 | HH39: 18570.77863 | HI39: 62922.64031 | HJ39: 54740.50322 | HK39: 85682.01178 | HL39: 78084.70137 | HM39: =$HX39*HM$75/$HX$75 -> 46381.4571 | HN39: 62298.90672 | HO39: 203115.5171 | HP39: 576740.7405 | HQ39: 57164.52063 | HR39: 151135.8754 | HS39: 61247.02484 | HT39: 60073.28301 | HU39: 1303.11828 | HV39: 2661156.305 | HW39: 340461.5117 | HX39: 131913411.6
A40: =+MATCH(B40,RUT[EMPRESA],0) -> 299 | B40: SWO | C40: 23025865.25 | D40: 23025865.25 | F40: =IFERROR(INDEX($B$9:$B$511,MATCH(0,INDEX(COUNTIF($F$8:F39,$B$9:$B$511),0,0),0)),"") -> SWO | H40: 23025865.25 | J40: LLEUQUEREO | K40: 2915.870276 | L40: 2253.051711 | M40: 8090.020234 | N40: 150.833072 | O40: 31581.45783 | P40: 11394.80882 | Q40: 1639.518173 | R40: 19.13336974 | S40: 7.868232603 | T40: 48.43873715 | U40: 203.0647344 | V40: 136.5815555 | W40: 135.4529884 | X40: 2144.934092 | Y40: 598.4896837 | Z40: 129.3511407 | AA40: 74.86033085 | AB40: 359.8551613 | AC40: 319.4167423 | AD40: 164.1459167 | AE40: 13.76782155 | AF40: 97.0656623 | AG40: 8.893907249 | AH40: 43.72845038 | AI40: 293.1569648 | AJ40: 131.1095103 | AK40: 1193.031481 | AL40: 105.3345139 | AM40: 514.8190235 | AN40: 804.7565836 | AO40: 870.8297208 | AP40: 8.433072402 | AQ40: 51.50086838 | AR40: 4241.24787 | AS40: 176.1755494 | AT40: 0.2365826002 | AU40: 4968.717229 | AV40: 97.04854487 | AW40: 287.5346968 | AX40: 80.88272445 | AY40: 7.181911875 | AZ40: 207.5298505 | BA40: 227.0603068 | BB40: 3.370477922 | BC40: 198.8215689 | BD40: 168.7959326 | BE40: 1.214891826 | BF40: 330.3047167 | BG40: 30.19174976 | BH40: 1129.66161 | BI40: 329.5642359 | BJ40: 22.65353943 | BK40: 0.04023700009 | BL40: 6208.140592 | BM40: 77.07515743 | BN40: 1890.884581 | BO40: 873.8054361 | BP40: 306.39327 | BQ40: 2.100219647 | BR40: 193.4805993 | BS40: 60.93439443 | BT40: 1721.662344 | BU40: 576.6651393 | BV40: 63.20465764 | BW40: 55.39623603 | BX40: 17.4214407 | BY40: 49937.18116 | BZ40: 2195.380388 | CA40: 178.8401042 | CB40: 35.44140318 | CC40: 401.3975849 | CD40: 1158.365752 | CE40: 321.4609903 | CF40: 5.054404595 | CG40: 171.5708045 | CH40: 29.00511025 | CI40: 224.9562866 | CJ40: 791.66584 | CK40: 16.48844879 | CL40: 30.87140728 | CM40: 90.78086985 | CN40: 85.09608881 | CO40: 15.84349801 | CP40: 16.83548543 | CQ40: 5.952264271 | CR40: 870.9175182 | CS40: 536.8381429 | CT40: 10.78091862 | CU40: 57.91474774 | CV40: 56.76607729 | CW40: 1.72056947 | CX40: 70.15382302 | CY40: 13.85729402 | CZ40: 412.0163902 | DA40: 22.82978251 | DB40: 226.0072164 | DC40: 40.74439098 | DD40: 708.5841315 | DE40: 5.532610698 | DF40: 11.39574195 | DG40: 115.8635273 | DH40: 198.9087683 | DI40: 30.51751138 | DJ40: 174.8756191 | DK40: 74.06737931 | DL40: 66.96779623 | DM40: 1503.018631 | DN40: 0.2140254302 | DO40: 27.85855639 | DP40: 67.00288601 | DQ40: 246.9462618 | DR40: 732.1771877 | DS40: 69.41289692 | DT40: 114.8611622 | DU40: 77.01774268 | DV40: 2197.484428 | DW40: 0.1107539763 | DX40: 92.69863086 | DY40: 265.3857223 | DZ40: 97.07259753 | EA40: 822.4602766 | EB40: 3.425878095 | EC40: 82.31139426 | ED40: 71.26045903 | EE40: 132.8935288 | EF40: 475.6823764 | EG40: 497.429022 | EH40: 83.17653037 | EI40: 93.19043915 | EJ40: 89.82412024 | EK40: 96.19874072 | EL40: 78.1444329 | EM40: 176.6515622 | EN40: 81.6333058 | EO40: 216.3094401 | EP40: 76.27775598 | EQ40: 63.627298 | ER40: 68.07422968 | ES40: 46.75585781 | ET40: 81.26686332 | EU40: 72.06308746 | EV40: 55.90239662 | EW40: 507.8312401 | EX40: 88.76084626 | EY40: 67.17553688 | EZ40: 84.88172507 | FA40: 563.6609494 | FB40: 67.3558021 | FC40: 71.76395879 | FD40: 71.11271874 | FE40: 66.24123122 | FF40: 64.16799493 | FG40: 198.5721541 | FH40: 90.64355914 | FI40: 73.83795886 | FJ40: 69.2714334 | FK40: 0.6602451195 | FL40: 14.28809761 | FM40: 169.2181443 | FN40: 251.2686811 | FO40: 89.13561544 | FP40: 76.9224685 | FQ40: 162.3401911 | FR40: 1.568545568e-05 | FS40: 45.27504126 | FT40: 55.87309554 | FU40: 70.08145038 | FV40: 129.1450329 | FW40: 74.46305466 | FX40: 24.59778529 | FY40: 20.03849397 | FZ40: 281.9703915 | GA40: 274.9337284 | GB40: 80.71699742 | GC40: 1579.903823 | GD40: 77.80663064 | GE40: 198.9265283 | GF40: 115.8999904 | GG40: 90.64338118 | GH40: 82.68247028 | GI40: 71.52461881 | GJ40: 335.287752 | GK40: 71.60237113 | GL40: 83.26334959 | GM40: 83.56699532 | GN40: 207.4446652 | GO40: 265.1249209 | GP40: 211.816276 | GQ40: 11582.16318 | GR40: 1664.495253 | GS40: 1317.619939 | GT40: 435.9446803 | GU40: 2856.550861 | GV40: 692.5064891 | GW40: 432.8930152 | GX40: 463.2722891 | GY40: 4.285069194 | GZ40: 245.8921142 | HA40: 196.517833 | HB40: 554.2632556 | HC40: 31.44284857 | HD40: 1238.755023 | HE40: 453.0049692 | HF40: 59.43320505 | HG40: 72.18243801 | HH40: 27.56879479 | HI40: 93.41026527 | HJ40: 81.26367397 | HK40: 127.197133 | HL40: 115.9187318 | HM40: 68.85445668 | HN40: 92.48431684 | HO40: 301.5301685 | HP40: 856.1863472 | HQ40: 84.86218966 | HR40: 224.3650639 | HS40: 90.92277135 | HT40: 89.18032165 | HU40: 1.934512341 | HV40: 3950.554445 | HW40: 505.4238024 | HX40: 195828.8259
A41: =+MATCH(B41,RUT[EMPRESA],0) -> 131 | B41: GEN. INDUSTRIAL | C41: 0 | D41: 0 | F41: =IFERROR(INDEX($B$9:$B$511,MATCH(0,INDEX(COUNTIF($F$8:F40,$B$9:$B$511),0,0),0)),"") -> GEN. INDUSTRIAL | J41: JAVIERA | K41: 6592581.458 | L41: 5093994.425 | M41: 18290977.42 | N41: 341023.1661 | O41: 71403496.59 | P41: 25762876.33 | Q41: 3706837.438 | R41: 43259.2285 | S41: 17789.5309 | T41: 109516.6417 | U41: 459115.3501 | V41: 308801.471 | W41: 306249.8586 | X41: 4849547.952 | Y41: 1353143.87 | Z41: 292454.002 | AA41: 169254.0416 | AB41: 813607.6845 | AC41: 722179.2101 | AD41: 371122.5893 | AE41: 31128.09435 | AF41: 219458.7636 | AG41: 20108.51048 | AH41: 98867.00841 | AI41: 662807.6653 | AJ41: 296429.5544 | AK41: 2697361.843 | AL41: 238154.0665 | AM41: 1163970.282 | AN41: 1819499.096 | AO41: 1968885.899 | AP41: 19066.5947 | AQ41: 116439.9091 | AR41: 9589168.728 | AS41: 398320.7586 | AT41: 534.8969315 | AU41: 11233926.74 | AV41: 219420.0622 | AW41: 650096.1054 | AX41: 182870.2579 | AY41: 16237.80709 | AZ41: 469210.6696 | BA41: 513367.6834 | BB41: 7620.41797 | BC41: 449521.8457 | BD41: 381635.9543 | BE41: 2746.786574 | BF41: 746796.1688 | BG41: 68261.46255 | BH41: 2554086.937 | BI41: 745121.9928 | BJ41: 51218.08923 | BK41: 90.97308028 | BL41: 14036177.43 | BM41: 174261.6117 | BN41: 4275159.541 | BO41: 1975613.786 | BP41: 692734.0381 | BQ41: 4748.451676 | BR41: 437446.282 | BS41: 137768.4605 | BT41: 3892559.74 | BU41: 1303800.082 | BV41: 142901.3689 | BW41: 125247.0665 | BX41: 39388.67509 | BY41: 112904520.2 | BZ41: 4963603.545 | CA41: 404345.133 | CB41: 80130.56663 | CC41: 907532.2373 | CD41: 2618985.023 | CE41: 726801.1137 | CF41: 11427.65996 | CG41: 387909.7481 | CH41: 65578.55252 | CI41: 508610.6389 | CJ41: 1789901.828 | CK41: 37279.24478 | CL41: 69798.1213 | CM41: 205249.2816 | CN41: 192396.384 | CO41: 35821.05557 | CP41: 38063.87067 | CQ41: 13457.65873 | CR41: 1969084.403 | CS41: 1213753.992 | CT41: 24374.91297 | CU41: 130941.2477 | CV41: 128344.1831 | CW41: 3890.088828 | CX41: 158612.9522 | CY41: 31330.38543 | CZ41: 931540.6232 | DA41: 51616.56267 | DB41: 510986.7185 | DC41: 92120.25607 | DD41: 1602059.819 | DE41: 12508.85096 | DF41: 25764.98607 | DG41: 261959.4389 | DH41: 449718.9976 | DI41: 68997.98709 | DJ41: 395381.7059 | DK41: 167461.2329 | DL41: 151409.5655 | DM41: 3398221.395 | DN41: 483.896727 | DO41: 62986.27337 | DP41: 151488.9011 | DQ41: 558328.455 | DR41: 1655402.091 | DS41: 156937.7695 | DT41: 259693.1608 | DU41: 174131.8009 | DV41: 4968360.634 | DW41: 250.4070967 | DX41: 209585.2069 | DY41: 600018.8027 | DZ41: 219474.4436 | EA41: 1859525.924 | EB41: 7745.673939 | EC41: 186100.3818 | ED41: 161114.9799 | EE41: 300463.097 | EF41: 1075485.024 | EG41: 1124652.689 | EH41: 188056.3948 | EI41: 210697.1514 | EJ41: 203086.1367 | EK41: 217498.7137 | EL41: 176679.1697 | EM41: 399396.9907 | EN41: 184567.2706 | EO41: 489060.7157 | EP41: 172458.742 | EQ41: 143856.9296 | ER41: 153911.1352 | ES41: 105711.7677 | ET41: 183738.7694 | EU41: 162929.6674 | EV41: 126391.4607 | EW41: 1148171.386 | EX41: 200682.1476 | EY41: 151879.2528 | EZ41: 191911.7223 | FA41: 1274398.506 | FB41: 152286.82 | FC41: 162253.3581 | FD41: 160780.9493 | FE41: 149766.8522 | FF41: 145079.408 | FG41: 448957.9361 | FH41: 204938.8315 | FI41: 166942.5291 | FJ41: 156617.9302 | FK41: 1492.768649 | FL41: 32304.40261 | FM41: 382590.5458 | FN41: 568101.1468 | FO41: 201529.4749 | FP41: 173916.3925 | FQ41: 367039.9683 | FR41: 0.03546373277 | FS41: 102363.7437 | FT41: 126325.213 | FU41: 158449.3227 | FV41: 291988.0066 | FW41: 168355.8276 | FX41: 55613.89495 | FY41: 45305.65192 | FZ41: 637515.5953 | GA41: 621606.1855 | GB41: 182495.5605 | GC41: 3572053.508 | GD41: 175915.4221 | GE41: 449759.1518 | GF41: 262041.8796 | GG41: 204938.4292 | GH41: 186939.359 | GI41: 161712.2269 | GJ41: 758062.4676 | GK41: 161888.0195 | GL41: 188252.6871 | GM41: 188939.2091 | GN41: 469018.0713 | GO41: 599429.1488 | GP41: 478901.9817 | GQ41: 26186471.61 | GR41: 3763308.894 | GS41: 2979047.746 | GT41: 985640.8357 | GU41: 6458464.354 | GV41: 1565709.379 | GW41: 978741.2317 | GX41: 1047426.673 | GY41: 9688.245716 | GZ41: 555945.1001 | HA41: 444313.258 | HB41: 1253150.969 | HC41: 71090.1106 | HD41: 2800739.615 | HE41: 1024212.972 | HF41: 134374.3749 | HG41: 163199.5107 | HH41: 62331.14237 | HI41: 211194.1631 | HJ41: 183731.5585 | HK41: 287583.9394 | HL41: 262084.2526 | HM41: 155675.1746 | HN41: 209100.6576 | HO41: 681738.9012 | HP41: 1935778.242 | HQ41: 191867.5541 | HR41: 507273.9251 | HS41: 205570.111 | HT41: 201630.5525 | HU41: 4373.798893 | HV41: 8931930.955 | HW41: 1142728.336 | HX41: 442755460.3
A42: =+MATCH(B42,RUT[EMPRESA],0) -> 230 | B42: NUEVA DEGAN | C42: -8105947.039 | D42: -8105947.039 | F42: =IFERROR(INDEX($B$9:$B$511,MATCH(0,INDEX(COUNTIF($F$8:F41,$B$9:$B$511),0,0),0)),"") -> NUEVA DEGAN | G42: -8105947.039 | J42: LOS_GUINDOS | K42: 139062.1766 | L42: 107451.3765 | M42: 385825.0594 | N42: 7193.45283 | O42: 1506166.547 | P42: 543435.3266 | Q42: 78191.05244 | R42: 912.4987703 | S42: 375.2476784 | T42: 2310.115191 | U42: 9684.45825 | V42: 6513.776882 | W42: 6459.953843 | X42: 102295.087 | Y42: 28542.86035 | Z42: 6168.947677 | AA42: 3570.200168 | AB42: 17162.02617 | AC42: 15233.45802 | AD42: 7828.362134 | AE42: 656.6078223 | AF42: 4629.205347 | AG42: 424.163623 | AH42: 2085.474631 | AI42: 13981.09029 | AJ42: 6252.806932 | AK42: 56897.44015 | AL42: 5023.559141 | AM42: 24552.48251 | AN42: 38380.03462 | AO42: 41531.16049 | AP42: 402.1857259 | AQ42: 2456.152769 | AR42: 202271.3991 | AS42: 8402.073154 | AT42: 11.28297497 | AU42: 236965.4914 | AV42: 4628.388991 | AW42: 13712.95599 | AX42: 3857.417047 | AY42: 342.5160254 | AZ42: 9897.40626 | BA42: 10828.84268 | BB42: 160.7430892 | BC42: 9482.095396 | BD42: 8050.128286 | BE42: 57.9399924 | BF42: 15752.72166 | BG42: 1439.889309 | BH42: 53875.23704 | BI42: 15717.40703 | BJ42: 1080.380882 | BK42: 1.918962191 | BL42: 296075.4291 | BM42: 3675.828531 | BN42: 90179.08915 | BO42: 41673.07677 | BP42: 14612.34931 | BQ42: 100.1625888 | BR42: 9227.376637 | BS42: 2906.051613 | BT42: 82108.62974 | BU42: 27502.01547 | BV42: 3014.323831 | BW42: 2641.928628 | BX42: 830.8543363 | BY42: 2381578.207 | BZ42: 104700.9456 | CA42: 8529.149719 | CB42: 1690.253064 | CC42: 19143.24594 | CD42: 55244.18015 | CE42: 15330.95123 | CF42: 241.0520489 | CG42: 8182.466039 | CH42: 1383.296712 | CI42: 10728.49883 | CJ42: 37755.71765 | CK42: 786.358569 | CL42: 1472.303184 | CM42: 4329.474277 | CN42: 4058.358641 | CO42: 755.5999099 | CP42: 802.9092609 | CQ42: 283.872308 | CR42: 41535.34768 | CS42: 25602.60696 | CT42: 514.1579931 | CU42: 2762.040185 | CV42: 2707.258388 | CW42: 82.05650897 | CX42: 3345.739831 | CY42: 660.874897 | CZ42: 19649.67251 | DA42: 1088.786176 | DB42: 10778.61923 | DC42: 1943.160414 | DD42: 33793.42779 | DE42: 263.8584069 | DF42: 543.479829 | DG42: 5525.703396 | DH42: 9486.254067 | DI42: 1455.425364 | DJ42: 8340.077549 | DK42: 3532.383133 | DL42: 3193.79349 | DM42: 71681.18691 | DN42: 10.20719009 | DO42: 1328.615858 | DP42: 3195.466973 | DQ42: 11777.23335 | DR42: 34918.61562 | DS42: 3310.403967 | DT42: 5477.899123 | DU42: 3673.090336 | DV42: 104801.2904 | DW42: 5.282021334 | DX42: 4420.935143 | DY42: 12656.63856 | DZ42: 4629.536098 | EA42: 39224.34999 | EB42: 163.3852056 | EC42: 3925.552429 | ED42: 3398.516943 | EE42: 6337.889417 | EF42: 22685.99779 | EG42: 23723.12756 | EH42: 3966.812052 | EI42: 4444.390209 | EJ42: 4283.845469 | EK42: 4587.860571 | EL42: 3726.823864 | EM42: 8424.77491 | EN42: 3893.213385 | EO42: 10316.1179 | EP42: 3637.799274 | EQ42: 3034.480176 | ER42: 3246.560942 | ES42: 2229.85618 | ET42: 3875.7372 | EU42: 3436.795483 | EV42: 2666.068177 | EW42: 24219.22476 | EX42: 4233.136357 | EY42: 3203.700949 | EZ42: 4048.135316 | FA42: 26881.82637 | FB42: 3212.298065 | FC42: 3422.529594 | FD42: 3391.47099 | FE42: 3159.142528 | FF42: 3060.266815 | FG42: 9470.200436 | FH42: 4322.925725 | FI42: 3521.441732 | FJ42: 3303.657362 | FK42: 31.48806864 | FL42: 681.4205587 | FM42: 8070.264189 | FN42: 11983.37594 | FO42: 4251.009654 | FP42: 3668.546569 | FQ42: 7742.244402 | FR42: 0.0007480626369 | FS42: 2159.233843 | FT42: 2664.670765 | FU42: 3342.288273 | FV42: 6159.118093 | FW42: 3551.253477 | FX42: 1173.10485 | FY42: 955.6654867 | FZ42: 13447.58603 | GA42: 13111.99713 | GB42: 3849.513279 | GC42: 75347.95572 | GD42: 3710.713573 | GE42: 9487.101068 | GF42: 5527.442378 | GG42: 4322.917238 | GH42: 3943.249594 | GI42: 3411.115115 | GJ42: 15990.37 | GK42: 3414.823238 | GL42: 3970.95259 | GM42: 3985.433905 | GN42: 9893.343643 | GO42: 12644.20056 | GP42: 10101.83224 | GQ42: 552370.5339 | GR42: 79382.24644 | GS42: 62839.2484 | GT42: 20790.84814 | GU42: 136233.1457 | GV42: 33026.66119 | GW42: 20645.30971 | GX42: 22094.14232 | GY42: 204.361303 | GZ42: 11726.95949 | HA42: 9372.226819 | HB42: 26433.63642 | HC42: 1499.556066 | HD42: 59078.06364 | HE42: 21604.47862 | HF42: 2834.457666 | HG42: 3442.487488 | HH42: 1314.796697 | HI42: 4454.874043 | HJ42: 3875.585095 | HK42: 6066.219859 | HL42: 5528.336185 | HM42: 3283.771124 | HN42: 4410.714189 | HO42: 14380.42079 | HP42: 40832.7963 | HQ42: 4047.203643 | HR42: 10700.30255 | HS42: 4336.241769 | HT42: 4253.14176 | HU42: 92.25976166 | HV42: 188407.7986 | HW42: 24104.41049 | HX42: 9339367.045
A43: =+MATCH(B43,RUT[EMPRESA],0) -> 23 | B43: BARRICK | C43: 2109807.99 | D43: 2109807.99 | F43: =IFERROR(INDEX($B$9:$B$511,MATCH(0,INDEX(COUNTIF($F$8:F42,$B$9:$B$511),0,0),0)),"") -> BARRICK | H43: 2109807.99 | J43: ERNC1 | K43: 1655452.057 | L43: 1279144.384 | M43: 4593016.62 | N43: 85633.75447 | O43: 17930012.1 | P43: 6469272.605 | Q43: 930817.7234 | R43: 10862.75221 | S43: 4467.099225 | T43: 27500.53997 | U43: 115287.6844 | V43: 77542.61874 | W43: 76901.88764 | X43: 1217761.841 | Y43: 339785.6847 | Z43: 73437.63324 | AA43: 42501.09812 | AB43: 204303.6592 | AC43: 181345.2085 | AD43: 93191.97007 | AE43: 7816.523492 | AF43: 55107.92152 | AG43: 5049.414294 | AH43: 24826.32843 | AI43: 166436.5196 | AJ43: 74435.92753 | AK43: 677330.002 | AL43: 59802.46764 | AM43: 292282.6227 | AN43: 456891.362 | AO43: 494403.6313 | AP43: 4787.780572 | AQ43: 29239.03001 | AR43: 2407920.054 | AS43: 100021.6567 | AT43: 134.3170701 | AU43: 2820932.476 | AV43: 55098.2033 | AW43: 163244.5412 | AX43: 45920.24333 | AY43: 4077.448467 | AZ43: 117822.7032 | BA43: 128910.8967 | BB43: 1913.550358 | BC43: 112878.6757 | BD43: 95831.9635 | BE43: 689.7409631 | BF43: 187526.7317 | BG43: 17141.02121 | BH43: 641352.4812 | BI43: 187106.3322 | BJ43: 12861.28836 | BK43: 22.8440974 | BL43: 3524600.94 | BM43: 43758.54062 | BN43: 1073528.132 | BO43: 496093.0597 | BP43: 173951.2808 | BQ43: 1192.375725 | BR43: 109846.4012 | BS43: 34594.80672 | BT43: 977454.1385 | BU43: 327395.0488 | BV43: 35883.72273 | BW43: 31450.58052 | BX43: 9890.824047 | BY43: 28351264.45 | BZ43: 1246402.149 | CA43: 101534.4272 | CB43: 20121.452 | CC43: 227888.8959 | CD43: 657648.9303 | CE43: 182505.807 | CF43: 2869.5805 | CG43: 97407.36532 | CH43: 16467.32018 | CI43: 127716.3633 | CJ43: 449459.2418 | CK43: 9361.128545 | CL43: 17526.88901 | CM43: 51539.80237 | CN43: 48312.33284 | CO43: 8994.965101 | CP43: 9558.154635 | CQ43: 3379.33008 | CR43: 494453.4773 | CS43: 304783.7263 | CT43: 6120.743456 | CU43: 32880.43679 | CV43: 32228.29225 | CW43: 976.833672 | CX43: 39829.03204 | CY43: 7867.320465 | CZ43: 233917.6013 | DA43: 12961.34836 | DB43: 128313.0166 | DC43: 23132.16278 | DD43: 402290.5504 | DE43: 3141.076555 | DF43: 6469.802379 | DG43: 65780.19473 | DH43: 112928.1822 | DI43: 17325.96865 | DJ43: 99283.6361 | DK43: 42050.90894 | DL43: 38020.2017 | DM43: 853321.6669 | DN43: 121.5104944 | DO43: 15816.37732 | DP43: 38040.12352 | DQ43: 140200.9206 | DR43: 415685.2387 | DS43: 39408.37971 | DT43: 65211.11343 | DU43: 43725.94406 | DV43: 1247596.694 | DW43: 62.87930549 | DX43: 52628.58929 | DY43: 150669.7138 | DZ43: 55111.85892 | EA43: 466942.4316 | EB43: 1945.003174 | EC43: 46731.3543 | ED43: 40457.312 | EE43: 75448.78364 | EF43: 270063.2381 | EG43: 282409.6478 | EH43: 47222.52545 | EI43: 52907.80782 | EJ43: 50996.6187 | EK43: 54615.7367 | EL43: 44365.60957 | EM43: 100291.9075 | EN43: 46346.37732 | EO43: 122807.2149 | EP43: 43305.82506 | EQ43: 36123.67197 | ER43: 38648.36666 | ES43: 26545.10444 | ET43: 46138.33379 | EU43: 40912.99512 | EV43: 31737.94742 | EW43: 288315.3884 | EX43: 50392.95704 | EY43: 38138.14409 | EZ43: 48190.63027 | FA43: 320012.0684 | FB43: 38240.48761 | FC43: 40743.16824 | FD43: 40373.43413 | FE43: 37607.70272 | FF43: 36430.64648 | FG43: 112737.0733 | FH43: 51461.84578 | FI43: 41920.6581 | FJ43: 39328.06541 | FK43: 374.8466282 | FL43: 8111.904282 | FM43: 96071.66939 | FN43: 142654.9248 | FO43: 50605.72796 | FP43: 43671.85323 | FQ43: 92166.78998 | FR43: 0.008905238373 | FS43: 25704.38775 | FT43: 31721.31206 | FU43: 39787.9433 | FV43: 73320.61793 | FW43: 42275.5491 | FX43: 13965.11175 | FY43: 11376.62616 | FZ43: 160085.4704 | GA43: 156090.4852 | GB43: 45826.1537 | GC43: 896972.357 | GD43: 44173.82619 | GE43: 112938.2652 | GF43: 65800.89627 | GG43: 51461.74474 | GH43: 46942.02848 | GI43: 40607.2857 | GJ43: 190355.793 | GK43: 40651.42869 | GL43: 47271.81607 | GM43: 47444.20746 | GN43: 117774.3401 | GO43: 150521.6468 | GP43: 120256.2723 | GQ43: 6575640.905 | GR43: 944998.1757 | GS43: 748063.6762 | GT43: 247502.6148 | GU43: 1621774.137 | GV43: 393162.6525 | GW43: 245770.0668 | GX43: 263017.5527 | GY43: 2432.79911 | GZ43: 139602.4403 | HA43: 111570.756 | HB43: 314676.6351 | HC43: 17851.31827 | HD43: 703289.0207 | HE43: 257188.3991 | HF43: 33742.52359 | HG43: 40980.75504 | HH43: 15651.86847 | HI43: 53032.61159 | HJ43: 46136.52307 | HK43: 72214.72 | HL43: 65811.5365 | HM43: 39091.33163 | HN43: 52506.91494 | HO43: 171190.3105 | HP43: 486090.0231 | HQ43: 48179.53927 | HR43: 127380.7033 | HS43: 51620.36532 | HT43: 50631.1094 | HU43: 1098.297294 | HV43: 2242882.181 | HW43: 286948.5931 | HX43: 111179580
A44: =+MATCH(B44,RUT[EMPRESA],0) -> 36 | B44: CARRAN | C44: 10373239.95 | D44: 10373239.95 | F44: =IFERROR(INDEX($B$9:$B$511,MATCH(0,INDEX(COUNTIF($F$8:F43,$B$9:$B$511),0,0),0)),"") -> CARRAN | H44: 10373239.95 | J44: EGP_SUR | K44: 864446.7409 | L44: 667945.767 | M44: 2398389.147 | N44: 44716.378 | O44: 9362723.89 | P44: 3378135.654 | Q44: 486055.965 | R44: 5672.330229 | S44: 2332.63739 | T44: 14360.27823 | U44: 60201.11705 | V44: 40491.33513 | W44: 40156.75709 | X44: 635892.9272 | Y44: 177429.8606 | Z44: 38347.7869 | AA44: 22193.29493 | AB44: 106683.6285 | AC44: 94695.14612 | AD44: 48663.13974 | AE44: 4081.64539 | AF44: 28776.34719 | AG44: 2636.711653 | AH44: 12963.85395 | AI44: 86910.10187 | AJ44: 38869.07789 | AK44: 353689.3202 | AL44: 31227.75318 | AM44: 152624.6317 | AN44: 238580.3002 | AO44: 258168.5201 | AP44: 2500.091315 | AQ44: 15268.08589 | AR44: 1257371.745 | AS44: 52229.477 | AT44: 70.13791367 | AU44: 1473039.267 | AV44: 28771.27251 | AW44: 85243.30918 | AX44: 23978.70993 | AY44: 2129.168902 | AZ44: 61524.8574 | BA44: 67314.90897 | BB44: 999.2209456 | BC44: 58943.1768 | BD44: 50041.69595 | BE44: 360.1700967 | BF44: 97923.02428 | BG44: 8950.727299 | BH44: 334902.5178 | BI44: 97703.49936 | BJ44: 6715.929199 | BK44: 11.92876922 | BL44: 1840482.049 | BM44: 22849.90837 | BN44: 560576.7263 | BO44: 259050.7087 | BP44: 90834.17252 | BQ44: 622.6367625 | BR44: 57359.77859 | BS44: 18064.77438 | BT44: 510408.6468 | BU44: 170959.6975 | BV44: 18737.82272 | BW44: 16422.91706 | BX44: 5164.807144 | BY44: 14804510.97 | BZ44: 650848.3717 | CA44: 53019.41806 | CB44: 10507.05366 | CC44: 118999.4071 | CD44: 343412.225 | CE44: 95301.18937 | CF44: 1498.442374 | CG44: 50864.34193 | CH44: 8598.932961 | CI44: 66691.14548 | CJ44: 234699.3832 | CK44: 4888.209855 | CL44: 9152.220396 | CM44: 26913.14072 | CN44: 25227.81525 | CO44: 4697.006012 | CP44: 4991.09327 | CQ44: 1764.624267 | CR44: 258194.5487 | CS44: 159152.479 | CT44: 3196.140117 | CU44: 17169.56181 | CV44: 16829.02388 | CW44: 510.0846505 | CX44: 20797.99097 | CY44: 4108.170639 | CZ44: 122147.4867 | DA44: 6768.178696 | DB44: 67002.70694 | DC44: 12079.19168 | DD44: 210068.7565 | DE44: 1640.212641 | DF44: 3378.412293 | DG44: 34349.21277 | DH44: 58969.02818 | DI44: 9047.303465 | DJ44: 51844.09616 | DK44: 21958.21439 | DL44: 19853.4529 | DM44: 445588.9439 | DN44: 63.45055442 | DO44: 8259.022521 | DP44: 19863.85571 | DQ44: 73210.35263 | DR44: 217063.2174 | DS44: 20578.33403 | DT44: 34052.04894 | DU44: 22832.88704 | DV44: 651472.1411 | DW44: 32.83442154 | DX44: 27481.68531 | DY44: 78676.96466 | DZ44: 28778.40322 | EA44: 243828.7846 | EB44: 1015.64503 | EC44: 24402.25722 | ED44: 21126.06726 | EE44: 39397.9728 | EF44: 141022.0761 | EG44: 147469.1451 | EH44: 24658.7378 | EI44: 27627.48811 | EJ44: 26629.50016 | EK44: 28519.33729 | EL44: 23166.90865 | EM44: 52370.59703 | EN44: 24201.22929 | EO44: 64127.67813 | EP44: 22613.5086 | EQ44: 18863.11981 | ER44: 20181.46914 | ES44: 13861.3673 | ET44: 24092.59277 | EU44: 21364.01664 | EV44: 16572.97479 | EW44: 150553.0146 | EX44: 26314.2791 | EY44: 19915.04025 | EZ44: 25164.2644 | FA44: 167104.4404 | FB44: 19968.48217 | FC44: 21275.33615 | FD44: 21082.26777 | FE44: 19638.05349 | FF44: 19023.41628 | FG44: 58869.23463 | FH44: 26872.43322 | FI44: 21890.19978 | FJ44: 20536.39537 | FK44: 195.7380431 | FL44: 4235.887828 | FM44: 50166.86598 | FN44: 74491.78869 | FO44: 26425.38418 | FP44: 22804.6418 | FQ44: 48127.80948 | FR44: 0.004650152358 | FS44: 13422.36045 | FT44: 16564.28811 | FU44: 20776.53518 | FV44: 38286.68364 | FW44: 22075.51737 | FX44: 7292.325555 | FY44: 5940.665791 | FZ44: 83593.7003 | GA44: 81507.59222 | GB44: 23929.57805 | GC44: 468382.5347 | GD44: 23066.76289 | GE44: 58974.29336 | GF44: 34360.02273 | GG44: 26872.38046 | GH44: 24512.26742 | GI44: 21204.38077 | GJ44: 99400.30831 | GK44: 21227.43143 | GL44: 24684.47646 | GM44: 24774.49609 | GN44: 61499.60311 | GO44: 78599.64679 | GP44: 62795.62261 | GQ44: 3433679.232 | GR44: 493460.7375 | GS44: 390625.1491 | GT44: 129241.3319 | GU44: 846860.7475 | GV44: 205302.3354 | GW44: 128336.627 | GX44: 137342.9482 | GY44: 1270.363133 | GZ44: 72897.8372 | HA44: 58260.20509 | HB44: 164318.3748 | HC44: 9321.631414 | HD44: 367244.6442 | HE44: 134299.071 | HF44: 17619.72774 | HG44: 21399.39962 | HH44: 8173.119016 | HI44: 27692.65836 | HJ44: 24091.64725 | HK44: 37709.204 | HL44: 34365.57887 | HM44: 20412.77733 | HN44: 27418.1492 | HO44: 89392.44438 | HP44: 253827.3062 | HQ44: 25158.47288 | HR44: 66515.87001 | HS44: 26955.20922 | HT44: 26438.6379 | HU44: 573.510729 | HV44: 1171191.991 | HW44: 149839.2992 | HX44: 58055940.17
A45: =+MATCH(B45,RUT[EMPRESA],0) -> 77 | B45: DONGO | C45: 69542540.66 | D45: 69542540.66 | F45: =IFERROR(INDEX($B$9:$B$511,MATCH(0,INDEX(COUNTIF($F$8:F44,$B$9:$B$511),0,0),0)),"") -> DONGO | H45: 69542540.66 | J45: ANDES_GENERACION | K45: 4534.219034 | L45: 3503.5269 | M45: 12580.09454 | N45: 234.547535 | O45: 49109.60833 | P45: 17719.08697 | Q45: 2549.473673 | R45: 29.75265736 | S45: 12.23521167 | T45: 75.32291328 | U45: 315.7685001 | V45: 212.3862278 | W45: 210.6312902 | X45: 3335.402492 | Y45: 930.659823 | Z45: 201.1428316 | AA45: 116.4088608 | AB45: 559.5798053 | AC45: 496.6974987 | AD45: 255.2491947 | AE45: 21.40915494 | AF45: 150.9384615 | AG45: 13.83015008 | AH45: 67.99835151 | AI45: 455.8631775 | AJ45: 203.877121 | AK45: 1855.180628 | AL45: 163.7966414 | AM45: 800.550777 | AN45: 1251.407735 | AO45: 1354.152387 | AP45: 13.11354545 | AQ45: 80.08457014 | AR45: 6595.199716 | AS45: 273.9554417 | AT45: 0.36788925 | AU45: 7726.424737 | AV45: 150.9118437 | AW45: 447.1204722 | AX45: 125.773767 | AY45: 11.16797334 | AZ45: 322.7118181 | BA45: 353.0819507 | BB45: 5.241140276 | BC45: 309.1703184 | BD45: 262.4800344 | BE45: 1.889173769 | BF45: 513.628451 | BG45: 46.94859286 | BH45: 1756.639592 | BI45: 512.4769931 | BJ45: 35.22657043 | BK45: 0.06256909752 | BL45: 9653.745389 | BM45: 119.852947 | BN45: 2940.351952 | BO45: 1358.779666 | BP45: 476.4458172 | BQ45: 3.265870904 | BR45: 300.865036 | BS45: 94.753835 | BT45: 2677.209007 | BU45: 896.7223514 | BV45: 98.28412601 | BW45: 86.14192128 | BX45: 27.09058378 | BY45: 77653.01465 | BZ45: 3413.847187 | CA45: 278.0988615 | CB45: 55.11187729 | CC45: 624.1788546 | CD45: 1801.274935 | CE45: 499.8763328 | CF45: 7.859669788 | CG45: 266.7949989 | CH45: 45.10335184 | CI45: 349.8101698 | CJ45: 1231.051446 | CK45: 25.63976832 | CL45: 48.0054698 | CM45: 141.1655214 | CN45: 132.3256075 | CO45: 24.63686084 | CP45: 26.17941515 | CQ45: 9.255854134 | CR45: 1354.288913 | CS45: 834.7908154 | CT45: 16.76447914 | CU45: 90.05824219 | CV45: 88.27204358 | CW45: 2.675509574 | CX45: 109.0901753 | CY45: 21.54828588 | CZ45: 640.6912453 | DA45: 35.50063088 | DB45: 351.4443802 | DC45: 63.35809744 | DD45: 1101.858228 | DE45: 8.603286962 | DF45: 17.720538 | DG45: 180.1694043 | DH45: 309.3059148 | DI45: 47.45515673 | DJ45: 271.9340319 | DK45: 115.17581 | DL45: 104.1358591 | DM45: 2337.214978 | DN45: 0.3328125354 | DO45: 43.32044456 | DP45: 104.1904242 | DQ45: 384.0048885 | DR45: 1138.54576 | DS45: 107.9380249 | DT45: 178.6107126 | DU45: 119.7636663 | DV45: 3417.118999 | DW45: 0.172223981 | DX45: 144.1476666 | DY45: 412.6785073 | DZ45: 150.9492459 | EA45: 1278.937225 | EB45: 5.32728832 | EC45: 127.9953685 | ED45: 110.8110098 | EE45: 206.6512946 | EF45: 739.6927437 | EG45: 773.5090816 | EH45: 129.3406672 | EI45: 144.9124354 | EJ45: 139.6777624 | EK45: 149.5903864 | EL45: 121.5156854 | EM45: 274.6956482 | EN45: 126.9409315 | EO45: 336.3642027 | EP45: 118.6129767 | EQ45: 98.94133767 | ER45: 105.8563786 | ES45: 72.70601238 | ET45: 126.3711083 | EU45: 112.0591082 | EV45: 86.92900807 | EW45: 789.6846761 | EX45: 138.0243565 | EY45: 104.4588987 | EZ45: 131.9922688 | FA45: 876.5006544 | FB45: 104.7392137 | FC45: 111.5939589 | FD45: 110.5812715 | FE45: 103.0060404 | FF45: 99.78212897 | FG45: 308.782475 | FH45: 140.9520013 | FI45: 114.819058 | FJ45: 107.7180471 | FK45: 1.026690389 | FL45: 22.21819148 | FM45: 263.1365795 | FN45: 390.726311 | FO45: 138.6071278 | FP45: 119.6155136 | FQ45: 252.4412661 | FR45: 2.439110281e-05 | FS45: 70.40332195 | FT45: 86.88344448 | FU45: 108.9776348 | FV45: 200.8223312 | FW45: 115.7910907 | FX45: 38.24989992 | FY45: 31.16013819 | FZ45: 438.4678998 | GA45: 427.5257902 | GB45: 125.5160591 | GC45: 2456.772527 | GD45: 120.9903981 | GE45: 309.3335318 | GF45: 180.226105 | GG45: 140.9517246 | GH45: 128.5723969 | GI45: 111.2217819 | GJ45: 521.3771405 | GK45: 111.3426879 | GL45: 129.4756724 | GM45: 129.9478457 | GN45: 322.5793537 | GO45: 412.2729576 | GP45: 329.3772696 | GQ45: 18010.42562 | GR45: 2588.313383 | GS45: 2048.91742 | GT45: 677.9000708 | GU45: 4441.976513 | GV45: 1076.857269 | GW45: 673.154689 | GX45: 720.3948845 | GY45: 6.663342487 | GZ45: 382.3656743 | HA45: 305.587977 | HB45: 861.8871092 | HC45: 48.89406898 | HD45: 1926.281374 | HE45: 704.4290586 | HF45: 92.41946453 | HG45: 112.2447 | HH45: 42.86986121 | HI45: 145.254268 | HJ45: 126.3661488 | HK45: 197.7933196 | HL45: 180.2552482 | HM45: 107.0696425 | HN45: 143.8144053 | HO45: 468.8836265 | HP45: 1331.381737 | HQ45: 131.961891 | HR45: 348.8908102 | HS45: 141.3861802 | HT45: 138.6766466 | HU45: 3.008193727 | HV45: 6143.167377 | HW45: 785.9410768 | HX45: 304516.5612
A46: =+MATCH(B46,RUT[EMPRESA],0) -> 178 | B46: INACAL | C46: 31101728.93 | D46: 31101728.93 | F46: =IFERROR(INDEX($B$9:$B$511,MATCH(0,INDEX(COUNTIF($F$8:F45,$B$9:$B$511),0,0),0)),"") -> INACAL | H46: 31101728.93 | J46: CAREN | K46: 1355424.329 | L46: 1047317.204 | M46: 3760596.053 | N46: 70113.82402 | O46: 14680446.06 | P46: 5296806.659 | Q46: 762119.9194 | R46: 8894.029016 | S46: 3657.499439 | T46: 22516.44847 | U46: 94393.39042 | V46: 63489.09444 | W46: 62964.48697 | X46: 997059.395 | Y46: 278204.2414 | Z46: 60128.08063 | AA46: 34798.36348 | AB46: 167276.4542 | AC46: 148478.9043 | AD46: 76302.21786 | AE46: 6399.887007 | AF46: 45120.37497 | AG46: 4134.277978 | AH46: 20326.90069 | AI46: 136272.2085 | AJ46: 60945.44793 | AK46: 554573.3322 | AL46: 48964.0997 | AM46: 239310.4506 | AN46: 374086.1387 | AO46: 404799.8294 | AP46: 3920.061739 | AQ46: 23939.8613 | AR46: 1971517.937 | AS46: 81894.1185 | AT46: 109.9739638 | AU46: 2309677.585 | AV46: 45112.41804 | AW46: 133658.7319 | AX46: 37597.83603 | AY46: 3338.467478 | AZ46: 96468.97216 | BA46: 105547.5844 | BB46: 1566.745892 | BC46: 92420.98108 | BD46: 78463.74909 | BE46: 564.7349787 | BF46: 153540.1121 | BG46: 14034.44883 | BH46: 525116.2381 | BI46: 153195.9042 | BJ46: 10530.35821 | BK46: 18.70392154 | BL46: 2885815.898 | BM46: 35827.91197 | BN46: 878966.0454 | BO46: 406183.0723 | BP46: 142425.0235 | BQ46: 976.2741605 | BR46: 89938.26428 | BS46: 28324.97775 | BT46: 800304.131 | BU46: 268059.2364 | BV46: 29380.29562 | BW46: 25750.59895 | BX46: 8098.249352 | BY46: 23212990.93 | BZ46: 1020509.045 | CA46: 83132.72035 | CB46: 16474.71787 | CC46: 186587.1938 | CD46: 538459.1818 | CE46: 149429.1604 | CF46: 2349.508829 | CG46: 79753.63118 | CH46: 13482.84676 | CI46: 104569.5436 | CJ46: 368000.9872 | CK46: 7664.553814 | CL46: 14350.38344 | CM46: 42198.92793 | CN46: 39556.3925 | CO46: 7364.752416 | CP46: 7825.871658 | CQ46: 2766.873367 | CR46: 404840.6415 | CS46: 249545.9026 | CT46: 5011.443586 | CU46: 26921.3136 | CV46: 26387.36122 | CW46: 799.7961154 | CX46: 32610.57232 | CY46: 6441.477733 | CZ46: 191523.28 | DA46: 10612.28372 | DB46: 105058.0618 | DC46: 18939.77907 | DD46: 329380.967 | DE46: 2571.799989 | DF46: 5297.24042 | DG46: 53858.44666 | DH46: 92461.51521 | DI46: 14185.87711 | DJ46: 81289.8539 | DK46: 34429.76485 | DL46: 31129.5674 | DM46: 698668.9485 | DN46: 99.48840236 | DO46: 12949.87827 | DP46: 31145.87867 | DQ46: 114791.448 | DR46: 340348.0538 | DS46: 32266.15739 | DT46: 53392.50346 | DU46: 35801.22308 | DV46: 1021487.095 | DW46: 51.48330336 | DX46: 43090.38732 | DY46: 123362.9176 | DZ46: 45123.59877 | EA46: 382315.5913 | EB46: 1592.498321 | EC46: 38261.94439 | ED46: 33124.98525 | EE46: 61774.73791 | EF46: 221118.0214 | EG46: 231226.8156 | EH46: 38664.09758 | EI46: 43319.00137 | EJ46: 41754.18877 | EK46: 44717.39182 | EL46: 36324.95808 | EM46: 82115.39012 | EN46: 37946.73915 | EO46: 100550.1103 | EP46: 35457.24482 | EQ46: 29576.75738 | ER46: 31643.88617 | ES46: 21734.17238 | ET46: 37776.40062 | EU46: 33498.08213 | EV46: 25985.88458 | EW46: 236062.2225 | EX46: 41259.93241 | EY46: 31226.13436 | EZ46: 39456.74683 | FA46: 262014.3189 | FB46: 31309.92954 | FC46: 33359.03401 | FD46: 33056.30909 | FE46: 30791.82813 | FF46: 29828.09702 | FG46: 92305.04217 | FH46: 42135.09989 | FI46: 34323.12016 | FJ46: 32200.39894 | FK46: 306.9108751 | FL46: 6641.734125 | FM46: 78660.01161 | FN46: 116800.698 | FO46: 41434.14155 | FP46: 35756.93546 | FQ46: 75462.83744 | FR46: 0.007291287414 | FS46: 21045.82393 | FT46: 25972.26415 | FU46: 32576.93034 | FV46: 60032.27272 | FW46: 34613.6921 | FX46: 11434.12891 | FY46: 9314.770437 | FZ46: 131072.1989 | GA46: 127801.2494 | GB46: 37520.79885 | GC46: 734408.5563 | GD46: 36167.93278 | GE46: 92469.77084 | GF46: 53875.39633 | GG46: 42135.01717 | GH46: 38434.4368 | GI46: 33247.7783 | GJ46: 155856.4454 | GK46: 33283.92098 | GL46: 38704.45496 | GM46: 38845.60281 | GN46: 96429.37426 | GO46: 123241.6857 | GP46: 98461.49061 | GQ46: 5383897.18 | GR46: 773730.3613 | GS46: 612487.5088 | GT46: 202646.1982 | GU46: 1327850.065 | GV46: 321907.374 | GW46: 201227.6505 | GX46: 215349.2688 | GY46: 1991.888009 | GZ46: 114301.434 | HA46: 91350.10368 | HB46: 257645.8588 | HC46: 14616.01439 | HD46: 575827.6387 | HE46: 210576.5684 | HF46: 27627.15912 | HG46: 33553.5615 | HH46: 12815.18437 | HI46: 43421.18619 | HJ46: 37774.91807 | HK46: 59126.80346 | HL46: 53884.10817 | HM46: 32006.56988 | HN46: 42990.76476 | HO46: 140164.4407 | HP46: 397992.9474 | HQ46: 39447.66592 | HR46: 104294.7174 | HS46: 42264.88997 | HT46: 41454.92296 | HU46: 899.2461404 | HV46: 1836390.889 | HW46: 234943.1399 | HX46: 91029822.95
A47: =+MATCH(B47,RUT[EMPRESA],0) -> 166 | B47: HIDROLIRCAY | C47: 283010299.2 | D47: 283010299.2 | F47: =IFERROR(INDEX($B$9:$B$511,MATCH(0,INDEX(COUNTIF($F$8:F46,$B$9:$B$511),0,0),0)),"") -> HIDROLIRCAY | H47: 283010299.2 | J47: EOLICA_ESPERANZA | K47: 774283.8848 | L47: 598278.2037 | M47: 2148234.215 | N47: 40052.40489 | O47: 8386180.296 | P47: 3025791.959 | Q47: 435359.7313 | R47: 5080.699224 | S47: 2089.340447 | T47: 12862.48359 | U47: 53922.06665 | V47: 36268.03918 | W47: 35968.35804 | X47: 569568.5144 | Y47: 158923.7083 | Z47: 34348.06565 | AA47: 19878.50703 | AB47: 95556.39511 | AC47: 84818.32615 | AD47: 43587.51454 | AE47: 3655.924765 | AF47: 25774.93886 | AG47: 2361.699391 | AH47: 11611.70807 | AI47: 77845.27157 | AJ47: 34814.98536 | AK47: 316799.0899 | AL47: 27970.66019 | AM47: 136705.6953 | AN47: 213696.0821 | AO47: 231241.2266 | AP47: 2239.328722 | AQ47: 13675.60579 | AR47: 1126226.329 | AS47: 46781.87844 | AT47: 62.82244319 | AU47: 1319399.464 | AV47: 25770.39347 | AW47: 76352.32741 | AX47: 21477.70105 | AY47: 1907.093972 | AZ47: 55107.73925 | BA47: 60293.88134 | BB47: 895.0009745 | BC47: 52795.33111 | BD47: 44822.28564 | BE47: 322.6039136 | BF47: 87709.53266 | BG47: 8017.155456 | BH47: 299971.7741 | BI47: 87512.90445 | BJ47: 6015.44954 | BK47: 10.68458395 | BL47: 1648517.513 | BM47: 20466.63488 | BN47: 502107.8857 | BO47: 232031.4018 | BP47: 81360.05683 | BQ47: 557.6949839 | BR47: 51377.08328 | BS47: 16180.59624 | BT47: 457172.3984 | BU47: 153128.3912 | BV47: 16783.44481 | BW47: 14709.98665 | BX47: 4626.111419 | BY47: 13260382.31 | BZ47: 582964.0876 | CA47: 47489.42768 | CB47: 9411.155071 | CC47: 106587.6229 | CD47: 307593.9084 | CE47: 85361.15835 | CF47: 1342.152995 | CG47: 45559.12863 | CH47: 7702.053699 | CI47: 59735.17715 | CJ47: 210219.9494 | CK47: 4378.363567 | CL47: 8197.632575 | CM47: 24106.06711 | CN47: 22596.52316 | CO47: 4207.102519 | CP47: 4470.516116 | CQ47: 1580.57179 | CR47: 231264.5404 | CS47: 142552.6801 | CT47: 2862.77878 | CU47: 15378.75544 | CV47: 15073.73603 | CW47: 456.8821954 | CX47: 18628.73498 | CY47: 3679.683399 | CZ47: 109407.3539 | DA47: 6062.249351 | DB47: 60014.24236 | DC47: 10819.31717 | DD47: 188158.3274 | DE47: 1469.136449 | DF47: 3026.039744 | DG47: 30766.54772 | DH47: 52818.48617 | DI47: 8103.658609 | DJ47: 46436.69329 | DK47: 19667.94567 | DL47: 17782.71339 | DM47: 399113.4701 | DN47: 56.83258371 | DO47: 7397.596335 | DP47: 17792.03118 | DQ47: 65574.42299 | DR47: 194423.2574 | DS47: 18431.98853 | DT47: 30500.37844 | DU47: 20451.3889 | DV47: 583522.7972 | DW47: 29.40975108 | DX47: 24615.3118 | DY47: 70470.86068 | DZ47: 25776.78044 | EA47: 218397.1431 | EB47: 909.7120067 | EC47: 21857.07184 | ED47: 18922.59251 | EE47: 35288.71588 | EF47: 126313.3005 | EG47: 132087.9323 | EH47: 22086.80118 | EI47: 24745.90719 | EJ47: 23852.01061 | EK47: 25544.7354 | EL47: 20750.57165 | EM47: 46908.27948 | EN47: 21677.01137 | EO47: 57439.08259 | EP47: 20254.89189 | EQ47: 16895.67326 | ER47: 18076.51713 | ES47: 12415.60968 | ET47: 21579.70577 | EU47: 19135.72348 | EV47: 14844.39317 | EW47: 134850.1504 | EX47: 23569.66749 | EY47: 17837.87711 | EZ47: 22539.60074 | FA47: 149675.2421 | FB47: 17885.74497 | FC47: 19056.29247 | FD47: 18883.36136 | FE47: 17589.7804 | FF47: 17039.25061 | FG47: 52729.1012 | FH47: 24069.60545 | FI47: 19607.02508 | FJ47: 18394.42413 | FK47: 175.3223249 | FL47: 3794.079528 | FM47: 44934.40028 | FN47: 66722.20369 | FO47: 23669.18417 | FP47: 20426.08967 | FQ47: 43108.01987 | FR47: 0.004165135759 | FS47: 12022.39178 | FT47: 14836.61253 | FU47: 18609.51706 | FV47: 34293.33555 | FW47: 19773.01381 | FX47: 6531.727048 | FY47: 5321.047057 | FZ47: 74874.77475 | GA47: 73006.25031 | GB47: 21433.69369 | GC47: 419529.6614 | GD47: 20660.87121 | GE47: 52823.20218 | GF47: 30776.23019 | GG47: 24069.5582 | GH47: 21955.60784 | GI47: 18992.73783 | GJ47: 89032.73415 | GK47: 19013.38428 | GL47: 22109.85527 | GM47: 22190.48574 | GN47: 55085.11902 | GO47: 70401.60716 | GP47: 56245.96209 | GQ47: 3075542.274 | GR47: 441992.1769 | GS47: 349882.4666 | GT47: 115761.3023 | GU47: 758532.1321 | GV47: 183889.0499 | GW47: 114950.9593 | GX47: 123017.9102 | GY47: 1137.862699 | GZ47: 65294.5033 | HA47: 52183.59418 | HB47: 147179.7666 | HC47: 8349.373816 | HD47: 328940.5771 | HE47: 120291.513 | HF47: 15781.96851 | HG47: 19167.41598 | HH47: 7320.652671 | HI47: 24804.2801 | HJ47: 21578.85887 | HK47: 33776.08774 | HL47: 30781.20681 | HM47: 18283.6996 | HN47: 24558.40258 | HO47: 80068.7027 | HP47: 227352.8066 | HQ47: 22534.41328 | HR47: 59578.18313 | HS47: 24143.74782 | HT47: 23681.05552 | HU47: 513.6928561 | HV47: 1049035.229 | HW47: 134210.8764 | HX47: 52000634.35
A48: =+MATCH(B48,RUT[EMPRESA],0) -> 200 | B48: LOS MORROS | C48: 24987397.88 | D48: 24987397.88 | F48: =IFERROR(INDEX($B$9:$B$511,MATCH(0,INDEX(COUNTIF($F$8:F47,$B$9:$B$511),0,0),0)),"") -> LOS MORROS | H48: 24987397.88 | J48: KDM_ENERGIA | K48: 7579372.867 | L48: 5856474.186 | M48: 21028809.26 | N48: 392068.2283 | O48: 82091321.6 | P48: 29619117.65 | Q48: 4261684.635 | R48: 49734.36048 | S48: 20452.30516 | T48: 125909.3222 | U48: 527836.6978 | V48: 355023.5223 | W48: 352089.9793 | X48: 5575438.452 | Y48: 1555685.281 | Z48: 336229.1299 | AA48: 194588.3413 | AB48: 935390.1877 | AC48: 830276.5077 | AD48: 426672.9962 | AE48: 35787.41275 | AF48: 252307.8112 | AG48: 23118.39447 | AH48: 113665.6294 | AI48: 762018.1057 | AJ48: 340799.7513 | AK48: 3101108.616 | AL48: 273801.4662 | AM48: 1338195.793 | AN48: 2091845.534 | AO48: 2263592.867 | AP48: 21920.52255 | AQ48: 133868.8787 | AR48: 11024495.6 | AS48: 457942.2445 | AT48: 614.9614252 | AU48: 12915444.44 | AV48: 252263.317 | AW48: 747403.8528 | AX48: 210242.6614 | AY48: 18668.31609 | AZ48: 539443.1059 | BA48: 590209.6341 | BB48: 8761.058102 | BC48: 516807.2176 | BD48: 438760.0237 | BE48: 3157.931344 | BF48: 858578.1844 | BG48: 78478.98132 | BH48: 2936388.023 | BI48: 856653.4142 | BJ48: 58884.52017 | BK48: 104.5901216 | BL48: 16137141.88 | BM48: 200345.4549 | BN48: 4915074.38 | BO48: 2271327.798 | BP48: 796423.9206 | BQ48: 5459.209874 | BR48: 502924.1583 | BS48: 158389.9324 | BT48: 4475206.239 | BU48: 1498955.61 | BV48: 164291.1453 | BW48: 143994.3099 | BX48: 45284.45452 | BY48: 129804305.4 | BZ48: 5706566.125 | CA48: 464868.3599 | CB48: 92124.67777 | CC48: 1043373.564 | CD48: 3011000.189 | CE48: 835590.2275 | CF48: 13138.17606 | CG48: 445972.8921 | CH48: 75394.48769 | CI48: 584740.5452 | CJ48: 2057818.085 | CK48: 42859.28026 | CL48: 80245.65038 | CM48: 235971.4242 | CN48: 221194.6779 | CO48: 41182.82624 | CP48: 43761.35061 | CQ48: 15472.02929 | CR48: 2263821.083 | CS48: 1395431.233 | CT48: 28023.40102 | CU48: 150540.8081 | CV48: 147555.0094 | CW48: 4472.365476 | CX48: 182354.4713 | CY48: 36019.98318 | CZ48: 1070975.576 | DA48: 59342.63795 | DB48: 587472.2813 | DC48: 105909.009 | DD48: 1841859.49 | DE48: 14381.20199 | DF48: 29621.54318 | DG48: 301170.0767 | DH48: 517033.8797 | DI48: 79325.7504 | DJ48: 454563.2682 | DK48: 192527.1812 | DL48: 174072.8666 | DM48: 3906874.295 | DN48: 556.3274032 | DO48: 72414.19076 | DP48: 174164.0773 | DQ48: 641900.2282 | DR48: 1903186.145 | DS48: 180428.5437 | DT48: 298564.5773 | DU48: 200196.2138 | DV48: 5712035.266 | DW48: 287.8885557 | DX48: 240956.3598 | DY48: 689830.8745 | DZ48: 252325.8383 | EA48: 2137863.661 | EB48: 8905.062647 | EC48: 213956.2769 | ED48: 185231.0077 | EE48: 345437.043 | EF48: 1236465.876 | EG48: 1292993.06 | EH48: 216205.0701 | EI48: 242234.7426 | EJ48: 233484.4953 | EK48: 250054.377 | EL48: 203124.8781 | EM48: 459179.5693 | EN48: 212193.6864 | EO48: 562264.3485 | EP48: 198272.728 | EQ48: 165389.7363 | ER48: 176948.8765 | ES48: 121534.9266 | ET48: 211241.1735 | EU48: 187317.3214 | EV48: 145309.9994 | EW48: 1320032.086 | EX48: 230720.6721 | EY48: 174612.8577 | EZ48: 220637.4711 | FA48: 1465153.145 | FB48: 175081.4304 | FC48: 186539.7808 | FD48: 184846.9787 | FE48: 172184.2685 | FF48: 166795.1979 | FG48: 516158.9009 | FH48: 235614.5053 | FI48: 191930.8367 | FJ48: 180060.8302 | FK48: 1716.209389 | FL48: 37139.79329 | FM48: 439857.5005 | FN48: 653135.717 | FO48: 231694.829 | FP48: 199948.5626 | FQ48: 421979.28 | FR48: 0.04077201861 | FS48: 117685.7633 | FT48: 145233.8356 | FU48: 182166.3494 | FV48: 335693.3833 | FW48: 193555.6807 | FX48: 63938.2993 | FY48: 52087.09684 | FZ48: 732940.2656 | GA48: 714649.502 | GB48: 209811.8785 | GC48: 4106725.963 | GD48: 202246.8112 | GE48: 517080.0441 | GF48: 301264.8573 | GG48: 235614.0427 | GH48: 214920.8341 | GI48: 185917.6519 | GJ48: 871530.8464 | GK48: 186119.7576 | GL48: 216430.7438 | GM48: 217220.0259 | GN48: 539221.6791 | GO48: 689152.96 | GP48: 550585.0339 | GQ48: 30106117.56 | GR48: 4326608.856 | GS48: 3424957.856 | GT48: 1133173.622 | GU48: 7425180.833 | GV48: 1800068.04 | GW48: 1125241.27 | GX48: 1204207.693 | GY48: 11138.40264 | GZ48: 639160.1277 | HA48: 510818.9976 | HB48: 1440725.232 | HC48: 81731.02734 | HD48: 3219960.19 | HE48: 1177519.316 | HF48: 154487.8129 | HG48: 187627.5555 | HH48: 71660.99839 | HI48: 242806.1481 | HJ48: 211232.8832 | HK48: 330630.1061 | HL48: 301313.5728 | HM48: 178976.961 | HN48: 240399.2823 | HO48: 783783.0087 | HP48: 2225529.586 | HQ48: 220586.6917 | HR48: 583203.7493 | HS48: 236340.2761 | HT48: 231811.0362 | HU48: 5028.478277 | HV48: 10268881.1 | HW48: 1313774.308 | HX48: 509028025.5
A49: =+MATCH(B49,RUT[EMPRESA],0) -> 75 | B49: DIUTO | C49: 122125097.4 | D49: 122125097.4 | F49: =IFERROR(INDEX($B$9:$B$511,MATCH(0,INDEX(COUNTIF($F$8:F48,$B$9:$B$511),0,0),0)),"") -> DIUTO | H49: 122125097.4 | J49: CONEJO_SOLAR | K49: =$HX49*K$75/$HX$75 -> 6795878.841 | L49: 5251079.437 | M49: 18855021.7 | N49: 351539.3983 | O49: 73605387.32 | P49: 26557333.76 | Q49: 3821146.28 | R49: 44593.22612 | S49: 18338.11192 | T49: 112893.8388 | U49: =$HX49*U$75/$HX$75 -> 473273.2258 | V49: 318324.0732 | W49: 315693.7761 | X49: 4999094.895 | Y49: 1394871.168 | Z49: 301472.4925 | AA49: 174473.3785 | AB49: 838697.1451 | AC49: 744449.2639 | AD49: 382567.0062 | AE49: =$HX49*AE$75/$HX$75 -> 32088.0006 | AF49: 226226.2783 | AG49: 20728.60256 | AH49: 101915.7996 | AI49: 683246.8612 | AJ49: 305570.6402 | AK49: 2780541.187 | AL49: 245498.0938 | AM49: 1199863.978 | AN49: 1875607.527 | AO49: =$HX49*AO$75/$HX$75 -> 2029601.015 | AP49: 19654.55691 | AQ49: 120030.601 | AR49: 9884872.758 | AS49: 410603.8936 | AT49: 551.3917063 | AU49: 11580350.66 | AV49: 226186.3835 | AW49: 670143.3111 | AX49: 188509.4821 | AY49: =$HX49*AY$75/$HX$75 -> 16738.53715 | AZ49: 483679.8577 | BA49: 529198.5543 | BB49: 7855.411052 | BC49: 463383.8837 | BD49: 393404.575 | BE49: 2831.490043 | BF49: 769825.343 | BG49: 70366.46145 | BH49: 2632848.071 | BI49: =$HX49*BI$75/$HX$75 -> 768099.54 | BJ49: 52797.51659 | BK49: 93.77844405 | BL49: 14469015.18 | BM49: 179635.3685 | BN49: 4406993.899 | BO49: 2036536.372 | BP49: 714096.0824 | BQ49: 4894.881084 | BR49: 450935.9423 | BS49: =$HX49*BS$75/$HX$75 -> 142016.8672 | BT49: 4012595.755 | BU49: 1344005.75 | BV49: 147308.0606 | BW49: 129109.3473 | BX49: 40603.31531 | BY49: 116386190.3 | BZ49: 5116667.654 | CA49: 416814.0434 | CB49: 82601.57659 | CC49: =$HX49*CC$75/$HX$75 -> 935518.0771 | CD49: 2699747.438 | CE49: 749213.6945 | CF49: 11780.05809 | CG49: 399871.8356 | CH49: 67600.81773 | CI49: 524294.8154 | CJ49: 1845097.56 | CK49: 38428.83587 | CL49: 71950.5066 | CM49: =$HX49*CM$75/$HX$75 -> 211578.6143 | CN49: 198329.3681 | CO49: 36925.68005 | CP49: 39237.6575 | CQ49: 13872.65653 | CR49: 2029805.641 | CS49: 1251182.882 | CT49: 25126.56936 | CU49: 134979.1217 | CV49: 132301.9706 | CW49: =$HX49*CW$75/$HX$75 -> 4010.048647 | CX49: 163504.1467 | CY49: 32296.52979 | CZ49: 960266.8168 | DA49: 53208.27787 | DB49: 526744.1669 | DC49: 94960.99563 | DD49: 1651463.011 | DE49: 12894.59009 | DF49: 26559.50856 | DG49: =$HX49*DG$75/$HX$75 -> 270037.5595 | DH49: 463587.1153 | DI49: 71125.69841 | DJ49: 407574.2084 | DK49: 172625.2844 | DL49: 156078.6271 | DM49: 3503013.352 | DN49: 498.8187934 | DO49: 64928.5997 | DP49: 156160.4091 | DQ49: =$HX49*DQ$75/$HX$75 -> 575545.7946 | DR49: 1706450.214 | DS49: 161777.3058 | DT49: 267701.3955 | DU49: 179501.5547 | DV49: 5121571.44 | DW49: 258.1289744 | DX49: 216048.2478 | DY49: 618521.7598 | DZ49: 226242.4419 | EA49: =$HX49*EA$75/$HX$75 -> 1916868.675 | EB49: 7984.529576 | EC49: 191839.2142 | ED49: 166083.3301 | EE49: 309728.5663 | EF49: 1108650.074 | EG49: 1159333.936 | EH49: 193855.5454 | EI49: 217194.4818 | EJ49: 209348.7639 | EK49: =$HX49*EK$75/$HX$75 -> 224205.7858 | EL49: 182127.4775 | EM49: 411713.3138 | EN49: 190258.826 | EO49: 504142.0255 | EP49: 177776.9032 | EQ49: 148293.0882 | ER49: 158657.3384 | ES49: 108971.6327 | ET49: 189404.7761 | EU49: =$HX49*EU$75/$HX$75 -> 167953.9777 | EV49: 130289.0315 | EW49: 1183577.887 | EX49: 206870.6423 | EY49: 156562.7982 | EZ49: 197829.7608 | FA49: 1313697.509 | FB49: 156982.9337 | FC49: 167256.8129 | FD49: 165738.9989 | FE49: =$HX49*FE$75/$HX$75 -> 154385.2569 | FF49: 149553.2646 | FG49: 462802.5847 | FH49: 211258.5908 | FI49: 172090.5852 | FJ49: 161447.6036 | FK49: 1538.801597 | FL49: 33300.58302 | FM49: 394388.6036 | FN49: 585619.8498 | FO49: =$HX49*FO$75/$HX$75 -> 207744.0989 | FP49: 179279.5037 | FQ49: 378358.4883 | FR49: 0.03655733838 | FS49: 105520.3647 | FT49: 130220.7409 | FU49: 163335.4713 | FV49: 300992.1271 | FW49: 173547.466 | FX49: 57328.87707 | FY49: =$HX49*FY$75/$HX$75 -> 46702.7557 | FZ49: 657174.8521 | GA49: 640774.8392 | GB49: 188123.2301 | GC49: 3682205.978 | GD49: 181340.178 | GE49: 463628.5077 | GF49: 270122.5425 | GG49: 211258.1761 | GH49: 192704.0633 | GI49: =$HX49*GI$75/$HX$75 -> 166698.9947 | GJ49: 781439.064 | GK49: 166880.2082 | GL49: 194057.8908 | GM49: 194765.5833 | GN49: 483481.3202 | GO49: 617913.9226 | GP49: 493670.0236 | GQ49: 26993991.58 | GR49: 3879359.162 | GS49: =$HX49*GS$75/$HX$75 -> 3070913.522 | GT49: 1016035.333 | GU49: 6657625.928 | GV49: 1613991.622 | GW49: 1008922.964 | GX49: 1079726.479 | GY49: 9987.005013 | GZ49: 573088.9434 | HA49: 458014.6772 | HB49: 1291794.756 | HC49: =$HX49*HC$75/$HX$75 -> 73282.33735 | HD49: 2887106.85 | HE49: 1055796.93 | HF49: 138518.1172 | HG49: 168232.1423 | HH49: 64253.26623 | HI49: 217706.82 | HJ49: 189397.3429 | HK49: 296452.2503 | HL49: 270166.2222 | HM49: =$HX49*HM$75/$HX$75 -> 160475.776 | HN49: 215548.7564 | HO49: 702761.8852 | HP49: 1995472.408 | HQ49: 197784.2306 | HR49: 522916.8811 | HS49: 211909.3373 | HT49: 207848.2935 | HU49: 4508.675022 | HV49: 9207367.55 | HW49: 1177966.987 | HX49: 456408841.3
A50: =+MATCH(B50,RUT[EMPRESA],0) -> 195 | B50: LICAN | C50: 190903932.6 | D50: 190903932.6 | F50: =IFERROR(INDEX($B$9:$B$511,MATCH(0,INDEX(COUNTIF($F$8:F49,$B$9:$B$511),0,0),0)),"") -> LICAN | H50: 190903932.6 | J50: SAN_JUAN_LAP | K50: 2207215.38 | L50: 1705484.098 | M50: 6123872.256 | N50: 114175.5444 | O50: 23906097.61 | P50: 8625485.665 | Q50: 1241059.918 | R50: 14483.31508 | S50: 5955.986505 | T50: 36666.48908 | U50: 153713.1499 | V50: 103387.6275 | W50: 102533.3403 | X50: 1623642.71 | Y50: 453036.4898 | Z50: 97914.44751 | AA50: 56666.7437 | AB50: 272398.2109 | AC50: 241787.6927 | AD50: 124252.9185 | AE50: 10421.77621 | AF50: 73475.43012 | AG50: 6732.387592 | AH50: 33100.96097 | AI50: 221909.9274 | AJ50: 99245.47398 | AK50: 903084.563 | AL50: 79734.67171 | AM50: 389700.6242 | AN50: 609173.5709 | AO50: 659188.7056 | AP50: 6383.551168 | AQ50: 38984.41906 | AR50: 3210481.483 | AS50: 133358.9445 | AT50: 179.085043 | AU50: 3761151.234 | AV50: 73462.4728 | AW50: 217654.0603 | AX50: 61225.49238 | AY50: 5436.464879 | AZ50: 157093.0921 | BA50: 171876.9883 | BB50: 2551.338023 | BC50: 150501.2168 | BD50: 127772.8236 | BE50: 919.6321061 | BF50: 250029.5218 | BG50: 22854.13551 | BH50: 855115.7094 | BI50: 249469.0029 | BJ50: 17147.96473 | BK50: 30.45805095 | BL50: 4699352.885 | BM50: 58343.29266 | BN50: 1431335.805 | BO50: 661441.2217 | BP50: 231929.3638 | BQ50: 1589.795384 | BR50: 146458.2831 | BS50: 46125.27987 | BT50: 1303240.283 | BU50: 436516.0463 | BV50: 47843.79249 | BW50: 41933.08089 | BX50: 13187.44258 | BY50: 37800760.61 | BZ50: 1661828.853 | CA50: 135375.9225 | CB50: 26827.94596 | CC50: 303844.4234 | CD50: 876843.7764 | CE50: 243335.1194 | CF50: 3826.013678 | CG50: 129873.308 | CH50: 21955.88946 | CI50: 170284.316 | CJ50: 599264.3199 | CK50: 12481.1992 | CL50: 23368.61332 | CM50: 68718.05436 | CN50: 64414.86699 | CO50: 11992.99323 | CP50: 12743.89423 | CQ50: 4505.663147 | CR50: 659255.1653 | CS50: 406368.3544 | CT50: 8160.79151 | CU50: 43839.50925 | CV50: 42970.00449 | CW50: 1302.413015 | CX50: 53104.07613 | CY50: 10489.50385 | CZ50: 311882.5006 | DA50: 17281.37479 | DB50: 171079.8344 | DC50: 30842.12873 | DD50: 536374.2708 | DE50: 4187.999557 | DF50: 8626.192015 | DG50: 87704.7794 | DH50: 150567.2239 | DI50: 23100.72606 | DJ50: 132374.9411 | DK50: 56066.50615 | DL50: 50692.36139 | DM50: 1137734.372 | DN50: 162.0100267 | DO50: 21087.98688 | DP50: 50718.92317 | DQ50: 186929.985 | DR50: 554233.418 | DS50: 52543.22009 | DT50: 86946.02292 | DU50: 58299.83164 | DV50: 1663421.541 | DW50: 83.83702176 | DX50: 70169.73472 | DY50: 200888.0342 | DZ50: 73480.67985 | EA50: 622574.669 | EB50: 2593.274085 | EC50: 62306.94721 | ED50: 53941.76224 | EE50: 100595.9157 | EF50: 360075.5033 | EG50: 376536.98 | EH50: 62961.82604 | EI50: 70542.01699 | EJ50: 67993.8272 | EK50: 72819.19974 | EL50: 59152.69811 | EM50: 133719.2701 | EN50: 61793.65713 | EO50: 163738.9451 | EP50: 57739.68668 | EQ50: 48163.71698 | ER50: 51529.89417 | ES50: 35392.60622 | ET50: 61516.27254 | EU50: 54549.32487 | EV50: 42316.22738 | EW50: 384411.108 | EX50: 67188.96468 | EY50: 50849.61405 | EZ50: 64252.60087 | FA50: 426672.3135 | FB50: 50986.06874 | FC50: 54322.89457 | FD50: 53829.92782 | FE50: 50142.3762 | FF50: 48573.00631 | FG50: 150312.4183 | FH50: 68614.11478 | FI50: 55892.84261 | FJ50: 52436.13697 | FK50: 499.7832703 | FL50: 10815.60762 | FM50: 128092.4236 | FN50: 190201.9105 | FO50: 67472.6523 | FP50: 58227.7123 | FQ50: 122886.0452 | FR50: 0.01187336052 | FS50: 34271.67807 | FT50: 42294.04745 | FU50: 53049.29248 | FV50: 97758.43091 | FW50: 56366.01904 | FX50: 18619.69322 | FY50: 15168.46358 | FZ50: 213442.0691 | GA50: 208115.5526 | GB50: 61100.04261 | GC50: 1195933.868 | GD50: 58896.9932 | GE50: 150580.6676 | GF50: 87732.38078 | GG50: 68613.98008 | GH50: 62587.83923 | GI50: 54141.72228 | GJ50: 253801.5113 | GK50: 54200.57816 | GL50: 63027.54526 | GM50: 63257.39483 | GN50: 157028.6097 | GO50: 200690.6164 | GP50: 160337.7715 | GQ50: 8767306.594 | GR50: 1259966.725 | GS50: 997393.82 | GT50: 329995.4086 | GU50: 2162312.585 | GV50: 524204.0382 | GW50: 327685.4011 | GX50: 350681.4861 | GY50: 3243.652746 | GZ50: 186132.0309 | HA50: 148757.3666 | HB50: 419558.5765 | HC50: 23801.17508 | HD50: 937695.7407 | HE50: 342909.4715 | HF50: 44988.93018 | HG50: 54639.66921 | HH50: 20868.64713 | HI50: 70708.41794 | HJ50: 61513.85831 | HK50: 96283.93643 | HL50: 87746.56741 | HM50: 52120.49967 | HN50: 70007.50623 | HO50: 228248.1601 | HP50: 648104.1661 | HQ50: 64237.81323 | HR50: 169836.7804 | HS50: 68825.469 | HT50: 67506.4934 | HU50: 1464.360546 | HV50: 2990436.372 | HW50: 382588.7589 | HX50: 148235811.4
A51: =+MATCH(B51,RUT[EMPRESA],0) -> 111 | B51: ENERGIA PACIFICO | C51: 206577767.4 | D51: 206577767.4 | F51: =IFERROR(INDEX($B$9:$B$511,MATCH(0,INDEX(COUNTIF($F$8:F50,$B$9:$B$511),0,0),0)),"") -> ENERGIA PACIFICO | H51: 206577767.4 | J51: SAFIRA_ENERGIA_CHILE | K51: 285658.0553 | L51: 220723.9381 | M51: 792552.2156 | N51: 14776.61142 | O51: 3093929.762 | P51: 1116311.296 | Q51: 160618.11 | R51: 1874.432219 | S51: 770.8244234 | T51: 4745.381017 | U51: 19893.57263 | V51: 13380.43804 | W51: 13269.87609 | X51: 210132.0167 | Y51: 58632.03194 | Z51: 12672.09848 | AA51: 7333.816153 | AB51: 35253.80618 | AC51: 31292.18957 | AD51: 16080.82628 | AE51: 1348.787414 | AF51: 9509.198183 | AG51: 871.3063368 | AH51: 4283.929981 | AI51: 28719.60702 | AJ51: 12844.36007 | AK51: 116877.3027 | AL51: 10319.26991 | AM51: 50435.0973 | AN51: 78839.31002 | AO51: 85312.27421 | AP51: 826.1598887 | AQ51: 5045.367769 | AR51: 415500.8639 | AS51: 17259.32915 | AT51: 23.17720581 | AU51: 486768.6031 | AV51: 9507.521246 | AW51: 28168.81224 | AX51: 7923.809904 | AY51: 703.5878778 | AZ51: 20331.00512 | BA51: 22244.33858 | BB51: 330.1944454 | BC51: 19477.8839 | BD51: 16536.37278 | BE51: 119.0188875 | BF51: 32358.848 | BG51: 2957.784712 | BH51: 110669.1684 | BI51: 32286.30557 | BJ51: 2219.291466 | BK51: 3.941884278 | BL51: 608190.7632 | BM51: 7550.795303 | BN51: 185243.6361 | BO51: 85603.79509 | BP51: 30016.32357 | BQ51: 205.7514921 | BR51: 18954.64698 | BS51: 5969.538754 | BT51: 168665.4996 | BU51: 56493.95435 | BV51: 6191.948845 | BW51: 5426.983905 | BX51: 1706.720258 | BY51: 4892178.563 | BZ51: 215074.0715 | CA51: 17520.36666 | CB51: 3472.075693 | CC51: 39323.57843 | CD51: 113481.2172 | CE51: 31492.45771 | CF51: 495.1631076 | CG51: 16808.21769 | CH51: 2841.533609 | CI51: 22038.21476 | CJ51: 77556.85367 | CK51: 1615.318163 | CL51: 3024.368485 | CM51: 8893.498094 | CN51: 8336.579115 | CO51: 1552.134492 | CP51: 1649.316181 | CQ51: 583.1234162 | CR51: 85320.87543 | CS51: 52592.23676 | CT51: 1056.170528 | CU51: 5673.714071 | CV51: 5561.18267 | CW51: 168.5584345 | CX51: 6872.735327 | CY51: 1357.552733 | CZ51: 40363.86726 | DA51: 2236.557411 | DB51: 22141.17083 | DC51: 3991.591666 | DD51: 69417.61665 | DE51: 542.0113596 | DF51: 1116.402712 | DG51: 11350.76212 | DH51: 19486.42654 | DI51: 2989.698488 | DJ51: 17131.97932 | DK51: 7256.133344 | DL51: 6560.610942 | DM51: 147245.7066 | DN51: 20.96735534 | DO51: 2729.209563 | DP51: 6564.04857 | DQ51: 24192.49906 | DR51: 71728.94943 | DS51: 6800.149277 | DT51: 11252.56377 | DU51: 7545.170572 | DV51: 215280.1973 | DW51: 10.8501965 | DX51: 9081.374724 | DY51: 25998.95131 | DZ51: 9509.877604 | EA51: 80573.6816 | EB51: 335.621815 | EC51: 8063.771906 | ED51: 6981.148755 | EE51: 13019.13439 | EF51: 46601.01092 | EG51: 48731.45704 | EH51: 8148.526396 | EI51: 9129.555536 | EJ51: 8799.768535 | EK51: 9424.268776 | EL51: 7655.548643 | EM51: 17305.96253 | EN51: 7997.341849 | EO51: 21191.11214 | EP51: 7472.676551 | EQ51: 6233.353507 | ER51: 6669.004526 | ES51: 4580.514959 | ET51: 7961.442705 | EU51: 7059.779577 | EV51: 5476.570765 | EW51: 49750.52754 | EX51: 8695.603141 | EY51: 6580.962599 | EZ51: 8315.578616 | FA51: 55219.97737 | FB51: 6598.62258 | FC51: 7030.474942 | FD51: 6966.675133 | FE51: 6489.4318 | FF51: 6286.323777 | FG51: 19453.44957 | FH51: 8880.046222 | FI51: 7233.65779 | FJ51: 6786.290569 | FK51: 64.68200537 | FL51: 1399.757119 | FM51: 16577.73545 | FN51: 24615.95202 | FO51: 8732.318023 | FP51: 7535.836879 | FQ51: 15903.92538 | FR51: 0.001536651614 | FS51: 4435.444316 | FT51: 5473.700236 | FU51: 6865.645222 | FV51: 12651.9068 | FW51: 7294.896334 | FX51: 2409.762728 | FY51: 1963.104211 | FZ51: 27623.69587 | GA51: 26934.33752 | GB51: 7907.574182 | GC51: 154777.8917 | GD51: 7622.455286 | GE51: 19488.16643 | GF51: 11354.33429 | GG51: 8880.028788 | GH51: 8100.124983 | GI51: 7007.027605 | GJ51: 32847.01929 | GK51: 7014.644739 | GL51: 8157.031785 | GM51: 8186.778941 | GN51: 20322.6598 | GO51: 25973.40147 | GP51: 20750.93188 | GQ51: 1134665.776 | GR51: 163065.0311 | GS51: 129082.817 | GT51: 42708.04179 | GU51: 279846.7307 | GV51: 67842.54382 | GW51: 42409.08037 | GX51: 45385.23619 | GY51: 419.7938924 | GZ51: 24089.22774 | HA51: 19252.19461 | HB51: 54299.31676 | HC51: 3080.350676 | HD51: 121356.6851 | HE51: 44379.38121 | HF51: 5822.472253 | HG51: 7071.471951 | HH51: 2700.822588 | HI51: 9151.091166 | HJ51: 7961.130255 | HK51: 12461.07756 | HL51: 11356.17033 | HM51: 6745.440754 | HN51: 9060.379096 | HO51: 29539.90178 | HP51: 83877.7119 | HQ51: 8313.664798 | HR51: 21980.29465 | HS51: 8907.399708 | HT51: 8736.697742 | HU51: 189.5177017 | HV51: 387022.6016 | HW51: 49514.67892 | HX51: 19184694.89
A52: =+MATCH(B52,RUT[EMPRESA],0) -> 78 | B52: DONGUIL | C52: 2000488.99 | D52: 2000488.99 | F52: =IFERROR(INDEX($B$9:$B$511,MATCH(0,INDEX(COUNTIF($F$8:F51,$B$9:$B$511),0,0),0)),"") -> DONGUIL | H52: 2000488.99 | J52: RIO_COLORADO | K52: 1115994.331 | L52: 862313.0314 | M52: 3096302.601 | N52: 57728.51236 | O52: 12087207.1 | P52: 4361148.075 | Q52: 627494.646 | R52: 7322.936256 | S52: 3011.41757 | T52: 18539.0127 | U52: 77719.19563 | V52: 52274.01335 | W52: 51842.07558 | X52: 820933.0529 | Y52: 229060.6341 | Z52: 49506.70848 | AA52: 28651.37916 | AB52: 137727.7732 | AC52: 122250.7313 | AD52: 62823.75249 | AE52: 5269.373926 | AF52: 37150.0508 | AG52: 3403.975188 | AH52: 16736.23931 | AI52: 112200.2969 | AJ52: 50179.69128 | AK52: 456610.2892 | AL52: 40314.79775 | AM52: 197037.2676 | AN52: 308005.3981 | AO52: 333293.6447 | AP52: 3227.599346 | AQ52: 19710.98565 | AR52: 1623257.598 | AS52: 67427.86744 | AT52: 90.54752637 | AU52: 1901682.769 | AV52: 37143.49943 | AW52: 110048.4799 | AX52: 30956.33668 | AY52: 2748.741261 | AZ52: 79428.1346 | BA52: 86903.04824 | BB52: 1289.98683 | BC52: 76095.20409 | BD52: 64603.45834 | BE52: 464.9769236 | BF52: 126417.8981 | BG52: 11555.32256 | BH52: 432356.6666 | BI52: 126134.493 | BJ52: 8670.214787 | BK52: 15.39995259 | BL52: 2376048.676 | BM52: 29499.06224 | BN52: 723700.3961 | BO52: 334432.5436 | BP52: 117266.243 | BQ52: 803.8194425 | BR52: 74051.04875 | BS52: 23321.48975 | BT52: 658933.7775 | BU52: 220707.7015 | BV52: 24190.39016 | BW52: 21201.86412 | BX52: 6667.727717 | BY52: 19112513.87 | BZ52: 840240.4208 | CA52: 68447.67549 | CB52: 13564.52835 | CC52: 153627.352 | CD52: 443342.6356 | CE52: 123033.1287 | CF52: 1934.477992 | CG52: 65665.48819 | CH52: 11101.15868 | CI52: 86097.7742 | CJ52: 302995.163 | CK52: 6310.642669 | CL52: 11815.44865 | CM52: 34744.66507 | CN52: 32568.92239 | CO52: 6063.799925 | CP52: 6443.464395 | CQ52: 2278.116842 | CR52: 333327.2475 | CS52: 205464.6701 | CT52: 4126.193187 | CU52: 22165.77696 | CV52: 21726.14501 | CW52: 658.5155007 | CX52: 26850.05209 | CY52: 5303.617826 | CZ52: 157691.4994 | DA52: 8737.6685 | DB52: 86499.99773 | DC52: 15594.14688 | DD52: 271197.2067 | DE52: 2117.502355 | DF52: 4361.505214 | DG52: 44344.57893 | DH52: 76128.57804 | DI52: 11680.00167 | DJ52: 66930.34364 | DK52: 28347.89192 | DL52: 25630.66045 | DM52: 575252.0218 | DN52: 81.91419517 | DO52: 10662.33682 | DP52: 25644.0904 | DQ52: 94514.02227 | DR52: 280227.0038 | DS52: 26566.47661 | DT52: 43960.94263 | DU52: 29477.08783 | DV52: 841045.7025 | DW52: 42.38899469 | DX52: 35478.65191 | DY52: 101571.3779 | DZ52: 37152.70513 | EA52: 314781.1526 | EB52: 1311.190201 | EC52: 31503.13309 | ED52: 27273.59614 | EE52: 50862.49068 | EF52: 182058.4543 | EG52: 190381.5726 | EH52: 31834.24761 | EI52: 35666.88226 | EJ52: 34378.48721 | EK52: 36818.25292 | EL52: 29908.30725 | EM52: 67610.05236 | EN52: 31243.60753 | EO52: 82788.35686 | EP52: 29193.87188 | EQ52: 24352.14778 | ER52: 26054.12698 | ES52: 17894.92238 | ET52: 31103.35858 | EU52: 27580.78703 | EV52: 21395.58753 | EW52: 194362.8253 | EX52: 33971.53916 | EY52: 25710.16926 | EZ52: 32486.87871 | FA52: 215730.5932 | FB52: 25779.16238 | FC52: 27466.30118 | FD52: 27217.05133 | FE52: 25352.5814 | FF52: 24559.08933 | FG52: 75999.7453 | FH52: 34692.11199 | FI52: 28260.08557 | FJ52: 26512.33411 | FK52: 252.6963619 | FL52: 5468.49977 | FM52: 64765.05191 | FN52: 96168.34672 | FO52: 34114.97499 | FP52: 29440.62344 | FQ52: 62132.64509 | FR52: 0.006003312206 | FS52: 17328.16779 | FT52: 21384.3731 | FU52: 26822.35283 | FV52: 49427.82463 | FW52: 28499.32919 | FX52: 9414.338207 | FY52: 7669.355477 | FZ52: 107918.8471 | GA52: 105225.697 | GB52: 30892.90778 | GC52: 604678.3785 | GD52: 29779.01981 | GE52: 76135.37534 | GF52: 44358.53452 | GG52: 34692.04388 | GH52: 31645.15544 | GI52: 27374.69832 | GJ52: 128325.0608 | GK52: 27404.45655 | GL52: 31867.47603 | GM52: 31983.69071 | GN52: 79395.5315 | GO52: 101471.5611 | GP52: 81068.68306 | GQ52: 4432854.423 | GR52: 637054.1523 | GS52: 504294.1705 | GT52: 166849.6009 | GU52: 1093290.944 | GV52: 265043.7924 | GW52: 165681.6337 | GX52: 177308.7276 | GY52: 1640.029383 | GZ52: 94110.56717 | HA52: 75213.49267 | HB52: 212133.8032 | HC52: 12034.15702 | HD52: 474110.112 | HE52: 173379.1046 | HF52: 22746.93784 | HG52: 27626.4662 | HH52: 10551.43603 | HI52: 35751.01656 | HJ52: 31102.13792 | HK52: 48682.30269 | HL52: 44365.70744 | HM52: 26352.74414 | HN52: 35396.62726 | HO52: 115404.9827 | HP52: 327689.1698 | HQ52: 32479.4019 | HR52: 85871.49487 | HS52: 34798.97519 | HT52: 34132.08545 | HU52: 740.3980977 | HV52: 1512000.174 | HW52: 193441.424 | HX52: 74949788.18
A53: =+MATCH(B53,RUT[EMPRESA],0) -> 245 | B53: PEHUI | C53: 12217008.85 | D53: 12217008.85 | F53: =IFERROR(INDEX($B$9:$B$511,MATCH(0,INDEX(COUNTIF($F$8:F52,$B$9:$B$511),0,0),0)),"") -> PEHUI | H53: 12217008.85 | J53: ENERKEY | K53: 6212.867471 | L53: 4800.594799 | M53: 17237.46902 | N53: 321.3811993 | O53: 67290.85778 | P53: 24279.00775 | Q53: 3493.334119 | R53: 40.76761968 | S53: 16.76490439 | T53: 103.2087939 | U53: 432.6716085 | V53: 291.0153824 | W53: 288.6107357 | X53: 4570.227749 | Y53: 1275.206623 | Z53: 275.6094812 | AA53: 159.5054891 | AB53: 766.7461903 | AC53: 680.5837366 | AD53: 349.7469811 | AE53: 29.33520444 | AF53: 206.8185614 | AG53: 18.95031733 | AH53: 93.17254924 | AI53: 624.6318244 | AJ53: 279.3560531 | AK53: 2542.001454 | AL53: 224.4370679 | AM53: 1096.928897 | AN53: 1714.70111 | AO53: 1855.483658 | AP53: 17.96841294 | AQ53: 109.7333007 | AR53: 9036.859816 | AS53: 375.3786131 | AT53: 0.5040883859 | AU53: 10586.88444 | AV53: 206.7820892 | AW53: 612.6524142 | AX53: 172.3374499 | AY53: 15.30255548 | AZ53: 442.1854663 | BA53: 483.7991614 | BB53: 7.181503517 | BC53: 423.6306628 | BD53: 359.6548061 | BE53: 2.58857946 | BF53: 703.7828283 | BG53: 64.32979599 | BH53: 2406.978777 | BI53: 702.2050802 | BJ53: 48.26807261 | BK53: 0.08573328897 | BL53: 13227.73343 | BM53: 164.2246373 | BN53: 4028.922481 | BO53: 1861.824037 | BP53: 652.834523 | BQ53: 4.474954332 | BR53: 412.2506173 | BS53: 129.833388 | BT53: 3668.359343 | BU53: 1228.704896 | BV53: 134.6706555 | BW53: 118.0331909 | BX53: 37.11999916 | BY53: 106401.5402 | BZ53: 4677.714063 | CA53: 381.0560006 | CB53: 75.51527334 | CC53: 855.2609553 | CD53: 2468.138916 | CE53: 684.9394317 | CF53: 10.76945917 | CG53: 365.5672472 | CH53: 61.80141396 | CI53: 479.3161091 | CJ53: 1686.808561 | CK53: 35.13206605 | CL53: 65.77794755 | CM53: 193.4275053 | CN53: 181.3148981 | CO53: 33.7578644 | CP53: 35.87149972 | CQ53: 12.68253577 | CR53: 1855.670728 | CS53: 1143.845206 | CT53: 22.97098714 | CU53: 123.3994033 | CV53: 120.9519223 | CW53: 3.666030749 | CX53: 149.4772962 | CY53: 29.52584413 | CZ53: 877.8865264 | DA53: 48.64359511 | DB53: 481.5553333 | DC53: 86.81439069 | DD53: 1509.785719 | DE53: 11.78837664 | DF53: 24.28099598 | DG53: 246.8713185 | DH53: 423.8164594 | DI53: 65.0238988 | DJ53: 372.6088414 | DK53: 157.815941 | DL53: 142.6888042 | DM53: 3202.493484 | DN53: 0.4560256485 | DO53: 59.35844273 | DP53: 142.7635702 | DQ53: 526.1703201 | DR53: 1560.055627 | DS53: 147.8985992 | DT53: 244.7355715 | DU53: 164.1023032 | DV53: 4682.197159 | DW53: 0.2359843584 | DX53: 197.5136936 | DY53: 565.4594221 | DZ53: 206.8333384 | EA53: 1752.422507 | EB53: 7.299545097 | EC53: 175.3815278 | ED53: 151.8352142 | EE53: 283.1572751 | EF53: 1013.540138 | EG53: 1059.875885 | EH53: 177.22488 | EI53: 198.5615933 | EJ53: 191.3889515 | EK53: 204.9714049 | EL53: 166.5029508 | EM53: 376.3928573 | EN53: 173.9367194 | EO53: 460.8922061 | EP53: 162.5256078 | EQ53: 135.5711786 | ER53: 145.0462905 | ES53: 99.62306981 | ET53: 173.1559376 | EU53: 153.5453808 | EV53: 119.1116712 | EW53: 1082.039972 | EX53: 189.1234253 | EY53: 143.1314388 | EZ53: 180.8581516 | FA53: 1200.996768 | FB53: 143.5155313 | FC53: 152.908025 | FD53: 151.5204228 | FE53: 141.1407065 | FF53: 136.7232458 | FG53: 423.0992328 | FH53: 193.1349363 | FI53: 157.3271131 | FJ53: 147.5971818 | FK53: 1.40678941 | FL53: 30.44376068 | FM53: 360.5544159 | FN53: 535.3801326 | FO53: 189.9219489 | FP53: 163.8993018 | FQ53: 345.8995075 | FR53: 3.342112238e-05 | FS53: 96.46788247 | FT53: 119.0492391 | FU53: 149.3230913 | FV53: 275.1703259 | FW53: 158.6590096 | FX53: 52.41069239 | FY53: 42.69617491 | FZ53: 600.7965058 | GA53: 585.8034329 | GB53: 171.984334 | GC53: 3366.313361 | GD53: 165.7831929 | GE53: 423.8543007 | GF53: 246.9490108 | GG53: 193.1345571 | GH53: 176.1721824 | GI53: 152.3980615 | GJ53: 714.4002203 | GK53: 152.5637289 | GL53: 177.4098664 | GM53: 178.0568467 | GN53: 442.0039611 | GO53: 564.9037306 | GP53: 451.3185863 | GQ53: 24678.20515 | GR53: 3546.552979 | GS53: 2807.463049 | GT53: 928.8707201 | GU53: 6086.475131 | GV53: 1475.528961 | GW53: 922.3685137 | GX53: 987.0978687 | GY53: 9.130230252 | GZ53: 523.9242397 | HA53: 418.722075 | HB53: 1180.973029 | HC53: 66.99552193 | HD53: 2639.424959 | HE53: 965.2212104 | HF53: 126.6347921 | HG53: 153.799682 | HH53: 58.74104542 | HI53: 199.0299786 | HJ53: 173.149142 | HK53: 271.0199204 | HL53: 246.9889433 | HM53: 146.7087262 | HN53: 197.057053 | HO53: 642.4726748 | HP53: 1824.282908 | HQ53: 180.8165274 | HR53: 478.0563863 | HS53: 193.7298559 | HT53: 190.0172048 | HU53: 4.121880486 | HV53: 8417.477075 | HW53: 1076.910426 | HX53: 417254.002
A54: =+MATCH(B54,RUT[EMPRESA],0) -> 61 | B54: COMASA | C54: 1006106584 | D54: 1006106584 | F54: =IFERROR(INDEX($B$9:$B$511,MATCH(0,INDEX(COUNTIF($F$8:F53,$B$9:$B$511),0,0),0)),"") -> COMASA | H54: 1006106584 | J54: EL_PELICANO | K54: 8510668.323 | L54: 6576073.01 | M54: 23612668.75 | N54: 440242.578 | O54: 92178076.29 | P54: 33258488.63 | Q54: 4785327.897 | R54: 55845.33889 | S54: 22965.32823 | T54: 141380.0982 | U54: 592693.2403 | V54: 398646.1015 | W54: 395352.1071 | X54: 6260505.751 | Y54: 1746836.008 | Z54: 377542.3976 | AA54: 218497.8706 | AB54: 1050323.791 | AC54: 932294.5444 | AD54: 479099.3156 | AE54: 40184.69673 | AF54: 283309.4682 | AG54: 25959.00624 | AH54: 127631.9939 | AI54: 855649.0712 | AJ54: 382674.6221 | AK54: 3482149.161 | AL54: 307444.0994 | AM54: 1502623.073 | AN54: 2348875.538 | AO54: 2541725.871 | AP54: 24613.94896 | AQ54: 150317.6642 | AR54: 12379101.43 | AS54: 514210.6904 | AT54: 690.5231888 | AU54: 14502395.62 | AV54: 283259.5069 | AW54: 839239.1305 | AX54: 236075.674 | AY54: 20962.13621 | AZ54: 605725.7552 | BA54: 662730.0866 | BB54: 9837.550016 | BC54: 580308.5418 | BD54: 492671.5047 | BE54: 3545.953832 | BF54: 964073.7149 | BG54: 88121.87922 | BH54: 3297188.959 | BI54: 961912.4437 | BJ54: 66119.80032 | BK54: 117.441357 | BL54: 18119950.64 | BM54: 224962.3744 | BN54: 5519001.185 | BO54: 2550411.212 | BP54: 894282.4099 | BQ54: 6129.995893 | BR54: 564719.6381 | BS54: 177851.6777 | BT54: 5025085.406 | BU54: 1683135.829 | BV54: 184477.9865 | BW54: 161687.2311 | BX54: 50848.66247 | BY54: 145753667.2 | BZ54: 6407745.391 | CA54: 521987.8339 | CB54: 103444.2546 | CC54: 1171575.34 | CD54: 3380968.898 | CE54: 938261.1735 | CF54: 14752.4948 | CG54: 500770.6353 | CH54: 84658.38657 | CI54: 656588.9978 | CJ54: 2310667.056 | CK54: 48125.50132 | CL54: 90105.62308 | CM54: 264965.7907 | CN54: 248373.3907 | CO54: 46243.05742 | CP54: 49138.41117 | CQ54: 17373.11409 | CR54: 2541982.129 | CS54: 1566891.166 | CT54: 31466.70253 | CU54: 169038.1129 | CV54: 165685.4421 | CW54: 5021.895591 | CX54: 204760.7962 | CY54: 40445.84364 | CZ54: 1202568.876 | DA54: 66634.20811 | DB54: 659656.3889 | DC54: 118922.2993 | DD54: 2068173.118 | DE54: 16148.25426 | DF54: 33261.2122 | DG54: 338175.5558 | DH54: 580563.0543 | DI54: 89072.69281 | DJ54: 510416.5312 | DK54: 216183.4509 | DL54: 195461.6111 | DM54: 4386921.172 | DN54: 624.6846659 | DO54: 81311.89352 | DP54: 195564.0291 | DQ54: 720772.0263 | DR54: 2137035.124 | DS54: 202598.2253 | DT54: 335249.9125 | DU54: 224794.7957 | DV54: 6413886.538 | DW54: 323.2621029 | DX54: 270563.2372 | DY54: 774592.0243 | DZ54: 283329.7103 | EA54: 2400548.022 | EB54: 9999.248739 | EC54: 240245.5903 | ED54: 207990.7794 | EE54: 387881.7088 | EF54: 1388393.361 | EG54: 1451866.173 | EH54: 242770.698 | EI54: 271998.6979 | EJ54: 262173.287 | EK54: 280779.1492 | EL54: 228083.3119 | EM54: 515600.0481 | EN54: 238266.4261 | EO54: 631351.0978 | EP54: 222634.9666 | EQ54: 185711.564 | ER54: 198691.0031 | ES54: 136468.2103 | ET54: 237196.8757 | EU54: 210333.4434 | EV54: 163164.5825 | EW54: 1482227.547 | EX54: 259069.8663 | EY54: 196067.9521 | EZ54: 247747.7186 | FA54: 1645179.975 | FB54: 196594.0995 | FC54: 209460.3645 | FD54: 207559.5638 | FE54: 193340.9565 | FF54: 187289.718 | FG54: 579580.5648 | FH54: 264565.0164 | FI54: 215513.8322 | FJ54: 202185.33 | FK54: 1927.084092 | FL54: 41703.24746 | FM54: 493903.8311 | FN54: 733388.0461 | FO54: 260163.7202 | FP54: 224516.7151 | FQ54: 473828.8713 | FR54: 0.04578177289 | FS54: 132146.0912 | FT54: 163079.0602 | FU54: 204549.5592 | FV54: 376940.8227 | FW54: 217338.3246 | FX54: 71794.54923 | FY54: 58487.16153 | FZ54: 822998.3682 | GA54: 802460.1752 | GB54: 235591.9598 | GC54: 4611329.087 | GD54: 227097.3548 | GE54: 580614.8912 | GF54: 338281.9822 | GG54: 264564.497 | GH54: 241328.6649 | GI54: 208761.7932 | GJ54: 978617.9012 | GK54: 208988.732 | GL54: 243024.1008 | GM54: 243910.3638 | GN54: 605477.1211 | GO54: 773830.8128 | GP54: 618236.7182 | GQ54: 33805327.37 | GR54: 4858229.511 | GS54: 3845790.522 | GT54: 1272409.342 | GU54: 8337530.35 | GV54: 2021246.654 | GW54: 1263502.324 | GX54: 1352171.538 | GY54: 12507.00449 | GZ54: 717695.2431 | HA54: 573584.535 | HB54: 1617750.546 | HC54: 91773.51182 | HD54: 3615604.308 | HE54: 1322203.897 | HF54: 173470.0956 | HG54: 210681.7967 | HH54: 80466.15461 | HI54: 272640.3133 | HJ54: 237187.5668 | HK54: 371255.4086 | HL54: 338336.6836 | HM54: 200968.2831 | HN54: 269937.7102 | HO54: 880088.2792 | HP54: 2498985.666 | HQ54: 247690.6998 | HR54: 654863.3723 | HS54: 265379.9643 | HT54: 260294.206 | HU54: 5646.339287 | HV54: 11530642.79 | HW54: 1475200.862 | HX54: 571573501.9
A55: =+MATCH(B55,RUT[EMPRESA],0) -> 44 | B55: CHACAYES | C55: -1457557497 | D55: -1457557497 | F55: =IFERROR(INDEX($B$9:$B$511,MATCH(0,INDEX(COUNTIF($F$8:F54,$B$9:$B$511),0,0),0)),"") -> CHACAYES | G55: -1457557497 | J55: CH_EL_MANZANO | K55: 208.9498704 | L55: 161.4526088 | M55: 579.7269835 | N55: 10.80862585 | O55: 2263.112174 | P55: 816.5465537 | Q55: 117.4870887 | R55: 1.371088131 | S55: 0.5638337878 | T55: 3.471096754 | U55: 14.55152181 | V55: 9.787368993 | W55: 9.706496413 | X55: 153.7049519 | Y55: 42.88748469 | Z55: 9.269240918 | AA55: 5.36445553 | AB55: 25.78704887 | AC55: 22.88925109 | AD55: 11.76261794 | AE55: 0.9865955123 | AF55: 6.955678969 | AG55: 0.6373331427 | AH55: 3.133559854 | AI55: 21.00748798 | AJ55: 9.395244846 | AK55: 85.49206575 | AL55: 7.548220926 | AM55: 36.89168517 | AN55: 57.66847216 | AO55: 62.40324159 | AP55: 0.6043099379 | AQ55: 3.690527614 | AR55: 303.9257953 | AS55: 12.62465567 | AT55: 0.01695339606 | AU55: 356.0559019 | AV55: 6.954452343 | AW55: 20.60459895 | AX55: 5.796017377 | AY55: 0.5146523725 | AZ55: 14.8714899 | BA55: 16.27103307 | BB55: 0.241526837 | BC55: 14.2474586 | BD55: 12.09583586 | BE55: 0.0870585676 | BF55: 23.66947814 | BG55: 2.163526358 | BH55: 80.95101107 | BI55: 23.61641564 | BJ55: 1.623341809 | BK55: 0.002883364196 | BL55: 444.8723877 | BM55: 5.523168944 | BN55: 135.4998854 | BO55: 62.61647993 | BP55: 21.95599529 | BQ55: 0.1505007361 | BR55: 13.86472727 | BS55: 4.366529582 | BT55: 123.3735007 | BU55: 41.32354827 | BV55: 4.529215558 | BW55: 3.969667798 | BX55: 1.248412114 | BY55: 3578.474535 | BZ55: 157.3199093 | CA55: 12.81559639 | CB55: 2.539714013 | CC55: 28.76395909 | CD55: 83.0079362 | CE55: 23.03574093 | CF55: 0.3621962176 | CG55: 12.29468185 | CH55: 2.078492338 | CI55: 16.12025998 | CJ55: 56.73039573 | CK55: 1.18155436 | CL55: 2.212230291 | CM55: 6.505313746 | CN55: 6.097945054 | CO55: 1.135337495 | CP55: 1.20642284 | CQ55: 0.4265364129 | CR55: 62.40953311 | CS55: 38.46956475 | CT55: 0.7725554759 | CU55: 4.150143144 | CV55: 4.067829968 | CW55: 0.1232951859 | CX55: 5.027189428 | CY55: 0.9930070667 | CZ55: 29.5248976 | DA55: 1.635971303 | DB55: 16.19556911 | DC55: 2.919723585 | DD55: 50.7768002 | DE55: 0.3964642384 | DF55: 0.8166134215 | DG55: 8.302724988 | DH55: 14.25370727 | DI55: 2.18687028 | DJ55: 12.53150329 | DK55: 5.307633002 | DL55: 4.798880272 | DM55: 107.7055967 | DN55: 0.01533696004 | DO55: 1.996330837 | DP55: 4.801394788 | DQ55: 17.69605109 | DR55: 52.46746733 | DS55: 4.974095019 | DT55: 8.23089599 | DU55: 5.519054631 | DV55: 157.4706839 | DW55: 0.007936577006 | DX55: 6.642739584 | DY55: 19.01741402 | DZ55: 6.956175944 | EA55: 58.93711034 | EB55: 0.245496787 | EC55: 5.898395173 | ED55: 5.106490436 | EE55: 9.523086756 | EF55: 34.08717175 | EG55: 35.64552598 | EH55: 5.960390413 | EI55: 6.67798233 | EJ55: 6.436753526 | EK55: 6.893555783 | EL55: 5.599792714 | EM55: 12.65876652 | EN55: 5.849803678 | EO55: 15.5006311 | EP55: 5.466027538 | EQ55: 4.559501765 | ER55: 4.878166764 | ES55: 3.350502425 | ET55: 5.823544585 | EU55: 5.164006406 | EV55: 4.005939024 | EW55: 36.39094395 | EX55: 6.360559821 | EY55: 4.813766867 | EZ55: 6.08258385 | FA55: 40.39167424 | FB55: 4.826684587 | FC55: 5.142570989 | FD55: 5.095903437 | FE55: 4.74681497 | FF55: 4.598247849 | FG55: 14.22958566 | FH55: 6.495474126 | FI55: 5.291192842 | FJ55: 4.96395781 | FK55: 0.04731284971 | FL55: 1.023878246 | FM55: 12.12609135 | FN55: 18.0057936 | FO55: 6.387415601 | FP55: 5.512227329 | FQ55: 11.63322051 | FR55: 1.124012257e-06 | FS55: 3.244387818 | FT55: 4.003839323 | FU55: 5.02200324 | FV55: 9.254471336 | FW55: 5.335986909 | FX55: 1.762665538 | FY55: 1.435948901 | FZ55: 20.20586349 | GA55: 19.70161957 | GB55: 5.784141457 | GC55: 113.2151529 | GD55: 5.575585965 | GE55: 14.25497995 | GF55: 8.30533792 | GG55: 6.495461374 | GH55: 5.924986303 | GI55: 5.12542 | GJ55: 24.02656006 | GK55: 5.130991694 | GL55: 5.966611837 | GM55: 5.988370945 | GN55: 14.86538556 | GO55: 18.99872512 | GP55: 15.1786531 | GQ55: 829.9722778 | GR55: 119.2769343 | GS55: 94.42001506 | GT55: 31.23958743 | GU55: 204.6990694 | GV55: 49.62468403 | GW55: 31.02090658 | GX55: 33.19787082 | GY55: 0.3070660104 | GZ55: 17.62051138 | HA55: 14.08237399 | HB55: 39.71824 | HC55: 2.253179501 | HD55: 88.76859288 | HE55: 32.46211959 | HF55: 4.258955069 | HG55: 5.17255901 | HH55: 1.975566658 | HI55: 6.693734965 | HJ55: 5.823316038 | HK55: 9.114885761 | HL55: 8.306680922 | HM55: 4.934077457 | HN55: 6.627381943 | HO55: 21.60750777 | HP55: 61.35390444 | HQ55: 6.081183952 | HR55: 16.07789325 | HS55: 6.515482339 | HT55: 6.390619227 | HU55: 0.1386262297 | HV55: 283.0948434 | HW55: 36.21842812 | HX55: 14033.00007
A56: =+MATCH(B56,RUT[EMPRESA],0) -> 109 | B56: ENERBOSCH | C56: 41792270.98 | D56: 41792270.98 | F56: =IFERROR(INDEX($B$9:$B$511,MATCH(0,INDEX(COUNTIF($F$8:F55,$B$9:$B$511),0,0),0)),"") -> ENERBOSCH | H56: 41792270.98 | J56: LIPIGAS | K56: 932494.5261 | L56: 720525.328 | M56: 2587186.284 | N56: 48236.37564 | O56: 10099741.68 | P56: 3644056.779 | Q56: 524317.4684 | R56: 6118.846469 | S56: 2516.258659 | T56: 15490.69505 | U56: 64940.04716 | V56: 43678.74454 | W56: 43317.82908 | X56: 685949.3428 | Y56: 191396.839 | Z56: 41366.45981 | AA56: 23940.31357 | AB56: 115081.5833 | AC56: 102149.3878 | AD56: 52493.81979 | AE56: 4402.94561 | AF56: 31041.57256 | AG56: 2844.269134 | AH56: 13984.34661 | AI56: 93751.51808 | AJ56: 41928.78595 | AK56: 381531.1452 | AL56: 33685.94908 | AM56: 164638.9845 | AN56: 257360.9379 | AO56: 278491.1093 | AP56: 2696.894274 | AQ56: 16469.96379 | AR56: 1356349.922 | AS56: 56340.89308 | AT56: 75.65905159 | AU56: 1588994.427 | AV56: 31036.09841 | AW56: 91953.51829 | AX56: 25866.27341 | AY56: 2296.773476 | AZ56: 66367.9901 | BA56: 72613.82474 | BB56: 1077.877928 | BC56: 63583.08397 | BD56: 53980.89361 | BE56: 388.5220775 | BF56: 105631.3591 | BG56: 9655.313412 | BH56: 361265.4775 | BI56: 105394.5536 | BJ56: 7244.595785 | BK56: 12.86778175 | BL56: 1985361.683 | BM56: 24648.61451 | BN56: 604704.3779 | BO56: 279442.7423 | BP56: 97984.48493 | BQ56: 671.6496752 | BR56: 61875.04334 | BS56: 19486.80287 | BT56: 550587.1521 | BU56: 184417.3557 | BV56: 20212.83243 | BW56: 17715.70131 | BX56: 5571.372026 | BY56: 15969897.03 | BZ56: 702082.0545 | CA56: 57193.01696 | CB56: 11334.15116 | CC56: 128366.8391 | CD56: 370445.0545 | CE56: 102803.1378 | CF56: 1616.397223 | CG56: 54868.29688 | CH56: 9275.826418 | CI56: 71940.95965 | CJ56: 253174.5216 | CK56: 5273.001466 | CL56: 9872.667704 | CM56: 29031.69764 | CN56: 27213.7062 | CO56: 5066.74638 | CP56: 5383.98369 | CQ56: 1903.532505 | CR56: 278519.1869 | CS56: 171680.693 | CT56: 3447.734861 | CU56: 18521.12067 | CV56: 18153.77617 | CW56: 550.2376514 | CX56: 22435.17364 | CY56: 4431.558882 | CZ56: 131762.7302 | DA56: 7300.958275 | DB56: 72277.04669 | DC56: 13030.04522 | DD56: 226605.0137 | DE56: 1769.327406 | DF56: 3644.355194 | DG56: 37053.12469 | DH56: 63610.97034 | DI56: 9759.49189 | DJ56: 55925.17571 | DK56: 23686.72788 | DL56: 21416.28313 | DM56: 480664.9518 | DN56: 68.44527473 | DO56: 8909.158803 | DP56: 21427.50483 | DQ56: 78973.34775 | DR56: 234150.0667 | DS56: 22198.22567 | DT56: 36732.56863 | DU56: 24630.25329 | DV56: 702754.9261 | DW56: 35.41909167 | DX56: 29644.99709 | DY56: 84870.28224 | DZ56: 31043.79045 | EA56: 263022.5741 | EB56: 1095.594889 | EC56: 26323.16163 | ED56: 22789.07553 | EE56: 42499.31457 | EF56: 152123.0954 | EG56: 159077.6668 | EH56: 26599.83193 | EI56: 29802.27725 | EJ56: 28725.72937 | EK56: 30764.33128 | EL56: 24990.56852 | EM56: 56493.12184 | EN56: 26106.30913 | EO56: 69175.70048 | EP56: 24393.60574 | EQ56: 20347.9927 | ER56: 21770.12025 | ES56: 14952.51069 | ET56: 25989.12092 | EU56: 23045.75589 | EV56: 17877.57133 | EW56: 162404.2933 | EX56: 28385.69464 | EY56: 21482.71853 | EZ56: 27145.15273 | FA56: 180258.6192 | FB56: 21540.3673 | FC56: 22950.09462 | FD56: 22741.82823 | FE56: 21183.92784 | FF56: 20520.90743 | FG56: 63503.3212 | FH56: 28987.78571 | FI56: 23613.35928 | FJ56: 22152.98568 | FK56: 211.1462107 | FL56: 4569.329752 | FM56: 54115.91681 | FN56: 80355.65629 | FO56: 28505.54572 | FP56: 24599.78463 | FQ56: 51916.34923 | FR56: 0.005016204486 | FS56: 14478.94596 | FT56: 17868.20085 | FU56: 22412.02889 | FV56: 41300.54662 | FW56: 23813.26475 | FX56: 7866.365087 | FY56: 6408.304953 | FZ56: 90174.05498 | GA56: 87923.73201 | GB56: 25813.27395 | GC56: 505252.8155 | GD56: 24882.53944 | GE56: 63616.64998 | GF56: 37064.7856 | GG56: 28987.7288 | GH56: 26441.83164 | GI56: 22873.55376 | GJ56: 107224.9324 | GK56: 22898.41893 | GL56: 26627.59669 | GM56: 26724.70251 | GN56: 66340.74784 | GO56: 84786.87803 | GP56: 67738.7878 | GQ56: 3703972.653 | GR56: 532305.132 | GS56: 421374.5001 | GT56: 139414.9909 | GU56: 913524.1931 | GV56: 221463.388 | GW56: 138439.0692 | GX56: 148154.3528 | GY56: 1370.36397 | GZ56: 78636.23163 | HA56: 62846.34988 | HB56: 177253.2393 | HC56: 10055.41447 | HD56: 396153.5214 | HE56: 144870.8667 | HF56: 19006.72291 | HG56: 23083.92416 | HH56: 8816.49312 | HI56: 29872.57758 | HJ56: 25988.10097 | HK56: 40677.60876 | HL56: 37070.77911 | HM56: 22019.63663 | HN56: 29576.45952 | HO56: 96429.26639 | HP56: 273808.1624 | HQ56: 27138.90531 | HR56: 71751.88679 | HS56: 29077.0777 | HT56: 28519.84276 | HU56: 618.6565235 | HV56: 1263386.243 | HW56: 161634.3954 | HX56: 62626005.57
A57: =+MATCH(B57,RUT[EMPRESA],0) -> 168 | B57: HIDROMUCHI | C57: 56121.99973 | D57: 56121.99973 | F57: =IFERROR(INDEX($B$9:$B$511,MATCH(0,INDEX(COUNTIF($F$8:F56,$B$9:$B$511),0,0),0)),"") -> HIDROMUCHI | H57: 56121.99973 | J57: AASA_ENERGIA | K57: 25001.6926 | L57: 19318.45416 | M57: 69366.66581 | N57: 1293.295566 | O57: 270790.4761 | P57: 97703.08011 | Q57: 14057.80281 | R57: 164.0562107 | S57: 67.46498101 | T57: 415.3306907 | U57: 1741.148126 | V57: 1171.098074 | W57: 1161.421345 | X57: 18391.41585 | Y57: 5131.660079 | Z57: 1109.101966 | AA57: 641.8786853 | AB57: 3085.524138 | AC57: 2738.790977 | AD57: 1407.444557 | AE57: 118.0501221 | AF57: 832.2749713 | AG57: 76.25947451 | AH57: 374.9430429 | AI57: 2513.63045 | AJ57: 1124.178843 | AK57: 10229.4696 | AL57: 903.1750002 | AM57: 4414.238546 | AN57: 6900.264693 | AO57: 7466.798903 | AP57: 72.30811519 | AQ57: 441.586476 | AR57: 36365.9441 | AS57: 1510.59084 | AT57: 2.028542042 | AU57: 42603.52107 | AV57: 832.1282005 | AW57: 2465.423156 | AX57: 693.5167964 | AY57: 61.5802268 | AZ57: 1779.433595 | BA57: 1946.894565 | BB57: 28.89965771 | BC57: 1704.765739 | BD57: 1447.315422 | BE57: 10.41690785 | BF57: 2832.148281 | BG57: 258.8746326 | BH57: 9686.114139 | BI57: 2825.799139 | BJ57: 194.2393781 | BK57: 0.3450061258 | BL57: 53230.77091 | BM57: 660.8693838 | BN57: 16213.1064 | BO57: 7492.313729 | BP57: 2627.123166 | BQ57: 18.00801854 | BR57: 1658.970396 | BS57: 522.472831 | BT57: 14762.13569 | BU57: 4944.528795 | BV57: 541.9388625 | BW57: 474.986722 | BX57: 149.3775318 | BY57: 428178.8743 | BZ57: 18823.96005 | CA57: 1533.437665 | CB57: 303.8869989 | CC57: 3441.723422 | CD57: 9932.233506 | CE57: 2756.319074 | CF57: 43.33823454 | CG57: 1471.108144 | CH57: 248.69997 | CI57: 1928.853959 | CJ57: 6788.020074 | CK57: 141.3777325 | CL57: 264.7022541 | CM57: 778.3869605 | CN57: 729.6436576 | CO57: 135.8476987 | CP57: 144.3533462 | CQ57: 51.03679775 | CR57: 7467.551709 | CS57: 4603.038185 | CT57: 92.43937067 | CU57: 496.5813231 | CV57: 486.7322205 | CW57: 14.75276501 | CX57: 601.5234394 | CY57: 118.8172904 | CZ57: 3532.772777 | DA57: 195.7505479 | DB57: 1937.864998 | DC57: 349.3566729 | DD57: 6075.648419 | DE57: 47.43854109 | DF57: 97.7110811 | DG57: 993.4544465 | DH57: 1705.513418 | DI57: 261.6678268 | DJ57: 1499.444782 | DK57: 635.0796412 | DL57: 574.2053303 | DM57: 12887.40795 | DN57: 1.835128969 | DO57: 238.8690158 | DP57: 574.5062023 | DQ57: 2117.403704 | DR57: 6277.943542 | DS57: 595.1704797 | DT57: 984.859818 | DU57: 660.3770897 | DV57: 18842.00083 | DW57: 0.9496433674 | DX57: 794.8305148 | DY57: 2275.510094 | DZ57: 832.3344363 | EA57: 7052.062355 | EB57: 29.37467819 | EC57: 705.7667116 | ED57: 611.012124 | EE57: 1139.475642 | EF57: 4078.667232 | EG57: 4265.130585 | EH57: 713.1846915 | EI57: 799.0474512 | EJ57: 770.1834544 | EK57: 824.8416822 | EL57: 670.0377261 | EM57: 1514.67234 | EN57: 699.9525438 | EO57: 1854.71287 | EP57: 654.0321847 | EQ57: 545.5627289 | ER57: 583.6922781 | ES57: 400.9010941 | ET57: 696.8105377 | EU57: 617.8941412 | EV57: 479.3267201 | EW57: 4354.322844 | EX57: 761.066571 | EY57: 575.9865714 | EZ57: 727.8056279 | FA57: 4833.026318 | FB57: 577.5322285 | FC57: 615.3293073 | FD57: 609.745347 | FE57: 567.9755076 | FF57: 550.1988538 | FG57: 1702.627169 | FH57: 777.2096104 | FI57: 633.1125099 | FJ57: 593.9575219 | FK57: 5.661172806 | FL57: 122.5111512 | FM57: 1450.935613 | FN57: 2154.465641 | FO57: 764.2799732 | FP57: 659.5601755 | FQ57: 1391.961634 | FR57: 0.0001344925885 | FS57: 388.2040546 | FT57: 479.0754824 | FU57: 600.9028911 | FV57: 1107.334726 | FW57: 638.4723002 | FX57: 210.9100228 | FY57: 171.8170628 | FZ57: 2417.712855 | GA57: 2357.378041 | GB57: 692.0957949 | GC57: 13546.6485 | GD57: 667.1412912 | GE57: 1705.665698 | GF57: 993.7670944 | GG57: 777.2080845 | GH57: 708.9484474 | GI57: 613.2771225 | GJ57: 2874.87457 | GK57: 613.943798 | GL57: 713.9291099 | GM57: 716.5326747 | GN57: 1778.703185 | GO57: 2273.273892 | GP57: 1816.186907 | GQ57: 99309.52201 | GR57: 14271.96504 | GS57: 11297.73465 | GT57: 3737.942313 | GU57: 24493.06716 | GV57: 5937.793084 | GW57: 3711.776268 | GX57: 3972.258798 | GY57: 36.74168347 | GZ57: 2108.365074 | HA57: 1685.012701 | HB57: 4752.447202 | HC57: 269.6019917 | HD57: 10621.51925 | HE57: 3884.223203 | HF57: 509.6011077 | HG57: 618.9174946 | HH57: 236.3844983 | HI57: 800.9323174 | HJ57: 696.783191 | HK57: 1090.63275 | HL57: 993.92779 | HM57: 590.3822175 | HN57: 792.9929113 | HO57: 2585.425231 | HP57: 7341.241492 | HQ57: 727.6381244 | HR57: 1923.784608 | HS57: 779.6036736 | HT57: 764.6632999 | HU57: 16.58718608 | HV57: 33873.4369 | HW57: 4333.68063 | HX57: 1679104.913
A58: =+MATCH(B58,RUT[EMPRESA],0) -> 184 | B58: LA ARENA SPA | C58: -155182847 | D58: -155182847 | F58: =IFERROR(INDEX($B$9:$B$511,MATCH(0,INDEX(COUNTIF($F$8:F57,$B$9:$B$511),0,0),0)),"") -> LA ARENA SPA | G58: -155182847 | J58: ERSA | K58: 11991160.07 | L58: 9265399.741 | M58: 33269219.27 | N58: 620282.5702 | O58: 129874884.7 | P58: 46859758.32 | Q58: 6742318.066 | R58: 78683.64413 | S58: 32357.14475 | T58: 199198.3853 | U58: 835078.8969 | V58: 561674.9511 | W58: 557033.8568 | X58: 8820779.252 | Y58: 2461215.663 | Z58: 531940.7537 | AA58: 307853.9595 | AB58: 1479860.361 | AC58: 1313562.306 | AD58: 675030.0168 | AE58: 56618.48312 | AF58: 399170.6706 | AG58: 36575.10635 | AH58: 179827.9067 | AI58: 1205572.181 | AJ58: 539171.8339 | AK58: 4906196.127 | AL58: 433175.3122 | AM58: 2117130.301 | AN58: 3309463.074 | AO58: 3581180.774 | AP58: 34679.97937 | AQ58: 211791.0256 | AR58: 17441613.4 | AS58: 724500.4109 | AT58: 972.9170229 | AU58: 20433242.21 | AV58: 399100.2773 | AW58: 1182451.291 | AX58: 332620.317 | AY58: 29534.73465 | AZ58: 853441.1413 | BA58: 933757.7554 | BB58: 13860.67844 | BC58: 817629.3975 | BD58: 694152.6387 | BE58: 4996.094122 | BF58: 1358337.77 | BG58: 124159.8802 | BH58: 4645595.278 | BI58: 1355292.633 | BJ58: 93159.91167 | BK58: 165.4697442 | BL58: 25530219.28 | BM58: 316962.163 | BN58: 7776031.694 | BO58: 3593418.04 | BP58: 1260004.869 | BQ58: 8636.89656 | BR58: 795665.3129 | BS58: 250585.2483 | BT58: 7080125.928 | BU58: 2371464.892 | BV58: 259921.4282 | BW58: 227810.2489 | BX58: 71643.54523 | BY58: 205360553.1 | BZ58: 9028233.476 | CA58: 735458.0665 | CB58: 145748.4381 | CC58: 1650698.5 | CD58: 4763637.555 | CE58: 1321969.026 | CF58: 20785.62103 | CG58: 705563.9601 | CH58: 119279.9703 | CI58: 925105.2294 | CJ58: 3255628.992 | CK58: 67806.73006 | CL58: 126954.8887 | CM58: 373325.23 | CN58: 349947.2629 | CO58: 65154.44881 | CP58: 69233.87583 | CQ58: 24477.9592 | CR58: 3581541.83 | CS58: 2207681.238 | CT58: 44335.20994 | CU58: 238167.3204 | CV58: 233443.5536 | CW58: 7075.631618 | CX58: 288499.0214 | CY58: 56986.42771 | CZ58: 1694367.039 | DA58: 93884.68979 | DB58: 929427.0495 | DC58: 167556.3272 | DD58: 2913965.621 | DE58: 22752.18517 | DF58: 46863.59571 | DG58: 476474.5924 | DH58: 817987.9946 | DI58: 125499.535 | DJ58: 719154.6063 | DK58: 304593.0432 | DL58: 275396.8757 | DM58: 6180980.386 | DN58: 880.1534188 | DO58: 114564.9077 | DP58: 275541.1781 | DQ58: 1015536.314 | DR58: 3010989.181 | DS58: 285452.0534 | DT58: 472352.4888 | DU58: 316726.0519 | DV58: 9036886.084 | DW58: 455.4621885 | DX58: 381211.7877 | DY58: 1091366.341 | DZ58: 399199.1909 | EA58: 3382267.348 | EB58: 14088.50488 | EC58: 338495.5469 | ED58: 293049.9267 | EE58: 546508.3918 | EF58: 1956185.624 | EG58: 2045616.046 | EH58: 342053.3134 | EI58: 383234.2891 | EJ58: 369390.7141 | EK58: 395605.5616 | EL58: 321359.4277 | EM58: 726457.9553 | EN58: 335706.991 | EO58: 889546.1303 | EP58: 313682.9471 | EQ58: 261659.485 | ER58: 279946.948 | ES58: 192277.7497 | ET58: 334200.0411 | EU58: 296350.638 | EV58: 229891.7725 | EW58: 2088393.896 | EX58: 365018.1299 | EY58: 276251.1837 | EZ58: 349065.7182 | FA58: 2317986.751 | FB58: 276992.5024 | FC58: 295120.5079 | FD58: 292442.3628 | FE58: 272408.9659 | FF58: 263883.0351 | FG58: 816603.7098 | FH58: 372760.5564 | FI58: 303649.5797 | FJ58: 284870.3019 | FK58: 2715.177344 | FL58: 58758.0548 | FM58: 695888.9328 | FN58: 1033311.735 | FO58: 366559.3223 | FP58: 316334.2485 | FQ58: 667604.191 | FR58: 0.06450451905 | FS58: 186188.0726 | FT58: 229771.2753 | FU58: 288201.3977 | FV58: 531093.1609 | FW58: 306220.2097 | FX58: 101155.3851 | FY58: 82405.85688 | FZ58: 1159568.766 | GA58: 1130631.349 | GB58: 331938.7848 | GC58: 6497161.341 | GD58: 319970.2572 | GE58: 818061.0304 | GF58: 476624.5426 | GG58: 372759.8246 | GH58: 340021.5517 | GI58: 294136.2515 | GJ58: 1378829.894 | GK58: 294455.9984 | GL58: 342410.3469 | GM58: 343659.0528 | GN58: 853090.8269 | GO58: 1090293.828 | GP58: 871068.542 | GQ58: 47630230.24 | GR58: 6845033.257 | GS58: 5418550.928 | GT58: 1792769.207 | GU58: 11747216.22 | GV58: 2847848.283 | GW58: 1780219.607 | GX58: 1905150.657 | GY58: 17621.82324 | GZ58: 1011201.261 | HA58: 808155.5655 | HB58: 2279339.884 | HC58: 129304.8711 | HD58: 5094228.602 | HE58: 1862927.559 | HF58: 244411.7905 | HG58: 296841.4526 | HH58: 113373.2985 | HI58: 384138.2972 | HJ58: 334186.9253 | HK58: 523082.6607 | HL58: 476701.6145 | HM58: 283155.5361 | HN58: 380330.4475 | HO58: 1240005.958 | HP58: 3520961.69 | HQ58: 348985.3812 | HR58: 922673.8984 | HS58: 373908.7825 | HT58: 366743.1712 | HU58: 7955.44552 | HV58: 16246172.23 | HW58: 2078493.603 | HX58: 805322107.7
A59: =+MATCH(B59,RUT[EMPRESA],0) -> 34 | B59: CARDONES SA | C59: -2184135.011 | D59: -2184135.011 | F59: =IFERROR(INDEX($B$9:$B$511,MATCH(0,INDEX(COUNTIF($F$8:F58,$B$9:$B$511),0,0),0)),"") -> CARDONES SA | G59: -2184135.011 | J59: ENGIE | K59: =$HX59*K$75/$HX$75 -> 208543112.7 | L59: 161138312.9 | M59: 578598442.9 | N59: 10787584.96 | O59: 2258706628 | P59: 814957002.2 | Q59: 117258379.4 | R59: 1368419.067 | S59: 562736.1862 | T59: 3464339.653 | U59: =$HX59*U$75/$HX$75 -> 14523194.72 | V59: 9768316.158 | W59: 9687601.01 | X59: 153405738.2 | Y59: 42803996.66 | Z59: 9251196.71 | AA59: 5354012.674 | AB59: 25736849.84 | AC59: 22844693.14 | AD59: 11739719.93 | AE59: =$HX59*AE$75/$HX$75 -> 984674.9306 | AF59: 6942138.517 | AG59: 636092.4617 | AH59: 3127459.829 | AI59: 20966593.21 | AJ59: 9376955.35 | AK59: 85325640.41 | AL59: 7533526.986 | AM59: 36819869.02 | AN59: 57556210.33 | AO59: =$HX59*AO$75/$HX$75 -> 62281762.7 | AP59: 603133.5423 | AQ59: 3683343.353 | AR59: 303334150.3 | AS59: 12600079.56 | AT59: 16920.39329 | AU59: 355362776.5 | AV59: 6940914.278 | AW59: 20564488.47 | AX59: 5784734.41 | AY59: =$HX59*AY$75/$HX$75 -> 513650.5111 | AZ59: 14842539.93 | BA59: 16239358.64 | BB59: 241056.6625 | BC59: 14219723.42 | BD59: 12072289.18 | BE59: 86889.09279 | BF59: 23623401.33 | BG59: 2159314.674 | BH59: 80793425.68 | BI59: =$HX59*BI$75/$HX$75 -> 23570442.13 | BJ59: 1620181.688 | BK59: 2877.75122 | BL59: 444006365.4 | BM59: 5512417.124 | BN59: 135236111 | BO59: 62494585.94 | BP59: 21913254.09 | BQ59: 150207.7599 | BR59: 13837737.14 | BS59: =$HX59*BS$75/$HX$75 -> 4358029.364 | BT59: 123133332.5 | BU59: 41243104.72 | BV59: 4520398.644 | BW59: 3961940.142 | BX59: 1245981.86 | BY59: 3571508405 | BZ59: 157013658.5 | CA59: 12790648.58 | CB59: 2534770.013 | CC59: =$HX59*CC$75/$HX$75 -> 28707964.98 | CD59: 82846346.65 | CE59: 22990897.81 | CF59: 361491.1389 | CG59: 12270748.09 | CH59: 2074446.187 | CI59: 16088879.06 | CJ59: 56619960.03 | CK59: 1179254.257 | CL59: 2207923.796 | CM59: =$HX59*CM$75/$HX$75 -> 6492650.009 | CN59: 6086074.331 | CO59: 1133127.361 | CP59: 1204074.326 | CQ59: 425706.0847 | CR59: 62288041.98 | CS59: 38394676.97 | CT59: 771051.5607 | CU59: 4142064.16 | CV59: 4059911.221 | CW59: =$HX59*CW$75/$HX$75 -> 123055.1701 | CX59: 5017403.12 | CY59: 991074.0038 | CZ59: 29467422.2 | DA59: 1632786.597 | DB59: 16164041.58 | DC59: 2914039.829 | DD59: 50677954.23 | DE59: 395692.451 | DF59: 815023.7398 | DG59: =$HX59*DG$75/$HX$75 -> 8286562.273 | DH59: 14225959.92 | DI59: 2182613.153 | DJ59: 12507108.51 | DK59: 5297300.76 | DL59: 4789538.407 | DM59: 107495928.8 | DN59: 15307.10395 | DO59: 1992444.627 | DP59: 4792048.029 | DQ59: =$HX59*DQ$75/$HX$75 -> 17661602.62 | DR59: 52365330.18 | DS59: 4964412.068 | DT59: 8214873.103 | DU59: 5508310.82 | DV59: 157164139.5 | DW59: 7921.127062 | DX59: 6629808.323 | DY59: 18980393.28 | DZ59: 6942634.524 | EA59: =$HX59*EA$75/$HX$75 -> 58822378.89 | EB59: 245018.8843 | EC59: 5886912.909 | ED59: 5096549.754 | EE59: 9504548.393 | EF59: 34020815.07 | EG59: 35576135.69 | EH59: 5948787.465 | EI59: 6664982.463 | EJ59: 6424223.253 | EK59: =$HX59*EK$75/$HX$75 -> 6880136.264 | EL59: 5588891.732 | EM59: 12634124.01 | EN59: 5838416.006 | EO59: 15470456.39 | EP59: 5455386.954 | EQ59: 4550625.892 | ER59: 4868670.554 | ES59: 3343980.082 | ET59: 5812208.031 | EU59: =$HX59*EU$75/$HX$75 -> 5153953.759 | EV59: 3998140.759 | EW59: 36320102.58 | EX59: 6348177.872 | EY59: 4804396.023 | EZ59: 6070743.031 | FA59: 40313044.74 | FB59: 4817288.596 | FC59: 5132560.07 | FD59: 5085983.365 | FE59: =$HX59*FE$75/$HX$75 -> 4737574.46 | FF59: 4589296.55 | FG59: 14201885.27 | FH59: 6482829.543 | FI59: 5280892.604 | FJ59: 4954294.593 | FK59: 47220.74692 | FL59: 1021885.087 | FM59: 12102485.78 | FN59: 17970742.15 | FO59: =$HX59*FO$75/$HX$75 -> 6374981.373 | FP59: 5501496.808 | FQ59: 11610574.4 | FR59: 1.12182417 | FS59: 3238072.047 | FT59: 3996045.145 | FU59: 5012227.027 | FV59: 9236455.88 | FW59: 5325599.471 | FX59: 1759234.199 | FY59: =$HX59*FY$75/$HX$75 -> 1433153.573 | FZ59: 20166529.23 | GA59: 19663266.91 | GB59: 5772881.609 | GC59: 112994759.7 | GD59: 5564732.106 | GE59: 14227230.12 | GF59: 8289170.119 | GG59: 6482816.815 | GH59: 5913452.275 | GI59: =$HX59*GI$75/$HX$75 -> 5115442.468 | GJ59: 23979788.14 | GK59: 5121003.316 | GL59: 5954996.778 | GM59: 5976713.527 | GN59: 14836447.47 | GO59: 18961740.76 | GP59: 15149105.18 | GQ59: 828356590.8 | GR59: 119044740.8 | GS59: =$HX59*GS$75/$HX$75 -> 94236209.89 | GT59: 31178774.08 | GU59: 204300586.7 | GV59: 49528080.86 | GW59: 30960518.92 | GX59: 33133245.33 | GY59: 306468.2524 | GZ59: 17586209.96 | HA59: 14054960.17 | HB59: 39640921.46 | HC59: =$HX59*HC$75/$HX$75 -> 2248793.29 | HD59: 88595789.2 | HE59: 32398926.36 | HF59: 4250664.263 | HG59: 5162489.714 | HH59: 1971720.87 | HI59: 6680704.432 | HJ59: 5811979.929 | HK59: 9097142.032 | HL59: 8290510.506 | HM59: =$HX59*HM$75/$HX$75 -> 4924472.408 | HN59: 6614480.578 | HO59: 21565444.95 | HP59: 61234468.27 | HQ59: 6069345.858 | HR59: 16046594.8 | HS59: 6502798.807 | HT59: 6378178.763 | HU59: 138356.3694 | HV59: 282543749.5 | HW59: 36147922.58 | HX59: 1.400568236e+10
A60: =+MATCH(B60,RUT[EMPRESA],0) -> 32 | B60: CAPULLO | C60: -16023319.41 | D60: -16023319.41 | F60: =IFERROR(INDEX($B$9:$B$511,MATCH(0,INDEX(COUNTIF($F$8:F59,$B$9:$B$511),0,0),0)),"") -> CAPULLO | G60: -16023319.41 | J60: GEOTERMICA_DEL_NORTE | K60: 4066466.124 | L60: 3142100.844 | M60: 11282324.01 | N60: 210351.4626 | O60: 44043430 | P60: 15891174.72 | Q60: 2286468.353 | R60: 26683.35436 | S60: 10973.01948 | T60: 67552.55379 | U60: 283193.6214 | V60: 190476.3299 | W60: 188902.4327 | X60: 2991320.257 | Y60: 834652.3656 | Z60: 180392.8096 | AA60: 104400.0489 | AB60: 501853.1978 | AC60: 445457.8698 | AD60: 228917.5259 | AE60: 19200.57294 | AF60: 135367.5541 | AG60: 12403.42303 | AH60: 60983.59846 | AI60: 408836.0431 | AJ60: 182845.0279 | AK60: 1663799.018 | AL60: 146899.276 | AM60: 717965.4513 | AN60: 1122311.72 | AO60: 1214457.168 | AP60: 11760.74379 | AQ60: 71822.99511 | AR60: 5914834.732 | AS60: 245694.0246 | AT60: 329.9375617 | AU60: 6929361.862 | AV60: 135343.6822 | AW60: 400995.2408 | AX60: 112798.8654 | AY60: 10015.87813 | AZ60: 289420.6624 | BA60: 316657.7928 | BB60: 4700.460923 | BC60: 277276.1124 | BD60: 235402.4276 | BE60: 1694.285406 | BF60: 460642.2144 | BG60: 42105.34625 | BH60: 1575423.538 | BI60: 459609.5416 | BJ60: 31592.57509 | BK60: 56.11442975 | BL60: 8657858.895 | BM60: 107488.841 | BN60: 2637023.381 | BO60: 1218607.094 | BP60: 427295.3647 | BQ60: 2928.961591 | BR60: 269827.6082 | BS60: 84978.96931 | BT60: 2401026.429 | BU60: 804215.9051 | BV60: 88145.07326 | BW60: 77255.46607 | BX60: 24295.90198 | BY60: 69642280.43 | BZ60: 3061672.547 | CA60: 249410.0067 | CB60: 49426.50109 | CC60: 559788.1683 | CD60: 1615454.271 | CE60: 448308.7734 | CF60: 7048.86127 | CG60: 239272.2577 | CH60: 40450.46147 | CI60: 313723.5309 | CJ60: 1104055.398 | CK60: 22994.75357 | CL60: 43053.19511 | CM60: 126602.7967 | CN60: 118674.8139 | CO60: 22095.30666 | CP60: 23478.73009 | CQ60: 8301.014354 | CR60: 1214579.61 | CS60: 748673.2657 | CT60: 15035.04484 | CU60: 80767.77683 | CV60: 79165.8436 | CW60: 2399.50231 | CX60: 97836.36365 | CY60: 19325.35105 | CZ60: 574597.1303 | DA60: 31838.3633 | DB60: 315189.1552 | DC60: 56822.03594 | DD60: 988189.8346 | DE60: 7715.766425 | DF60: 15892.47607 | DG60: 161583.0143 | DH60: 277397.7205 | DI60: 42559.65268 | DJ60: 243881.1447 | DK60: 103294.2005 | DL60: 93393.13787 | DM60: 2096106.399 | DN60: 298.4793832 | DO60: 38851.48003 | DP60: 93442.07399 | DQ60: 344390.7007 | DR60: 1021092.658 | DS60: 96803.06979 | DT60: 160185.1183 | DU60: 107408.7706 | DV60: 3064606.837 | DW60: 154.457246 | DX60: 129277.3019 | DY60: 370106.3309 | DZ60: 135377.226 | EA60: 1147001.25 | EB60: 4777.72188 | EC60: 114791.2851 | ED60: 99379.67575 | EE60: 185333.0161 | EF60: 663385.5713 | EG60: 693713.3943 | EH60: 115997.802 | EI60: 129963.1767 | EJ60: 125268.5159 | EK60: 134158.5473 | EL60: 108980.0502 | EM60: 246357.871 | EN60: 113845.6245 | EO60: 301664.6583 | EP60: 106376.7868 | EQ60: 88734.48655 | ER60: 94936.16747 | ES60: 65205.61405 | ET60: 113334.5847 | EU60: 100499.0195 | EV60: 77961.35649 | EW60: 708220.3042 | EX60: 123785.6764 | EY60: 93682.85251 | EZ60: 118375.8627 | FA60: 786080.2912 | FB60: 93934.24999 | FC60: 100081.8554 | FD60: 99173.63747 | FE60: 92379.87195 | FF60: 89488.54128 | FG60: 276928.2791 | FH60: 126411.3035 | FI60: 102974.2512 | FJ60: 96605.78509 | FK60: 920.7763573 | FL60: 19926.14876 | FM60: 235991.2431 | FN60: 350418.737 | FO60: 124308.3286 | FP60: 107275.9014 | FQ60: 226399.2651 | FR60: 0.02187490118 | FS60: 63140.47063 | FT60: 77920.49327 | FU60: 97735.43294 | FV60: 180105.3722 | FW60: 103846.0084 | FX60: 34304.016 | FY60: 27945.63858 | FZ60: 393235.2733 | GA60: 383421.9587 | GB60: 112567.7429 | GC60: 2203330.315 | GD60: 108508.9519 | GE60: 277422.4886 | GF60: 161633.8657 | GG60: 126411.0553 | GH60: 115308.7869 | GI60: 99748.07239 | GJ60: 467591.5442 | GK60: 99856.50559 | GL60: 116118.8799 | GM60: 116542.3436 | GN60: 289301.863 | GO60: 369742.6179 | GP60: 295398.5017 | GQ60: 16152458.7 | GR60: 2321301.333 | GS60: 1837549.8 | GT60: 607967.4697 | GU60: 3983739.4 | GV60: 965767.9908 | GW60: 603711.6246 | GX60: 646078.4915 | GY60: 5975.947852 | GZ60: 342920.5889 | HA60: 274063.3276 | HB60: 772974.2886 | HC60: 43850.12583 | HD60: 1727564.966 | HE60: 631759.7103 | HF60: 82885.41397 | HG60: 100665.4656 | HH60: 38447.37915 | HI60: 130269.7457 | HJ60: 113330.1368 | HK60: 177388.8354 | HL60: 161660.0025 | HM60: 96024.27028 | HN60: 128978.4201 | HO60: 420513.2943 | HP60: 1194035.553 | HQ60: 118348.6187 | HR60: 312899.0131 | HS60: 126800.6922 | HT60: 124370.6758 | HU60: 2697.866555 | HV60: 5509434.336 | HW60: 704862.897 | HX60: 273102439.7
A61: =+MATCH(B61,RUT[EMPRESA],0) -> 24 | B61: BE FORESTALES | C61: 1178676482 | D61: 1178676482 | F61: =IFERROR(INDEX($B$9:$B$511,MATCH(0,INDEX(COUNTIF($F$8:F60,$B$9:$B$511),0,0),0)),"") -> BE FORESTALES | H61: 1178676482 | J61: ATACAMA_GX_CHILE | K61: 6649330.718 | L61: 5137843.775 | M61: 18448427.04 | N61: 343958.71 | O61: 72018141.34 | P61: 25984644.41 | Q61: 3738746.074 | R61: 43631.60603 | S61: 17942.66404 | T61: 110459.3663 | U61: 463067.4372 | V61: 311459.649 | W61: 308886.0722 | X61: 4891293.095 | Y61: 1364791.798 | Z61: 294971.4602 | AA61: 170710.9886 | AB61: 820611.2588 | AC61: 728395.7637 | AD61: 374317.2305 | AE61: 31396.0465 | AF61: 221347.8752 | AG61: 20281.60551 | AH61: 99718.0604 | AI61: 668513.1457 | AJ61: 298981.2343 | AK61: 2720580.864 | AL61: 240204.1082 | AM61: 1173989.795 | AN61: 1835161.432 | AO61: 1985834.164 | AP61: 19230.72087 | AQ61: 117442.2295 | AR61: 9671712.756 | AS61: 401749.523 | AT61: 539.5013502 | AU61: 11330628.93 | AV61: 221308.8407 | AW61: 655692.1641 | AX61: 184444.4139 | AY61: 16377.58292 | AZ61: 473249.6577 | BA61: 517786.7772 | BB61: 7686.014897 | BC61: 453391.3515 | BD61: 384921.095 | BE61: 2770.431045 | BF61: 753224.6263 | BG61: 68849.06052 | BH61: 2576072.641 | BI61: 751536.039 | BJ61: 51658.97702 | BK61: 91.75618096 | BL61: 14157001.52 | BM61: 175761.664 | BN61: 4311960.321 | BO61: 1992619.965 | BP61: 698697.1262 | BQ61: 4789.326578 | BR61: 441211.8408 | BS61: 138954.378 | BT61: 3926067.082 | BU61: 1315023.256 | BV61: 144131.4708 | BW61: 126325.1993 | BX61: 39727.73471 | BY61: 113876407.8 | BZ61: 5006330.484 | CA61: 407825.7555 | CB61: 80820.33442 | CC61: 915344.3186 | CD61: 2641529.372 | CE61: 733057.4528 | CF61: 11526.02981 | CG61: 391248.8939 | CH61: 66143.05587 | CI61: 512988.7838 | CJ61: 1805309.389 | CK61: 37600.14632 | CL61: 70398.94691 | CM61: 207016.0773 | CN61: 194052.5413 | CO61: 36129.40495 | CP61: 38391.52631 | CQ61: 13573.5029 | CR61: 1986034.377 | CS61: 1224202.045 | CT61: 24584.7334 | CU61: 132068.3963 | CV61: 129448.976 | CW61: 3923.574901 | CX61: 159978.3002 | CY61: 31600.07891 | CZ61: 939559.37 | DA61: 52060.88054 | DB61: 515385.3168 | DC61: 92913.23169 | DD61: 1615850.427 | DE61: 12616.52775 | DF61: 25986.77232 | DG61: 264214.3984 | DH61: 453590.2005 | DI61: 69591.9251 | DJ61: 398785.1707 | DK61: 168902.7473 | DL61: 152712.9064 | DM61: 3427473.449 | DN61: 488.0621334 | DO61: 63528.46226 | DP61: 152792.9249 | DQ61: 563134.5734 | DR61: 1669651.872 | DS61: 158288.6974 | DT61: 261928.6121 | DU61: 175630.7358 | DV61: 5011128.523 | DW61: 252.5626131 | DX61: 211389.3265 | DY61: 605183.7935 | DZ61: 221363.6902 | EA61: 1875532.813 | EB61: 7812.349075 | EC61: 187702.3429 | ED61: 162501.8654 | EE61: 303049.4979 | EF61: 1084742.851 | EG61: 1134333.754 | EH61: 189675.1933 | EI61: 212510.8427 | EJ61: 204834.312 | EK61: 219370.9531 | EL61: 178200.0326 | EM61: 402835.0193 | EN61: 186156.0346 | EO61: 493270.574 | EP61: 173943.2752 | EQ61: 145095.257 | ER61: 155236.0097 | ES61: 106621.7397 | ET61: 185320.4016 | EU61: 164332.1738 | EV61: 127479.4445 | EW61: 1158054.901 | EX61: 202409.6293 | EY61: 153186.6368 | EZ61: 193563.7077 | FA61: 1285368.59 | FB61: 153597.7124 | FC61: 163650.0429 | FD61: 162164.9595 | FE61: 151056.0525 | FF61: 146328.2586 | FG61: 452822.5878 | FH61: 206702.9549 | FI61: 168379.5785 | FJ61: 157966.1049 | FK61: 1505.618474 | FL61: 32582.48047 | FM61: 385883.9038 | FN61: 572991.389 | FO61: 203264.2503 | FP61: 175413.4732 | FQ61: 370199.4661 | FR61: 0.0357690063 | FS61: 103244.8957 | FT61: 127412.6265 | FU61: 159813.2621 | FV61: 294501.4535 | FW61: 169805.0427 | FX61: 56092.62205 | FY61: 45695.64516 | FZ61: 643003.3604 | GA61: 626957.0016 | GB61: 184066.4912 | GC61: 3602801.918 | GD61: 177429.7106 | GE61: 453630.7003 | GF61: 264297.5487 | GG61: 206702.5491 | GH61: 188548.5421 | GI61: 163104.2536 | GJ61: 764587.906 | GK61: 163281.5594 | GL61: 189873.1753 | GM61: 190565.6069 | GN61: 473055.4015 | GO61: 604589.0639 | GP61: 483024.3931 | GQ61: 26411886.03 | GR61: 3795703.639 | GS61: 3004691.534 | GT61: 994125.2797 | GU61: 6514059.127 | GV61: 1579187.081 | GW61: 987166.2835 | GX61: 1056442.973 | GY61: 9771.642604 | GZ61: 560730.7024 | HA61: 448137.928 | HB61: 1263938.153 | HC61: 71702.05771 | HD61: 2824848.517 | HE61: 1033029.446 | HF61: 135531.076 | HG61: 164604.34 | HH61: 62867.69186 | HI61: 213012.1327 | HJ61: 185313.1286 | HK61: 290059.4758 | HL61: 264340.2866 | HM61: 157015.234 | HN61: 210900.6062 | HO61: 687607.3426 | HP61: 1952441.515 | HQ61: 193519.1593 | HR61: 511640.5636 | HS61: 207339.6685 | HT61: 203366.1981 | HU61: 4411.448765 | HV61: 9008817.449 | HW61: 1152564.996 | HX61: 446566720.7
A62: =+MATCH(B62,RUT[EMPRESA],0) -> 10 | B62: ALLIPEN | C62: -51838047.65 | D62: -51838047.65 | F62: =IFERROR(INDEX($B$9:$B$511,MATCH(0,INDEX(COUNTIF($F$8:F61,$B$9:$B$511),0,0),0)),"") -> ALLIPEN | G62: -51838047.65 | J62: ANDINA | K62: 24717519.8 | L62: 19098877.86 | M62: 68578234.42 | N62: 1278595.785 | O62: 267712633.1 | P62: 96592573.01 | Q62: 13898019.82 | R62: 162191.5245 | S62: 66698.16445 | T62: 410609.9831 | U62: 1721357.988 | V62: 1157787.207 | W62: 1148220.465 | X62: 18182376.4 | Y62: 5073332.901 | Z62: 1096495.755 | AA62: 634583.001 | AB62: 3050453.632 | AC62: 2707661.489 | AD62: 1391447.342 | AE62: 116708.3476 | AF62: 822815.2157 | AG62: 75392.69848 | AH62: 370681.3869 | AI62: 2485060.169 | AJ62: 1111401.266 | AK62: 10113200 | AL62: 892909.3848 | AM62: 4364065.683 | AN62: 6821835.304 | AO62: 7381930.206 | AP62: 71486.25088 | AQ62: 436567.3413 | AR62: 35952603.61 | AS62: 1493421.25 | AT62: 2005.485345 | AU62: 42119283.39 | AV62: 822670.1131 | AW62: 2437400.806 | AX62: 685634.186 | AY62: 60880.29719 | AZ62: 1759208.3 | BA62: 1924765.884 | BB62: 28571.18009 | BC62: 1685389.129 | BD62: 1430865.029 | BE62: 10298.50779 | BF62: 2799957.681 | BG62: 255932.2267 | BH62: 9576020.389 | BI62: 2793680.705 | BJ62: 192031.6257 | BK62: 341.0847371 | BL62: 52625742.4 | BM62: 653357.8485 | BN62: 16028825.93 | BO62: 7407155.026 | BP62: 2597262.91 | BQ62: 17803.33684 | BR62: 1640114.302 | BS62: 516534.3305 | BT62: 14594347.16 | BU62: 4888328.578 | BV62: 535779.1084 | BW62: 469587.9554 | BX62: 147679.6855 | BY62: 423312132.3 | BZ62: 18610004.24 | CA62: 1516008.395 | CB62: 300432.9761 | CC62: 3402604.304 | CD62: 9819342.328 | CE62: 2724990.36 | CF62: 42845.64601 | CG62: 1454387.32 | CH62: 245873.2108 | CI62: 1906930.33 | CJ62: 6710866.473 | CK62: 139770.8131 | CL62: 261693.6107 | CM62: 769539.7037 | CN62: 721350.4241 | CO62: 134303.6345 | CP62: 142712.6056 | CQ62: 50456.70625 | CR62: 7382674.455 | CS62: 4550719.398 | CT62: 91388.69164 | CU62: 490937.1092 | CV62: 481199.9529 | CW62: 14585.08298 | CX62: 594686.4385 | CY62: 117466.7962 | CZ62: 3492618.779 | DA62: 193525.6194 | DB62: 1915838.949 | DC62: 345385.8353 | DD62: 6006591.735 | DE62: 46899.34789 | DF62: 96600.48307 | DG62: 982162.7021 | DH62: 1686128.31 | DI62: 258693.6731 | DJ62: 1482401.88 | DK62: 627861.2357 | DL62: 567678.8309 | DM62: 12740927.84 | DN62: 1814.270633 | DO62: 236153.9966 | DP62: 567976.2832 | DQ62: 2093336.993 | DR62: 6206587.544 | DS62: 588405.6874 | DT62: 973665.7613 | DU62: 652871.1498 | DV62: 18627839.97 | DW62: 938.849586 | DX62: 785796.3582 | DY62: 2249646.323 | DZ62: 822874.0048 | EA62: 6971907.612 | EB62: 29040.80142 | EC62: 697744.8669 | ED62: 604067.2734 | EE62: 1126524.2 | EF62: 4032308.52 | EG62: 4216652.504 | EH62: 705078.5329 | EI62: 789965.3643 | EJ62: 761429.4397 | EK62: 815466.4144 | EL62: 662421.9821 | EM62: 1497456.359 | EN62: 691996.7837 | EO62: 1833631.94 | EP62: 646598.3619 | EQ62: 539361.7854 | ER62: 577057.9487 | ES62: 396344.3953 | ET62: 688890.4901 | EU62: 610871.0685 | EV62: 473878.6245 | EW62: 4304830.992 | EX62: 752416.1802 | EY62: 569439.8261 | EZ62: 719533.2856 | FA62: 4778093.454 | FB62: 570967.9151 | FC62: 608335.3869 | FD62: 602814.8947 | FE62: 561519.8172 | FF62: 543945.2154 | FG62: 1683274.867 | FH62: 768375.7355 | FI62: 625916.4632 | FJ62: 587206.5163 | FK62: 5596.827112 | FL62: 121118.672 | FM62: 1434444.072 | FN62: 2129977.678 | FO62: 755593.0584 | FP62: 652063.5208 | FQ62: 1376140.4 | FR62: 0.1329639266 | FS62: 383791.6721 | FT62: 473630.2423 | FU62: 594072.9434 | FV62: 1094748.602 | FW62: 631215.3333 | FX62: 208512.7895 | FY62: 169864.1656 | FZ62: 2390232.787 | GA62: 2330583.747 | GB62: 684229.3357 | GC62: 13392675.37 | GD62: 659558.4685 | GE62: 1686278.859 | GF62: 982471.7964 | GG62: 768374.2269 | GH62: 700890.4385 | GI62: 606306.5275 | GJ62: 2842198.337 | GK62: 606965.6256 | GL62: 705814.4902 | GM62: 708388.4624 | GN62: 1758486.192 | GO62: 2247435.538 | GP62: 1795543.869 | GQ62: 98180755.87 | GR62: 14109747.86 | GS62: 11169322.99 | GT62: 3695456.329 | GU62: 24214675.48 | GV62: 5870303.284 | GW62: 3669587.692 | GX62: 3927109.54 | GY62: 36324.07227 | GZ62: 2084401.097 | HA62: 1665860.608 | HB62: 4698430.211 | HC62: 266537.6572 | HD62: 10500793.56 | HE62: 3840074.57 | HF62: 503808.9091 | HG62: 611882.7904 | HH62: 233697.7185 | HI62: 791828.8068 | HJ62: 688863.4542 | HK62: 1078236.463 | HL62: 982630.6654 | HM62: 583671.8493 | HN62: 783979.6412 | HO62: 2556038.92 | HP62: 7257799.898 | HQ62: 719367.6861 | HR62: 1901918.599 | HS62: 770742.5874 | HT62: 755972.0281 | HU62: 16398.65377 | HV62: 33488426.6 | HW62: 4284423.4 | HX62: 1660019968
A63: =+MATCH(B63,RUT[EMPRESA],0) -> 90 | B63: EL CANELO | C63: 23021804.66 | D63: 23021804.66 | F63: =IFERROR(INDEX($B$9:$B$511,MATCH(0,INDEX(COUNTIF($F$8:F62,$B$9:$B$511),0,0),0)),"") -> EL CANELO | H63: 23021804.66 | J63: TAMAKAYA_ENERGIA | K63: 28673377.43 | L63: 22155513.09 | M63: 79553677.5 | N63: 1483225.655 | O63: 310558075.1 | P63: 112051505.4 | Q63: 16122295.89 | R63: 188149.0876 | S63: 77372.71612 | T63: 476325.0971 | U63: 1996848.7 | V63: 1343082.552 | W63: 1331984.723 | X63: 21092332.29 | Y63: 5885282.595 | Z63: 1271981.853 | AA63: 736143.3526 | AB63: 3538656.346 | AC63: 3141002.837 | AD63: 1614138.277 | AE63: 135386.6621 | AF63: 954500.7517 | AG63: 87458.74651 | AH63: 430006.2222 | AI63: 2882775.81 | AJ63: 1289272.882 | AK63: 11731743.43 | AL63: 1035812.978 | AM63: 5062502.365 | AN63: 7913619.974 | AO63: 8563353.954 | AP63: 82927.10064 | AQ63: 506436.74 | AR63: 41706553.94 | AS63: 1732432.359 | AT63: 2326.448554 | AU63: 48860165.56 | AV63: 954332.4265 | AW63: 2827488.915 | AX63: 795364.9051 | AY63: 70623.74191 | AZ63: 2040756.676 | BA63: 2232810.537 | BB63: 33143.78776 | BC63: 1955123.289 | BD63: 1659864.474 | BE63: 11946.70838 | BF63: 3248070.357 | BG63: 296892.3011 | BH63: 11108592.17 | BI63: 3240788.797 | BJ63: 222764.8779 | BK63: 395.6728458 | BL63: 61048106.21 | BM63: 757922.9766 | BN63: 18594121.87 | BO63: 8592615.821 | BP63: 3012935.776 | BQ63: 20652.63023 | BR63: 1902602.558 | BS63: 599201.8589 | BT63: 16930065.3 | BU63: 5670669.688 | BV63: 621526.6222 | BW63: 544742.061 | BX63: 171314.7353 | BY63: 491060132.1 | BZ63: 21588398.83 | CA63: 1758634.411 | CB63: 348515.0688 | CC63: 3947166.149 | CD63: 11390856 | CE63: 3161105.067 | CF63: 49702.77718 | CG63: 1687151.336 | CH63: 285223.4136 | CI63: 2212120.533 | CJ63: 7784891.397 | CK63: 162140.1059 | CL63: 303575.7523 | CM63: 892698.8851 | CN63: 836797.265 | CO63: 155797.9454 | CP63: 165552.7106 | CQ63: 58531.93175 | CR63: 8564217.315 | CS63: 5279028.637 | CT63: 106014.781 | CU63: 569507.9902 | CV63: 558212.4735 | CW63: 16919.31846 | CX63: 689861.6381 | CY63: 136266.4947 | CZ63: 4051586.78 | DA63: 224497.9744 | DB63: 2222454.911 | DC63: 400662.3032 | DD63: 6967902.655 | DE63: 54405.24429 | DF63: 112060.6814 | DG63: 1139350.634 | DH63: 1955980.77 | DI63: 300095.6967 | DJ63: 1719649.42 | DK63: 728345.8182 | DL63: 658531.6612 | DM63: 14780019.82 | DN63: 2104.631331 | DO63: 273948.7105 | DP63: 658876.7185 | DQ63: 2428360.214 | DR63: 7199906.325 | DS63: 682575.699 | DT63: 1129493.82 | DU63: 757358.3854 | DV63: 21609089.03 | DW63: 1089.105571 | DX63: 911557.2978 | DY63: 2609685.705 | DZ63: 954568.9496 | EA63: 8087710.254 | EB63: 33688.56854 | EC63: 809413.8116 | ED63: 700743.8068 | EE63: 1306816.129 | EF63: 4677649.903 | EG63: 4891496.788 | EH63: 817921.177 | EI63: 916393.5228 | EJ63: 883290.6329 | EK63: 945975.8287 | EL63: 768437.7583 | EM63: 1737113.259 | EN63: 802745.7898 | EO63: 2127091.273 | EP63: 750081.6838 | EQ63: 625682.6804 | ER63: 669411.8379 | ES63: 459776.4067 | ET63: 799142.3567 | EU63: 708636.4994 | EV63: 549719.4202 | EW63: 4993787.596 | EX63: 872834.8673 | EY63: 660574.4907 | EZ63: 834689.3068 | FA63: 5542792.241 | FB63: 662347.1392 | FC63: 705695.0006 | FD63: 699290.9942 | FE63: 651386.9426 | FF63: 630999.6547 | FG63: 1952670.655 | FH63: 891348.6323 | FI63: 726089.799 | FJ63: 681184.6093 | FK63: 6492.558212 | FL63: 140502.8265 | FM63: 1664016.318 | FN63: 2470864.972 | FO63: 876520.1815 | FP63: 756421.5013 | FQ63: 1596381.571 | FR63: 0.1542438271 | FS63: 445214.7123 | FT63: 549431.2863 | FU63: 689149.9577 | FV63: 1269955.081 | FW63: 732236.7144 | FX63: 241883.731 | FY63: 197049.6785 | FZ63: 2772772.001 | GA63: 2703576.57 | GB63: 793735.2189 | GC63: 15536074.77 | GD63: 765115.9604 | GE63: 1956155.414 | GF63: 1139709.196 | GG63: 891346.8823 | GH63: 813062.8089 | GI63: 703341.4371 | GJ63: 3297071.32 | GK63: 704106.019 | GL63: 818774.9189 | GM63: 821760.8365 | GN63: 2039919 | GO63: 2607121.1 | GP63: 2082907.486 | GQ63: 113893865.2 | GR63: 16367909.44 | GS63: 12956891.16 | GT63: 4286886.991 | GU63: 28090056.56 | GV63: 6809802.238 | GW63: 4256878.268 | GX63: 4555614.598 | GY63: 42137.47343 | GZ63: 2417994.193 | HA63: 1932469.371 | HB63: 5450379.481 | HC63: 309195.0529 | HD63: 12181368.49 | HE63: 4454650.32 | HF63: 584439.8271 | HG63: 709810.14 | HH63: 271099.3231 | HI63: 918555.1955 | HJ63: 799110.994 | HK63: 1250800.295 | HL63: 1139893.491 | HM63: 677084.2448 | HN63: 909449.8286 | HO63: 2965114.189 | HP63: 8419357.501 | HQ63: 834497.2043 | HR63: 2206306.711 | HS63: 894094.2815 | HT63: 876959.8026 | HU63: 19023.13794 | HV63: 38848003.48 | HW63: 4970113.919 | HX63: 1925693979
A64: =+MATCH(B64,RUT[EMPRESA],0) -> 33 | B64: CARBOMET | C64: -2604917.718 | D64: -2604917.718 | F64: =IFERROR(INDEX($B$9:$B$511,MATCH(0,INDEX(COUNTIF($F$8:F63,$B$9:$B$511),0,0),0)),"") -> CARBOMET | G64: -2604917.718 | J64: VALLE_DE_LOS_VIENTOS | K64: 525751.9387 | L64: 406241.085 | M64: 1458687.602 | N64: 27196.26475 | O64: 5694359.182 | P64: 2054564.249 | Q64: 295616.6688 | R64: 3449.881263 | S64: 1418.697731 | T64: 8733.845319 | U64: 36614.00119 | V64: 24626.616 | W64: 24423.12741 | X64: 386746.7173 | Y64: 107911.9034 | Z64: 23322.9213 | AA64: 13497.84467 | AB64: 64884.41897 | AC64: 57593.08735 | AD64: 29596.66438 | AE64: 2482.435152 | AF64: 17501.62226 | AG64: 1603.63409 | AH64: 7884.547453 | AI64: 52858.26458 | AJ64: 23639.96772 | AK64: 215111.9751 | AL64: 18992.55442 | AM64: 92825.49429 | AN64: 145103.2775 | AO64: 157016.7293 | AP64: 1520.542323 | AQ64: 9285.969138 | AR64: 764726.8495 | AS64: 31765.69184 | AT64: 42.65750837 | AU64: 895894.6963 | AV64: 17498.53587 | AW64: 51844.53008 | AX64: 14583.72463 | AY64: 1294.949272 | AZ64: 37419.09307 | BA64: 40940.57184 | BB64: 607.7208976 | BC64: 35848.92858 | BD64: 30435.09498 | BE64: 219.0535491 | BF64: 59556.26578 | BG64: 5443.785033 | BH64: 203685.9411 | BI64: 59422.75188 | BJ64: 4084.592641 | BK64: 7.255014387 | BL64: 1119371.454 | BM64: 13897.1935 | BN64: 340939.8019 | BO64: 157553.2718 | BP64: 55244.86361 | BQ64: 378.6843879 | BR64: 34885.91416 | BS64: 10986.9003 | BT64: 310427.8411 | BU64: 103976.7844 | BV64: 11396.24474 | BW64: 9988.331348 | BX64: 3141.208405 | BY64: 9004025.323 | BZ64: 395842.5395 | CA64: 32246.12982 | CB64: 6390.334502 | CC64: 72374.81041 | CD64: 208861.5001 | CE64: 57961.67965 | CF64: 911.3447317 | CG64: 30935.42391 | CH64: 5229.825576 | CI64: 40561.20218 | CJ64: 142742.9243 | CK64: 2972.983396 | CL64: 5566.332069 | CM64: 16368.42994 | CN64: 15343.42389 | CO64: 2856.69423 | CP64: 3035.556546 | CQ64: 1073.235152 | CR64: 157032.5598 | CS64: 96795.69653 | CT64: 1943.875526 | CU64: 10442.43674 | CV64: 10235.32337 | CW64: 310.2307883 | CX64: 12649.22818 | CY64: 2498.567668 | CZ64: 74289.45576 | DA64: 4116.370509 | DB64: 40750.69221 | DC64: 7346.500536 | DD64: 127762.7074 | DE64: 997.5686586 | DF64: 2054.732499 | DG64: 20891.00965 | DH64: 35864.65125 | DI64: 5502.522147 | DJ64: 31531.30525 | DK64: 13354.86993 | DL64: 12074.76512 | DM64: 271004.8404 | DN64: 38.59029182 | DO64: 5023.093843 | DP64: 12081.09205 | DQ64: 44526.14951 | DR64: 132016.7015 | DS64: 12515.63398 | DT64: 20710.27618 | DU64: 13886.84121 | DV64: 396221.9128 | DW64: 19.96972163 | DX64: 16714.21575 | DY64: 47850.91405 | DZ64: 17502.87273 | EA64: 148295.378 | EB64: 617.7099389 | EC64: 14841.32386 | ED64: 12848.76244 | EE64: 23961.63881 | EF64: 85768.88129 | EG64: 89689.95459 | EH64: 14997.31399 | EI64: 16802.89224 | EJ64: 16195.92124 | EK64: 17345.3102 | EL64: 14089.99139 | EM64: 31851.5203 | EN64: 14719.05974 | EO64: 39002.11488 | EP64: 13753.4164 | EQ64: 11472.44977 | ER64: 12274.26286 | ES64: 8430.410327 | ET64: 14652.98758 | EU64: 12993.482 | EV64: 10079.59567 | EW64: 91565.54774 | EX64: 16004.20546 | EY64: 12112.22222 | EZ64: 15304.7726 | FA64: 101632.0374 | FB64: 12144.72531 | FC64: 12939.54699 | FD64: 12822.12382 | FE64: 11943.76033 | FF64: 11569.94123 | FG64: 35803.95734 | FH64: 16343.67185 | FI64: 13313.5038 | FJ64: 12490.12712 | FK64: 119.0468432 | FL64: 2576.244587 | FM64: 30511.22272 | FN64: 45305.51214 | FO64: 16071.77898 | FP64: 13869.66261 | FQ64: 29271.07934 | FR64: 0.002828198085 | FS64: 8163.408678 | FT64: 10074.31247 | FU64: 12636.17888 | FV64: 23285.75862 | FW64: 13426.21298 | FX64: 4435.153858 | FY64: 3613.081534 | FZ64: 50841.24668 | GA64: 49572.48677 | GB64: 14553.84289 | GC64: 284867.7819 | GD64: 14029.08327 | GE64: 35867.85351 | GF64: 20897.58421 | GG64: 16343.63976 | GH64: 14908.23148 | GI64: 12896.39231 | GJ64: 60454.74212 | GK64: 12910.4116 | GL64: 15012.96811 | GM64: 15067.71757 | GN64: 37403.73355 | GO64: 47803.88973 | GP64: 38191.96575 | GQ64: 2088345.56 | GR64: 300120.2123 | GS64: 237576.151 | GT64: 78603.89492 | GU64: 515056.2304 | GV64: 124863.7953 | GW64: 78053.65823 | GX64: 83531.25518 | GY64: 772.6281427 | GZ64: 44336.07927 | HA64: 35433.54879 | HB64: 99937.56703 | HC64: 5669.366955 | HD64: 223356.2515 | HE64: 81679.98512 | HF64: 10716.22528 | HG64: 13015.00174 | HH64: 4970.847785 | HI64: 16842.52844 | HJ64: 14652.41252 | HK64: 22934.53856 | HL64: 20900.96342 | HM64: 12414.94328 | HN64: 16675.57342 | HO64: 54368.01217 | HP64: 154376.426 | HQ64: 15301.25023 | HR64: 40454.60056 | HS64: 16394.01577 | HT64: 16079.83983 | HU64: 348.806194 | HV64: 712312.7784 | HW64: 91131.46977 | HX64: 35309315.95
A65: =+MATCH(B65,RUT[EMPRESA],0) -> 235 | B65: ORAZUL_CHILE | C65: -9355352.045 | D65: -9355352.045 | F65: =IFERROR(INDEX($B$9:$B$511,MATCH(0,INDEX(COUNTIF($F$8:F64,$B$9:$B$511),0,0),0)),"") -> ORAZUL_CHILE | G65: -9355352.045 | J65: POZO_ALMONTE_SOLAR_2 | K65: 35553.68303 | L65: 27471.82788 | M65: 98642.93944 | N65: 1839.132308 | O65: 385077.8789 | P65: 138938.7669 | Q65: 19990.91314 | R65: 233.2963055 | S65: 95.93864659 | T65: 590.6214418 | U65: 2476.001507 | V65: 1665.361238 | W65: 1651.600434 | X65: 26153.53208 | Y65: 7297.482566 | Z65: 1577.199607 | AA65: 912.7842538 | AB65: 4387.772818 | AC65: 3894.700564 | AD65: 2001.458 | AE65: 167.8732992 | AF65: 1183.537491 | AG65: 108.4448652 | AH65: 533.188145 | AI65: 3574.510802 | AJ65: 1598.639696 | AK65: 14546.82791 | AL65: 1284.360951 | AM65: 6277.272527 | AN65: 9812.528601 | AO65: 10618.16917 | AP65: 102.8258306 | AQ65: 627.9585086 | AR65: 51714.22872 | AS65: 2148.137279 | AT65: 2.884690326 | AU65: 60584.38156 | AV65: 1183.328775 | AW65: 3505.95757 | AX65: 986.2162835 | AY65: 87.57022573 | AZ65: 2530.445399 | BA65: 2768.583446 | BB65: 41.09678838 | BC65: 2424.263897 | BD65: 2058.156404 | BE65: 14.81337467 | BF65: 4027.459416 | BG65: 368.1329412 | BH65: 13774.14871 | BI65: 4018.430613 | BJ65: 276.2183101 | BK65: 0.4906163209 | BL65: 75696.87327 | BM65: 939.7899963 | BN65: 23055.86486 | BO65: 10654.45255 | BP65: 3735.903237 | BQ65: 25.60832154 | BR65: 2359.140581 | BS65: 742.9830341 | BT65: 20992.51045 | BU65: 7031.372328 | BV65: 770.6647245 | BW65: 675.4553632 | BX65: 212.4224748 | BY65: 608892.2146 | BZ65: 26768.63201 | CA65: 2180.62663 | CB65: 432.1428236 | CC65: 4894.306381 | CD65: 14124.14301 | CE65: 3919.626414 | CF65: 61.62918162 | CG65: 2091.990871 | CH65: 353.6640517 | CI65: 2742.928783 | CJ65: 9652.911024 | CK65: 201.046352 | CL65: 376.4201165 | CM65: 1106.905989 | CN65: 1037.590524 | CO65: 193.1823616 | CP65: 205.2778265 | CQ65: 72.57693146 | CR65: 10619.23969 | CS65: 6545.75525 | CT65: 131.4535034 | CU65: 706.1639883 | CV65: 692.1580617 | CW65: 20.97918486 | CX65: 855.3970342 | CY65: 168.9642517 | CZ65: 5023.78321 | DA65: 278.3672708 | DB65: 2755.742941 | DC65: 496.8030209 | DD65: 8639.882168 | DE65: 67.46002682 | DF65: 138.9501448 | DG65: 1412.742932 | DH65: 2425.327134 | DI65: 372.1050059 | DJ65: 2132.287016 | DK65: 903.1156659 | DL65: 816.5492887 | DM65: 18326.55191 | DN65: 2.609647064 | DO65: 339.683933 | DP65: 816.9771441 | DQ65: 3011.056145 | DR65: 8927.55616 | DS65: 846.3628012 | DT65: 1400.520931 | DU65: 939.0899289 | DV65: 26794.28692 | DW65: 1.350441341 | DX65: 1130.289562 | DY65: 3235.891502 | DZ65: 1183.622053 | EA65: 10028.39263 | EB65: 41.77229175 | EC65: 1003.636288 | ED65: 868.8904281 | EE65: 1620.392524 | EF65: 5800.07299 | EG65: 6065.233395 | EH65: 1014.185034 | EI65: 1136.286261 | EJ65: 1095.240184 | EK65: 1172.966974 | EL65: 952.827847 | EM65: 2153.941381 | EN65: 995.3682447 | EO65: 2637.49637 | EP65: 930.0671501 | EQ65: 775.8180475 | ER65: 830.0402126 | ES65: 570.1018189 | ET65: 990.9001516 | EU65: 878.6770077 | EV65: 681.6270621 | EW65: 6192.069341 | EX65: 1082.275511 | EY65: 819.0823043 | EZ65: 1034.976752 | FA65: 6872.810115 | FB65: 821.2803077 | FC65: 875.029683 | FD65: 867.0890065 | FE65: 807.6901628 | FF65: 782.4108537 | FG65: 2421.222742 | FH65: 1105.231737 | FI65: 900.3183049 | FJ65: 844.6379134 | FK65: 8.050476692 | FL65: 174.2171102 | FM65: 2063.304501 | FN65: 3063.760111 | FO65: 1086.845133 | FP65: 937.9282352 | FQ65: 1979.440493 | FR65: 0.0001912553257 | FS65: 552.0459806 | FT65: 681.2697892 | FU65: 854.5145828 | FV65: 1574.686502 | FW65: 907.9402002 | FX65: 299.9248178 | FY65: 244.3326332 | FZ65: 3438.111086 | GA65: 3352.311902 | GB65: 984.1955468 | GC65: 19264.02563 | GD65: 948.7089688 | GE65: 2425.543684 | GF65: 1413.187533 | GG65: 1105.229567 | GH65: 1008.160879 | GI65: 872.1113715 | GJ65: 4088.21838 | GK65: 873.0594181 | GL65: 1015.243635 | GM65: 1018.946037 | GN65: 2529.406719 | GO65: 3232.711509 | GP65: 2582.710485 | GQ65: 141223.2093 | GR65: 20295.46277 | GS65: 16065.95534 | GT65: 5315.544764 | GU65: 34830.39169 | GV65: 8443.844846 | GW65: 5278.335313 | GX65: 5648.754766 | GY65: 52.24854929 | GZ65: 2998.202751 | HA65: 2396.174069 | HB65: 6758.222498 | HC65: 383.3877935 | HD65: 15104.34253 | HE65: 5523.563656 | HF65: 724.6787865 | HG65: 880.1322686 | HH65: 336.1508223 | HI65: 1138.966637 | HJ65: 990.8612633 | HK65: 1550.93544 | HL65: 1413.41605 | HM65: 839.553648 | HN65: 1127.676396 | HO65: 3676.606645 | HP65: 10439.62012 | HQ65: 1034.738554 | HR65: 2735.719908 | HS65: 1108.636217 | HT65: 1087.390243 | HU65: 23.58782526 | HV65: 48169.75626 | HW65: 6162.715059 | HX65: 2387772.892
A66: =+MATCH(B66,RUT[EMPRESA],0) -> 170 | B66: HIDRONALCAS | C66: 68208829.21 | D66: 68208829.21 | F66: =IFERROR(INDEX($B$9:$B$511,MATCH(0,INDEX(COUNTIF($F$8:F65,$B$9:$B$511),0,0),0)),"") -> HIDRONALCAS | H66: 68208829.21 | J66: HORNITOS | K66: 5122565.58 | L66: 3958133.953 | M66: 14212449.55 | N66: 264981.7137 | O66: 55481922.56 | P66: 20018262.1 | Q66: 2880285.666 | R66: 33613.27218 | S66: 13822.81573 | T66: 85096.58667 | U66: 356741.6655 | V66: 239944.8223 | W66: 237962.1693 | X66: 3768194.231 | Y66: 1051419.427 | Z66: 227242.517 | AA66: 131513.7224 | AB66: 632189.1882 | AC66: 561147.4637 | AD66: 288369.5581 | AE66: 24187.14213 | AF66: 170523.7797 | AG66: 15624.70852 | AH66: 76821.61192 | AI66: 515014.6046 | AJ66: 230331.5995 | AK66: 2095903.255 | AL66: 185050.3981 | AM66: 904427.8243 | AN66: 1413786.618 | AO66: 1529863.105 | AP66: 14815.11944 | AQ66: 90476.10172 | AR66: 7450972.882 | AS66: 309503.0712 | AT66: 415.6254463 | AU66: 8728982.24 | AV66: 170493.708 | AW66: 505137.4722 | AX66: 142093.7905 | AY66: 12617.09578 | AZ66: 364585.9275 | BA66: 398896.7966 | BB66: 5921.214785 | BC66: 349287.3238 | BD66: 296538.6497 | BE66: 2134.307243 | BF66: 580275.3252 | BG66: 53040.50026 | BH66: 1984575.832 | BI66: 578974.4575 | BJ66: 39797.46366 | BK66: 70.68787435 | BL66: 10906386.19 | BM66: 135404.7029 | BN66: 3321883.128 | BO66: 1535090.805 | BP66: 538267.9854 | BQ66: 3689.640434 | BR66: 339904.3731 | BS66: 107048.806 | BT66: 3024595.55 | BU66: 1013078.331 | BV66: 111037.1769 | BW66: 97319.43642 | BX66: 30605.77599 | BY66: 87729034.95 | BZ66: 3856817.672 | CA66: 314184.1286 | CB66: 62263.02779 | CC66: 705170.4148 | CD66: 2035002.922 | CE66: 564738.7738 | CF66: 8879.516766 | CG66: 301413.511 | CH66: 50955.82634 | CI66: 395200.4793 | CJ66: 1390788.958 | CK66: 28966.70711 | CL66: 54234.51436 | CM66: 159482.7325 | CN66: 149495.778 | CO66: 27833.66538 | CP66: 29576.37687 | CQ66: 10456.86577 | CR66: 1530017.346 | CS66: 943110.7466 | CT66: 18939.78724 | CU66: 101743.9273 | CV66: 99725.95695 | CW66: 3022.675603 | CX66: 123245.3865 | CY66: 24344.32628 | CZ66: 723825.4034 | DA66: 40107.08537 | DB66: 397046.74 | DC66: 71579.25252 | DD66: 1244832.019 | DE66: 9719.623455 | DF66: 20019.90141 | DG66: 203547.6412 | DH66: 349440.5147 | DI66: 53612.79432 | DJ66: 307219.3693 | DK66: 130120.6748 | DL66: 117648.2132 | DM66: 2640484.924 | DN66: 375.9972833 | DO66: 48941.57441 | DP66: 117709.8585 | DQ66: 433832.2013 | DR66: 1286280.014 | DS66: 121943.7365 | DT66: 201786.6985 | DU66: 135303.8374 | DV66: 3860514.024 | DW66: 194.5712439 | DX66: 162851.8318 | DY66: 466226.4222 | DZ66: 170535.9635 | EA66: 1444888.251 | EB66: 6018.541139 | EC66: 144603.6604 | ED66: 125189.5112 | EE66: 233465.7415 | EF66: 835673.0367 | EG66: 873877.2803 | EH66: 146123.521 | EI66: 163715.8346 | EJ66: 157801.9264 | EK66: 169000.7824 | EL66: 137283.1931 | EM66: 310339.3247 | EN66: 143412.4028 | EO66: 380009.8042 | EP66: 134003.8377 | EQ66: 111779.6664 | ER66: 119591.9821 | ES66: 82140.12463 | ET66: 142768.6411 | EU66: 126599.5591 | EV66: 98208.65322 | EW66: 892151.771 | EX66: 155933.9795 | EY66: 118013.1695 | EZ66: 149119.1864 | FA66: 990232.7281 | FB66: 118329.8572 | FC66: 126074.0535 | FD66: 124929.9629 | FE66: 116371.7926 | FF66: 112729.5562 | FG66: 348849.1549 | FH66: 159241.5067 | FI66: 129717.6317 | FJ66: 121695.2151 | FK66: 1159.910628 | FL66: 25101.1568 | FM66: 297280.3861 | FN66: 441425.7752 | FO66: 156592.3695 | FP66: 135136.4609 | FQ66: 285197.2812 | FR66: 0.02755601853 | FS66: 79538.64405 | FT66: 98157.17743 | FU66: 123118.2431 | FV66: 226880.4295 | FW66: 130815.7924 | FX66: 43213.09124 | FY66: 35203.38347 | FZ66: 495362.1682 | GA66: 483000.2436 | GB66: 141802.6433 | GC66: 2775555.898 | GD66: 136689.7462 | GE66: 349471.7153 | GF66: 203611.6992 | GG66: 159241.1941 | GH66: 145255.5622 | GI66: 125653.5839 | GJ66: 589029.4612 | GK66: 125790.1782 | GL66: 146276.044 | GM66: 146809.4851 | GN66: 364436.2749 | GO66: 465768.2495 | GP66: 372116.2678 | GQ66: 20347403.97 | GR66: 2924165.098 | GS66: 2314778.747 | GT66: 765862.3335 | GU66: 5018353.95 | GV66: 1216587.011 | GW66: 760501.2053 | GX66: 813871.1457 | GY66: 7527.957653 | GZ66: 431980.2876 | HA66: 345240.1486 | HB66: 973722.9735 | HC66: 55238.41548 | HD66: 2176229.818 | HE66: 795833.6425 | HF66: 104411.5347 | HG66: 126809.2327 | HH66: 48432.52473 | HI66: 164102.0225 | HJ66: 142763.038 | HK66: 223458.3825 | HL66: 203644.6239 | HM66: 120962.6754 | HN66: 162475.3275 | HO66: 529724.5475 | HP66: 1504137.804 | HQ66: 149084.8668 | HR66: 394161.8265 | HS66: 159732.0233 | HT66: 156670.9088 | HU66: 3398.527846 | HV66: 6940286.194 | HW66: 887922.4136 | HX66: 344029709.1
A67: =+MATCH(B67,RUT[EMPRESA],0) -> 163 | B67: HIDROCALLAO | C67: 19186957.26 | D67: 19186957.26 | F67: =IFERROR(INDEX($B$9:$B$511,MATCH(0,INDEX(COUNTIF($F$8:F66,$B$9:$B$511),0,0),0)),"") -> HIDROCALLAO | H67: 19186957.26 | J67: ON GROUP | K67: 818986.9646 | L67: 632819.6411 | M67: 2272261.962 | N67: 42364.82013 | O67: 8870354.247 | P67: 3200485.275 | Q67: 460495.1128 | R67: 5374.032079 | S67: 2209.967977 | T67: 13605.09575 | U67: 57035.24323 | V67: 38361.96504 | W67: 38044.98188 | X67: 602452.4053 | Y67: 168099.1275 | Z67: 36331.14234 | AA67: 21026.18749 | AB67: 101073.3189 | AC67: 89715.29028 | AD67: 46104.02842 | AE67: 3866.998636 | AF67: 27263.04829 | AG67: 2498.051494 | AH67: 12282.10704 | AI67: 82339.64819 | AJ67: 36825.01953 | AK67: 335089.4035 | AL67: 29585.53902 | AM67: 144598.3632 | AN67: 226033.7701 | AO67: 244591.879 | AP67: 2368.615787 | AQ67: 14465.16336 | AR67: 1191248.715 | AS67: 49482.81809 | AT67: 66.4494807 | AU67: 1395574.65 | AV67: 27258.24048 | AW67: 80760.50928 | AX67: 22717.71057 | AY67: 2017.199549 | AZ67: 58289.37033 | BA67: 63774.93299 | BB67: 946.6736243 | BC67: 55843.4559 | BD67: 47410.08871 | BE67: 341.2293671 | BF67: 92773.41984 | BG67: 8480.023853 | BH67: 317290.5669 | BI67: 92565.43936 | BJ67: 6362.749964 | BK67: 11.30145564 | BL67: 1743694.245 | BM67: 21648.27076 | BN67: 531096.9546 | BO67: 245427.6748 | BP67: 86057.35867 | BQ67: 589.8933596 | BR67: 54343.3259 | BS67: 17114.77878 | BT67: 483567.1286 | BU67: 161969.2192 | BV67: 17752.43265 | BW67: 15559.26392 | BX67: 4893.198766 | BY67: 14025967.05 | BZ67: 616621.3685 | CA67: 50231.2175 | CB67: 9954.505675 | CC67: 112741.4317 | CD67: 325352.7632 | CE67: 90289.46275 | CF67: 1419.641851 | CG67: 48189.47314 | CH67: 8146.729777 | CI67: 63183.97216 | CJ67: 222356.9438 | CK67: 4631.147255 | CL67: 8670.920771 | CM67: 25497.82466 | CN67: 23901.12758 | CO67: 4449.998495 | CP67: 4728.620208 | CQ67: 1671.825694 | CR67: 244616.5388 | CS67: 150782.9223 | CT67: 3028.060572 | CU67: 16266.64391 | CV67: 15944.01428 | CW67: 483.2601708 | CX67: 19704.26018 | CY67: 3892.128968 | CZ67: 115723.9592 | DA67: 6412.251749 | DB67: 63479.14913 | DC67: 11443.96764 | DD67: 199021.5997 | DE67: 1553.956662 | DF67: 3200.747366 | DG67: 32542.84639 | DH67: 55867.9478 | DI67: 8571.521243 | DJ67: 49117.70377 | DK67: 20803.46943 | DL67: 18809.39375 | DM67: 422156.1831 | DN67: 60.11379823 | DO67: 7824.694646 | DP67: 18819.2495 | DQ67: 69360.34534 | DR67: 205648.2339 | DS67: 19496.15462 | DT67: 32261.3099 | DU67: 21632.14455 | DV67: 617212.3349 | DW67: 31.10771545 | DX67: 26036.47046 | DY67: 74539.4776 | DZ67: 27264.9962 | EA67: 231006.2457 | EB67: 962.2339942 | EC67: 23118.98423 | ED67: 20015.08349 | EE67: 37326.10076 | EF67: 133605.9662 | EG67: 139713.9949 | EH67: 23361.97693 | EI67: 26174.60575 | EJ67: 25229.10027 | EK67: 27019.5541 | EL67: 21948.60053 | EM67: 49616.51687 | EN67: 22928.52802 | EO67: 60755.31317 | EP67: 21424.30284 | EQ67: 17871.14059 | ER67: 19120.16018 | ES67: 13132.42169 | ET67: 22825.60451 | EU67: 20240.51952 | EV67: 15701.43037 | EW67: 142635.689 | EX67: 24930.45615 | EY67: 18867.74233 | EZ67: 23840.91876 | FA67: 158316.7035 | FB67: 18918.37383 | FC67: 20156.50259 | FD67: 19973.58735 | FE67: 18605.32183 | FF67: 18023.00734 | FG67: 55773.40222 | FH67: 25459.2579 | FI67: 20739.0316 | FJ67: 19456.42145 | FK67: 185.444514 | FL67: 4013.129728 | FM67: 47528.67626 | FN67: 70574.39287 | FO67: 25035.7184 | FP67: 21605.38468 | FQ67: 45596.85025 | FR67: 0.004405608795 | FS67: 12716.50146 | FT67: 15693.20051 | FU67: 19683.93271 | FV67: 36273.2524 | FW67: 20914.60365 | FX67: 6908.83462 | FY67: 5628.256333 | FZ67: 79197.65051 | GA67: 77221.24729 | GB67: 22671.16245 | GC67: 443751.0979 | GD67: 21853.72126 | GE67: 55872.93609 | GF67: 32553.08788 | GG67: 25459.20791 | GH67: 23223.20918 | GI67: 20089.27864 | GJ67: 94173.01603 | GK67: 20111.1171 | GL67: 23386.36204 | GM67: 23471.64769 | GN67: 58265.44412 | GO67: 74466.22574 | GP67: 59493.30817 | GQ67: 3253107.912 | GR67: 467510.4809 | GS67: 370082.8404 | GT67: 122444.7512 | GU67: 802325.7886 | GV67: 194505.8366 | GW67: 121587.6232 | GX67: 130120.3174 | GY67: 1203.556907 | GZ67: 69064.26457 | HA67: 55196.4005 | HB67: 155677.1524 | HC67: 8831.422754 | HD67: 347931.8762 | HE67: 127236.5124 | HF67: 16693.13638 | HG67: 20274.04178 | HH67: 7743.308659 | HI67: 26236.3488 | HJ67: 22824.7087 | HK67: 35726.14143 | HL67: 32558.35183 | HM67: 19339.30427 | HN67: 25976.2756 | HO67: 84691.44855 | HP67: 240478.9621 | HQ67: 23835.4318 | HR67: 63017.91412 | HS67: 25537.68085 | HT67: 25048.27513 | HU67: 543.3507803 | HV67: 1109601.006 | HW67: 141959.5066 | HX67: 55002877.52
A68: =+MATCH(B68,RUT[EMPRESA],0) -> 279 | B68: RUCATAYO | C68: -634969593 | D68: -634969593 | F68: =IFERROR(INDEX($B$9:$B$511,MATCH(0,INDEX(COUNTIF($F$8:F67,$B$9:$B$511),0,0),0)),"") -> RUCATAYO | G68: -634969593 | J68: HIDROANGOL | K68: 1918773.599 | L68: 1482609.214 | M68: 5323596.651 | N68: 99254.93554 | O68: 20782017.63 | P68: 7498295.961 | Q68: 1078876.591 | R68: 12590.6166 | S68: 5177.650429 | T68: 31874.86452 | U68: 133625.7152 | V68: 89876.79767 | W68: 89134.14982 | X68: 1411462.966 | Y68: 393833.0911 | Z68: 85118.85994 | AA68: 49261.45981 | AB68: 236800.8578 | AC68: 210190.562 | AD68: 108015.3853 | AE68: 9059.844918 | AF68: 63873.56519 | AG68: 5852.590411 | AH68: 28775.28427 | AI68: 192910.449 | AJ68: 86275.94614 | AK68: 785068.2958 | AL68: 69314.84094 | AM68: 338774.0389 | AN68: 529565.975 | AO68: 573045.0668 | AP68: 5549.340385 | AQ68: 33889.88439 | AR68: 2790931.58 | AS68: 115931.4239 | AT68: 155.6819763 | AU68: 3269639.091 | AV68: 63862.30115 | AW68: 189210.7442 | AX68: 53224.46527 | AY68: 4726.020566 | AZ68: 136563.9622 | BA68: 149415.8796 | BB68: 2217.925847 | BC68: 130833.5217 | BD68: 111075.3046 | BE68: 799.4533844 | BF68: 217355.3382 | BG68: 19867.52731 | BH68: 743368.0745 | BI68: 216868.0686 | BJ68: 14907.04636 | BK68: 26.47775318 | BL68: 4085235.328 | BM68: 50718.91517 | BN68: 1244286.978 | BO68: 575003.2211 | BP68: 201620.5324 | BQ68: 1382.038852 | BR68: 127318.9239 | BS68: 40097.56821 | BT68: 1132931.145 | BU68: 379471.5607 | BV68: 41591.50336 | BW68: 36453.21125 | BX68: 11464.09041 | BY68: 32860907.97 | BZ68: 1444658.894 | CA68: 117684.8206 | CB68: 23322.03503 | CC68: 264137.6383 | CD68: 762256.6894 | CE68: 211535.769 | CF68: 3326.025226 | CG68: 112901.2949 | CH68: 19086.66522 | CI68: 148031.3398 | CJ68: 520951.6778 | CK68: 10850.13983 | CL68: 20314.77248 | CM68: 59737.88949 | CN68: 55997.04826 | CO68: 10425.73325 | CP68: 11078.50553 | CQ68: 3916.857217 | CR68: 573102.8414 | CS68: 353263.6084 | CT68: 7094.328643 | CU68: 38110.50507 | CV68: 37354.62832 | CW68: 1132.211985 | CX68: 46164.36628 | CY68: 9118.721822 | CZ68: 271125.2891 | DA68: 15023.02222 | DB68: 148722.8987 | DC68: 26811.63917 | DD68: 466280.1823 | DE68: 3640.706319 | DF68: 7498.910004 | DG68: 76243.40457 | DH68: 130890.9029 | DI68: 20081.89308 | DJ68: 115076.0113 | DK68: 48739.66208 | DL68: 44067.81756 | DM68: 989053.7623 | DN68: 140.8383454 | DO68: 18332.18128 | DP68: 44090.90821 | DQ68: 162501.731 | DR68: 481805.4729 | DS68: 45676.80363 | DT68: 75583.80337 | DU68: 50681.13369 | DV68: 1446043.447 | DW68: 72.88109054 | DX68: 60999.86237 | DY68: 174635.7242 | DZ68: 63878.12887 | EA68: 541215.8002 | EB68: 2254.381649 | EC68: 54164.59417 | ED68: 46892.58248 | EE68: 87449.91041 | EF68: 313020.3674 | EG68: 327330.6369 | EH68: 54733.89259 | EI68: 61323.49431 | EJ68: 59108.30528 | EK68: 63303.09185 | EL68: 51422.54645 | EM68: 116244.6617 | EN68: 53718.38151 | EO68: 142341.3264 | EP68: 50194.18921 | EQ68: 41869.6197 | ER68: 44795.90046 | ES68: 30767.45433 | ET68: 53477.24591 | EU68: 47420.74803 | EV68: 36786.28765 | EW68: 334175.7636 | EX68: 58408.62325 | EY68: 44204.52024 | EZ68: 55855.98728 | FA68: 370914.2197 | FB68: 44323.14285 | FC68: 47223.90793 | FD68: 46795.36273 | FE68: 43589.70516 | FF68: 42225.42256 | FG68: 130669.3956 | FH68: 59647.53287 | FI68: 48588.69312 | FJ68: 45583.71428 | FK68: 434.4709414 | FL68: 9402.20993 | FM68: 111353.1388 | FN68: 165346.0771 | FO68: 58655.2382 | FP68: 50618.439 | FQ68: 106827.1367 | FR68: 0.0103217343 | FS68: 29793.01053 | FT68: 36767.00623 | FU68: 46116.74183 | FV68: 84983.2318 | FW68: 49000.03424 | FX68: 16186.44745 | FY68: 13186.22899 | FZ68: 185549.1814 | GA68: 180918.741 | GB68: 53115.40944 | GC68: 1039647.672 | GD68: 51200.2574 | GE68: 130902.5898 | GF68: 76267.39897 | GG68: 59647.41577 | GH68: 54408.77886 | GI68: 47066.41148 | GJ68: 220634.3992 | GK68: 47117.57599 | GL68: 54791.02354 | GM68: 54990.83606 | GN68: 136507.9064 | GO68: 174464.1052 | GP68: 139384.6226 | GQ68: 7621583.547 | GR68: 1095312.632 | GS68: 867053.0962 | GT68: 286871.1787 | GU68: 1879738.759 | GV68: 455700.3715 | GW68: 284863.046 | GX68: 304853.9726 | GY68: 2819.76798 | GZ68: 161808.0546 | HA68: 129317.5601 | HB68: 364730.1152 | HC68: 20690.80651 | HD68: 815156.4397 | HE68: 298097.615 | HF68: 39109.71817 | HG68: 47499.28606 | HH68: 18141.50513 | HI68: 61468.14977 | HJ68: 53475.14717 | HK68: 83701.42618 | HL68: 76279.73167 | HM68: 45309.32487 | HN68: 60858.83411 | HO68: 198420.3932 | HP68: 563409.0693 | HQ68: 55843.13211 | HR68: 147642.2887 | HS68: 59831.26705 | HT68: 58684.65689 | HU68: 1272.996002 | HV68: 2599642.251 | HW68: 332591.5614 | HX68: 128864162.4
A69: =+MATCH(B69,RUT[EMPRESA],0) -> 181 | B69: KALTEMP | C69: 1703689.35 | D69: 1703689.35 | F69: =IFERROR(INDEX($B$9:$B$511,MATCH(0,INDEX(COUNTIF($F$8:F68,$B$9:$B$511),0,0),0)),"") -> KALTEMP | H69: 1703689.35 | J69: LA CONFLUENCIA | K69: =$HX69*K$75/$HX$75 -> 863554.0646 | L69: 667256.0087 | M69: 2395912.436 | N69: 44670.20136 | O69: 9353055.415 | P69: 3374647.201 | Q69: 485554.0363 | R69: 5666.472662 | S69: 2330.228577 | T69: 14345.449 | U69: =$HX69*U$75/$HX$75 -> 60138.95 | V69: 40449.5215 | W69: 40115.28896 | X69: 635236.2685 | Y69: 177246.6365 | Z69: 38308.18682 | AA69: 22170.37689 | AB69: 106573.461 | AC69: 94597.35859 | AD69: 48612.88745 | AE69: =$HX69*AE$75/$HX$75 -> 4077.430453 | AF69: 28746.63112 | AG69: 2633.988836 | AH69: 12950.46675 | AI69: 86820.35361 | AJ69: 38828.93949 | AK69: 353324.0807 | AL69: 31195.50564 | AM69: 152467.0229 | AN69: 238333.9288 | AO69: =$HX69*AO$75/$HX$75 -> 257901.9208 | AP69: 2497.50958 | AQ69: 15252.31921 | AR69: 1256073.313 | AS69: 52175.54191 | AT69: 70.06548532 | AU69: 1471518.124 | AV69: 28741.56168 | AW69: 85155.28215 | AX69: 23953.94816 | AY69: =$HX69*AY$75/$HX$75 -> 2126.970202 | AZ69: 61461.32337 | BA69: 67245.39582 | BB69: 998.1890939 | BC69: 58882.30876 | BD69: 49990.02009 | BE69: 359.7981648 | BF69: 97821.90346 | BG69: 8941.484275 | BH69: 334556.6786 | BI69: =$HX69*BI$75/$HX$75 -> 97602.60523 | BJ69: 6708.993953 | BK69: 11.9164509 | BL69: 1838581.464 | BM69: 22826.31227 | BN69: 559997.8433 | BO69: 258783.1983 | BP69: 90740.37205 | BQ69: 621.9937928 | BR69: 57300.54566 | BS69: =$HX69*BS$75/$HX$75 -> 18046.11968 | BT69: 509881.5701 | BU69: 170783.1549 | BV69: 18718.47299 | BW69: 16405.95783 | BX69: 5159.473674 | BY69: 14789223 | BZ69: 650176.2691 | CA69: 52964.66723 | CB69: 10496.20349 | CC69: =$HX69*CC$75/$HX$75 -> 118876.5216 | CD69: 343057.5983 | CE69: 95202.77601 | CF69: 1496.894998 | CG69: 50811.81655 | CH69: 8590.053219 | CI69: 66622.27646 | CJ69: 234457.0194 | CK69: 4883.162015 | CL69: 9142.769299 | CM69: =$HX69*CM$75/$HX$75 -> 26885.3487 | CN69: 25201.76359 | CO69: 4692.155619 | CP69: 4985.939187 | CQ69: 1762.802017 | CR69: 257927.9225 | CS69: 158988.1292 | CT69: 3192.839603 | CU69: 17151.83155 | CV69: 16811.64528 | CW69: =$HX69*CW$75/$HX$75 -> 509.5579084 | CX69: 20776.51379 | CY69: 4103.928311 | CZ69: 122021.3503 | DA69: 6761.189495 | DB69: 66933.51618 | DC69: 12066.71803 | DD69: 209851.8277 | DE69: 1638.518865 | DF69: 3374.923554 | DG69: =$HX69*DG$75/$HX$75 -> 34313.74184 | DH69: 58908.13345 | DI69: 9037.960711 | DJ69: 51790.55903 | DK69: 21935.5391 | DL69: 19832.95111 | DM69: 445128.8037 | DN69: 63.38503181 | DO69: 8250.49379 | DP69: 19843.34318 | DQ69: =$HX69*DQ$75/$HX$75 -> 73134.7515 | DR69: 216839.0657 | DS69: 20557.08368 | DT69: 34016.88488 | DU69: 22809.30852 | DV69: 650799.3944 | DW69: 32.80051487 | DX69: 27453.30618 | DY69: 78595.71841 | DZ69: 28748.68503 | EA69: =$HX69*EA$75/$HX$75 -> 243576.9933 | EB69: 1014.596218 | EC69: 24377.05808 | ED69: 21104.25129 | EE69: 39357.28823 | EF69: 140876.4488 | EG69: 147316.8602 | EH69: 24633.2738 | EI69: 27598.95842 | EJ69: 26602.00104 | EK69: =$HX69*EK$75/$HX$75 -> 28489.88662 | EL69: 23142.9852 | EM69: 52316.51621 | EN69: 24176.23774 | EO69: 64061.45628 | EP69: 22590.15662 | EQ69: 18843.6407 | ER69: 20160.62862 | ES69: 13847.05327 | ET69: 24067.71341 | EU69: =$HX69*EU$75/$HX$75 -> 21341.95495 | EV69: 16555.8606 | EW69: 150397.5451 | EX69: 26287.1055 | EY69: 19894.47486 | EZ69: 25138.27837 | FA69: 166931.8789 | FB69: 19947.86159 | FC69: 21253.36604 | FD69: 21060.49704 | FE69: =$HX69*FE$75/$HX$75 -> 19617.77413 | FF69: 19003.77163 | FG69: 58808.44295 | FH69: 26844.68323 | FI69: 21867.59473 | FJ69: 20515.18833 | FK69: 195.535913 | FL69: 4231.513612 | FM69: 50115.06085 | FN69: 74414.86428 | FO69: =$HX69*FO$75/$HX$75 -> 26398.09584 | FP69: 22781.09245 | FQ69: 48078.10999 | FR69: 0.004645350349 | FS69: 13408.49976 | FT69: 16547.18289 | FU69: 20755.08016 | FV69: 38247.14666 | FW69: 22052.72095 | FX69: 7284.795089 | FY69: =$HX69*FY$75/$HX$75 -> 5934.531126 | FZ69: 83507.37674 | GA69: 81423.4229 | GB69: 23904.86702 | GC69: 467898.8565 | GD69: 23042.94285 | GE69: 58913.39319 | GF69: 34324.54064 | GG69: 26844.63053 | GH69: 24486.95467 | GI69: =$HX69*GI$75/$HX$75 -> 21182.48394 | GJ69: 99297.66197 | GK69: 21205.5108 | GL69: 24658.98588 | GM69: 24748.91255 | GN69: 61436.09516 | GO69: 78518.48038 | GP69: 62730.77632 | GQ69: 3430133.422 | GR69: 492951.1622 | GS69: =$HX69*GS$75/$HX$75 -> 390221.7677 | GT69: 129107.87 | GU69: 845986.2315 | GV69: 205090.3287 | GW69: 128204.0994 | GX69: 137201.1202 | GY69: 1269.051284 | GZ69: 72822.5588 | HA69: 58200.04232 | HB69: 164148.6904 | HC69: =$HX69*HC$75/$HX$75 -> 9312.005373 | HD69: 366865.4067 | HE69: 134160.3862 | HF69: 17601.53262 | HG69: 21377.3014 | HH69: 8164.678994 | HI69: 27664.06136 | HJ69: 24066.76886 | HK69: 37670.26336 | HL69: 34330.09104 | HM69: =$HX69*HM$75/$HX$75 -> 20391.69795 | HN69: 27389.83567 | HO69: 89300.13271 | HP69: 253565.1899 | HQ69: 25132.49283 | HR69: 66447.18199 | HS69: 26927.37376 | HT69: 26411.33588 | HU69: 572.9184896 | HV69: 1169982.552 | HW69: 149684.5667 | HX69: 57995988.34
A70: =+MATCH(B70,RUT[EMPRESA],0) -> 127 | B70: ESTANCILLA SPA | C70: -507225.5657 | D70: -507225.5657 | F70: =IFERROR(INDEX($B$9:$B$511,MATCH(0,INDEX(COUNTIF($F$8:F69,$B$9:$B$511),0,0),0)),"") -> ESTANCILLA SPA | G70: -507225.5657 | J70: DUQUECO | K70: 4309760.496 | L70: 3330090.963 | M70: 11957339.08 | N70: 222936.6719 | O70: 46678523.55 | P70: 16841934.73 | Q70: 2423266.464 | R70: 28279.80439 | S70: 11629.52904 | T70: 71594.18494 | U70: 300136.9359 | V70: 201872.4212 | W70: 200204.3586 | X70: 3170289.259 | Y70: 884589.1454 | Z70: 191185.6095 | AA70: 110646.2449 | AB70: 531878.7913 | AC70: 472109.3627 | AD70: 242613.5323 | AE70: 20349.33238 | AF70: 143466.5185 | AG70: 13145.51282 | AH70: 64632.21272 | AI70: 433296.4727 | AJ70: 193784.5427 | AK70: 1763343.174 | AL70: 155688.1768 | AM70: 760920.9189 | AN70: 1189458.996 | AO70: 1287117.455 | AP70: 12464.38245 | AQ70: 76120.12436 | AR70: 6268715.955 | AS70: 260393.7594 | AT70: 349.6775397 | AU70: 7343941.67 | AV70: 143441.2183 | AW70: 424986.5597 | AX70: 119547.5579 | AY70: 10615.12247 | AZ70: 306736.5372 | BA70: 335603.2497 | BB70: 4981.686846 | BC70: 293865.3856 | BD70: 249486.422 | BE70: 1795.653545 | BF70: 488202.178 | BG70: 44624.48535 | BH70: 1669680.239 | BI70: 487107.7209 | BJ70: 33482.74102 | BK70: 59.4717244 | BL70: 9175853.704 | BM70: 113919.8377 | BN70: 2794795.001 | BO70: 1291515.669 | BP70: 452860.2051 | BQ70: 3104.19971 | BR70: 285971.2416 | BS70: 90063.21306 | BT70: 2544678.484 | BU70: 852331.6887 | BV70: 93418.74323 | BW70: 81877.61698 | BX70: 25749.51208 | BY70: 73808938.75 | BZ70: 3244850.687 | CA70: 264332.0666 | CB70: 52383.66075 | CC70: 593279.9783 | CD70: 1712105.988 | CE70: 475130.8342 | CF70: 7470.59066 | CG70: 253587.7818 | CH70: 42870.58974 | CI70: 332493.4326 | CJ70: 1170110.409 | CK70: 24370.51669 | CL70: 45629.04346 | CM70: 134177.3706 | CN70: 125775.061 | CO70: 23417.25638 | CP70: 24883.44925 | CQ70: 8797.659356 | CR70: 1287247.223 | CS70: 793465.9644 | CT70: 15934.58309 | CU70: 85600.06731 | CV70: 83902.29133 | CW70: 2543.063178 | CX70: 103689.8581 | CY70: 20481.57589 | CZ70: 608974.9522 | DA70: 33743.23459 | DB70: 334046.7444 | DC70: 60221.66627 | DD70: 1047312.674 | DE70: 8177.396374 | DF70: 16843.31394 | DG70: 171250.4348 | DH70: 293994.2695 | DI70: 45105.97266 | DJ70: 258472.4159 | DK70: 109474.2341 | DL70: 98980.79658 | DM70: 2221515.261 | DN70: 316.3372362 | DO70: 41175.94215 | DP70: 99032.66052 | DQ70: 364995.4019 | DR70: 1082184.055 | DS70: 102594.7428 | DT70: 169768.9035 | DU70: 113834.9767 | DV70: 3247960.534 | DW70: 163.6983358 | DX70: 137011.8899 | DY70: 392249.5837 | DZ70: 143476.769 | EA70: 1215625.688 | EB70: 5063.570282 | EC70: 121659.1829 | ED70: 105325.5056 | EE70: 196421.3858 | EF70: 703075.5555 | EG70: 735217.875 | EH70: 122937.885 | EI70: 137738.8001 | EJ70: 132763.2605 | EK70: 142185.1774 | EL70: 115500.2651 | EM70: 261097.3233 | EN70: 120656.9439 | EO70: 319713.0845 | EP70: 112741.2499 | EQ70: 94043.42078 | ER70: 100616.1448 | ES70: 69106.82913 | ET70: 120115.3289 | EU70: 106511.8191 | EV70: 82625.74043 | EW70: 750592.7252 | EX70: 131191.7035 | EY70: 99287.84468 | EZ70: 125458.2237 | FA70: 833111.0312 | FB70: 99554.28313 | FC70: 106069.6963 | FD70: 105107.1402 | FE70: 97906.90753 | FF70: 94842.59018 | FG70: 293496.7417 | FH70: 133974.4204 | FI70: 109135.1425 | FJ70: 102385.6547 | FK70: 975.8658869 | FL70: 21118.31899 | FM70: 250110.466 | FN70: 371384.0922 | FO70: 131745.6258 | FP70: 113694.158 | FQ70: 239944.6053 | FR70: 0.02318366417 | FS70: 66918.12933 | FT70: 82582.43238 | FU70: 103582.8887 | FV70: 190880.9749 | FW70: 110059.0565 | FX70: 36356.40591 | FY70: 29617.61036 | FZ70: 416762.3177 | GA70: 406361.878 | GB70: 119302.6074 | GC70: 2335154.324 | GD70: 115000.9813 | GE70: 294020.5194 | GF70: 171304.3287 | GG70: 133974.1574 | GH70: 122207.6465 | GI70: 105715.9432 | GJ70: 495567.2822 | GK70: 105830.8639 | GL70: 123066.2069 | GM70: 123515.0062 | GN70: 306610.6302 | GO70: 391864.1099 | GP70: 313072.0272 | GQ70: 17118851.18 | GR70: 2460183.481 | GS70: 1947489.367 | GT70: 644341.8202 | GU70: 4222084.279 | GV70: 1023549.344 | GW70: 639831.3502 | GX70: 684733.0029 | GY70: 6333.485437 | GZ70: 363437.3341 | HA70: 290460.3817 | HB70: 819220.9039 | HC70: 46473.6541 | HD70: 1830924.203 | HE70: 669557.5371 | HF70: 87844.40149 | HG70: 106688.2235 | HH70: 40747.66414 | HI70: 138063.711 | HJ70: 120110.6149 | HK70: 188001.9093 | HL70: 171332.0292 | HM70: 101769.3482 | HN70: 136695.1261 | HO70: 445672.3673 | HP70: 1265474.025 | HQ70: 125429.3497 | HR70: 331619.5844 | HS70: 134387.1061 | HT70: 131811.7031 | HU70: 2859.278388 | HV70: 5839060.681 | HW70: 747034.4462 | HX70: 289442004.5
